{"text_format":"1","workbook":"xlsx","n_sheets":13,"sheets":["Introduction","Instructions","Foire aux questions","Directives pour les populations","TS ","HSH ","Personnes transgenres","Prisonniers ","PQID ","Résumé des notes ","Étapes suivantes","Bibliographie","Acronymes"],"not_rendered":{"charts":10,"images":0,"macros":1,"external_links":0,"defined_names":29,"comments":0,"pivot_tables":0},"unopened":[],"bounds":{"document_bytes":16777216,"sheet_cells":100000,"rows_first":2000,"rows_last":500,"rows_between":2000,"halvings":0,"cell_chars":16384,"cell_head_chars":4096},"cells_cut":0,"cells_raw":0,"read":"whole","date_system":"1900"}

{"sheet":"Introduction","index":0,"n_rows":2,"n_cols":3,"rows_kept":2,"cut":false,"hidden":false,"merged":[[1,2,1,22]]}
[]
[null,null,"Que sont les Outils d’auto-évaluation pour la prévention du VIH (OAEP) ?"]

{"sheet":"Instructions","index":1,"n_rows":3,"n_cols":3,"rows_kept":3,"cut":false,"hidden":false,"merged":[[2,2,2,17]]}
[]
[]
[null,null,"Comment compléter l’outil d’auto-évaluation pour la prévention (OAEP) ?"]

{"sheet":"Foire aux questions","index":2,"n_rows":2,"n_cols":3,"rows_kept":2,"cut":false,"hidden":false,"merged":[[1,2,1,22]]}
[]
[null,null,"Foire aux questions"]

{"sheet":"Directives pour les populations","index":3,"n_rows":2,"n_cols":3,"rows_kept":2,"cut":false,"hidden":false,"merged":[[1,2,1,22]]}
[]
[null,null,"Programmes de prévention combinée pour toutes les populations clés "]

{"sheet":"TS ","index":4,"n_rows":381,"n_cols":22,"rows_kept":381,"cut":false,"hidden":false,"merged":[[322,2,329,2],[374,2,374,4],[68,2,71,2],[376,2,376,4],[372,2,372,4],[373,2,373,4],[375,2,375,4],[322,3,322,4],[322,9,329,9],[367,3,367,4],[371,2,371,4],[355,2,359,2],[355,3,355,4],[355,9,359,9],[360,2,363,2],[360,3,360,4],[360,9,363,9],[341,2,345,2],[341,3,341,4],[341,9,345,9],[346,2,354,2],[346,3,346,4],[346,9,354,9],[330,2,335,2],[330,3,330,4],[330,9,335,9],[336,2,340,2],[336,3,336,4],[336,9,340,9],[313,3,313,4],[314,2,321,2],[314,3,314,4],[314,9,321,9],[291,2,300,2],[291,3,291,4],[291,9,300,9],[301,2,311,2],[301,3,301,4],[301,9,311,9],[279,2,282,2],[279,3,279,4],[279,9,282,9],[283,2,290,2],[283,3,283,4],[283,9,290,9],[270,3,270,4],[271,2,273,2],[271,3,271,4],[271,9,273,9],[274,2,278,2],[170,2,173,2],[170,3,170,4],[170,9,173,9],[174,2,186,2],[174,3,174,4],[174,9,186,9],[154,2,160,2],[154,3,154,4],[154,9,160,9],[161,2,167,2],[161,3,161,4],[161,9,167,9],[138,2,142,2],[138,3,138,4],[138,9,142,9],[144,3,144,4],[145,2,153,2],[145,3,145,4],[145,9,153,9],[120,2,126,2],[120,3,120,4],[120,9,126,9],[127,2,137,2],[127,3,127,4],[127,9,137,9],[274,3,274,4],[274,9,278,9],[258,2,265,2],[258,3,258,4],[258,9,265,9],[266,2,269,2],[266,3,266,4],[266,9,269,9],[241,3,241,4],[242,2,247,2],[242,3,242,4],[242,9,247,9],[249,3,249,4],[250,2,257,2],[250,3,250,4],[250,9,257,9],[234,2,236,2],[234,3,234,4],[234,9,236,9],[237,2,239,2],[237,3,237,4],[237,9,239,9],[222,2,228,2],[222,3,222,4],[222,9,228,9],[229,2,233,2],[229,3,229,4],[229,9,233,9],[210,2,219,2],[210,3,210,4],[210,9,219,9],[220,2,221,2],[220,3,220,4],[220,9,221,9],[60,16380,63,16380],[60,16381,63,16381],[62,2,65,2],[62,3,62,4],[62,9,65,9],[74,3,74,4],[60,16374,63,16374],[60,16375,63,16375],[60,16376,63,16376],[60,16377,63,16377],[60,16378,63,16378],[60,16379,63,16379],[60,16368,63,16368],[60,16369,63,16369],[60,16370,63,16370],[60,16371,63,16371],[60,16372,63,16372],[60,16373,63,16373],[60,16362,63,16362],[60,16363,63,16363],[60,16364,63,16364],[60,16365,63,16365],[60,16366,63,16366],[60,16367,63,16367],[60,16356,63,16356],[60,16357,63,16357],[60,16358,63,16358],[60,16359,63,16359],[60,16360,63,16360],[60,16361,63,16361],[60,16350,63,16350],[60,16351,63,16351],[60,16352,63,16352],[60,16353,63,16353],[60,16354,63,16354],[60,16355,63,16355],[60,16344,63,16344],[60,16345,63,16345],[60,16346,63,16346],[60,16347,63,16347],[60,16348,63,16348],[60,16349,63,16349],[60,16338,63,16338],[60,16339,63,16339],[60,16340,63,16340],[68,9,71,9],[60,16341,63,16341],[60,16342,63,16342],[60,16343,63,16343],[60,16332,63,16332],[60,16333,63,16333],[60,16334,63,16334],[60,16335,63,16335],[60,16336,63,16336],[60,16337,63,16337],[60,16326,63,16326],[60,16327,63,16327],[60,16328,63,16328],[60,16329,63,16329],[60,16330,63,16330],[60,16331,63,16331],[60,16320,63,16320],[60,16321,63,16321],[60,16322,63,16322],[60,16323,63,16323],[60,16324,63,16324],[60,16325,63,16325],[60,16314,63,16314],[60,16315,63,16315],[60,16316,63,16316],[60,16317,63,16317],[60,16318,63,16318],[60,16319,63,16319],[60,16308,63,16308],[60,16309,63,16309],[60,16310,63,16310],[60,16311,63,16311],[60,16312,63,16312],[60,16313,63,16313],[60,16302,63,16302],[60,16303,63,16303],[60,16304,63,16304],[60,16305,63,16305],[60,16306,63,16306],[60,16307,63,16307],[60,16296,63,16296],[60,16297,63,16297],[60,16298,63,16298],[60,16299,63,16299],[60,16300,63,16300],[60,16301,63,16301],[60,16290,63,16290],[60,16291,63,16291],[60,16292,63,16292],[60,16293,63,16293],[60,16294,63,16294],[60,16295,63,16295],[60,16284,63,16284],[60,16285,63,16285],[60,16286,63,16286],[60,16287,63,16287],[60,16288,63,16288],[60,16289,63,16289],[60,16278,63,16278],[60,16279,63,16279],[60,16280,63,16280],[60,16281,63,16281],[60,16282,63,16282],[60,16283,63,16283],[60,16272,63,16272],[60,16273,63,16273],[60,16274,63,16274],[60,16275,63,16275],[60,16276,63,16276],[60,16277,63,16277],[60,16266,63,16266],[60,16267,63,16267],[60,16268,63,16268],[60,16269,63,16269],[60,16270,63,16270],[60,16271,63,16271],[60,16260,63,16260],[60,16261,63,16261],[60,16262,63,16262],[60,16263,63,16263],[60,16264,63,16264],[60,16265,63,16265],[60,16254,63,16254],[60,16255,63,16255],[60,16256,63,16256],[60,16257,63,16257],[60,16258,63,16258],[60,16259,63,16259],[60,16248,63,16248],[60,16249,63,16249],[60,16250,63,16250],[60,16251,63,16251],[60,16252,63,16252],[60,16253,63,16253],[60,16242,63,16242],[60,16243,63,16243],[60,16244,63,16244],[60,16245,63,16245],[60,16246,63,16246],[60,16247,63,16247],[60,16236,63,16236],[60,16237,63,16237],[60,16238,63,16238],[60,16239,63,16239],[60,16240,63,16240],[60,16241,63,16241],[60,16230,63,16230],[60,16231,63,16231],[60,16232,63,16232],[60,16233,63,16233],[60,16234,63,16234],[60,16235,63,16235],[60,16224,63,16224],[60,16225,63,16225],[60,16226,63,16226],[60,16227,63,16227],[60,16228,63,16228],[60,16229,63,16229],[60,16218,63,16218],[60,16219,63,16219],[60,16220,63,16220],[60,16221,63,16221],[60,16222,63,16222],[60,16223,63,16223],[60,16212,63,16212],[60,16213,63,16213],[60,16214,63,16214],[60,16215,63,16215],[60,16216,63,16216],[60,16217,63,16217],[60,16206,63,16206],[60,16207,63,16207],[60,16208,63,16208],[60,16209,63,16209],[60,16210,63,16210],[60,16211,63,16211],[60,16200,63,16200],[60,16201,63,16201],[60,16202,63,16202],[60,16203,63,16203],[60,16204,63,16204],[60,16205,63,16205],[60,16194,63,16194],[60,16195,63,16195],[60,16196,63,16196],[60,16197,63,16197],[60,16198,63,16198],[60,16199,63,16199],[60,16188,63,16188],[60,16189,63,16189],[60,16190,63,16190],[60,16191,63,16191],[60,16192,63,16192],[60,16193,63,16193],[60,16182,63,16182],[60,16183,63,16183],[60,16184,63,16184],[60,16185,63,16185],[60,16186,63,16186],[60,16187,63,16187],[60,16176,63,16176],[60,16177,63,16177],[60,16178,63,16178],[60,16179,63,16179],[60,16180,63,16180],[60,16181,63,16181],[60,16170,63,16170],[60,16171,63,16171],[60,16172,63,16172],[60,16173,63,16173],[60,16174,63,16174],[60,16175,63,16175],[60,16164,63,16164],[60,16165,63,16165],[60,16166,63,16166],[60,16167,63,16167],[60,16168,63,16168],[60,16169,63,16169],[60,16158,63,16158],[60,16159,63,16159],[60,16160,63,16160],[60,16161,63,16161],[60,16162,63,16162],[60,16163,63,16163],[60,16152,63,16152],[60,16153,63,16153],[60,16154,63,16154],[60,16155,63,16155],[60,16156,63,16156],[60,16157,63,16157],[60,16146,63,16146],[60,16147,63,16147],[60,16148,63,16148],[60,16149,63,16149],[60,16150,63,16150],[60,16151,63,16151],[60,16140,63,16140],[60,16141,63,16141],[60,16142,63,16142],[60,16143,63,16143],[60,16144,63,16144],[60,16145,63,16145],[60,16134,63,16134],[60,16135,63,16135],[60,16136,63,16136],[60,16137,63,16137],[60,16138,63,16138],[60,16139,63,16139],[60,16128,63,16128],[60,16129,63,16129],[60,16130,63,16130],[60,16131,63,16131],[60,16132,63,16132],[60,16133,63,16133],[60,16122,63,16122],[60,16123,63,16123],[60,16124,63,16124],[60,16125,63,16125],[60,16126,63,16126],[60,16127,63,16127],[60,16116,63,16116],[60,16117,63,16117],[60,16118,63,16118],[60,16119,63,16119],[60,16120,63,16120],[60,16121,63,16121],[60,16110,63,16110],[60,16111,63,16111],[60,16112,63,16112],[60,16113,63,16113],[60,16114,63,16114],[60,16115,63,16115],[60,16104,63,16104],[60,16105,63,16105],[60,16106,63,16106],[60,16107,63,16107],[60,16108,63,16108],[60,16109,63,16109],[60,16098,63,16098],[60,16099,63,16099],[60,16100,63,16100],[60,16101,63,16101],[60,16102,63,16102],[60,16103,63,16103],[60,16092,63,16092],[60,16093,63,16093],[60,16094,63,16094],[60,16095,63,16095],[60,16096,63,16096],[60,16097,63,16097],[60,16086,63,16086],[60,16087,63,16087],[60,16088,63,16088],[60,16089,63,16089],[60,16090,63,16090],[60,16091,63,16091],[60,16080,63,16080],[60,16081,63,16081],[60,16082,63,16082],[60,16083,63,16083],[60,16084,63,16084],[60,16085,63,16085],[60,16074,63,16074],[60,16075,63,16075],[60,16076,63,16076],[60,16077,63,16077],[60,16078,63,16078],[60,16079,63,16079],[60,16068,63,16068],[60,16069,63,16069],[60,16070,63,16070],[60,16071,63,16071],[60,16072,63,16072],[60,16073,63,16073],[60,16062,63,16062],[60,16063,63,16063],[60,16064,63,16064],[60,16065,63,16065],[60,16066,63,16066],[60,16067,63,16067],[60,16056,63,16056],[60,16057,63,16057],[60,16058,63,16058],[60,16059,63,16059],[60,16060,63,16060],[60,16061,63,16061],[60,16050,63,16050],[60,16051,63,16051],[60,16052,63,16052],[60,16053,63,16053],[60,16054,63,16054],[60,16055,63,16055],[60,16044,63,16044],[60,16045,63,16045],[60,16046,63,16046],[60,16047,63,16047],[60,16048,63,16048],[60,16049,63,16049],[60,16038,63,16038],[60,16039,63,16039],[60,16040,63,16040],[60,16041,63,16041],[60,16042,63,16042],[60,16043,63,16043],[60,16032,63,16032],[60,16033,63,16033],[60,16034,63,16034],[60,16035,63,16035],[60,16036,63,16036],[60,16037,63,16037],[60,16026,63,16026],[60,16027,63,16027],[60,16028,63,16028],[60,16029,63,16029],[60,16030,63,16030],[60,16031,63,16031],[60,16020,63,16020],[60,16021,63,16021],[60,16022,63,16022],[60,16023,63,16023],[60,16024,63,16024],[60,16025,63,16025],[60,16014,63,16014],[60,16015,63,16015],[60,16016,63,16016],[60,16017,63,16017],[60,16018,63,16018],[60,16019,63,16019],[60,16008,63,16008],[60,16009,63,16009],[60,16010,63,16010],[60,16011,63,16011],[60,16012,63,16012],[60,16013,63,16013],[60,16002,63,16002],[60,16003,63,16003],[60,16004,63,16004],[60,16005,63,16005],[60,16006,63,16006],[60,16007,63,16007],[60,15996,63,15996],[60,15997,63,15997],[60,15998,63,15998],[60,15999,63,15999],[60,16000,63,16000],[60,16001,63,16001],[60,15990,63,15990],[60,15991,63,15991],[60,15992,63,15992],[60,15993,63,15993],[60,15994,63,15994],[60,15995,63,15995],[60,15984,63,15984],[60,15985,63,15985],[60,15986,63,15986],[60,15987,63,15987],[60,15988,63,15988],[60,15989,63,15989],[60,15978,63,15978],[60,15979,63,15979],[60,15980,63,15980],[60,15981,63,15981],[60,15982,63,15982],[60,15983,63,15983],[60,15972,63,15972],[60,15973,63,15973],[60,15974,63,15974],[60,15975,63,15975],[60,15976,63,15976],[60,15977,63,15977],[60,15966,63,15966],[60,15967,63,15967],[60,15968,63,15968],[60,15969,63,15969],[60,15970,63,15970],[60,15971,63,15971],[60,15960,63,15960],[60,15961,63,15961],[60,15962,63,15962],[60,15963,63,15963],[60,15964,63,15964],[60,15965,63,15965],[60,15954,63,15954],[60,15955,63,15955],[60,15956,63,15956],[60,15957,63,15957],[60,15958,63,15958],[60,15959,63,15959],[60,15948,63,15948],[60,15949,63,15949],[60,15950,63,15950],[60,15951,63,15951],[60,15952,63,15952],[60,15953,63,15953],[60,15942,63,15942],[60,15943,63,15943],[60,15944,63,15944],[60,15945,63,15945],[60,15946,63,15946],[60,15947,63,15947],[60,15936,63,15936],[60,15937,63,15937],[60,15938,63,15938],[60,15939,63,15939],[60,15940,63,15940],[60,15941,63,15941],[60,15930,63,15930],[60,15931,63,15931],[60,15932,63,15932],[60,15933,63,15933],[60,15934,63,15934],[60,15935,63,15935],[60,15924,63,15924],[60,15925,63,15925],[60,15926,63,15926],[60,15927,63,15927],[60,15928,63,15928],[60,15929,63,15929],[60,15918,63,15918],[60,15919,63,15919],[60,15920,63,15920],[60,15921,63,15921],[60,15922,63,15922],[60,15923,63,15923],[60,15912,63,15912],[60,15913,63,15913],[60,15914,63,15914],[60,15915,63,15915],[60,15916,63,15916],[60,15917,63,15917],[60,15906,63,15906],[60,15907,63,15907],[60,15908,63,15908],[60,15909,63,15909],[60,15910,63,15910],[60,15911,63,15911],[60,15900,63,15900],[60,15901,63,15901],[60,15902,63,15902],[60,15903,63,15903],[60,15904,63,15904],[60,15905,63,15905],[60,15894,63,15894],[60,15895,63,15895],[60,15896,63,15896],[60,15897,63,15897],[60,15898,63,15898],[60,15899,63,15899],[60,15888,63,15888],[60,15889,63,15889],[60,15890,63,15890],[60,15891,63,15891],[60,15892,63,15892],[60,15893,63,15893],[60,15882,63,15882],[60,15883,63,15883],[60,15884,63,15884],[60,15885,63,15885],[60,15886,63,15886],[60,15887,63,15887],[60,15876,63,15876],[60,15877,63,15877],[60,15878,63,15878],[60,15879,63,15879],[60,15880,63,15880],[60,15881,63,15881],[60,15870,63,15870],[60,15871,63,15871],[60,15872,63,15872],[60,15873,63,15873],[60,15874,63,15874],[60,15875,63,15875],[60,15864,63,15864],[60,15865,63,15865],[60,15866,63,15866],[60,15867,63,15867],[60,15868,63,15868],[60,15869,63,15869],[60,15858,63,15858],[60,15859,63,15859],[60,15860,63,15860],[60,15861,63,15861],[60,15862,63,15862],[60,15863,63,15863],[60,15852,63,15852],[60,15853,63,15853],[60,15854,63,15854],[60,15855,63,15855],[60,15856,63,15856],[60,15857,63,15857],[60,15846,63,15846],[60,15847,63,15847],[60,15848,63,15848],[60,15849,63,15849],[60,15850,63,15850],[60,15851,63,15851],[60,15840,63,15840],[60,15841,63,15841],[60,15842,63,15842],[60,15843,63,15843],[60,15844,63,15844],[60,15845,63,15845],[60,15834,63,15834],[60,15835,63,15835],[60,15836,63,15836],[60,15837,63,15837],[60,15838,63,15838],[60,15839,63,15839],[60,15828,63,15828],[60,15829,63,15829],[60,15830,63,15830],[60,15831,63,15831],[60,15832,63,15832],[60,15833,63,15833],[60,15822,63,15822],[60,15823,63,15823],[60,15824,63,15824],[60,15825,63,15825],[60,15826,63,15826],[60,15827,63,15827],[60,15816,63,15816],[60,15817,63,15817],[60,15818,63,15818],[60,15819,63,15819],[60,15820,63,15820],[60,15821,63,15821],[60,15810,63,15810],[60,15811,63,15811],[60,15812,63,15812],[60,15813,63,15813],[60,15814,63,15814],[60,15815,63,15815],[60,15804,63,15804],[60,15805,63,15805],[60,15806,63,15806],[60,15807,63,15807],[60,15808,63,15808],[60,15809,63,15809],[60,15798,63,15798],[60,15799,63,15799],[60,15800,63,15800],[60,15801,63,15801],[60,15802,63,15802],[60,15803,63,15803],[60,15792,63,15792],[60,15793,63,15793],[60,15794,63,15794],[60,15795,63,15795],[60,15796,63,15796],[60,15797,63,15797],[60,15786,63,15786],[60,15787,63,15787],[60,15788,63,15788],[60,15789,63,15789],[60,15790,63,15790],[60,15791,63,15791],[60,15780,63,15780],[60,15781,63,15781],[60,15782,63,15782],[60,15783,63,15783],[60,15784,63,15784],[60,15785,63,15785],[60,15774,63,15774],[60,15775,63,15775],[60,15776,63,15776],[60,15777,63,15777],[60,15778,63,15778],[60,15779,63,15779],[60,15768,63,15768],[60,15769,63,15769],[60,15770,63,15770],[60,15771,63,15771],[60,15772,63,15772],[60,15773,63,15773],[60,15762,63,15762],[60,15763,63,15763],[60,15764,63,15764],[60,15765,63,15765],[60,15766,63,15766],[60,15767,63,15767],[60,15756,63,15756],[60,15757,63,15757],[60,15758,63,15758],[60,15759,63,15759],[60,15760,63,15760],[60,15761,63,15761],[60,15750,63,15750],[60,15751,63,15751],[60,15752,63,15752],[60,15753,63,15753],[60,15754,63,15754],[60,15755,63,15755],[60,15744,63,15744],[60,15745,63,15745],[60,15746,63,15746],[60,15747,63,15747],[60,15748,63,15748],[60,15749,63,15749],[60,15738,63,15738],[60,15739,63,15739],[60,15740,63,15740],[60,15741,63,15741],[60,15742,63,15742],[60,15743,63,15743],[60,15732,63,15732],[60,15733,63,15733],[60,15734,63,15734],[60,15735,63,15735],[60,15736,63,15736],[60,15737,63,15737],[60,15726,63,15726],[60,15727,63,15727],[60,15728,63,15728],[60,15729,63,15729],[60,15730,63,15730],[60,15731,63,15731],[60,15720,63,15720],[60,15721,63,15721],[60,15722,63,15722],[60,15723,63,15723],[60,15724,63,15724],[60,15725,63,15725],[60,15714,63,15714],[60,15715,63,15715],[60,15716,63,15716],[60,15717,63,15717],[60,15718,63,15718],[60,15719,63,15719],[60,15708,63,15708],[60,15709,63,15709],[60,15710,63,15710],[60,15711,63,15711],[60,15712,63,15712],[60,15713,63,15713],[60,15702,63,15702],[60,15703,63,15703],[60,15704,63,15704],[60,15705,63,15705],[60,15706,63,15706],[60,15707,63,15707],[60,15696,63,15696],[60,15697,63,15697],[60,15698,63,15698],[60,15699,63,15699],[60,15700,63,15700],[60,15701,63,15701],[60,15690,63,15690],[60,15691,63,15691],[60,15692,63,15692],[60,15693,63,15693],[60,15694,63,15694],[60,15695,63,15695],[60,15684,63,15684],[60,15685,63,15685],[60,15686,63,15686],[60,15687,63,15687],[60,15688,63,15688],[60,15689,63,15689],[60,15678,63,15678],[60,15679,63,15679],[60,15680,63,15680],[60,15681,63,15681],[60,15682,63,15682],[60,15683,63,15683],[60,15672,63,15672],[60,15673,63,15673],[60,15674,63,15674],[60,15675,63,15675],[60,15676,63,15676],[60,15677,63,15677],[60,15666,63,15666],[60,15667,63,15667],[60,15668,63,15668],[60,15669,63,15669],[60,15670,63,15670],[60,15671,63,15671],[60,15660,63,15660],[60,15661,63,15661],[60,15662,63,15662],[60,15663,63,15663],[60,15664,63,15664],[60,15665,63,15665],[60,15654,63,15654],[60,15655,63,15655],[60,15656,63,15656],[60,15657,63,15657],[60,15658,63,15658],[60,15659,63,15659],[60,15648,63,15648],[60,15649,63,15649],[60,15650,63,15650],[60,15651,63,15651],[60,15652,63,15652],[60,15653,63,15653],[60,15642,63,15642],[60,15643,63,15643],[60,15644,63,15644],[60,15645,63,15645],[60,15646,63,15646],[60,15647,63,15647],[60,15636,63,15636],[60,15637,63,15637],[60,15638,63,15638],[60,15639,63,15639],[60,15640,63,15640],[60,15641,63,15641],[60,15630,63,15630],[60,15631,63,15631],[60,15632,63,15632],[60,15633,63,15633],[60,15634,63,15634],[60,15635,63,15635],[60,15624,63,15624],[60,15625,63,15625],[60,15626,63,15626],[60,15627,63,15627],[60,15628,63,15628],[60,15629,63,15629],[60,15618,63,15618],[60,15619,63,15619],[60,15620,63,15620],[60,15621,63,15621],[60,15622,63,15622],[60,15623,63,15623],[60,15612,63,15612],[60,15613,63,15613],[60,15614,63,15614],[60,15615,63,15615],[60,15616,63,15616],[60,15617,63,15617],[60,15606,63,15606],[60,15607,63,15607],[60,15608,63,15608],[60,15609,63,15609],[60,15610,63,15610],[60,15611,63,15611],[60,15600,63,15600],[60,15601,63,15601],[60,15602,63,15602],[60,15603,63,15603],[60,15604,63,15604],[60,15605,63,15605],[60,15594,63,15594],[60,15595,63,15595],[60,15596,63,15596],[60,15597,63,15597],[60,15598,63,15598],[60,15599,63,15599],[60,15588,63,15588],[60,15589,63,15589],[60,15590,63,15590],[60,15591,63,15591],[60,15592,63,15592],[60,15593,63,15593],[60,15582,63,15582],[60,15583,63,15583],[60,15584,63,15584],[60,15585,63,15585],[60,15586,63,15586],[60,15587,63,15587],[60,15576,63,15576],[60,15577,63,15577],[60,15578,63,15578],[60,15579,63,15579],[60,15580,63,15580],[60,15581,63,15581],[60,15570,63,15570],[60,15571,63,15571],[60,15572,63,15572],[60,15573,63,15573],[60,15574,63,15574],[60,15575,63,15575],[60,15564,63,15564],[60,15565,63,15565],[60,15566,63,15566],[60,15567,63,15567],[60,15568,63,15568],[60,15569,63,15569],[60,15558,63,15558],[60,15559,63,15559],[60,15560,63,15560],[60,15561,63,15561],[60,15562,63,15562],[60,15563,63,15563],[60,15552,63,15552],[60,15553,63,15553],[60,15554,63,15554],[60,15555,63,15555],[60,15556,63,15556],[60,15557,63,15557],[60,15546,63,15546],[60,15547,63,15547],[60,15548,63,15548],[60,15549,63,15549],[60,15550,63,15550],[60,15551,63,15551],[60,15540,63,15540],[60,15541,63,15541],[60,15542,63,15542],[60,15543,63,15543],[60,15544,63,15544],[60,15545,63,15545],[60,15534,63,15534],[60,15535,63,15535],[60,15536,63,15536],[60,15537,63,15537],[60,15538,63,15538],[60,15539,63,15539],[60,15528,63,15528],[60,15529,63,15529],[60,15530,63,15530],[60,15531,63,15531],[60,15532,63,15532],[60,15533,63,15533],[60,15522,63,15522],[60,15523,63,15523],[60,15524,63,15524],[60,15525,63,15525],[60,15526,63,15526],[60,15527,63,15527],[60,15516,63,15516],[60,15517,63,15517],[60,15518,63,15518],[60,15519,63,15519],[60,15520,63,15520],[60,15521,63,15521],[60,15510,63,15510],[60,15511,63,15511],[60,15512,63,15512],[60,15513,63,15513],[60,15514,63,15514],[60,15515,63,15515],[60,15504,63,15504],[60,15505,63,15505],[60,15506,63,15506],[60,15507,63,15507],[60,15508,63,15508],[60,15509,63,15509],[60,15498,63,15498],[60,15499,63,15499],[60,15500,63,15500],[60,15501,63,15501],[60,15502,63,15502],[60,15503,63,15503],[60,15492,63,15492],[60,15493,63,15493]],"merged_total":32816,"flags":["merged_cut"]}
[]
[null,null,"Gestion de programme"]
[]
[null,null,"Leadership et coordination"]
[null,null,"Élément","Critères",null,"S/O","Absent","Présent mais non optimal","Présent et fonctionnel","Moyenne de l’élément","Commentaires (le cas échéant)","Absent","Present","Optimal","Average","Sustainability Single Figure"]
[null,null,"Stratégie nationale pour les populations clés","Les TS sont inclus dans la stratégie nationale pour les populations clés et dans la stratégie nationale globale de prévention du VIH :",null,null,null,null,null,{"$f":"O6","v":"-"},null,null,null,null,{"$f":"IFERROR(ROUND(AVERAGEIF(L7:N16,\"<>0\",L7:N16),0),\"-\")","v":"-"},null,{"$f":"getComment(F6)","v":""}]
[null,null,null,"○","Les TS ont été impliqués dans l’élaboration du plan stratégique ",null,null,null,null,null,null,{"$f":"IF(ISBLANK(G7),0,1)","v":0},{"$f":"IF(ISBLANK(H7),0,3)","v":0},{"$f":"IF(ISBLANK(I7),0,5)","v":0}]
[null,null,null,"○","Les buts et les objectifs ont été clairement définis pour le programme TS ",null,null,null,null,null,null,0,0,0]
[null,null,null,"○","Le concept de TS a été clairement défini selon l’Organisation mondiale de la Santé (OMS) ",null,null,null,null,null,null,0,0,0]
[null,null,null,"○","Le plan reconnaît les vulnérabilités spécifiques des TS en raison de leur sexe et de leur âge",null,null,null,null,null,null,0,0,0,null,{"$f":"IF(MAX(L10:N10)=0,\"\",MAX(L10:N10))","v":""}]
[null,null,null,"○","Un modèle logique clair ou une théorie du changement claire a été formulé(e)  ",null,null,null,null,null,null,0,0,0]
[null,null,null,"○","Le plan comprend un ensemble complet d’interventions et d’activités fondées sur des données probantes, alignées sur les outils de mise en œuvre propres aux TS, identifiées par TS, y compris des interventions ne relevant pas du secteur de la santé (ex. : autonomisation de la communauté, lutte contre la violence, réduction de la stigmatisation, etc.) et adaptées aux vulnérabilités spécifiques",null,null,null,null,null,null,0,0,0]
[null,null,null,"○","Des plans clairs de mise à l’échelle ont été définis, avec attribution de responsabilités ",null,null,null,null,null,null,0,0,0]
[null,null,null,"○","Des plans de financement sont en place ",null,null,null,null,null,null,0,0,0]
[null,null,null,"○","Un cadre de suivi et d’évaluation a été défini, avec des indicateurs et des objectifs fondamentaux",null,null,null,null,null,null,0,0,0]
[null,null,null,"○","Mécanisme de mise en œuvre clairement défini",null,null,null,null,null,null,0,0,0]
[null,null,"Obligation de rendre compte","Le département/ministère responsable de la réussite du programme TS et jouissant d’un leadership/autorité fort a été identifié :",null,null,null,null,null,{"$f":"O17","v":"-"},null,null,null,null,{"$f":"IFERROR(ROUND(AVERAGEIF(L18:N22,\"<>0\",L18:N22),0),\"-\")","v":"-"}]
[null,null,null,"○","Tous les projets TS dans le pays rendent régulièrement compte des indicateurs clés au gouvernement aux niveaux infranational et national avec des indicateurs communs ",null,null,null,null,null,null,0,0,0]
[null,null,null,"○","Dans les rapports, les données sont anonymisées et sécurisées afin de protéger les TS ",null,null,null,null,null,null,0,0,0]
[null,null,null,"○","Des examens réguliers des programmes sont effectués à l’aide de données programmatiques",null,null,null,null,null,null,0,0,0]
[null,null,null,"○","Le ministère gouvernemental responsable du programme participe aux réunions de coordination pertinentes",null,null,null,null,null,null,0,0,0]
[null,null,null,"○","Le groupe de travail technique sur les populations clés (GTT) (avec une représentation de TS) est impliqué dans l’obligation de rendre des comptes ",null,null,null,null,null,null,0,0,0,null,null,{"$f":"getComment(F22)","v":""},"","","","",""]
[null,null,"Groupe de travail technique (GTT) pour les TS","Un groupe de travail technique (les pays peuvent avoir des GTT pour toutes les populations clés comprenant des travailleurs du sexe) a été établi aux niveaux national et infranational et :",null,null,null,null,null,{"$f":"O23","v":"-"},null,null,null,null,{"$f":"IFERROR(ROUND(AVERAGEIF(L24:N28,\"<>0\",L24:N28),0),\"-\")","v":"-"}]
[null,null,null,"○","Il se réunit régulièrement ",null,null,null,null,null,null,0,0,0]
[null,null,null,"○","Le groupe de travail technique est complet et comprend des organisations de la société civile (OSC), des partenaires de mise en œuvre, des TS",null,null,null,null,null,null,0,0,0]
[null,null,null,"○","Le groupe de travail technique a mis en place des mécanismes de communication pour assurer la coordination",null,null,null,null,null,null,0,0,0]
[null,null,null,"○","Il a un mandat ou un champ d’application défini ",null,null,null,null,null,null,0,0,0]
[null,null,null,"○","Des membres de la communauté des TS sont inclus dans toute leur diversité (sexe, âge, typologie)",null,null,null,null,null,null,0,0,0]
[null,null,"Coordination des parties prenantes","Des mécanismes sont en place pour garantir une coordination à tous les niveaux et la coordination est fructueuse et cohérente avec : ",null,null,null,null,null,{"$f":"O29","v":"-"},null,null,null,null,{"$f":"IFERROR(ROUND(AVERAGEIF(L30:N35,\"<>0\",L30:N35),0),\"-\")","v":"-"}]
[null,null,null,"○","Partenaires de financement (au niveau national)",null,null,null,null,null,null,0,0,0]
[null,null,null,"○","Programmes locaux et initiatives nationales plus vastes ",null,null,null,null,null,null,0,0,0]
[null,null,null,"○","Communautés de TS",null,null,null,null,null,null,0,0,0]
[null,null,null,"○","Partenaires de mise en œuvre ",null,null,null,null,null,null,0,0,0]
[null,null,null,"○","Ministère de la Santé/départements gouvernementaux de la santé (aux niveaux national et infranational)",null,null,null,null,null,null,0,0,0]
[null,null,null,"○","Une coordination multisectorielle avec tous les autres ministères/départements (ex. : finances et application de la loi) a été réalisée",null,null,null,null,null,null,0,0,0]
[null,null,"Plan de renforcement des capacités et d’assistance technique","Un plan d’assistance technique est en place et : ",null,null,null,null,null,{"$f":"O36","v":"-"},null,null,null,null,{"$f":"IFERROR(ROUND(AVERAGEIF(L37:N42,\"<>0\",L37:N42),0),\"-\")","v":"-"},{"$f":"IF(MAX(L36:N36)=0,\"\",MAX(L36:N36))","v":""}]
[null,null,null,"○","A été élaboré à l’appui d’une évaluation ",null,null,null,null,null,null,0,0,0,null,{"$f":"IF(MAX(L37:N37)=0,\"\",MAX(L37:N37))","v":""}]
[null,null,null,"○","A recours à des experts techniques nationaux et internationaux, notamment pour le développement des capacités et l’assistance technique entre pairs",null,null,null,null,null,null,0,0,0,null,""]
[null,null,null,"○","A priorisé les composantes du programme et les questions politiques ",null,null,null,null,null,null,0,0,0,null,""]
[null,null,null,"○","Facilite l’établissement et le renforcement des réseaux d’exécutants ",null,null,null,null,null,null,0,0,0,null,""]
[null,null,null,"○","Identifie les lacunes et élabore des demandes d’assistance consolidées lorsque l’expertise du pays fait défaut ",null,null,null,null,null,null,0,0,0,null,""]
[null,null,null,"○","Facilite le développement de la capacité de la communauté de TS à s’approprier les programmes TS ",null,null,null,null,null,null,0,0,0,null,""]
[null,null,"Plan de durabilité et feuille de route de transition","Un plan complet de durabilité et une feuille de route de transition, décrivant la transition accusée par les pays entre les interventions soutenues par les donateurs et les interventions soutenues au niveau national, sont en place et informés par : ",null,null,null,null,null,{"$f":"O43","v":"-"},null,null,null,null,{"$f":"IFERROR(ROUND(AVERAGEIF(L44:N47,\"<>0\",L44:N47),0),\"-\")","v":"-"},""]
[null,null,null,"○","Un exercice de calcul des coûts unitaires de la population clé",null,null,null,null,null,null,0,0,0,null,""]
[null,null,null,"○","Une analyse du paysage du financement de la population clé",null,null,null,null,null,null,0,0,0,null,""]
[null,null,null,"○","Planification de l’intégration des services de PC dans les soins de santé primaires",null,null,null,null,null,null,0,0,0]
[null,null,null,"○","Prise en compte des besoins financiers, humains et d’infrastructure",null,null,null,null,null,null,0,0,0,null,""]
[null,null,"Lois, politiques et réglementation"]
[null,null,"Élément","Critères",null,"S/O","Absent","Présent mais non optimal","Présent et fonctionnel","Moyenne de l’élément","Commentaires (le cas échéant)"]
[null,null,"Lois et politiques ","Des politiques sont en place qui favorisent activement le bon fonctionnement du programme TS : ",null,null,null,null,null,{"$f":"O50","v":"-"},null,null,null,null,{"$f":"IFERROR(ROUND(AVERAGEIF(L51:N53,\"<>0\",L51:N53),0),\"-\")","v":"-"}]
[null,null,null,"○","Politiques qui favorisent activement l’accès des TS aux services, y compris les TS dans leur diversité (sexe, âge, typologie)  ",null,null,null,null,null,null,0,0,0]
[null,null,null,"○","Des politiques sont en place pour soutenir la décriminalisation du travail sexuel",null,null,null,null,null,null,0,0,0]
[null,null,null,"○","Des politiques visant à réduire la stigmatisation, la discrimination et la violence à l’égard des TS sont en place ",null,null,null,null,null,null,0,0,0]
[null,null,"Lignes directrices","Les lignes directrices suivantes existent et articulent clairement les étapes d’une mise en œuvre réussie du programme TS :",null,null,null,null,null,{"$f":"O54","v":"-"},null,null,null,null,{"$f":"IFERROR(ROUND(AVERAGEIF(L55:N58,\"<>0\",L55:N58),0),\"-\")","v":"-"}]
[null,null,null,"○","Il existe des lignes directrices nationales pour chacune des interventions et services comportementaux, biomédicaux et structurels, et elles sont alignées sur les orientations mondiales ",null,null,null,null,null,null,0,0,0]
[null,null,null,"○","Des lignes directrices ont été élaborées en concertation avec des TS",null,null,null,null,null,null,{"$f":"IF(ISBLANK(G56),0,1)","v":0},{"$f":"IF(ISBLANK(H56),0,3)","v":0},{"$f":"IF(ISBLANK(I56),0,5)","v":0}]
[null,null,null,"○","Les directives nationales pour les services de dépistage du VIH, les infections sexuellement transmissibles, la prophylaxie avant exposition et les préservatifs tiennent compte des besoins et priorités des TS ",null,null,null,null,null,null,0,0,0]
[null,null,null,"○","Les mesures de prévention et de contrôle de l’infection COVID-19 sont intégrées dans l’ensemble des stratégies, plans et lignes directrices de prévention du VIH/TS",null,null,null,null,null,null,0,0,0]
[null,null,"Financement"]
[null,null,"Élément","Critères",null,"S/O","Absent","Présent mais non optimal","Présent et fonctionnel","Moyenne de l’élément","Commentaires (le cas échéant)"]
[null,null,"Calcul des coûts ","Budget national en place :",null,null,null,null,null,{"$f":"O61","v":"-"},null,null,null,null,{"$f":"IFERROR(ROUND(AVERAGEIF(L62:N62,\"<>0\",L62:N62),0),\"-\")","v":"-"}]
[null,null,null,"○","Un exercice de calcul des coûts a été réalisé et le programme national connaît le coût moyen pour atteindre un TS avec un ensemble standard de services conformément aux lignes directrices",null,null,null,null,null,null,0,0,0]
[null,null,"Planification budgétaire","Un processus de planification budgétaire bien géré est en place pour le programme TS ",null,null,null,null,null,{"$f":"O63","v":"-"},null,null,null,null,{"$f":"IFERROR(ROUND(AVERAGEIF(L64:N66,\"<>0\",L64:N66),0),\"-\")","v":"-"}]
[null,null,null,"○","Une évaluation des ressources disponibles est en cours afin d’essayer d’identifier les lacunes et d’allouer un budget au programme TS",null,null,null,null,null,null,0,0,0]
[null,null,null,"○","Une stratégie a été élaborée pour combler les lacunes de financement",null,null,null,null,null,null,0,0,0]
[null,null,null,"○","Les budgets sont corrélés aux besoins en ressources des plans opérationnels pour des cibles nationales et infranationales",null,null,null,null,null,null,0,0,0]
[null,null,"Mobilisation des ressources et financement","○","Le financement est suffisant pour répondre aux besoins de la programmation holistique ",null,null,null,null,{"$f":"O67","v":"-"},null,0,0,0,{"$f":"IFERROR(ROUND(AVERAGEIF(L67:N67,\"<>0\",L67:N67),0),\"-\")","v":"-"},{"$f":"IF(MAX(L67:N67)=0,\"\",MAX(L67:N67))","v":""}]
[null,null,"Ressourcement national","○","Plus de 50 % des ressources soutenant le programme, humaines et financières, sont nationales",null,null,null,null,{"$f":"O68","v":"-"},null,0,0,0,{"$f":"IFERROR(ROUND(AVERAGEIF(L68:N68,\"<>0\",L68:N68),0),\"-\")","v":"-"},{"$f":"IF(MAX(L68:N68)=0,\"\",MAX(L68:N68))","v":""}]
[null,null,"Contrats sociaux","○","Des mécanismes de contrats sociaux ont été élaborés et sont en cours de mise en œuvre",null,null,null,null,{"$f":"O69","v":"-"},null,0,0,0,{"$f":"IFERROR(ROUND(AVERAGEIF(L69:N72,\"<>0\",L69:N72),0),\"-\")","v":"-"}]
[null,null,null,"○","Les opportunités sont largement diffusées afin de permettre aux partenaires locaux de mise en œuvre et aux organisations dirigées par des TS d’accéder au financement",null,null,null,null,null,null,0,0,0]
[null,null,null,"○","Un mécanisme a été mis en place pour autoriser le financement d’organisations dirigées par la communauté",null,null,null,null,null,null,0,0,0]
[null,null,null,"○","Les fonds sont réservés aux organisations dirigées par la communauté ",null,null,null,null,null,null,0,0,0,null,{"$f":"IF(MAX(L72:N72)=0,\"\",MAX(L72:N72))","v":""}]
[null,null,"Mise en œuvre de programme"]
[null,null,"Ciblage et planification"]
[null,null,"Élément","Critères",null,"S/O","Absent","Présent mais non optimal","Présent et fonctionnel","Moyenne de l’élément","Commentaires (le cas échéant)"]
[null,null,"Évaluation démographique (estimation de la taille de la population et microplanification)","L’estimation de la taille de la population et la microplanification sont achevées et :",null,null,null,null,null,{"$f":"O76","v":"-"},null,null,null,null,{"$f":"IFERROR(ROUND(AVERAGEIF(L77:N83,\"<>0\",L77:N83),0),\"-\")","v":"-"}]
[null,null,null,"○","Sont établies en fonction du site (niveau local, par opposition au pays ou à la province)",null,null,null,null,null,null,0,0,0]
[null,null,null,"○","La confidentialité des zones sensibles et l’anonymat des personnes sont garantis et ne sont pas communiqués aux forces de l’ordre",null,null,null,null,null,null,0,0,0]
[null,null,null,"○","Sont mises à jour annuellement ou à l’issue d’une enquête biocomportementale",null,null,null,null,null,null,0,0,0]
[null,null,null,"○","Des membres formés de TS ou de réseaux de TS ont été engagés et recrutés pour entreprendre l’estimation de la taille de la population et les exercices de microplanification",null,null,null,null,null,null,0,0,0]
[null,null,null,"○","Les estimations de la taille de la population sont précises et actualisées ",null,null,null,null,null,null,0,0,0]
[null,null,null,"○","Les informations sont utilisées pour déterminer la nécessité d’interventions comportementales, biomédicales et structurelles  ",null,null,null,null,null,null,0,0,0]
[null,null,null,"○","Ces informations sont utilisées pour estimer les besoins de financement et fixer des cibles",null,null,null,null,null,null,0,0,0]
[null,null,"Évaluation épidémiologique (enquête de séroprévalence et déterminants du risque)","Des estimations de séroprévalence sont disponibles et :",null,null,null,null,null,{"$f":"O84","v":"-"},null,null,null,null,{"$f":"IFERROR(ROUND(AVERAGEIF(L85:N90,\"<>0\",L85:N90),0),\"-\")","v":"-"}]
[null,null,null,"○","Sont basées sur une surveillance récente et/ou continue (estimations modélisées mises à jour annuellement ou données d’enquête mises à jour tous les 3-5 ans)",null,null,null,null,null,null,0,0,0]
[null,null,null,"○","Spécifiques aux TS",null,null,null,null,null,null,0,0,0]
[null,null,null,"○","Les résultats sont précis, la taille de l’échantillon est statistiquement représentative (puissance appropriée) et la méthode d’échantillonnage est appropriée aux TS : échantillonnage par localisation temporelle et échantillonnage de commodité",null,null,null,null,null,null,0,0,0]
[null,null,null,"○","Des évaluations des déterminants du risque ont été régulièrement menées pour les TS afin d’informer les programmes et :",null,null,null,null,null,null,0,0,0]
[null,null,null,null,"> Elles sont spécifiques aux TS et prennent en compte les comportements spécifiques à l’âge et au sexe ",null,null,null,null,null,null,0,0,0]
[null,null,null,null,"> Les études sont de bonne qualité et fournissent de nombreuses informations  ",null,null,null,null,null,null,0,0,0]
[null,null,"Évaluation des besoins","Une évaluation des besoins pour les TS été réalisée au niveau de la mise en œuvre et/ou au niveau local :",null,null,null,null,null,{"$f":"O91","v":"-"},null,null,null,null,{"$f":"IFERROR(ROUND(AVERAGEIF(L92:N94,\"<>0\",L92:N94),0),\"-\")","v":"-"}]
[null,null,null,"○","Engagement adéquat avec les TS et les organisations ou réseaux dirigé(e)s par des TS sur les besoins",null,null,null,null,null,null,0,0,0]
[null,null,null,"○","Informations suffisantes sur les services dont les TS ont besoin, sur la manière dont ils préfèrent accéder aux services et sur les personnes qui devraient fournir ces services ",null,null,null,null,null,null,0,0,0]
[null,null,null,"○","Informations complètes sur les lacunes en termes de prestation de services et d’obstacles à l’accès",null,null,null,null,null,null,0,0,0]
[null,null,"Définition de cibles","Des cibles pour les TS ont été clairement définies et :",null,null,null,null,null,{"$f":"O95","v":"-"},null,null,null,null,{"$f":"IFERROR(ROUND(AVERAGEIF(L96:N103,\"<>0\",L96:N103),0),\"-\")","v":"-"}]
[null,null,null,"○","Sont basées sur les données relatives à l’estimation de la taille et à l’évaluation du risque",null,null,null,null,null,null,0,0,0]
[null,null,null,"○","Sont conçues pour les TS, dans toute leur diversité (sexe, âge, typologie) ",null,null,null,null,null,null,0,0,0]
[null,null,null,"○","Sont spécifiées aux niveaux national et infranational ",null,null,null,null,null,null,0,0,0]
[null,null,null,"○","Incluent les réalisations déjà atteintes et les réalisations finales prévues ",null,null,null,null,null,null,0,0,0]
[null,null,null,"○","Sont élaborées en concertation avec les exécutants afin de s’assurer qu’elles sont réalistes",null,null,null,null,null,null,0,0,0]
[null,null,null,"○","Correspondent aux budgets et aux accords formels avec les exécutants locaux",null,null,null,null,null,null,0,0,0]
[null,null,null,"○","Sont ventilées par âge et par sexe",null,null,null,null,null,null,0,0,0]
[null,null,null,"○","Les cibles du Fonds mondial et du President’s Emergency Plan For AIDS Relief (PEPFAR) font référence aux estimations de taille et aux cibles nationales",null,null,null,null,null,null,0,0,0]
[null,null,"Modalités de mise en œuvre "]
[null,null,"Élément","Critères",null,"S/O","Absent","Présent mais non optimal","Présent et fonctionnel","Moyenne de l’élément","Commentaires (le cas échéant)"]
[null,null,"Gestion d’une plateforme d’accès ","Une plateforme d’accès favorise les efforts coordonnés de la communauté et des cliniques et :",null,null,null,null,null,{"$f":"O106","v":"-"},null,null,null,null,{"$f":"IFERROR(ROUND(AVERAGEIF(L107:N110,\"<>0\",L107:N110),0),\"-\")","v":"-"}]
[null,null,null,"○","Établit la confiance au sein de la communauté par le biais des pairs-travailleurs de proximité ",null,null,null,null,null,null,0,0,0]
[null,null,null,"○","Atteint les TS en grand nombre et encourage leur adhésion, leur rétention et leur participation active au programme",null,null,null,null,null,null,0,0,0]
[null,null,null,"○","Encourage l’adhésion et la rétention des TS",null,null,null,null,null,null,0,0,0]
[null,null,null,"○","Encourage la participation active des TS",null,null,null,null,null,null,0,0,0]
[null,null,"Structure de gestion","Le processus de la structure de gestion a été défini et :  ",null,null,null,null,null,{"$f":"O111","v":"-"},null,0,0,0,{"$f":"IFERROR(ROUND(AVERAGEIF(L112:N120,\"<>0\",L112:N120),0),\"-\")","v":"-"}]
[null,null,null,"○","Des mandats précis sont en place pour définir les rôles et responsabilités de tous les postes, y compris le personnel au niveau de la communauté et des installations",null,null,null,null,null,null,0,0,0]
[null,null,null,"○","Ratio adéquat entre les pairs-travailleurs de proximité et les membres de la communauté",null,null,null,null,null,null,0,0,0]
[null,null,null,"○","Lignes directrices en place pour le recrutement, la rétention, l’évaluation et la promotion des pairs-travailleurs de proximité ",null,null,null,null,null,null,0,0,0]
[null,null,null,"○","Toutes les personnes travaillant sur le projet sont rémunérées ",null,null,null,null,null,null,0,0,0]
[null,null,null,"○","La supervision adéquate des pairs-travailleurs de proximité (PTP) est assurée par les superviseurs des pairs",null,null,null,null,null,null,0,0,0]
[null,null,null,"○","Définition d’une stratégie de promotion et d’un plan de progression de carrière pour les PTP et les professionnels de la communication sur le changement social et comportemental (CCSC) ",null,null,null,null,null,null,0,0,0]
[null,null,null,"○","Un mécanisme d’orientation formel est établi ",null,null,null,null,null,null,{"$f":"IF(ISBLANK(G118),0,1)","v":0},{"$f":"IF(ISBLANK(H118),0,3)","v":0},{"$f":"IF(ISBLANK(I118),0,5)","v":0}]
[null,null,null,"○","Sites de destination équipés pour recevoir les services (les sites de destination sont les points où les services seront fournis – ex. : cliniques, hôpitaux, communautés)",null,null,null,null,null,null,0,0,0]
[null,null,null,"○","La microplanification est utilisée pour établir des priorités et gérer la mobilisation, notamment pour identifier les bénéficiaires les plus exposés",null,null,null,null,null,null,0,0,0]
[null,null,"Flux de données ","Les flux de données à chaque niveau ont été définis et :",null,null,null,null,null,{"$f":"O121","v":"-"},null,null,null,null,{"$f":"IFERROR(ROUND(AVERAGEIF(L122:N127,\"<>0\",L122:N127),0),\"-\")","v":"-"}]
[null,null,null,"○","Des systèmes de données ont été mis au point et testés ",null,null,null,null,null,null,0,0,0]
[null,null,null,"○","Les indicateurs standard pour le suivi du programme de PC sont finalisés",null,null,null,null,null,null,0,0,0]
[null,null,null,"○","Des outils de rapport standard ont été élaborés ",null,null,null,null,null,null,0,0,0]
[null,null,null,"○","Les données programmatiques sont déclarées et examinées mensuellement ",null,null,null,null,null,null,0,0,0]
[null,null,null,"○","Des systèmes sont en place pour préserver la confidentialité des données ",null,null,null,null,null,null,0,0,0]
[null,null,null,"○","Développement du système CIU ",null,null,null,null,null,null,0,0,0]
[null,null,"Pairs-travailleurs de proximité (PTP)","Les pairs-travailleurs de proximité sont employés efficacement dans le programme :\n",null,null,null,null,null,{"$f":"O128","v":"-"},null,null,null,null,{"$f":"IFERROR(ROUND(AVERAGEIF(L129:N138,\"<>0\",L129:N138),0),\"-\")","v":"-"}]
[null,null,null,"○","Les PTP sont issus de la communauté TS qu’ils représentent ou servent",null,null,null,null,null,null,0,0,0]
[null,null,null,"○","Le programme de formation est disponible, approprié et comprend des formations cliniques pour mettre à jour les connaissances des PTP TS sur les besoins spécifiques des TS",null,null,null,null,null,null,0,0,0]
[null,null,null,"○","Les PTP sont formés à la microplanification et à la sensibilisation",null,null,null,null,null,null,0,0,0]
[null,null,null,"○","Un plan de formation à plusieurs niveaux est en place pour améliorer les compétences, la confiance et le leadership des pairs-travailleurs de proximité ",null,null,null,null,null,null,0,0,0]
[null,null,null,"○","Outils de sensibilisation à disposition pour la mobilisation communautaire afin de promouvoir l’accès aux services",null,null,null,null,null,null,0,0,0]
[null,null,null,"○","Les outils de microplanification sont utilisés pour informer la prestation de services en fonction des besoins de l’individu/site ",null,null,null,null,null,null,0,0,0]
[null,null,null,"○","Utilisent des messages et des supports de communication fondés sur des données probantes",null,null,null,null,null,null,0,0,0]
[null,null,null,"○","Fournissent des informations sur les services disponibles et orientent les bénéficiaires vers ces services ",null,null,null,null,null,null,0,0,0]
[null,null,null,"○","Prodiguent des conseils et un soutien émotionnel pour maintenir le traitement",null,null,null,null,null,null,0,0,0]
[null,null,null,"○","Pour les TS, les PTP prennent en compte l’âge du TS, sa routine quotidienne, les influences de tiers comme les maquerelles et les proxénètes lorsqu’ils planifient des activités de sensibilisation ",null,null,null,null,null,null,0,0,0]
[null,null,"Engagement significatif des communautés affectées dans le leadership et la coordination","Organisation/Réseau dirigé par des TS représentés dans un organisme de coordination national ou un groupe de travail technique pour les TS et :\n\n",null,null,null,null,null,{"$f":"O139","v":"-"},null,null,null,null,{"$f":"IFERROR(ROUND(AVERAGEIF(L140:N143,\"<>0\",L140:N143),0),\"-\")","v":"-"}]
[null,null,null,"○","Se réunissent régulièrement",null,null,null,null,null,null,0,0,0]
[null,null,null,"○","Ils participent activement aux processus décisionnels en tant que partenaires à pied d’égalité ",null,null,null,null,null,null,0,0,0]
[null,null,null,"○","Ils sont soutenus pour solliciter un retour d’information et rendre compte des décisions clés aux groupes qu’ils représentent",null,null,null,null,null,null,0,0,0]
[null,null,null,"○","Il est prouvé que le retour d’information, la contribution et les conseils d’experts fournis par l’organisation/réseau dirigé par les TS sont pris en compte",null,null,null,null,null,null,0,0,0]
[null,null,"Prestation de services"]
[null,null,"Élément","Critères",null,"S/O","Absent","Présent mais non optimal","Présent et fonctionnel","Moyenne de l’élément","Commentaires (le cas échéant)"]
[null,null,"Services accessibles","Les services sont accessibles aux communautés de TS et :",null,null,null,null,null,{"$f":"O146","v":"-"},null,null,null,null,{"$f":"IFERROR(ROUND(AVERAGEIF(L147:L147:N154,\"<>0\",L147:N154),0),\"-\")","v":"-"}]
[null,null,null,"○","Sont conçus à l’appui de la recherche formative menée dans le cadre de l’évaluation des besoins ",null,null,null,null,null,null,0,0,0]
[null,null,null,"○","Sont idéalement situés à l’intérieur ou à proximité des zones sensibles",null,null,null,null,null,null,0,0,0]
[null,null,null,"○","Incluent des services mobiles si nécessaire ",null,null,null,null,null,null,0,0,0]
[null,null,null,"○","Les horaires d’ouverture sont adaptés aux TS ciblés par les services ",null,null,null,null,null,null,0,0,0]
[null,null,null,"○","Sont intégrés au système de santé général et fournissent des paniers de soins complets ",null,null,null,null,null,null,0,0,0]
[null,null,null,"○","Bénéficient d’un approvisionnement régulier en services et en produits",null,null,null,null,null,null,0,0,0]
[null,null,null,null,"L’approvisionnement en produits est ininterrompu",null,null,null,null,null,null,0,0,0]
[null,null,null,"○","Impliquent un transfert de tâches pour accroître la capacité des prestataires de soins de santé",null,null,null,null,null,null,0,0,0]
[null,null,"Services acceptables","Les services sont acceptables par la communauté des TS et :",null,null,null,null,null,{"$f":"O155","v":"-"},null,null,null,null,{"$f":"IFERROR(ROUND(AVERAGEIF(L156:N161,\"<>0\",L156:N161),0),\"-\")","v":"-"}]
[null,null,null,"○","Ils sont confidentiels et basés sur le volontariat ",null,null,null,null,null,null,0,0,0]
[null,null,null,"○","Les prestataires sont sensibles aux besoins des TS, ne portent pas de jugement et ne stigmatisent pas",null,null,null,null,null,null,0,0,0]
[null,null,null,"○","Les prestataires sont formés pour être en mesure d’offrir un paquet complet d’interventions spécifiques aux TS ",null,null,null,null,null,null,0,0,0]
[null,null,null,null,null,null,null,null,null,null,null,0,0,0]
[null,null,null,"○","Instaurent un environnement sûr et favorable ",null,null,null,null,null,null,0,0,0]
[null,null,null,"○","Les interventions en ligne sont menées de manière éthique et respectent la vie privée et la confidentialité des clients",null,null,null,null,null,null,0,0,0]
[null,null,"Services sur-mesure/appropriés","Paquet de services et méthodes de prestation adaptés aux besoins spécifiques des TS dans toute leur diversité :",null,null,null,null,null,{"$f":"O162","v":"-"},null,null,null,null,{"$f":"IFERROR(ROUND(AVERAGEIF(L163:N168,\"<>0\",L163:N168),0),\"-\")","v":"-"}]
[null,null,null,"○","Le paquet de services pour les femmes TS comprend tous les services de SSR pertinents selon les directives de l’OMS ",null,null,null,null,null,null,0,0,0]
[null,null,null,"○","Large disponibilité de l’initiation communautaire au traitement antirétroviral pour les TS vivant avec le VIH",null,null,null,null,null,null,0,0,0]
[null,null,null,"○","Les services sont fournis d’une manière accessible aux jeunes TS dans toute leur diversité",null,null,null,null,null,null,0,0,0]
[null,null,null,"○","Services supplémentaires (ou liens vers ces services) mis à disposition en fonction des besoins spécifiques des TS",null,null,null,null,null,null,0,0,0]
[null,null,null,"○","Les services sont fournis d’une manière appropriée et respectent la confidentialité et la vie privée des clients ",null,null,null,null,null,null,0,0,0]
[null,null,null,"○","Les services s’attaquent aux vulnérabilités croisées des adolescents et des jeunes impliqués dans la vente de services sexuels",null,null,null,null,null,null,0,0,0]
[null,null,"Interventions cliniques"]
[null,null,"Élément","Critères",null,"S/O","Absent","Présent mais non optimal","Présent et fonctionnel","Moyenne de l’élément","Commentaires (le cas échéant)"]
[null,null,"Préservatifs et lubrifiants ","Tous les TS ont accès à des préservatifs, à des lubrifiants, à des démonstrations et à d’autres services de santé reproductive et :\nTous les TS ont accès à des préservatifs, à des lubrifiants, à des démonstrations et à d’autres services de santé reproductive et :\n",null,null,null,null,null,{"$f":"O171","v":"-"},null,null,null,null,{"$f":"IFERROR(ROUND(AVERAGEIF(L172:N174,\"<>0\",L172:N174),0),\"-\")","v":"-"}]
[null,null,null,"○","Ils sont largement distribués en quantité suffisante",null,null,null,null,null,null,0,0,0]
[null,null,null,"○","Ils sont facilement accessibles dans les zones sensibles",null,null,null,null,null,null,0,0,0]
[null,null,null,"○","Des démonstrations sont régulièrement organisées par les PTP  ",null,null,null,null,null,null,0,0,0]
[null,null,"Services de dépistage du VIH ","Des services de dépistage du VIH sont à la disposition des TS et :\n",null,null,null,null,null,{"$f":"O175","v":"-"},null,null,null,null,{"$f":"IFERROR(ROUND(AVERAGEIF(L176:N187,\"<>0\",L176:N187),0),\"-\")","v":"-"}]
[null,null,null,"○","Les directives consolidées de l’OMS sur les services de dépistage du VIH sont mises en œuvre",null,null,null,null,null,null,0,0,0]
[null,null,null,"○","Tous les tests sont volontaires et confidentiels (consentement éclairé obtenu)",null,null,null,null,null,null,0,0,0]
[null,null,null,"○","Des conseils sont prodigués avant et après le test de dépistage ",null,null,null,null,null,null,0,0,0]
[null,null,null,"○","Le traitement est proposé quel que soit le taux de CD4",null,null,null,null,null,null,0,0,0]
[null,null,null,"○","Les personnes séropositives sont orientées vers des réseaux de soins et de soutien après le diagnostic ",null,null,null,null,null,null,0,0,0]
[null,null,null,"○","L’accès aux services est distribué de manière équitable dans la communauté et pour tous les TS",null,null,null,null,null,null,0,0,0]
[null,null,null,"○","Des interventions visant à garantir l’observance sont en place pour les TS vivant avec le VIH",null,null,null,null,null,null,0,0,0]
[null,null,null,"○","Suivi régulier de l’assiduité aux soins chez les TS vivant avec le VIH ",null,null,null,null,null,null,0,0,0]
[null,null,null,"○","Liens avec la prévention des comorbidités fournis",null,null,null,null,null,null,0,0,0]
[null,null,null,"○","Liens avec le traitement des comorbidités fournis",null,null,null,null,null,null,0,0,0]
[null,null,null,"○","Tests de charge virale disponibles et accessibles pour les TS vivant avec le VIH",null,null,null,null,null,null,{"$f":"IF(ISBLANK(G186),0,1)","v":0},{"$f":"IF(ISBLANK(H186),0,3)","v":0},{"$f":"IF(ISBLANK(I186),0,5)","v":0}]
[null,null,null,"○","Tests de CD4 disponibles et accessibles pour les TS vivant avec le VIH",null,null,null,null,null,null,0,0,0]
[null,null,"Prophylaxie avant exposition","La PaE orale (TDF) est disponible pour les TS présentant un risque important d’infection par le VIH ",null,null,null,null,null,{"$f":"O188","v":"-"},null,null,null,null,{"$f":"IFERROR(ROUND(AVERAGEIF(L189:N193,\"<>0\",L189:N193),0),\"-\")","v":"-"}]
[null,null,null,"○","L’approvisionnement en prophylaxie avant exposition est ininterrompu ",null,null,null,null,null,null,0,0,0]
[null,null,null,"○","Des tests VIH sont effectués avant le début de la PaE pour s’assurer que la personne est négative ",null,null,null,null,null,null,0,0,0]
[null,null,null,"○","Proposée dans le cadre d’une approche globale de prévention combinée ",null,null,null,null,null,null,0,0,0]
[null,null,null,"○","Les approches combinées comprennent le soutien à l’observance, les nouveaux tests périodiques de dépistage du VIH et le conseil aux usagers de la prophylaxie avant exposition ",null,null,null,null,null,null,0,0,0]
[null,null,null,"○","La prophylaxie avant exposition est proposée sur la base d’une évaluation individuelle et non d’un groupe à risque afin de favoriser une couverture plus large ",null,null,null,null,null,null,0,0,0]
[null,null,"Prévention, dépistage et traitement des infections sexuellement transmissibles","Un dépistage et un test des infections sexuellement transmissibles sont à la disposition des TS et :",null,null,null,null,null,{"$f":"O194","v":"-"},null,null,null,null,{"$f":"IFERROR(ROUND(AVERAGEIF(L195:N200,\"<>0\",L195:N200),0),\"-\")","v":"-"}]
[null,null,null,"○","Tous les tests sont volontaires et confidentiels ",null,null,null,null,null,null,0,0,0]
[null,null,null,"○","Le traitement est administré immédiatement et l’approvisionnement est ininterrompu ",null,null,null,null,null,null,0,0,0]
[null,null,null,"○","L’accès aux services est distribué de manière équitable dans la communauté et pour tous les TS",null,null,null,null,null,null,0,0,0]
[null,null,null,"○","Un dépistage et un traitement périodiques des cas asymptomatiques sont effectués ",null,null,null,null,null,null,0,0,0]
[null,null,null,"○","Un traitement périodique de présomption pour les cas asymptomatiques dans les zones à forte prévalence (>15 % de prévalence de l’infection par N. gonorrhoea et/ou C. trachomatis) est effectué (en particulier chez les TS)",null,null,null,null,null,null,0,0,0]
[null,null,null,"○","En l’absence de tests de laboratoire, gestion syndromique des cas symptomatiques conformément aux directives nationales de gestion des IST",null,null,null,null,null,null,0,0,0]
[null,null,"Planification familiale et SSR","Tous les TS ont accès à la planification familiale et à d’autres services de santé sexuelle et reproductive et :",null,null,null,null,null,{"$f":"O201","v":"-"},null,null,null,null,{"$f":"IFERROR(ROUND(AVERAGEIF(L202:N205,\"<>0\",L202:N205),0),\"-\")","v":"-"}]
[null,null,null,"○","Ils comprennent le dépistage du cancer du col de l’utérus",null,null,null,null,null,null,0,0,0]
[null,null,null,"○","Ils sont largement distribués en quantité suffisante",null,null,null,null,null,null,0,0,0]
[null,null,null,"○","Ils sont facilement accessibles dans les zones sensibles",null,null,null,null,null,null,0,0,0]
[null,null,null,"○","Des ateliers de démonstration sont régulièrement programmés dans les zones sensibles",null,null,null,null,null,null,0,0,0]
[null,null,"Soins post-violence "," Tous les TS ont accès à des soins post-violence et :\n",null,null,null,null,null,{"$f":"O206","v":"-"},null,null,null,null,{"$f":"IFERROR(ROUND(AVERAGEIF(L207:N210,\"<>0\",L207:N210),0),\"-\")","v":"-"}]
[null,null,null,"○","Des services post-violence tels que le soutien et le conseil sont disponibles",null,null,null,null,null,null,0,0,0]
[null,null,null,"○","Des services post-violence tels que la prophylaxie post-exposition sont disponibles",null,null,null,null,null,null,0,0,0]
[null,null,null,"○","Des tests de dépistage des IST (syphilis, chlamydia, gonorrhée) sont pratiqués systématiquement en cas de violence sexuelle",null,null,null,null,null,null,0,0,0]
[null,null,null,"○","Mécanisme d’orientation vers des services complets de lutte contre la violence sexiste en cas de besoin",null,null,null,null,null,null,0,0,0]
[null,null,"Prévention, dépistage et traitement de la tuberculose","La prévention, le dépistage et le traitement de la tuberculose sont à la disposition des TS et :\n",null,null,null,null,null,{"$f":"O211","v":"-"},null,null,null,null,{"$f":"IFERROR(ROUND(AVERAGEIF(L212:N220,\"<>0\",L212:N220),0),\"-\")","v":"-"}]
[null,null,null,"○","Prévention : thérapie préventive à l’isoniazide administrée aux personnes séropositives en conjonction avec un traitement antirétroviral, contrôle de l’infection par la tuberculose et recherche des contacts dans les lieux de rassemblement ",null,null,null,null,null,null,0,0,0]
[null,null,null,"○","Diagnostic : utilisation de Xpert MTB/RIF pour les premiers tests diagnostiques",null,null,null,null,null,null,0,0,0]
[null,null,null,"○","Tous les tests sont volontaires et confidentiels ",null,null,null,null,null,null,0,0,0]
[null,null,null,"○","Des interventions de soutien à l’observance pour s’assurer que le traitement antibiotique est terminé sont en place",null,null,null,null,null,null,0,0,0]
[null,null,null,"○","Le traitement est administré immédiatement et l’approvisionnement est ininterrompu",null,null,null,null,null,null,0,0,0]
[null,null,null,"○","L’accès aux services est distribué de manière équitable dans la communauté et pour tous les TS",null,null,null,null,null,null,0,0,0]
[null,null,null,"○","Bons liens avec le dépistage du VIH et le conseil pour les cas positifs ",null,null,null,null,null,null,0,0,0]
[null,null,null,"○","Des efforts sont faits pour traiter la tuberculose latente chez les TS",null,null,null,null,null,null,0,0,0]
[null,null,null,"○","Le traitement de la tuberculose n’est pas contre-indiqué par l’alcool, la consommation de drogues et les troubles mentaux",null,null,null,null,null,null,0,0,0]
[null,null,"PTME","Tous les TS ont accès à des informations, des traitements et des soins appropriés pour prévenir la transmission du VIH de la mère à l’enfant",null,null,null,null,null,{"$f":"O221","v":"-"},null,null,null,null,{"$f":"IFERROR(ROUND(AVERAGEIF(L222:N222,\"<>0\",L222:N222),0),\"-\")","v":"-"}]
[null,null,null,"○","Des informations sont fournies aux TS qui sont enceintes ou souhaitent concevoir un enfant  ",null,null,null,null,null,null,0,0,0]
[null,null,"Prévention, vaccination, dépistage et traitement des hépatites virales","La prévention, la vaccination, le dépistage et les traitements de l’hépatite B et C virale sont disponibles pour répondre aux besoins spécifiques des TS et :\n",null,null,null,null,null,{"$f":"O223","v":"-"},null,null,null,null,{"$f":"IFERROR(ROUND(AVERAGEIF(L224:N229,\"<>0\",L224:N229),0),\"-\")","v":"-"}]
[null,null,null,"○","Tous les tests sont volontaires et confidentiels ",null,null,null,null,null,null,0,0,0]
[null,null,null,"○","Le traitement est administré immédiatement et l’approvisionnement est ininterrompu ",null,null,null,null,null,null,0,0,0]
[null,null,null,"○","L’accès aux services est distribué de manière équitable dans la communauté et pour tous les TS",null,null,null,null,null,null,0,0,0]
[null,null,null,"○","Des campagnes de vaccination contre l’hépatite B et C sont menées de manière systématique ",null,null,null,null,null,null,0,0,0]
[null,null,null,null,"Des schémas de vaccination rapide et standard contre les hépatites B et C sont disponibles et facilement accessibles ",null,null,null,null,null,null,0,0,0]
[null,null,null,"○","Des ressources ont été allouées à la prévention, à la vaccination, au dépistage et au traitement des hépatites virales",null,null,null,null,null,null,0,0,0]
[null,null,"Dépistage et traitement de la consommation de drogues et d’alcool","Le dépistage et le traitement de la consommation problématique d’alcool et de drogues sont systématiquement effectués dans les établissements de soins de santé, les zones sensibles locales et les cliniques mobiles ",null,null,null,null,null,{"$f":"O230","v":"-"},null,null,null,null,{"$f":"IFERROR(ROUND(AVERAGEIF(L231:N234,\"<>0\",L231:N234),0),\"-\")","v":"-"}]
[null,null,null,"○","Les pairs-travailleurs de proximité font le lien entre les personnes à risque et les services de dépistage et de traitement ",null,null,null,null,null,null,0,0,0]
[null,null,null,"○","Les personnes sont mises en relation avec des conseillers, des organisations et des groupes de soutien appropriés",null,null,null,null,null,null,0,0,0]
[null,null,null,"○","Le traitement est initié immédiatement si la personne y consent volontairement",null,null,null,null,null,null,0,0,0]
[null,null,null,"○","L’orientation vers d’autres services (santé mentale, soutien psychosocial) est assurée en temps utile",null,null,null,null,null,null,0,0,0]
[null,null,"Soins de santé mentale","Des soins de santé mentale sont accessibles et prodigués de manière cohérente aux TS vivant avec le VIH et comprennent :",null,null,null,null,null,{"$f":"O235","v":"-"},null,null,null,null,{"$f":"IFERROR(ROUND(AVERAGEIF(L236:N237,\"<>0\",L236:N237),0),\"-\")","v":"-"}]
[null,null,null,"○","Dépistage systématique des troubles de la santé mentale (notamment la dépression et le stress psychosocial), conformément au programme d’action sur les lacunes en matière de santé mentale (PALSM)",null,null,null,null,null,null,0,0,0]
[null,null,null,"○","Conseils post-test VIH après un résultat positif pour dépister les risques de suicide, de dépression et d’autres problèmes de santé mentale ",null,null,null,null,null,null,0,0,0]
[null,null,"COVID-19 ","Prestation de services différenciés centrés sur les personnes pour les programmes TS pendant le COVID-19 \n",null,null,null,null,null,{"$f":"O238","v":"-"},null,null,null,null,{"$f":"IFERROR(ROUND(AVERAGEIF(L239:N240,\"<>0\",L239:N240),0),\"-\")","v":"-"}]
[null,null,null,"○","Des programmes sont en place pour encourager et suivre l’utilisation du vaccin COVID-19 chez les TS",null,null,null,null,null,null,0,0,0]
[null,null,null,"○","Maintien de la messagerie et de l’accès sécurisé aux modèles de prestation de services hors établissement (ex. : communautaires, à domicile, de télésanté) pendant les pics de COVID-19 afin d’éviter toute interruption de service",null,null,null,null,null,null,0,0,0]
[null,null,"Interventions comportementales"]
[null,null,"Élément","Critères",null,"S/O","Absent","Présent mais non optimal","Présent et fonctionnel","Moyenne de l’élément","Commentaires (le cas échéant)"]
[null,null,"Communication sur le changement social et comportemental (CCSC)","Les activités de CCSC sont incluses dans le programme sur les populations clés. Elles sont :",null,null,null,null,null,{"$f":"O243","v":"-"},null,null,null,null,{"$f":"IFERROR(ROUND(AVERAGEIF(L244:N248,\"<>0\",L244:N248),0),\"-\")","v":"-"}]
[null,null,null,"○","Bien planifiées et dûment budgétisées",null,null,null,null,null,null,0,0,0]
[null,null,null,"○","Fondées sur des données probantes ",null,null,null,null,null,null,0,0,0]
[null,null,null,"○","Les membres de la population de TS ont été impliqués dans la conception et l’essai des interventions",null,null,null,null,null,null,0,0,0]
[null,null,null,"○","Les organisations et les personnes qui mettent en œuvre ces interventions sont expérimentées et formées aux interventions de CCSC",null,null,null,null,null,null,0,0,0]
[null,null,null,"○","Des interventions de communication sur le changement social et comportemental sont incluses dans les plans et activités de suivi et d’évaluation",null,null,null,null,null,null,0,0,0]
[null,null,"Interventions structurelles"]
[null,null,"Élément","Critères",null,"S/O","Absent","Présent mais non optimal","Présent et fonctionnel","Moyenne de l’élément","Commentaires (le cas échéant)"]
[null,null,"Prévention et réponse à la violence","Des programmes visant à lutter contre la violence à l’égard des TS sont mis en œuvre de manière cohérente et comprennent :",null,null,null,null,null,{"$f":"O251","v":"-"},null,null,null,null,{"$f":"IFERROR(ROUND(AVERAGEIF(L252:N258,\"<>0\",L252:N258),0),\"-\")","v":"-"}]
[null,null,null,"○","Informations sur la sécurité",null,null,null,null,null,null,{"$f":"IF(ISBLANK(G252),0,1)","v":0},{"$f":"IF(ISBLANK(H252),0,3)","v":0},{"$f":"IF(ISBLANK(I252),0,5)","v":0}]
[null,null,null,"○","Espaces sécurisés / Centres d’accueil",null,null,null,null,null,null,0,0,0]
[null,null,null,"○","Sécurité renforcée sur le lieu de travail",null,null,null,null,null,null,0,0,0]
[null,null,null,"○","Mécanismes standardisés de surveillance et de signalement des expériences de violence qui outrepassent les pouvoirs de la police et peuvent inclure un soutien parajuridique de la part des organisations de TS",null,null,null,null,null,null,0,0,0]
[null,null,null,"○","Formation complète de la police et des travailleurs sociaux pour qu’ils soient sensibles aux besoins des TS",null,null,null,null,null,null,0,0,0]
[null,null,null,"○","Plans de réponse à la violence élaborés par la communauté",null,null,null,null,null,null,0,0,0]
[null,null,null,"○","Liens établis avec l’assistance juridique",null,null,null,null,null,null,0,0,0]
[null,null,"Réduction de la stigmatisation et de la discrimination ","Efforts visant à réduire la stigmatisation et la discrimination à l’égard des TS, y compris :  ",null,null,null,null,null,{"$f":"O259","v":"-"},null,null,null,null,{"$f":"IFERROR(ROUND(AVERAGEIF(L260:N266,\"<>0\",L260:N266),0),\"-\")","v":"-"}]
[null,null,null,"○","Promotion de politiques antidiscriminatoires et protectrices pour tous les TS",null,null,null,null,null,null,0,0,0]
[null,null,null,"○","Programmes, au sein et hors du secteur de la santé, qui instituent des politiques et des codes de conduite contre la stigmatisation et la discrimination",null,null,null,null,null,null,0,0,0]
[null,null,null,"○","Le suivi et la surveillance sont effectués régulièrement pour garantir que les normes sont mises en œuvre et maintenues",null,null,null,null,null,null,0,0,0]
[null,null,null,"○","Des campagnes permanentes de réduction de la stigmatisation sont menées",null,null,null,null,null,null,0,0,0]
[null,null,null,"○","Sensibilisation, éducation et engagement continus des chefs religieux et des anciens, des agents chargés de l’application de la loi et des travailleurs de santé ",null,null,null,null,null,null,0,0,0]
[null,null,null,"○","Des mécanismes efficaces sont mis à disposition pour permettre la dénonciation anonyme d’incidents de stigmatisation et/ou de discrimination lors de l’accès aux soins de santé  ",null,null,null,null,null,null,0,0,0]
[null,null,null,"○","Un soutien et un suivi sont dispensés aux TS qui signalent des incidents de stigmatisation et/ou de discrimination",null,null,null,null,null,null,0,0,0]
[null,null,"Services juridiques liés au VIH ","Des services juridiques liés au VIH sont en place pour répondre aux besoins des populations de TS et  ",null,null,null,null,null,{"$f":"O267","v":"-"},null,null,null,null,{"$f":"IFERROR(ROUND(AVERAGEIF(L268:N270,\"<>0\",L268:N270),0),\"-\")","v":"-"}]
[null,null,null,"○","Il existe des formes alternatives de résolution des conflits",null,null,null,null,null,null,0,0,0]
[null,null,null,"○","L’accès à l’information et à l’orientation juridiques est facilement disponible",null,null,null,null,null,null,0,0,0]
[null,null,null,"○","L’accès aux conseils et à la représentation juridiques est facilement disponible",null,null,null,null,null,null,0,0,0]
[null,null,"Contrôle de l’application de la loi","La mise en œuvre des politiques, des règlements et des lois fait l’objet d’un suivi régulier afin d’évaluer l’impact sur les TS",null,null,null,null,null,{"$f":"O271","v":"-"},null,0,0,0,{"$f":"IFERROR(ROUND(AVERAGEIF(L271:N271,\"<>0\",L271:N271),0),\"-\")","v":"-"}]
[null,null,"Connaissances juridiques","Une formation juridique complète est dispensée aux TS ",null,null,null,null,null,{"$f":"O272","v":"-"},null,null,null,null,{"$f":"IFERROR(ROUND(AVERAGEIF(L273:N274,\"<>0\",L273:N274),0),\"-\")","v":"-"}]
[null,null,null,"○","Des stratégies efficaces pour s’engager avec la police ont été décrites et communiquées aux TS",null,null,null,null,null,null,0,0,0]
[null,null,null,"○","Les TS connaissent leurs lois et leurs droits et sont capables de défendre leurs besoins dans le contexte du VIH autour de leurs lois et de leurs droits",null,null,null,null,null,null,0,0,0]
[null,null,"Sensibilisation des législateurs et des agents chargés de l’application de la loi ","Une formation approfondie des législateurs et des agents chargés de l’application de la loi a lieu régulièrement afin de garantir une sensibilisation appropriée de tous les législateurs et agents chargés de l’application de la loi à l’ensemble du programme TS et comprend : \n",null,null,null,null,null,{"$f":"O275","v":"-"},null,null,null,null,{"$f":"IFERROR(ROUND(AVERAGEIF(L276:N279,\"<>0\",L276:N279),0),\"-\")","v":"-"}]
[null,null,null,"○","Programme complet de formation à la sensibilisation, adapté au contexte du pays",null,null,null,null,null,null,0,0,0]
[null,null,null,"○","Animateurs dûment formés",null,null,null,null,null,null,0,0,0]
[null,null,null,"○","Participation des TS",null,null,null,null,null,null,0,0,0]
[null,null,null,"○","Retour d’information des participants",null,null,null,null,null,null,0,0,0]
[null,null,"Formation pour les prestataires de soins de santé sur les droits humains et l’éthique médicale liés au VIH ","Programme complet de formation à la sensibilisation, adapté au contexte du pays",null,null,null,null,null,{"$f":"O280","v":"-"},null,null,null,null,{"$f":"IFERROR(ROUND(AVERAGEIF(L281:N283,\"<>0\",L281:N283),0),\"-\")","v":"-"}]
[null,null,null,"○","Animateurs dûment formés",null,null,null,null,null,null,0,0,0]
[null,null,null,"○","Participation des TS",null,null,null,null,null,null,0,0,0]
[null,null,null,"○","Retour d’information des participants",null,null,null,null,null,null,0,0,0]
[null,null,"Réduction de la discrimination à l’égard des femmes dans le contexte du VIH ","Des programmes visant à lutter contre l’inégalité entre les sexes, la violence sexiste et le VIH sont mis en œuvre et abordent : ",null,null,null,null,null,{"$f":"O284","v":"-"},null,null,null,null,{"$f":"IFERROR(ROUND(AVERAGEIF(L285:N291,\"<>0\",L285:N291),0),\"-\")","v":"-"}]
[null,null,null,"○","Inégalité des femmes et des filles dans la prise de décision en matière de sexualité et de procréation ",null,null,null,null,null,null,0,0,0]
[null,null,null,"○","Obstacles liés au genre dans l’accès aux services de santé ",null,null,null,null,null,null,0,0,0]
[null,null,null,"○","Discrimination en matière d’héritage, de propriété, de mariage, de divorce et de garde des enfants ",null,null,null,null,null,null,0,0,0]
[null,null,null,"○","Violences sexuelles et autres ",null,null,null,null,null,null,0,0,0]
[null,null,null,"○","Manque d’égalité d’accès aux opportunités éducatives et économiques ",null,null,null,null,null,null,0,0,0]
[null,null,null,"○","Manque de soutien aux soignants dans les foyers touchés par le VIH ",null,null,null,null,null,null,0,0,0]
[null,null,null,"○","Ils sont complétés par des programmes ciblant les hommes et les garçons et portant sur les normes sexospécifiques néfastes ",null,null,null,null,null,null,0,0,0]
[null,null,"Espaces sécurisés / Centres d’accueil","Des espaces sécurisés/centres d’accueil ont été créés pour la communauté TS et :",null,null,null,null,null,{"$f":"O292","v":"-"},null,null,null,null,{"$f":"IFERROR(ROUND(AVERAGEIF(L293:N301,\"<>0\",L293:N301),0),\"-\")","v":"-"}]
[null,null,null,"○","Servent de lieu principal d’interaction entre la communauté et le programme",null,null,null,null,null,null,0,0,0]
[null,null,null,"○","Fournissent une plateforme pour les initiatives de mobilisation, de formation et d’organisation des communautés",null,null,null,null,null,null,0,0,0]
[null,null,null,"○","Partage d’informations sur les événements, les activités et les services pertinents pour la communauté",null,null,null,null,null,null,0,0,0]
[null,null,null,"○","Des supports d’information, d’éducation et de communication conviviaux sont accessibles",null,null,null,null,null,null,0,0,0]
[null,null,null,"○","Fournissent des services et un soutien psychosociaux ",null,null,null,null,null,null,0,0,0]
[null,null,null,"○","Des préservatifs et des lubrifiants sont à disposition",null,null,null,null,null,null,0,0,0]
[null,null,null,"○","Sont utilisés par les pairs-travailleurs de proximité pour évaluer leur travail et planifier les activités de sensibilisation",null,null,null,null,null,null,0,0,0]
[null,null,null,"○","Sont établis en concertation avec les TS pour déterminer l’emplacement, les heures d’ouverture et les services fournis",null,null,null,null,null,null,0,0,0]
[null,null,null,"○","Sont mis à disposition ou fournissent des liens vers des interventions pertinentes hors du secteur de la santé",null,null,null,null,null,null,0,0,0]
[null,null,"Comités communautaires","Des comités communautaires de TS ont été constitués et :",null,null,null,null,null,{"$f":"O302","v":"-"},null,null,null,null,{"$f":"IFERROR(ROUND(AVERAGEIF(L303:N312,\"<>0\",L303:N312),0),\"-\")","v":"-"}]
[null,null,null,"○","Peuvent être librement et facilement mis sur pied",null,null,null,null,null,null,0,0,0]
[null,null,null,"○","Organisent des réunions régulières (au moins mensuelles) et dressent des procès-verbaux pour consigner systématiquement les discussions ",null,null,null,null,null,null,0,0,0]
[null,null,null,"○","Examinent la prestation de services, résolvent les problèmes, suivent les changements, favorisent la compréhension et la responsabilité et traitent des questions générales de la communauté",null,null,null,null,null,null,0,0,0]
[null,null,null,"○","Élisent chaque année des membres de la communauté TS",null,null,null,null,null,null,0,0,0]
[null,null,null,"○","Élisent un défenseur de la communauté TS pour faire fonction d’intermédiaire du programme ",null,null,null,null,null,null,0,0,0]
[null,null,null,"○","Invitent le personnel concerné de l’organisation chargée de la mise en œuvre à devenir membre du comité ou à assister aux réunions",null,null,null,null,null,null,0,0,0]
[null,null,null,"○","Transmettent un retour d’information régulier au programme afin d’améliorer la qualité des services offerts",null,null,null,null,null,null,0,0,0]
[null,null,null,"○","Respectent la confidentialité ",null,null,null,null,null,null,0,0,0]
[null,null,null,"○","N’autorisent pas le personnel de l’organisme de mise en œuvre à voter lors des réunions",null,null,null,null,null,null,0,0,0]
[null,null,null,"○","Incluent des jeunes PC et renforcent leurs capacités ",null,null,null,null,null,null,0,0,0]
[null,null,"Suivi du programme"]
[null,null,"Élément","Critères",null,"S/O","Absent","Présent mais non optimal","Présent et fonctionnel","Moyenne de l’élément","Commentaires (le cas échéant)"]
[null,null,"Suivi de routine","Des indicateurs de routine du programme sont définis et déclarés :",null,null,null,null,null,{"$f":"O315","v":"-"},null,null,null,null,{"$f":"IFERROR(ROUND(AVERAGEIF(L316:N322,\"<>0\",L316:N322),0),\"-\")","v":"-"}]
[null,null,null,"○"," Régulièrement (chaque mois/trimestre)",null,null,null,null,null,null,0,0,0]
[null,null,null,"○","De façon exhaustive (les données sont cohérentes et il ne manque aucune information)",null,null,null,null,null,null,{"$f":"IF(ISBLANK(G317),0,1)","v":0},{"$f":"IF(ISBLANK(H317),0,3)","v":0},{"$f":"IF(ISBLANK(I317),0,5)","v":0}]
[null,null,null,"○","À tous les niveaux (c’est-à-dire État/comté/province)",null,null,null,null,null,null,0,0,0]
[null,null,null,"○"," Par tous les partenaires de mise en œuvre",null,null,null,null,null,null,0,0,0]
[null,null,null,"○","Par le biais de la plateforme LISD/EMR",null,null,null,null,null,null,0,0,0]
[null,null,null,"○","Le suivi des données individuelles est effectué par les partenaires de mise en œuvre ",null,null,null,null,null,null,0,0,0]
[null,null,null,"○","Les données sont régulièrement examinées par toutes les parties prenantes (gouvernement, société civile, communauté TS, partenaires de mise en œuvre, donateurs) et utilisées pour améliorer les programmes ",null,null,null,null,null,null,0,0,0]
[null,null,"Suivi communautaire dans le cadre de l’obligation de rendre compte ","Intégration du suivi communautaire dans les plateformes de suivi nationales et :",null,null,null,null,null,{"$f":"O323","v":"-"},null,null,null,null,{"$f":"IFERROR(ROUND(AVERAGEIF(L324:N330,\"<>0\",L324:N330),0),\"-\")","v":"-"}]
[null,null,null,"○","Le suivi communautaire est accepté et intégré aux processus décisionnels et aux négociations avec les autorités locales, les bailleurs de fonds et autres soutiens extérieurs ",null,null,null,null,null,null,{"$f":"IF(ISBLANK(G324),0,1)","v":0},{"$f":"IF(ISBLANK(H324),0,3)","v":0},{"$f":"IF(ISBLANK(I324),0,5)","v":0}]
[null,null,null,"○","Fait fonction de mécanisme communautaire de surveillance et de responsabilisation",null,null,null,null,null,null,0,0,0]
[null,null,null,"○","Des pairs-contrôleurs formés collectent et analysent de manière systématique et régulière des données qualitatives et quantitatives sur la prestation de services liés au VIH",null,null,null,null,null,null,0,0,0]
[null,null,null,"○","Des équipes de suivi dirigées par la communauté sont en place pour répondre aux déficits de prestation de services VIH au sein des communautés",null,null,null,null,null,null,0,0,0]
[null,null,null,"○","Il y a collaboration entre les différents réseaux de personnes vivant avec le VIH (PVVIH) et les organisations communautaires des communautés touchées",null,null,null,null,null,null,0,0,0]
[null,null,null,null,"Les collecteurs de données et les autres membres de la communauté impliqués dans le suivi communautaire sont rémunérés conformément aux pratiques et normes nationales",null,null,null,null,null,null,0,0,0]
[null,null,null,"○","Les communautés de TS sont formées et soutenues pour évaluer les établissements de santé et organiser des audiences publiques afin de demander des comptes aux responsables ",null,null,null,null,null,null,0,0,0]
[null,null,"Suivi du système d’orientation vers d’autres services","Des systèmes de suivi des orientations sont en place et incluent :",null,null,null,null,null,{"$f":"O331","v":"-"},null,null,null,null,{"$f":"IFERROR(ROUND(AVERAGEIF(L332:N336,\"<>0\",L332:N336),0),\"-\")","v":"-"}]
[null,null,null,"○","Un outil d’orientation largement disponible, comprenant des procédures opérationnelles permanentes claires",null,null,null,null,null,null,0,0,0]
[null,null,null,"○","Un répertoire d’orientation dans l’établissement et dans les organisations de pairs ",null,null,null,null,null,null,0,0,0]
[null,null,null,"○","Enregistrement des résultats ",null,null,null,null,null,null,0,0,0]
[null,null,null,"○","Mécanismes de retour d’information entre les patients et les prestataires (qui orientent) ",null,null,null,null,null,null,0,0,0]
[null,null,null,"○","Rapport sur les orientations (sur une base mensuelle) pour contrôler l’efficacité du système d’orientation",null,null,null,null,null,null,0,0,0]
[null,null,"Évaluation de la qualité","Des systèmes de collecte de données sur la qualité des programmes et des indicateurs connexes ont été définis et :\n",null,null,null,null,null,{"$f":"O337","v":"-"},null,null,null,null,{"$f":"IFERROR(ROUND(AVERAGEIF(L338:N341,\"<>0\",L338:N341),0),\"-\")","v":"-"}]
[null,null,null,"○","Des données précises sont collectées",null,null,null,null,null,null,0,0,0]
[null,null,null,"○","Les données sont exploitées ",null,null,null,null,null,null,0,0,0]
[null,null,null,"○","Des mécanismes de retour d’information permettent aux TS d’évaluer les services qu’ils ont reçus de manière à contrôler la qualité du programme",null,null,null,null,null,null,0,0,0]
[null,null,null,"○","Les données sont régulièrement vérifiées ",null,null,null,null,null,null,0,0,0]
[null,null,"Surveillance ","La surveillance autorise une description précise du contexte et des résultats/impacts du programme TS\n",null,null,null,null,null,{"$f":"O342","v":"-"},null,null,null,null,{"$f":"IFERROR(ROUND(AVERAGEIF(L343:N346,\"<>0\",L343:N346),0),\"-\")","v":"-"}]
[null,null,null,"○","Des résultats d’études sont utilisés pour éclairer la prise de décision et la correction des trajectoires ",null,null,null,null,null,null,0,0,0]
[null,null,null,"○","Implique l’analyse et l’interprétation des données à intervalles réguliers ",null,null,null,null,null,null,0,0,0]
[null,null,null,"○","Implique la diffusion régulière d’informations pour répondre aux besoins locaux, provinciaux et nationaux ",null,null,null,null,null,null,0,0,0]
[null,null,null,"○","Inclut des enquêtes biologiques et comportementales, des enquêtes sentinelles et d’autres études de recherche portant sur des indicateurs afférents aux TS ",null,null,null,null,null,null,0,0,0]
[null,null,"Données pour la prise de décision","Le Programme national, l’unité de suivi et d’évaluation du ministère de la Santé ou un organisme de coordination similaire supervise/coordonne la collecte et le traitement des données de suivi, d’enquête et de surveillance et :",null,null,null,null,null,{"$f":"O347","v":"-"},null,null,null,null,{"$f":"IFERROR(ROUND(AVERAGEIF(L348:N355,\"<>0\",L348:N355),0),\"-\")","v":"-"}]
[null,null,null,"○","Partage des données avec le groupe de travail technique TS",null,null,null,null,null,null,0,0,0]
[null,null,null,"○","Le groupe de travail technique TS analyse chaque trimestre les données du programme existant et identifie les domaines nécessitant une correction de trajectoire",null,null,null,null,null,null,0,0,0]
[null,null,null,"○","Le groupe de travail technique TS contribue à l’élaboration de stratégies visant à combler les lacunes ",null,null,null,null,null,null,0,0,0]
[null,null,null,"○","Des données de bonne qualité (valides, fiables, cohérentes, précises, opportunes, pertinentes) sont collectées et la plupart des besoins d’information sont satisfaits et, s’ils ne le sont pas, les lacunes sont comprises ",null,null,null,null,null,null,0,0,0]
[null,null,null,"○","Les données sont utilisées de manière cohérente et appropriée pour éclairer les décisions ",null,null,null,null,null,null,0,0,0]
[null,null,null,"○","Les données ont été dédupliquées entre les partenaires de mise en œuvre et les doublons sont minimes, voire inexistants",null,null,null,null,null,null,0,0,0]
[null,null,null,"○","Les données sont agrégées au niveau central mais peuvent être désagrégées par localité, sexe et âge",null,null,null,null,null,null,0,0,0]
[null,null,null,"○","Le programme fournit des données au groupe de travail technique pour examen",null,null,null,null,null,null,0,0,0]
[null,null,"Utilisation de Codes d’identification uniques pour le suivi des programmes","Le système utilisé pour le suivi du programme est pleinement opérationnel et adéquat pour suivre la performance du programme",null,null,null,null,null,{"$f":"O356","v":"-"},null,null,null,null,{"$f":"IFERROR(ROUND(AVERAGEIF(L357:N360,\"<>0\",L357:N360),0),\"-\")","v":"-"}]
[null,null,null,"○","Plusieurs codes d’identification uniques peuvent être utilisés dans un pays donné, mais ils sont harmonisés",null,null,null,null,null,null,0,0,0]
[null,null,null,"○","Le programme national utilise des données agrégées de code d’identification unique",null,null,null,null,null,null,0,0,0]
[null,null,null,"○","Le code d’identification unique est capable de distinguer le contact et la portée, à des fins de déduplication ",null,null,null,null,null,null,0,0,0]
[null,null,null,"○","Le code d’identification unique est électronique",null,null,null,null,null,null,0,0,0]
[null,null,"Suivi budgétaire","Le suivi des performances financières et non financières du programme TS est intégré et des rapports de routine sont générés : ",null,null,null,null,null,{"$f":"O361","v":"-"},null,null,null,null,{"$f":"IFERROR(ROUND(AVERAGEIF(L362:N364,\"<>0\",L362:N364),0),\"-\")","v":"-"}]
[null,null,null,"○","Les données sur les dépenses relatives aux interventions en faveur des TS sont facilement accessibles au niveau national ",null,null,null,null,null,null,0,0,0]
[null,null,null,"○","Des mécanismes de reddition de comptes sur les dépenses insuffisantes et excédentaires sont en place ",null,null,null,null,null,null,0,0,0]
[null,null,null,"○","Des données financières et non financières sont utilisées pour évaluer le rapport qualité-prix",null,null,null,null,null,null,0,0,0]
[null,null,null,null,null,null,null,null,null,{"$f":"O365","v":0},null,0,0,0]
[null,null,"Résultats de programme"]
[null,null,"Résultats et indicateurs"]
[null,null,"Élément","Critères",null,"S/O","Non surveillé ","Objectif non atteint ou non conforme aux prévisions ","Objectif atteint ou en passe de l’être","Moyenne de l’élément","Commentaires (le cas échéant)"]
[null,null,"Estimations de la taille de la population de TS disponibles",null,null,null,null,null,null,{"$f":"O369","v":"-"},null,0,0,0,{"$f":"IFERROR(ROUND(AVERAGEIF(L369:N369,\"<>0\",L369:N369),0),\"-\")","v":"-"}]
[null,null,"La stratégie de prévention comprend des éléments essentiels du paquet de prévention TS",null,null,null,null,null,null,{"$f":"O370","v":"-"},null,0,0,0,{"$f":"IFERROR(ROUND(AVERAGEIF(L370:N370,\"<>0\",L370:N370),0),\"-\")","v":"-"}]
[null,null,"TS vivant avec le VIH qui connaissent leur statut VIH (cible 90 %)",null,null,null,null,null,null,"-",null,0,0,0,"-"]
[null,null,"TS vivant avec le VIH sous traitement antirétroviral (cible 90 %)",null,null,null,null,null,null,"-",null,0,0,0,"-"]
[null,null,"TS vivant avec le VIH qui ont supprimé leur charge virale (cible 90 %)",null,null,null,null,null,null,"-",null,0,0,0,"-"]
[null,null,"Utilisation du préservatif par les TS avec le client le plus récent (cible 80 %)",null,null,null,null,null,null,"-",null,0,0,0,"-"]
[null,null,"TS ayant reçu au moins 2 interventions de prévention du VIH au cours des 3 derniers mois",null,null,null,null,null,null,"-",null,0,0,0,"-"]
[null,null,"Pourcentage de TS ayant évité les soins de santé pour raison de stigmatisation et de discrimination ",null,null,null,null,null,null,"-",null,{"$f":"IF(ISBLANK(G376),0,1)","v":0},{"$f":"IF(ISBLANK(H376),0,3)","v":0},{"$f":"IF(ISBLANK(I376),0,5)","v":0},"-"]
[null,null,"Criminalisation du travail sexuel",null,null,null,null,null,null,"-",null,0,0,0,"-"]
[]
[null,null,null,null,null,null,null,null,null,null,null,null,{"$f":"COUNTIF(O6:O377,\"-\")","v":65}]
[null,null,null,null,null,null,null,null,null,null,null,null,{"$f":"COUNTIF(O6:O377,\">0\")","v":0}]
[null,null,null,null,null,null,null,null,null,null,null,"Achèvement de la feuille",{"$f":"M380/(M379+M380)","v":0},{"$f":"1-M381","v":1}]

{"sheet":"HSH ","index":5,"n_rows":369,"n_cols":16,"rows_kept":369,"cut":false,"hidden":false,"merged":[[166,3,166,4],[105,3,105,4],[365,2,365,4],[363,2,363,4],[364,2,364,4],[75,3,75,4],[190,2,196,2],[217,2,223,2],[256,2,263,2],[312,2,319,2],[358,2,358,4],[361,2,361,4],[359,2,359,4],[360,2,360,4],[326,3,326,4],[272,2,276,2],[272,3,272,4],[248,2,255,2],[248,3,248,4],[229,2,231,2],[184,2,189,2],[362,2,362,4],[312,3,312,4],[312,9,319,9],[356,3,356,4],[345,2,349,2],[345,3,345,4],[345,9,349,9],[350,2,353,2],[350,3,350,4],[350,9,353,9],[331,2,335,2],[331,3,331,4],[331,9,335,9],[336,2,344,2],[336,3,336,4],[336,9,344,9],[320,2,325,2],[320,3,320,4],[320,9,325,9],[326,2,330,2],[357,2,357,4],[326,9,330,9],[304,2,311,2],[304,3,304,4],[304,9,311,9],[281,2,290,2],[281,3,281,4],[281,9,290,9],[291,2,301,2],[291,3,291,4],[291,9,301,9],[303,3,303,4],[272,9,276,9],[277,2,280,2],[277,3,277,4],[277,9,280,9],[264,2,267,2],[264,3,264,4],[264,9,267,9],[268,3,268,4],[269,2,271,2],[269,3,269,4],[269,9,271,9],[248,9,255,9],[256,3,256,4],[235,2,237,2],[235,3,235,4],[239,3,239,4],[240,2,245,2],[240,3,240,4],[240,9,245,9],[235,9,237,9],[256,9,263,9],[247,3,247,4],[229,9,231,9],[232,2,234,2],[232,9,234,9],[217,3,217,4],[224,2,228,2],[224,3,224,4],[224,9,228,9],[202,2,206,2],[202,3,202,4],[202,9,206,9],[207,2,216,2],[207,3,207,4],[207,9,216,9],[217,9,223,9],[184,9,189,9],[197,2,201,2],[197,9,201,9],[190,9,196,9],[190,3,190,4],[167,2,170,2],[167,3,167,4],[167,9,170,9],[171,2,183,2],[171,3,171,4],[171,9,183,9],[197,3,197,4],[184,3,184,4],[152,9,157,9],[158,2,164,2],[158,3,158,4],[158,9,164,9],[137,2,141,2],[137,3,137,4],[137,9,141,9],[143,3,143,4],[144,2,151,2],[144,3,144,4],[144,9,151,9],[152,2,157,2],[152,3,152,4],[121,9,127,9],[128,2,136,2],[128,3,128,4],[128,9,136,9],[106,2,110,2],[106,3,106,4],[106,9,110,9],[111,2,120,2],[111,3,111,4],[111,9,120,9],[121,3,121,4],[121,2,127,2],[61,9,62,9],[69,2,72,2],[91,3,91,4],[91,9,94,9],[95,2,103,2],[95,3,95,4],[95,9,103,9],[76,2,83,2],[76,3,76,4],[76,9,83,9],[84,2,90,2],[84,3,84,4],[84,9,90,9],[91,2,94,2],[29,2,35,2],[29,3,29,4],[29,9,35,9],[36,2,42,2],[36,3,36,4],[36,9,42,9],[22,2,28,2],[69,9,72,9],[43,2,47,2],[43,3,43,4],[43,9,47,9],[49,3,49,4],[50,2,53,2],[50,3,50,4],[50,9,53,9],[63,2,66,2],[63,3,63,4],[63,9,66,9],[54,2,58,2],[54,3,54,4],[54,9,58,9],[60,3,60,4],[61,2,62,2],[61,3,61,4],[4,3,4,4],[5,2,15,2],[5,3,5,4],[5,9,15,9],[16,2,21,2],[1,2,1,9],[16,3,16,4],[16,9,21,9],[22,3,22,4],[22,9,28,9]]}
[]
[null,null,"Gestion de programme"]
[]
[null,null,"Leadership et coordination"]
[null,null,"Élément","Critères",null,"S/O","Absent","Présent mais non optimal","Présent et fonctionnel","Moyenne de l’élément","Commentaires (le cas échéant) ","Absent","Present","Optimal","Average","Sustainability Single Figure"]
[null,null,"Stratégie nationale pour les populations clés","Les HSH sont inclus dans la stratégie nationale pour les populations clés et dans la stratégie nationale globale de prévention du VIH :",null,null,null,null,null,{"$f":"O6","v":"-"},null,null,null,null,{"$f":"IFERROR(ROUND(AVERAGEIF(L7:N16,\"<>0\",L7:N16),0),\"-\")","v":"-"}]
[null,null,null,"○","Les hommes ayant des rapports sexuels avec des hommes (HSH) ont été impliqués dans l’élaboration du plan stratégique ",null,null,null,null,null,null,{"$f":"IF(ISBLANK(G7),0,1)","v":0},{"$f":"IF(ISBLANK(H7),0,3)","v":0},{"$f":"IF(ISBLANK(I7),0,5)","v":0}]
[null,null,null,"○","Les buts et les objectifs ont été clairement définis pour le programme HSH ",null,null,null,null,null,null,{"$f":"IF(ISBLANK(G8),0,1)","v":0},0,0]
[null,null,null,"○","Le concept de HSH a été clairement défini selon l’Organisation mondiale de la Santé (OMS) ",null,null,null,null,null,null,0,0,0]
[null,null,null,"○","Le plan reconnaît les vulnérabilités spécifiques des hommes ayant des rapports sexuels avec des hommes (HSH) en raison de leur sexe et de leur âge",null,null,null,null,null,null,0,0,0]
[null,null,null,"○","Un modèle logique clair ou une théorie du changement claire a été formulé(e)  ",null,null,null,null,null,null,0,0,0]
[null,null,null,"○","Le plan comprend un ensemble complet d’interventions et d’activités fondées sur des données probantes, alignées sur les outils de mise en œuvre propres aux HSH, identifiées par HSH, y compris des interventions ne relevant pas du secteur de la santé (ex. : autonomisation de la communauté, lutte contre la violence, réduction de la stigmatisation, etc.) et adaptées aux vulnérabilités spécifiques",null,null,null,null,null,null,0,0,0]
[null,null,null,"○","Des plans clairs de mise à l’échelle ont été définis, avec attribution de responsabilités ",null,null,null,null,null,null,0,0,0]
[null,null,null,"○","Des plans de financement sont en place ",null,null,null,null,null,null,0,0,0]
[null,null,null,"○","Un cadre de suivi et d’évaluation a été défini, avec des indicateurs et des objectifs fondamentaux",null,null,null,null,null,null,0,0,0]
[null,null,null,"○","Mécanisme de mise en œuvre clairement défini",null,null,null,null,null,null,0,0,0]
[null,null,"Obligation de rendre compte","Le département/ministère responsable de la réussite du programme HSH et jouissant d’un leadership/autorité fort a été identifié :",null,null,null,null,null,{"$f":"O17","v":"-"},null,null,null,null,{"$f":"IFERROR(ROUND(AVERAGEIF(L18:N22,\"<>0\",L18:N22),0),\"-\")","v":"-"}]
[null,null,null,"○","Tous les projets HSH dans le pays rendent régulièrement compte des indicateurs clés au gouvernement aux niveaux infranational et national avec des indicateurs communs ",null,null,null,null,null,null,0,0,0]
[null,null,null,"○","Dans les rapports, les données sont anonymisées et sécurisées afin de protéger les HSH ",null,null,null,null,null,null,0,0,0]
[null,null,null,"○","Des examens réguliers des programmes sont effectués à l’aide de données programmatiques",null,null,null,null,null,null,0,0,0]
[null,null,null,"○","Le ministère gouvernemental responsable du programme participe aux réunions de coordination pertinentes",null,null,null,null,null,null,0,0,0]
[null,null,null,"○","Le groupe de travail technique sur les populations clés avec une représentation de HSH est impliqué dans l’obligation de rendre des comptes ",null,null,null,null,null,null,0,0,0]
[null,null,"Groupe de travail technique pour les HSH","Un groupe de travail technique (les pays peuvent avoir des GTT pour toutes les populations clés comprenant des HSH) a été établi aux niveaux national et infranational et :",null,null,null,null,null,{"$f":"O23","v":"-"},null,null,null,null,{"$f":"IFERROR(ROUND(AVERAGEIF(L24:N29,\"<>0\",L24:N29),0),\"-\")","v":"-"}]
[null,null,null,"○","Se réunit régulièrement ",null,null,null,null,null,null,0,0,0]
[null,null,null,"○","Le groupe de travail technique est complet et comprend des organisations de la société civile (OSC), des partenaires de mise en œuvre, des membres de la communauté HSH",null,null,null,null,null,null,0,0,0]
[null,null,null,"○","Il a mis en place des mécanismes de communication interne et externe ",null,null,null,null,null,null,0,0,0]
[null,null,null,"○","Le groupe de travail technique a mis en place des mécanismes de communication pour assurer la coordination",null,null,null,null,null,null,0,0,0]
[null,null,null,"○","Il a un mandat ou un champ d’application défini ",null,null,null,null,null,null,0,0,0]
[null,null,null,"○","Des membres de la communauté HSH sont inclus",null,null,null,null,null,null,{"$f":"IF(ISBLANK(G29),0,1)","v":0},{"$f":"IF(ISBLANK(H29),0,3)","v":0},{"$f":"IF(ISBLANK(I29),0,5)","v":0}]
[null,null,"Coordination des parties prenantes","Des mécanismes sont en place pour garantir une coordination à tous les niveaux et la coordination est fructueuse et cohérente avec : ",null,null,null,null,null,{"$f":"O30","v":"-"},null,null,null,null,{"$f":"IFERROR(ROUND(AVERAGEIF(L31:N36,\"<>0\",L31:N36),0),\"-\")","v":"-"}]
[null,null,null,"○","Partenaires de financement (au niveau national)",null,null,null,null,null,null,0,0,0]
[null,null,null,"○","Programmes locaux et initiatives nationales plus vastes ",null,null,null,null,null,null,0,0,0]
[null,null,null,"○","Communautés HSH",null,null,null,null,null,null,0,0,0]
[null,null,null,"○","Partenaires de mise en œuvre ",null,null,null,null,null,null,0,0,0]
[null,null,null,"○","Ministère de la Santé/départements gouvernementaux de la santé (aux niveaux national et sous-national)",null,null,null,null,null,null,0,0,0]
[null,null,null,"○","Une coordination multisectorielle avec tous les autres ministères/départements (ex. : finances et application de la loi) a été réalisée",null,null,null,null,null,null,{"$f":"IF(ISBLANK(G36),0,1)","v":0},{"$f":"IF(ISBLANK(H36),0,3)","v":0},{"$f":"IF(ISBLANK(I36),0,5)","v":0}]
[null,null,"Plan de renforcement des capacités et d’assistance technique","Un plan d’assistance technique est en place et : ",null,null,null,null,null,{"$f":"O37","v":"-"},null,null,null,null,{"$f":"IFERROR(ROUND(AVERAGEIF(L38:N43,\"<>0\",L38:N43),0),\"-\")","v":"-"}]
[null,null,null,"○","A été élaboré à l’appui d’une évaluation ",null,null,null,null,null,null,0,0,0,null,{"$f":"IF(MAX(L38:N38)=0,\"\",MAX(L38:N38))","v":""}]
[null,null,null,"○","A recours à des experts techniques nationaux et internationaux, notamment pour le développement des capacités et l’assistance technique entre pairs",null,null,null,null,null,null,0,0,0,null,{"$f":"IF(MAX(L39:N39)=0,\"\",MAX(L39:N39))","v":""}]
[null,null,null,"○","A priorisé les composantes du programme et les questions politiques ",null,null,null,null,null,null,0,0,0,null,""]
[null,null,null,"○","Facilite l’établissement et le renforcement des réseaux d’exécutants ",null,null,null,null,null,null,0,0,0,null,""]
[null,null,null,"○","Identifie les lacunes et élabore des demandes d’assistance consolidées lorsque l’expertise du pays fait défaut ",null,null,null,null,null,null,0,0,0,null,""]
[null,null,null,"○","Facilite le développement de la capacité de la communauté de HSH à s’approprier les programmes HSH ",null,null,null,null,null,null,0,0,0,null,""]
[null,null,"Plan de durabilité et feuille de route de transition","Un plan complet de durabilité et une feuille de route de transition, décrivant la transition accusée par les pays entre les interventions soutenues par les donateurs et les interventions soutenues au niveau national, sont en place et informés par :  Il prend en compte toutes les ressources, y compris : ",null,null,null,null,null,{"$f":"O44","v":"-"},null,null,null,null,{"$f":"IFERROR(ROUND(AVERAGEIF(L45:N48,\"<>0\",L45:N48),0),\"-\")","v":"-"},""]
[null,null,null,"○","Un exercice de calcul des coûts unitaires de la population clé",null,null,null,null,null,null,0,0,0,null,""]
[null,null,null,"○"," Une analyse du paysage du financement de la population clé",null,null,null,null,null,null,0,0,0,null,""]
[null,null,null,"○","Planification de l’intégration des services de PC dans les soins de santé primaires",null,null,null,null,null,null,0,0,0]
[null,null,null,"○","Prise en compte des besoins financiers, humains et d’infrastructure",null,null,null,null,null,null,0,0,0,null,""]
[null,null,"Lois, politiques et réglementation"]
[null,null,"Élément","Critères",null,"S/O","Absent","Présent mais non optimal","Présent et fonctionnel","Moyenne de l’élément","Commentaires (le cas échéant) "]
[null,null,"Lois et politiques "," Des politiques sont en place qui favorisent activement le bon fonctionnement du programme HSH : ",null,null,null,null,null,{"$f":"O51","v":"-"},null,null,null,null,{"$f":"IFERROR(ROUND(AVERAGEIF(L52:N54,\"<>0\",L52:N54),0),\"-\")","v":"-"}]
[null,null,null,"○","Politiques en place qui favorisent activement l’accès des HSH aux services, y compris pour les HSH adolescents",null,null,null,null,null,null,0,0,0]
[null,null,null,"○","Des politiques sont en place pour soutenir la décriminalisation des HSH",null,null,null,null,null,null,0,0,0]
[null,null,null,"○","Des politiques visant à réduire la stigmatisation, la discrimination et la violence à l’égard des HSH sont en place ",null,null,null,null,null,null,0,0,0]
[null,null,"Lignes directrices","Les lignes directrices suivantes existent et articulent clairement les étapes d’une mise en œuvre réussie du programme HSH :",null,null,null,null,null,{"$f":"O55","v":"-"},null,0,0,0,{"$f":"IFERROR(ROUND(AVERAGEIF(L56:N59,\"<>0\",L56:N59),0),\"-\")","v":"-"}]
[null,null,null,"○","Il existe des lignes directrices nationales pour chacune des interventions et services cliniques et structurels, et elles répondent aux besoins spécifiques des HSH",null,null,null,null,null,null,0,0,0]
[null,null,null,"○","Des lignes directrices ont été élaborées en concertation avec des HSH",null,null,null,null,null,null,0,0,0]
[null,null,null,"○","Les directives nationales pour les services de dépistage du VIH, les infections sexuellement transmissibles, la prophylaxie avant exposition et les préservatifs tiennent compte des besoins et priorités des HSH ",null,null,null,null,null,null,0,0,0]
[null,null,null,"○","Les mesures de prévention et de contrôle de l’infection COVID-19 sont intégrées dans l’ensemble des stratégies, plans et lignes directrices de prévention du VIH/HSH",null,null,null,null,null,null,{"$f":"IF(ISBLANK(G59),0,1)","v":0},{"$f":"IF(ISBLANK(H59),0,3)","v":0},{"$f":"IF(ISBLANK(I59),0,5)","v":0}]
[null,null,"Financement"]
[null,null,"Élément","Critères",null,"S/O","Absent","Présent mais non optimal","Présent et fonctionnel","Moyenne de l’élément","Commentaires (le cas échéant) "]
[null,null,"Calcul des coûts ","Budget national en place :",null,null,null,null,null,{"$f":"O62","v":"-"},null,null,null,null,{"$f":"IFERROR(ROUND(AVERAGEIF(L63:N63,\"<>0\",L63:N63),0),\"-\")","v":"-"}]
[null,null,null,"○","Un exercice de calcul des coûts a été réalisé et le programme national connaît le coût moyen pour atteindre un HSH avec un ensemble standard de services conformément aux lignes directrices ",null,null,null,null,null,null,{"$f":"IF(ISBLANK(G63),0,1)","v":0},{"$f":"IF(ISBLANK(H63),0,3)","v":0},{"$f":"IF(ISBLANK(I63),0,5)","v":0},{"$f":"IFERROR(ROUND(AVERAGEIF(L64:N64,\"<>0\",L64:N64),0),\"-\")","v":"-"}]
[null,null,"Planification budgétaire","Un processus de planification budgétaire bien géré est en place pour le programme HSH ",null,null,null,null,null,{"$f":"O64","v":"-"},null,0,{"$f":"IF(ISBLANK(H64),0,3)","v":0},0,"-"]
[null,null,null,"○","Une évaluation des ressources disponibles est en cours afin d’essayer d’identifier les lacunes et d’allouer un budget au programme HSH",null,null,null,null,null,null,0,0,0,"-"]
[null,null,null,"○","Une stratégie a été élaborée pour combler les lacunes de financement",null,null,null,null,null,null,0,0,0,"-"]
[null,null,null,"○","Les budgets sont corrélés aux besoins en ressources des plans opérationnels pour des cibles nationales et infranationales",null,null,null,null,null,null,0,0,0]
[null,null,"Mobilisation des ressources et financement","○","Le financement est suffisant pour répondre aux besoins de la programmation holistique",null,null,null,null,{"$f":"O68","v":"-"},null,0,0,0,{"$f":"IFERROR(ROUND(AVERAGEIF(L68:N68,\"<>0\",L68:N68),0),\"-\")","v":"-"},{"$f":"IF(MAX(L68:N68)=0,\"\",MAX(L68:N68))","v":""}]
[null,null,"Ressourcement national","○","Plus de 50 % des ressources soutenant le programme, humaines et financières, sont nationales",null,null,null,null,{"$f":"O69","v":"-"},null,0,0,0,{"$f":"IFERROR(ROUND(AVERAGEIF(L69:N69,\"<>0\",L69:N69),0),\"-\")","v":"-"},{"$f":"IF(MAX(L69:N69)=0,\"\",MAX(L69:N69))","v":""}]
[null,null,"Contrats sociaux","○","Des mécanismes de contrats sociaux ont été élaborés et sont en cours de mise en œuvre",null,null,null,null,{"$f":"O70","v":"-"},null,0,0,0,{"$f":"IFERROR(ROUND(AVERAGEIF(L70:N73,\"<>0\",L70:N73),0),\"-\")","v":"-"},{"$f":"IF(MAX(L70:N70)=0,\"\",MAX(L70:N70))","v":""}]
[null,null,null,"○","Les opportunités sont largement diffusées afin de permettre aux partenaires locaux de mise en œuvre et aux organisations dirigées par des HSH d’accéder au financement",null,null,null,null,null,null,0,0,0,null,{"$f":"IF(MAX(L71:N71)=0,\"\",MAX(L71:N71))","v":""}]
[null,null,null,"○","Un mécanisme a été mis en place pour autoriser le financement d’organisations dirigées par la communauté",null,null,null,null,null,null,0,0,0]
[null,null,null,"○","Les fonds sont réservés aux organisations dirigées par la communauté ",null,null,null,null,null,null,0,0,0]
[null,null,"Mise en œuvre de programme"]
[null,null,"Ciblage et planification"]
[null,null,"Élément","Critères",null,"S/O","Absent","Présent mais non optimal","Présent et fonctionnel","Moyenne de l’élément","Commentaires (le cas échéant) "]
[null,null,"Évaluation démographique (estimation de la taille de la population et microplanification)","L’estimation de la taille de la population et la microplanification sont achevées et :",null,null,null,null,null,{"$f":"O77","v":"-"},null,null,null,null,{"$f":"IFERROR(ROUND(AVERAGEIF(L78:N84,\"<>0\",L78:N84),0),\"-\")","v":"-"}]
[null,null,null,"○","Sont établies en fonction du site (niveau local, par opposition au pays ou à la province)",null,null,null,null,null,null,0,{"$f":"IF(ISBLANK(H78),0,3)","v":0},0]
[null,null,null,"○","La confidentialité des zones sensibles et l’anonymat des personnes sont garantis et ne sont pas communiqués aux forces de l’ordre",null,null,null,null,null,null,0,0,0]
[null,null,null,"○","Sont mises à jour annuellement ou à l’issue d’une enquête biocomportementale",null,null,null,null,null,null,0,0,0]
[null,null,null,"○","Des membres formés de HSH ou de réseaux de TS ont été engagés et recrutés pour entreprendre l’estimation de la taille de la population et les exercices de microplanification",null,null,null,null,null,null,0,0,0]
[null,null,null,"○","Les estimations de la taille de la population sont précises et actualisées ",null,null,null,null,null,null,0,0,0]
[null,null,null,"○","Les informations sont utilisées pour déterminer la nécessité d’interventions comportementales, biomédicales et structurelles  ",null,null,null,null,null,null,0,0,0]
[null,null,null,"○","Ces informations sont utilisées pour estimer les besoins de financement et fixer des cibles",null,null,null,null,null,null,0,0,0]
[null,null,"Évaluation épidémiologique (enquête de séroprévalence et déterminants du risque)","Des estimations de séroprévalence sont disponibles et :",null,null,null,null,null,{"$f":"O85","v":"-"},null,null,null,null,{"$f":"IFERROR(ROUND(AVERAGEIF(L86:N91,\"<>0\",L86:N91),0),\"-\")","v":"-"}]
[null,null,null,"○","Sont basées sur une surveillance récente et/ou continue (estimations modélisées mises à jour annuellement ou données d’enquête mises à jour tous les 3-5 ans)",null,null,null,null,null,null,0,0,0]
[null,null,null,"○","Spécifiques aux HSH",null,null,null,null,null,null,0,0,0]
[null,null,null,"○","Les résultats sont précis, la taille de l’échantillon est statistiquement représentative (puissance appropriée) et la méthode d’échantillonnage est appropriée aux HSH : échantillonnage par localisation temporelle et échantillonnage de commodité",null,null,null,null,null,null,0,0,0]
[null,null,null,"○","Des évaluations des déterminants du risque ont été régulièrement menées pour les HSH afin d’informer les programmes et :",null,null,null,null,null,null,0,0,0]
[null,null,null,null,"> Elles sont spécifiques aux HSH et prennent en compte les comportements spécifiques à l’âge et au sexe ",null,null,null,null,null,null,0,0,0]
[null,null,null,null,"> Les études sont de bonne qualité et fournissent de nombreuses informations  ",null,null,null,null,null,null,0,0,0]
[null,null,"Évaluation des besoins","Une évaluation des besoins pour les HSH été réalisée au niveau de la mise en œuvre et/ou au niveau local :",null,null,null,null,null,{"$f":"O92","v":"-"},null,null,null,null,{"$f":"IFERROR(ROUND(AVERAGEIF(L93:N95,\"<>0\",L93:N95),0),\"-\")","v":"-"}]
[null,null,null,"○","Engagement adéquat avec les HSH et les organisations ou réseaux dirigé(e)s par des HSH sur les besoins",null,null,null,null,null,null,0,0,0]
[null,null,null,"○","Informations suffisantes sur les services dont les HSH ont besoin, sur la manière dont ils préfèrent accéder aux services et sur les personnes qui devraient fournir ces services ",null,null,null,null,null,null,0,0,0]
[null,null,null,"○","Informations complètes sur les lacunes en termes de prestation de services et d’obstacles à l’accès",null,null,null,null,null,null,0,0,0]
[null,null,"Définition de cibles","Des cibles pour les HSH ont été clairement définies et :",null,null,null,null,null,{"$f":"O96","v":"-"},null,null,null,null,{"$f":"IFERROR(ROUND(AVERAGEIF(L97:N104,\"<>0\",L97:N104),0),\"-\")","v":"-"}]
[null,null,null,"○","Sont basées sur les données relatives à l’estimation de la taille et à l’évaluation du risque",null,null,null,null,null,null,0,0,0]
[null,null,null,"○","Sont conçues pour faciliter les références",null,null,null,null,null,null,0,0,0]
[null,null,null,"○","Sont spécifiées aux niveaux national et infranational ",null,null,null,null,null,null,0,0,0]
[null,null,null,"○","Incluent les réalisations déjà atteintes et les réalisations finales prévues ",null,null,null,null,null,null,0,0,0]
[null,null,null,"○","Sont élaborées en concertation avec des exécutants et des réseaux de HSH afin de s’assurer qu’elles sont réalistes",null,null,null,null,null,null,0,0,0]
[null,null,null,"○","Correspondent aux budgets et aux accords formels avec les exécutants locaux",null,null,null,null,null,null,0,0,0]
[null,null,null,"○","Sont ventilées par âge",null,null,null,null,null,null,0,0,0]
[null,null,null,"○","Les cibles du Fonds mondial et du President’s Emergency Plan For AIDS Relief (PEPFAR) font référence aux estimations de taille et aux cibles nationales",null,null,null,null,null,null,0,0,0]
[null,null,"Modalités de mise en œuvre "]
[null,null,"Élément","Critères",null,"S/O","Absent","Présent mais non optimal","Présent et fonctionnel","Moyenne de l’élément","Commentaires (le cas échéant) "]
[null,null,"Gestion d’une plateforme d’accès ","Une plateforme d’accès favorise les efforts coordonnés de la communauté et des cliniques et : ",null,null,null,null,null,{"$f":"O107","v":"-"},null,null,null,null,{"$f":"IFERROR(ROUND(AVERAGEIF(L108:N111,\"<>0\",L108:N111),0),\"-\")","v":"-"}]
[null,null,null,"○","Établit la confiance au sein de la communauté par le biais des pairs-travailleurs de proximité ",null,null,null,null,null,null,0,0,0]
[null,null,null,"○","Atteint les HSH en grand nombre et encourage leur adhésion, leur rétention et leur participation active au programme",null,null,null,null,null,null,0,0,0]
[null,null,null,"○","Encourage l’adhésion et la rétention des HSH",null,null,null,null,null,null,0,0,0]
[null,null,null,"○","Encourage la participation active des HSH ",null,null,null,null,null,null,0,0,0]
[null,null,"Structure de gestion","Le processus de la structure de gestion a été défini et :  ",null,null,null,null,null,{"$f":"O112","v":"-"},null,null,null,null,{"$f":"IFERROR(ROUND(AVERAGEIF(L113:N121,\"<>0\",L113:N121),0),\"-\")","v":"-"}]
[null,null,null,"○","Des mandats précis sont en place pour définir les rôles et responsabilités de tous les postes, y compris le personnel au niveau de la communauté et des installations",null,null,null,null,null,null,0,0,0]
[null,null,null,"○","Ratio adéquat entre les pairs-travailleurs de proximité et les membres de la communauté",null,null,null,null,null,null,0,0,0]
[null,null,null,"○","Lignes directrices en place pour le recrutement, la rétention, l’évaluation et la promotion des pairs-travailleurs de proximité ",null,null,null,null,null,null,0,0,0]
[null,null,null,"○","Toutes les personnes travaillant sur le projet sont rémunérées ",null,null,null,null,null,null,0,0,0]
[null,null,null,"○","La supervision adéquate des pairs-travailleurs de proximité (PTP) est assurée par les superviseurs des pairs",null,null,null,null,null,null,0,0,0]
[null,null,null,"○","Définition d’une stratégie de promotion et d’un plan de progression de carrière pour les PTP et les professionnels de la communication sur le changement social et comportemental ",null,null,null,null,null,null,0,0,0]
[null,null,null,"○","Un mécanisme d’orientation formel est établi ",null,null,null,null,null,null,0,0,0]
[null,null,null,"○","Sites de destination équipés pour recevoir des services",null,null,null,null,null,null,0,0,0]
[null,null,null,"○","La microplanification est utilisée pour établir des priorités et gérer la mobilisation, notamment pour identifier les bénéficiaires les plus exposés",null,null,null,null,null,null,0,0,0]
[null,null,"Flux de données ","Les flux de données à chaque niveau ont été définis et :",null,null,null,null,null,{"$f":"O122","v":"-"},null,null,null,null,{"$f":"IFERROR(ROUND(AVERAGEIF(L123:N128,\"<>0\",L123:N128),0),\"-\")","v":"-"}]
[null,null,null,"○","Des systèmes de données ont été mis au point et testés ",null,null,null,null,null,null,0,0,0]
[null,null,null,"○","Les indicateurs standard pour le suivi du programme de PC sont finalisés",null,null,null,null,null,null,0,0,0]
[null,null,null,"○","Des outils de rapport standard ont été élaborés ",null,null,null,null,null,null,0,0,0]
[null,null,null,"○","Les données programmatiques sont déclarées et examinées mensuellement ",null,null,null,null,null,null,0,0,0]
[null,null,null,"○","Des systèmes sont en place pour préserver la confidentialité des données ",null,null,null,null,null,null,0,0,0]
[null,null,null,"○","Développement du système CIU ",null,null,null,null,null,null,{"$f":"IF(ISBLANK(G128),0,1)","v":0},0,{"$f":"IF(ISBLANK(I128),0,5)","v":0}]
[null,null,"Pairs-travailleurs de proximité (PTP) ","Les pairs-éducateurs de proximité sont employés efficacement dans le programme :\n",null,null,null,null,null,{"$f":"O129","v":"-"},null,null,null,null,{"$f":"IFERROR(ROUND(AVERAGEIF(L130:N137,\"<>0\",L130:N137),0),\"-\")","v":"-"}]
[null,null,null,"○","Les pairs-travailleurs de proximité sont issus de la communauté HSH qu’ils représentent ou servent",null,null,null,null,null,null,{"$f":"IF(ISBLANK(G130),0,1)","v":0},{"$f":"IF(ISBLANK(H130),0,3)","v":0},0]
[null,null,null,"○","Le programme de formation est disponible, approprié et comprend des formations cliniques pour mettre à jour les connaissances des PTP HSH sur les besoins spécifiques des HSH",null,null,null,null,null,null,0,0,0]
[null,null,null,"○","Un plan de formation à plusieurs niveaux est en place pour améliorer les compétences, la confiance et le leadership des pairs-travailleurs de proximité ",null,null,null,null,null,null,0,0,0]
[null,null,null,"○","Outils de sensibilisation à disposition pour la mobilisation communautaire afin de promouvoir l’accès aux services",null,null,null,null,null,null,0,0,0]
[null,null,null,"○","Les outils de microplanification sont utilisés pour informer la prestation de services en fonction des besoins de l’individu/site "]
[null,null,null,"○","Utilisent des messages et des supports de communication fondés sur des données probantes",null,null,null,null,null,null,0,0,0]
[null,null,null,"○","Fournissent des informations sur les services disponibles et orientent les bénéficiaires vers ces services ",null,null,null,null,null,null,0,0,0]
[null,null,null,"○","Prodiguent des conseils et un soutien émotionnel pour maintenir le traitement",null,null,null,null,null,null,0,0,0]
[null,null,"Engagement significatif des communautés affectées dans le leadership et la coordination","Organisation/Réseau dirigé par des HSH représentés dans un organisme de coordination national ou un groupe de travail technique pour les HSH et :\n\n",null,null,null,null,null,{"$f":"O138","v":"-"},null,null,null,null,{"$f":"IFERROR(ROUND(AVERAGEIF(L139:N142,\"<>0\",L139:N142),0),\"-\")","v":"-"}]
[null,null,null,"○","Se réunit régulièrement",null,null,null,null,null,null,0,0,0]
[null,null,null,"○","Ils participent activement aux processus décisionnels en tant que partenaires à pied d’égalité ",null,null,null,null,null,null,0,0,0]
[null,null,null,"○","Ils sont soutenus pour solliciter un retour d’information et rendre compte des décisions clés aux groupes qu’ils représentent",null,null,null,null,null,null,0,0,0]
[null,null,null,"○","Il est prouvé que le retour d’information, la contribution et les conseils d’experts fournis par l’organisation/réseau dirigé par les HSH sont pris en compte",null,null,null,null,null,null,0,0,0]
[null,null,"Prestation de services"]
[null,null,"Élément","Critères",null,"S/O","Absent","Présent mais non optimal","Présent et fonctionnel","Moyenne de l’élément","Commentaires (le cas échéant) "]
[null,null,"Services accessibles","Les services sont accessibles aux communautés de HSH et :",null,null,null,null,null,{"$f":"O145","v":"-"},null,null,null,null,{"$f":"IFERROR(ROUND(AVERAGEIF(L146:N152,\"<>0\",L146:N152),0),\"-\")","v":"-"}]
[null,null,null,"○","Sont conçus à l’appui de la recherche formative menée dans le cadre de l’évaluation des besoins ",null,null,null,null,null,null,0,0,0]
[null,null,null,"○","Sont idéalement situés à l’intérieur ou à proximité des zones sensibles",null,null,null,null,null,null,0,0,0]
[null,null,null,"○","Incluent des services mobiles si nécessaire ",null,null,null,null,null,null,0,0,0]
[null,null,null,"○","Les horaires d’ouverture sont adaptés aux HSH ciblés par les services ",null,null,null,null,null,null,0,0,0]
[null,null,null,"○","Sont intégrés au système de santé général et fournissent des paniers de soins complets ",null,null,null,null,null,null,0,0,0]
[null,null,null,"○","Bénéficient d’un approvisionnement régulier en services et en produits",null,null,null,null,null,null,0,0,0]
[null,null,null,"○","Impliquent un transfert de tâches pour accroître la capacité des prestataires de soins de santé",null,null,null,null,null,null,0,0,0]
[null,null,"Services acceptables","Les services sont acceptables par la communauté des HSH et :",null,null,null,null,null,{"$f":"O153","v":"-"},null,null,null,null,{"$f":"IFERROR(ROUND(AVERAGEIF(L154:N158,\"<>0\",L154:N158),0),\"-\")","v":"-"}]
[null,null,null,"○","Ils sont confidentiels et basés sur le volontariat ",null,null,null,null,null,null,0,0,0]
[null,null,null,"○","Les prestataires sont sensibles aux besoins des HSH, ne portent pas de jugement et ne stigmatisent pas",null,null,null,null,null,null,0,0,0]
[null,null,null,"○","Les prestataires sont formés pour être en mesure d’offrir un paquet complet d’interventions spécifiques aux HSH ",null,null,null,null,null,null,0,0,0]
[null,null,null,"○","Instaurent un environnement sûr et favorable ",null,null,null,null,null,null,0,0,0]
[null,null,null,"○","Les interventions en ligne sont menées de manière éthique et respectent la vie privée et la confidentialité des clients",null,null,null,null,null,null,0,0,0]
[null,null,"Services sur-mesure/appropriés","Paquet de services et méthodes de prestation adaptés aux besoins spécifiques des HSH dans toute leur diversité :",null,null,null,null,null,{"$f":"O159","v":"-"},null,null,null,null,{"$f":"IFERROR(ROUND(AVERAGEIF(L160:N165,\"<>0\",L160:N165),0),\"-\")","v":"-"}]
[null,null,null,"○","Le paquet de services destiné aux HSH comprend tous les services de santé sexuelle et reproductive pertinents, conformément aux directives de l’OMS ",null,null,null,null,null,null,0,0,0]
[null,null,null,"○","Large disponibilité de l’initiation communautaire au traitement antirétroviral pour les HSH vivant avec le VIH",null,null,null,null,null,null,0,0,0]
[null,null,null,"○","Les services sont fournis d’une manière accessible aux adolescents HSH (ex. : en abordant les questions d’âge de consentement)",null,null,null,null,null,null,0,0,0]
[null,null,null,"○","Services supplémentaires (ou liens vers ces services) mis à disposition en fonction des besoins spécifiques des HSH ",null,null,null,null,null,null,0,0,0]
[null,null,null,"○","Les services sont fournis d’une manière appropriée et respectent la confidentialité/vie privée des clients (ex. : pour les HSH non identifiés comme gays, ils sont fournis dans le cadre de la santé des hommes)",null,null,null,null,null,null,0,0,0]
[null,null,null,"○","Les services s’attaquent aux vulnérabilités croisées des adolescents et des jeunes impliqués dans la vente de services sexuels",null,null,null,null,null,null,0,0,0]
[null,null,"Interventions cliniques"]
[null,null,"Élément","Critères",null,"S/O","Absent","Présent mais non optimal","Présent et fonctionnel","Moyenne de l’élément","Commentaires (le cas échéant) "]
[null,null,"Préservatifs et lubrifiants ","Tous les HSH ont accès à des préservatifs, à des lubrifiants, à des démonstrations et à d’autres services de santé reproductive et :",null,null,null,null,null,{"$f":"O168","v":"-"},null,null,null,null,{"$f":"IFERROR(ROUND(AVERAGEIF(L169:N171,\"<>0\",L169:N171),0),\"-\")","v":"-"}]
[null,null,null,"○","Ils sont largement distribués en quantité suffisante",null,null,null,null,null,null,0,0,0]
[null,null,null,"○","Ils sont facilement accessibles dans les zones sensibles",null,null,null,null,null,null,0,0,0]
[null,null,null,"○","Des démonstrations sont régulièrement organisées par les PTP  ",null,null,null,null,null,null,0,0,0]
[null,null,"Services de dépistage du VIH","Des services de dépistage du VIH sont à la disposition des HSH et :\n",null,null,null,null,null,{"$f":"O172","v":"-"},null,null,null,null,{"$f":"IFERROR(ROUND(AVERAGEIF(L173:N184,\"<>0\",L173:N184),0),\"-\")","v":"-"}]
[null,null,null,"○","Les directives consolidées de l’OMS sur les services de dépistage du VIH sont mises en œuvre ",null,null,null,null,null,null,0,0,0]
[null,null,null,"○","Tous les tests sont volontaires et confidentiels (consentement éclairé obtenu)",null,null,null,null,null,null,0,0,0]
[null,null,null,"○","Des conseils sont prodigués avant et après le test de dépistage ",null,null,null,null,null,null,0,0,0]
[null,null,null,"○","Le traitement est proposé quel que soit le taux de CD4",null,null,null,null,null,null,0,0,0]
[null,null,null,"○","Les personnes séropositives sont orientées vers des réseaux de soins et de soutien après le diagnostic ",null,null,null,null,null,null,0,0,0]
[null,null,null,"○","L’accès aux services est distribué de manière équitable dans la communauté et pour tous les HSH",null,null,null,null,null,null,0,0,0]
[null,null,null,"○","Des interventions visant à garantir l’observance sont en place pour les HSH vivant avec le VIH",null,null,null,null,null,null,0,0,0]
[null,null,null,"○","Suivi régulier de l’assiduité aux soins chez les HSH vivant avec le VIH ",null,null,null,null,null,null,0,0,0]
[null,null,null,"○","Liens avec la prévention des comorbidités fournis",null,null,null,null,null,null,0,0,0]
[null,null,null,"○","Liens avec le traitement des comorbidités fournis",null,null,null,null,null,null,0,0,0]
[null,null,null,"○","Tests de charge virale disponibles et accessibles pour les HSH vivant avec le VIH",null,null,null,null,null,null,0,0,0]
[null,null,null,"○","Tests de CD4 disponibles et accessibles pour les HSH vivant avec le VIH",null,null,null,null,null,null,0,0,0]
[null,null,"Prophylaxie avant exposition","La PaE orale (TDF) est disponible pour les HSH présentant un risque important d’infection par le VIH ",null,null,null,null,null,{"$f":"O185","v":"-"},null,null,null,null,{"$f":"IFERROR(ROUND(AVERAGEIF(L186:N190,\"<>0\",L186:N190),0),\"-\")","v":"-"}]
[null,null,null,"○","L’approvisionnement en prophylaxie avant exposition est ininterrompu",null,null,null,null,null,null,0,0,0]
[null,null,null,"○","Des tests VIH sont effectués avant le début de la PaE pour s’assurer que la personne est négative ",null,null,null,null,null,null,0,0,0]
[null,null,null,"○","Proposée dans le cadre d’une approche globale de prévention combinée ",null,null,null,null,null,null,0,0,0]
[null,null,null,"○","Les approches combinées comprennent le soutien à l’observance, les nouveaux tests périodiques de dépistage du VIH et le conseil aux usagers de la prophylaxie avant exposition ",null,null,null,null,null,null,0,0,0]
[null,null,null,"○","La prophylaxie avant exposition est proposée sur la base d’une évaluation individuelle et non d’un groupe à risque afin de favoriser une couverture plus large ",null,null,null,null,null,null,0,0,0]
[null,null,"Prévention, dépistage et traitement des IST","Un dépistage et un test des IST sont à la disposition des HSH et :",null,null,null,null,null,{"$f":"O191","v":"-"},null,null,null,null,{"$f":"IFERROR(ROUND(AVERAGEIF(L192:N197,\"<>0\",L192:N197),0),\"-\")","v":"-"}]
[null,null,null,"○","Tous les tests sont volontaires et confidentiels ",null,null,null,null,null,null,{"$f":"IF(ISBLANK(G192),0,1)","v":0},{"$f":"IF(ISBLANK(H192),0,3)","v":0},{"$f":"IF(ISBLANK(I192),0,5)","v":0}]
[null,null,null,"○","Le traitement est administré immédiatement et l’approvisionnement est ininterrompu ",null,null,null,null,null,null,0,0,0]
[null,null,null,"○","L’accès aux services est distribué de manière équitable dans la communauté et pour tous les HSH",null,null,null,null,null,null,0,0,0]
[null,null,null,"○","Un dépistage et un traitement périodiques des cas asymptomatiques sont effectués",null,null,null,null,null,null,0,0,0]
[null,null,null,"○","Un traitement périodique de présomption pour les cas asymptomatiques dans les zones à forte prévalence (>15 % de prévalence de l’infection par N. gonorrhoea et/ou C. trachomatis) est effectué (en particulier chez les TS)",null,null,null,null,null,null,0,0,0]
[null,null,null,"○","En l’absence de tests de laboratoire, gestion syndromique des cas symptomatiques conformément aux directives nationales de gestion des IST",null,null,null,null,null,null,0,0,0]
[null,null," Services de santé sexuelle et reproductive ","Les services de santé reproductive sont accessibles par tous les SHS et :",null,null,null,null,null,{"$f":"O198","v":"-"},null,null,null,null,{"$f":"IFERROR(ROUND(AVERAGEIF(L199:N202,\"<>0\",L199:N202),0),\"-\")","v":"-"}]
[null,null,null,"○","Ils comprennent le dépistage du cancer ",null,null,null,null,null,null,0,0,0]
[null,null,null,"○","Ils sont largement distribués en quantité suffisante",null,null,null,null,null,null,0,0,0]
[null,null,null,"○","Ils sont facilement accessibles dans les zones sensibles",null,null,null,null,null,null,0,0,0]
[null,null,null,"○","Des ateliers de démonstration sont régulièrement programmés dans les zones sensibles",null,null,null,null,null,null,0,0,0]
[null,null,"Soins post-violence ","Toutes les personnes victimes d’une agression sexuelle ou exposées au VIH ont accès à une prophylaxie post-exposition (dans les 72 heures suivant l’exposition) et à des services de soutien et de conseil\n",null,null,null,null,null,{"$f":"O203","v":"-"},null,null,null,null,{"$f":"IFERROR(ROUND(AVERAGEIF(L204:N207,\"<>0\",L204:N207),0),\"-\")","v":"-"}]
[null,null,null,"○","Des services post-violence tels que le soutien et le conseil sont disponibles",null,null,null,null,null,null,0,0,0]
[null,null,null,"○","Des services post-violence tels que la prophylaxie post-exposition sont disponibles",null,null,null,null,null,null,0,0,0]
[null,null,null,"○","Des tests de dépistage des IST (syphilis, chlamydia, gonorrhée) sont pratiqués systématiquement en cas de violence sexuelle",null,null,null,null,null,null,0,0,0]
[null,null,null,"○","Mécanisme d’orientation vers des services complets de lutte contre la violence sexiste en cas de besoin",null,null,null,null,null,null,0,0,0]
[null,null,"Prévention, dépistage et traitement de la tuberculose","La prévention, le dépistage et le traitement de la tuberculose sont à la disposition des HSH et :\n",null,null,null,null,null,{"$f":"O208","v":"-"},null,null,null,null,{"$f":"IFERROR(ROUND(AVERAGEIF(L209:N217,\"<>0\",L209:N217),0),\"-\")","v":"-"}]
[null,null,null,"○","Prévention : thérapie préventive à l’isoniazide administrée aux personnes séropositives en conjonction avec un traitement antirétroviral, contrôle de l’infection par la tuberculose et recherche des contacts dans les lieux de rassemblement ",null,null,null,null,null,null,0,0,0]
[null,null,null,"○","Diagnostic : utilisation de Xpert MTB/RIF pour les premiers tests diagnostiques",null,null,null,null,null,null,0,0,0]
[null,null,null,"○","Tous les tests sont volontaires et confidentiels ",null,null,null,null,null,null,0,0,0]
[null,null,null,"○","Des interventions de soutien à l’observance pour s’assurer que le traitement antibiotique est terminé sont en place",null,null,null,null,null,null,0,0,0]
[null,null,null,"○","Le traitement est administré immédiatement et l’approvisionnement est ininterrompu",null,null,null,null,null,null,0,0,0]
[null,null,null,"○","L’accès aux services est distribué de manière équitable dans la communauté et pour tous les HSH",null,null,null,null,null,null,0,0,0]
[null,null,null,"○","Bons liens avec les soins pour les cas positifs ",null,null,null,null,null,null,0,0,0]
[null,null,null,"○","Des efforts sont faits pour traiter la tuberculose latente chez les HSH ",null,null,null,null,null,null,0,0,0]
[null,null,null,"○","Le traitement de la tuberculose n’est pas contre-indiqué par l’alcool, la consommation de drogues et les troubles mentaux",null,null,null,null,null,null,0,0,0]
[null,null,"Prévention, vaccination, dépistage et traitement des hépatites virales","La prévention, la vaccination, le dépistage et les traitements de l’hépatite B et C virale sont disponibles pour répondre aux besoins spécifiques des HSH et :\n",null,null,null,null,null,{"$f":"O218","v":"-"},null,null,null,null,{"$f":"IFERROR(ROUND(AVERAGEIF(L219:N223,\"<>0\",L219:N223),0),\"-\")","v":"-"}]
[null,null,null,"○","Tous les tests sont volontaires et confidentiels ",null,null,null,null,null,null,0,0,0]
[null,null,null,"○","Le traitement est administré immédiatement et l’approvisionnement est ininterrompu ",null,null,null,null,null,null,0,0,0]
[null,null,null,"○","L’accès aux services est distribué de manière équitable dans la communauté et pour tous les HSH",null,null,null,null,null,null,0,0,0]
[null,null,null,"○","Des campagnes de vaccination contre l’hépatite B et C sont menées de manière systématique ",null,null,null,null,null,null,0,0,0]
[null,null,null,"○","Des schémas de vaccination rapide et standard contre les hépatites B et C sont disponibles et facilement accessibles ",null,null,null,null,null,null,0,0,0]
[null,null,null,"○","Des ressources ont été allouées à la prévention, à la vaccination, au dépistage et au traitement des hépatites virales"]
[null,null,"Dépistage et traitement de la consommation de drogues et d’alcool","Le dépistage et le traitement de la consommation problématique d’alcool et de drogues sont systématiquement effectués dans les établissements de soins de santé, les zones sensibles locales et les cliniques mobiles ",null,null,null,null,null,{"$f":"O225","v":"-"},null,null,null,null,{"$f":"IFERROR(ROUND(AVERAGEIF(L226:N229,\"<>0\",L226:N229),0),\"-\")","v":"-"}]
[null,null,null,"○","Les pairs-travailleurs de proximité font le lien entre les personnes à risque et les services de dépistage et de traitement ",null,null,null,null,null,null,0,0,0]
[null,null,null,"○","Les personnes sont mises en relation avec des conseillers, des organisations et des groupes de soutien appropriés",null,null,null,null,null,null,0,0,0]
[null,null,null,"○","Le traitement est initié immédiatement si la personne y consent volontairement",null,null,null,null,null,null,0,0,0]
[null,null,null,"○","L’orientation vers d’autres services (santé mentale, soutien psychosocial) est assurée en temps utile",null,null,null,null,null,null,0,0,0]
[null,null,"Soins de santé mentale","Des soins de santé mentale sont accessibles et prodigués de manière cohérente aux HSH vivant avec le VIH et comprennent :",null,null,null,null,null,{"$f":"O230","v":"-"},null,null,null,null,{"$f":"IFERROR(ROUND(AVERAGEIF(L231:N232,\"<>0\",L231:N232),0),\"-\")","v":"-"}]
[null,null,null,"○","Dépistage systématique des troubles de la santé mentale (notamment la dépression et le stress psychosocial), conformément au programme d’action sur les lacunes en matière de santé mentale (PALSM)",null,null,null,null,null,null,0,0,0]
[null,null,null,"○","Conseils post-test VIH après un résultat positif pour dépister les risques de suicide, de dépression et d’autres problèmes de santé mentale ",null,null,null,null,null,null,0,0,0]
[null,null,"Circoncision masculine médicale volontaire (CMMV)","La circoncision médicale volontaire est proposée aux HSH des pays d’Afrique orientale et australe qui pratiquent la CMMV (s’ils ont des rapports sexuels vaginaux) :",null,null,null,null,null,{"$f":"O233","v":"-"},null,null,null,null,{"$f":"IFERROR(ROUND(AVERAGEIF(L234:N235,\"<>0\",L234:N235),0),\"-\")","v":"-"}]
[null,null,null,"○","La procédure est volontaire (un consentement éclairé a été obtenu) et confidentielle",null,null,null,null,null,null,0,0,0]
[null,null,null,"○","La procédure est menée par des professionnels de santé bien formés dans des locaux correctement équipés",null,null,null,null,null,null,0,0,0]
[null,null,"COVID-19 ","Prestation de services différenciés centrés sur les personnes pour les programmes HSH pendant le COVID-19 \n",null,null,null,null,null,{"$f":"O236","v":"-"},null,null,null,null,{"$f":"IFERROR(ROUND(AVERAGEIF(L237:N238,\"<>0\",L237:N238),0),\"-\")","v":"-"}]
[null,null,null,"○","Des programmes sont en place pour encourager et suivre l’utilisation du vaccin COVID-19 chez les HSH ",null,null,null,null,null,null,0,0,0]
[null,null,null,"○","Maintien de la messagerie et de l’accès sécurisé aux modèles de prestation de services hors établissement (ex. : communautaires, à domicile, de télésanté) pendant les pics de COVID-19 afin d’éviter toute interruption de service",null,null,null,null,null,null,0,0,0]
[null,null,"Interventions comportementales"]
[null,null,"Élément","Critères",null,"S/O","Absent","Présent mais non optimal","Présent et fonctionnel","Moyenne de l’élément","Commentaires (le cas échéant) "]
[null,null,"Communication sur le changement social et comportemental (CCSC)","Les activités de communication sur le changement social et comportemental sont incluses dans le programme pour la population clé HSH. Elles sont :",null,null,null,null,null,{"$f":"O241","v":"-"},null,null,null,null,{"$f":"IFERROR(ROUND(AVERAGEIF(L242:N246,\"<>0\",L242:N246),0),\"-\")","v":"-"}]
[null,null,null,"○","Bien planifiées et dûment budgétisées",null,null,null,null,null,null,0,0,0]
[null,null,null,"○","Fondées sur des données probantes ",null,null,null,null,null,null,0,0,0]
[null,null,null,"○","Les membres HSH ont été impliqués dans la conception et l’essai des interventions",null,null,null,null,null,null,0,0,0]
[null,null,null,"○","Les organisations et les personnes qui mettent en œuvre ces interventions sont expérimentées et formées aux interventions de CCSC",null,null,null,null,null,null,0,0,0]
[null,null,null,"○","Des interventions de communication sur le changement social et comportemental sont incluses dans les plans et activités de suivi et d’évaluation",null,null,null,null,null,null,0,0,0]
[null,null,"Interventions structurelles"]
[null,null,"Élément","Critères",null,"S/O","Absent","Présent mais non optimal","Présent et fonctionnel","Moyenne de l’élément","Commentaires (le cas échéant) "]
[null,null,"Prévention et réponse à la violence","Des programmes visant à lutter contre la violence à l’égard des HSH sont mis en œuvre de manière cohérente et comprennent :",null,null,null,null,null,{"$f":"O249","v":"-"},null,null,null,null,{"$f":"IFERROR(ROUND(AVERAGEIF(L250:N256,\"<>0\",L250:N256),0),\"-\")","v":"-"}]
[null,null,null,"○","Informations sur la sécurité",null,null,null,null,null,null,0,0,0]
[null,null,null,"○","Espaces sécurisés / Centres d’accueil",null,null,null,null,null,null,0,0,0]
[null,null,null,"○","Sécurité renforcée sur le lieu de travail",null,null,null,null,null,null,0,0,0]
[null,null,null,"○","Mécanismes standardisés de surveillance et de signalement des expériences de violence qui outrepassent les pouvoirs de la police et peuvent inclure un soutien parajuridique de la part des organisations de HSH",null,null,null,null,null,null,0,0,0]
[null,null,null,"○","Formation complète de la police et des travailleurs sociaux pour qu’ils soient sensibles aux besoins des HSH ",null,null,null,null,null,null,0,0,0]
[null,null,null,"○","Plans de réponse à la violence élaborés par la communauté",null,null,null,null,null,null,0,0,0]
[null,null,null,"○","Liens établis avec l’assistance juridique",null,null,null,null,null,null,{"$f":"IF(ISBLANK(G256),0,1)","v":0},{"$f":"IF(ISBLANK(H256),0,3)","v":0},{"$f":"IF(ISBLANK(I256),0,5)","v":0}]
[null,null,"Réduction de la stigmatisation et de la discrimination ","Efforts visant à réduire la stigmatisation et la discrimination à l’égard des HSH, y compris : ",null,null,null,null,null,{"$f":"O257","v":"-"},null,null,null,null,{"$f":"IFERROR(ROUND(AVERAGEIF(L258:N264,\"<>0\",L258:N264),0),\"-\")","v":"-"}]
[null,null,null,"○","Promotion de politiques antidiscriminatoires et protectrices pour tous les HSH",null,null,null,null,null,null,0,0,0]
[null,null,null,"○","Programmes, au sein et hors du secteur de la santé, qui instituent des politiques et des codes de conduite contre la stigmatisation et la discrimination",null,null,null,null,null,null,0,0,0]
[null,null,null,"○","Le suivi et la surveillance sont effectués régulièrement pour garantir que les normes sont mises en œuvre et maintenues",null,null,null,null,null,null,0,0,0]
[null,null,null,"○","Des campagnes permanentes de réduction de la stigmatisation sont menées",null,null,null,null,null,null,0,0,0]
[null,null,null,"○","Sensibilisation, éducation et engagement continus des chefs religieux et des anciens, des agents chargés de l’application de la loi et des travailleurs de santé ",null,null,null,null,null,null,0,0,0]
[null,null,null,"○","Des mécanismes efficaces sont mis à disposition pour permettre la dénonciation anonyme d’incidents de stigmatisation et/ou de discrimination lors de l’accès aux soins de santé  ",null,null,null,null,null,null,0,0,0]
[null,null,null,"○","Un soutien et un suivi sont dispensés aux HSH qui signalent des incidents de stigmatisation et/ou de discrimination",null,null,null,null,null,null,0,0,0]
[null,null,"Services juridiques liés au VIH ","Des services juridiques liés au VIH sont en place pour répondre aux besoins des populations de HSH et  ",null,null,null,null,null,{"$f":"O265","v":"-"},null,null,null,null,{"$f":"IFERROR(ROUND(AVERAGEIF(L266:N268,\"<>0\",L266:N268),0),\"-\")","v":"-"}]
[null,null,null,"○","Il existe des formes alternatives de résolution des conflits",null,null,null,null,null,null,0,0,0]
[null,null,null,"○","L’accès à l’information et à l’orientation juridiques est facilement disponible",null,null,null,null,null,null,0,0,0]
[null,null,null,"○","L’accès aux conseils et à la représentation juridiques est facilement disponible",null,null,null,null,null,null,0,0,0]
[null,null,"Contrôle de l’application de la loi","La mise en œuvre des politiques, des règlements et des lois fait l’objet d’un suivi régulier afin d’évaluer l’impact sur les HSH",null,null,null,null,null,{"$f":"O269","v":"-"},null,0,0,0,{"$f":"IFERROR(ROUND(AVERAGEIF(L269:N269,\"<>0\",L269:N269),0),\"-\")","v":"-"}]
[null,null,"Connaissances juridiques","Une formation juridique complète est dispensée aux HSH  ",null,null,null,null,null,{"$f":"O270","v":"-"},null,null,null,null,{"$f":"IFERROR(ROUND(AVERAGEIF(L271:N272,\"<>0\",L271:N272),0),\"-\")","v":"-"}]
[null,null,null,"○","Des stratégies efficaces pour s’engager avec la police ont été décrites et communiquées aux HSH ",null,null,null,null,null,null,0,0,0]
[null,null,null,"○","Les HSH connaissent leurs lois et leurs droits et sont capables de défendre leurs besoins dans le contexte du VIH autour de leurs lois et de leurs droits",null,null,null,null,null,null,0,0,0]
[null,null,"Sensibilisation des législateurs et des agents chargés de l’application de la loi ","Une formation approfondie des législateurs et des agents chargés de l’application de la loi a lieu régulièrement afin de garantir une sensibilisation appropriée de tous les législateurs et agents chargés de l’application de la loi à l’ensemble du programme HSH et comprend : \n",null,null,null,null,null,{"$f":"O273","v":"-"},null,null,null,null,{"$f":"IFERROR(ROUND(AVERAGEIF(L274:N277,\"<>0\",L274:N277),0),\"-\")","v":"-"}]
[null,null,null,"○","Programme complet de formation à la sensibilisation, adapté au contexte du pays",null,null,null,null,null,null,0,0,0]
[null,null,null,"○","Animateurs dûment formés",null,null,null,null,null,null,0,0,0]
[null,null,null,"○","Participation des HSH ",null,null,null,null,null,null,0,0,0]
[null,null,null,"○","Retour d’information des participants",null,null,null,null,null,null,0,0,0]
[null,null,"Formation pour les prestataires de soins de santé sur les droits humains et l’éthique médicale liés au VIH ","Programme complet de formation à la sensibilisation, adapté au contexte du pays",null,null,null,null,null,{"$f":"O278","v":"-"},null,null,null,null,{"$f":"IFERROR(ROUND(AVERAGEIF(L279:N281,\"<>0\",L279:N281),0),\"-\")","v":"-"}]
[null,null,null,"○","Animateurs dûment formés",null,null,null,null,null,null,0,0,0]
[null,null,null,"○","Participation des HSH",null,null,null,null,null,null,0,0,0]
[null,null,null,"○","Retour d’information des participants",null,null,null,null,null,null,0,0,0]
[null,null,"Espaces sécurisés / Centres d’accueil","Des espaces sécurisés/centres d’accueil ont été créés pour la communauté HSH et :",null,null,null,null,null,{"$f":"O282","v":"-"},null,null,null,null,{"$f":"IFERROR(ROUND(AVERAGEIF(L283:N291,\"<>0\",L283:N291),0),\"-\")","v":"-"}]
[null,null,null,"○","Servent de lieu principal d’interaction entre la communauté et le programme",null,null,null,null,null,null,0,0,0]
[null,null,null,"○","Fournissent une plateforme pour les initiatives de mobilisation, de formation et d’organisation des communautés",null,null,null,null,null,null,0,0,0]
[null,null,null,"○","Partage d’informations sur les événements, les activités et les services pertinents pour la communauté",null,null,null,null,null,null,0,0,0]
[null,null,null,"○","Des supports d’information, d’éducation et de communication conviviaux sont accessibles",null,null,null,null,null,null,0,0,0]
[null,null,null,"○","Fournissent des services et un soutien psychosociaux ",null,null,null,null,null,null,0,0,0]
[null,null,null,"○","Des préservatifs et des lubrifiants sont à disposition",null,null,null,null,null,null,0,0,0]
[null,null,null,"○","Sont utilisés par les pairs-travailleurs de proximité pour évaluer leur travail et planifier les activités de sensibilisation",null,null,null,null,null,null,0,0,0]
[null,null,null,"○","Sont établis en concertation avec les HSH pour déterminer l’emplacement, les heures d’ouverture et les services fournis",null,null,null,null,null,null,0,0,0]
[null,null,null,"○","Sont mis à disposition ou fournissent des liens vers des interventions pertinentes hors du secteur de la santé",null,null,null,null,null,null,0,0,0]
[null,null,"Comités communautaires","Des comités communautaires de HSH ont été constitués et :",null,null,null,null,null,{"$f":"O292","v":"-"},null,null,null,null,{"$f":"IFERROR(ROUND(AVERAGEIF(L293:N302,\"<>0\",L293:N302),0),\"-\")","v":"-"}]
[null,null,null,"○","Peuvent être librement et facilement mis sur pied",null,null,null,null,null,null,0,0,0]
[null,null,null,"○","Organisent des réunions régulières (au moins mensuelles) et dressent des procès-verbaux pour consigner systématiquement les discussions ",null,null,null,null,null,null,0,0,0]
[null,null,null,"○","Examinent la prestation de services, résolvent les problèmes, suivent les changements, favorisent la compréhension et la responsabilité et traitent des questions générales de la communauté",null,null,null,null,null,null,0,0,0]
[null,null,null,"○","Élisent chaque année des membres de la communauté HSH ",null,null,null,null,null,null,0,0,0]
[null,null,null,"○","Élisent un défenseur de la communauté HSH pour faire fonction d’intermédiaire du programme ",null,null,null,null,null,null,0,0,0]
[null,null,null,"○","Invitent le personnel concerné de l’organisation chargée de la mise en œuvre à devenir membre du comité ou à assister aux réunions",null,null,null,null,null,null,0,0,0]
[null,null,null,"○","Transmettent un retour d’information régulier au programme afin d’améliorer la qualité des services offerts",null,null,null,null,null,null,0,0,0]
[null,null,null,"○","Respectent la confidentialité ",null,null,null,null,null,null,0,0,0]
[null,null,null,null,"N’autorisent pas le personnel de l’organisme de mise en œuvre à voter lors des réunions",null,null,null,null,null,null,0,0,0]
[null,null,null,"○","Incluent des jeunes PC et renforcent leurs capacités ",null,null,null,null,null,null,0,0,0]
[null,null,"Suivi du programme"]
[null,null,"Élément","Critères",null,"S/O","Absent","Présent mais non optimal","Présent et fonctionnel","Moyenne de l’élément","Commentaires (le cas échéant) "]
[null,null,"Suivi de routine","Des indicateurs de routine du programme sont définis et déclarés ",null,null,null,null,null,{"$f":"O305","v":"-"},null,null,null,null,{"$f":"IFERROR(ROUND(AVERAGEIF(L306:N312,\"<>0\",L306:N312),0),\"-\")","v":"-"}]
[null,null,null,"○"," Régulièrement (chaque mois/trimestre)",null,null,null,null,null,null,0,0,0]
[null,null,null,"○","De façon exhaustive (les données sont cohérentes et il ne manque aucune information)",null,null,null,null,null,null,0,0,0]
[null,null,null,"○","À tous les niveaux (c’est-à-dire État/comté/province)",null,null,null,null,null,null,0,0,0]
[null,null,null,"○"," Par tous les partenaires de mise en œuvre",null,null,null,null,null,null,0,0,0]
[null,null,null,"○","Par le biais de la plateforme LISD/EMR",null,null,null,null,null,null,0,0,0]
[null,null,null,"○","Le suivi des données individuelles est effectué par les partenaires de mise en œuvre ",null,null,null,null,null,null,0,0,0]
[null,null,null,"○","Les données sont régulièrement examinées par toutes les parties prenantes (gouvernement, société civile, communauté HSH, partenaires de mise en œuvre, donateurs) et utilisées pour améliorer les programmes ",null,null,null,null,null,null,0,0,0]
[null,null,"Suivi communautaire dans le cadre de l’obligation de rendre compte","Intégration du suivi communautaire dans les plateformes de suivi nationales et :",null,null,null,null,null,{"$f":"O313","v":"-"},null,null,null,null,{"$f":"IFERROR(ROUND(AVERAGEIF(L314:N320,\"<>0\",L314:N320),0),\"-\")","v":"-"}]
[null,null,null,"○","Le suivi communautaire est accepté et intégré aux processus décisionnels et aux négociations avec les autorités locales, les bailleurs de fonds et autres soutiens extérieurs ",null,null,null,null,null,null,{"$f":"IF(ISBLANK(G314),0,1)","v":0},{"$f":"IF(ISBLANK(H314),0,3)","v":0},{"$f":"IF(ISBLANK(I314),0,5)","v":0}]
[null,null,null,"○","Fait fonction de mécanisme communautaire de surveillance et de responsabilisation",null,null,null,null,null,null,{"$f":"IF(ISBLANK(G315),0,1)","v":0},{"$f":"IF(ISBLANK(H315),0,3)","v":0},{"$f":"IF(ISBLANK(I315),0,5)","v":0}]
[null,null,null,"○","Des pairs-contrôleurs formés collectent et analysent de manière systématique et régulière des données qualitatives et quantitatives sur la prestation de services liés au VIH",null,null,null,null,null,null,{"$f":"IF(ISBLANK(G316),0,1)","v":0},{"$f":"IF(ISBLANK(H316),0,3)","v":0},{"$f":"IF(ISBLANK(I316),0,5)","v":0}]
[null,null,null,"○","Des équipes de suivi dirigées par la communauté sont en place pour répondre aux déficits de prestation de services VIH au sein des communautés",null,null,null,null,null,null,{"$f":"IF(ISBLANK(G317),0,1)","v":0},{"$f":"IF(ISBLANK(H317),0,3)","v":0},{"$f":"IF(ISBLANK(I317),0,5)","v":0}]
[null,null,null,"○","Il y a collaboration entre les différents réseaux de personnes vivant avec le VIH (PVVIH) et les organisations communautaires des communautés touchées",null,null,null,null,null,null,{"$f":"IF(ISBLANK(G318),0,1)","v":0},{"$f":"IF(ISBLANK(H318),0,3)","v":0},{"$f":"IF(ISBLANK(I318),0,5)","v":0}]
[null,null,null,"○","Les collecteurs de données et les autres membres de la communauté impliqués dans le suivi communautaire sont rémunérés conformément aux pratiques et normes nationales",null,null,null,null,null,null,{"$f":"IF(ISBLANK(G319),0,1)","v":0},{"$f":"IF(ISBLANK(H319),0,3)","v":0},{"$f":"IF(ISBLANK(I319),0,5)","v":0}]
[null,null,null,"○","Les communautés de HSH sont formées et soutenues pour évaluer les établissements de santé et organiser des audiences publiques afin de demander des comptes aux responsables ",null,null,null,null,null,null,0,0,0]
[null,null,"Suivi du système d’orientation vers d’autres services","Des systèmes de suivi des orientations sont en place et incluent :",null,null,null,null,null,{"$f":"O321","v":"-"},null,null,null,null,{"$f":"IFERROR(ROUND(AVERAGEIF(L322:N326,\"<>0\",L322:N326),0),\"-\")","v":"-"}]
[null,null,null,"○","Un outil d’orientation largement disponible, comprenant des procédures opérationnelles permanentes (POP) claires",null,null,null,null,null,null,0,0,0]
[null,null,null,"○","Un répertoire d’orientation dans l’établissement et dans les organisations de pairs ",null,null,null,null,null,null,0,0,0]
[null,null,null,"○","Enregistrement des résultats ",null,null,null,null,null,null,0,0,0]
[null,null,null,"○","Mécanismes de retour d’information entre les patients et les prestataires (qui orientent) ",null,null,null,null,null,null,0,0,0]
[null,null,null,"○","Rapport sur les orientations (sur une base mensuelle) pour contrôler l’efficacité du système d’orientation",null,null,null,null,null,null,0,0,0]
[null,null,"Évaluation de la qualité","Des systèmes de collecte de données sur la qualité des programmes et des indicateurs connexes ont été définis et :\n",null,null,null,null,null,{"$f":"O327","v":"-"},null,null,null,null,{"$f":"IFERROR(ROUND(AVERAGEIF(L328:N331,\"<>0\",L328:N331),0),\"-\")","v":"-"}]
[null,null,null,"○","Des données précises sont collectées",null,null,null,null,null,null,0,0,0]
[null,null,null,"○","Les données sont exploitées ",null,null,null,null,null,null,{"$f":"IF(ISBLANK(G329),0,1)","v":0},{"$f":"IF(ISBLANK(H329),0,3)","v":0},{"$f":"IF(ISBLANK(I329),0,5)","v":0}]
[null,null,null,"○","Des mécanismes de retour d’information permettent aux HSH d’évaluer les services qu’ils ont reçus de manière à contrôler la qualité du programme",null,null,null,null,null,null,0,0,0]
[null,null,null,"○","Les données sont régulièrement vérifiées ",null,null,null,null,null,null,0,0,0]
[null,null,"Surveillance ","La surveillance autorise une description précise du contexte et des résultats/impacts du programme HSH. Surveillance : \n",null,null,null,null,null,{"$f":"O332","v":"-"},null,null,null,null,{"$f":"IFERROR(ROUND(AVERAGEIF(L333:N336,\"<>0\",L333:N336),0),\"-\")","v":"-"}]
[null,null,null,"○","Des résultats d’études sont utilisés pour éclairer la prise de décision et la correction des trajectoires ",null,null,null,null,null,null,0,0,0]
[null,null,null,"○","Implique l’analyse et l’interprétation des données à intervalles réguliers ",null,null,null,null,null,null,0,0,0]
[null,null,null,"○","Implique la diffusion régulière d’informations pour répondre aux besoins locaux, provinciaux et nationaux ",null,null,null,null,null,null,0,0,0]
[null,null,null,"○","Inclut des enquêtes biologiques et comportementales, des enquêtes sentinelles et d’autres études de recherche portant sur des indicateurs afférents aux HSH  ",null,null,null,null,null,null,0,0,0]
[null,null,"Données pour la prise de décision","Le Programme national, l’unité de suivi et d’évaluation du ministère de la Santé ou un organisme de coordination similaire supervise/coordonne la collecte et le traitement des données de suivi, d’enquête et de surveillance et :",null,null,null,null,null,{"$f":"O337","v":"-"},null,null,null,null,{"$f":"IFERROR(ROUND(AVERAGEIF(L338:N345,\"<>0\",L338:N345),0),\"-\")","v":"-"}]
[null,null,null,"○","Partage des données avec le groupe de travail technique HSH ",null,null,null,null,null,null,0,0,0]
[null,null,null,"○","Le groupe de travail technique HSH analyse chaque trimestre les données du programme existant et identifie les domaines nécessitant une correction de trajectoire",null,null,null,null,null,null,0,0,0]
[null,null,null,"○","Le groupe de travail technique HSH contribue à l’élaboration de stratégies visant à combler les lacunes ",null,null,null,null,null,null,0,0,0]
[null,null,null,"○","Des données de bonne qualité (valides, fiables, cohérentes, précises, opportunes, pertinentes) sont collectées et la plupart des besoins d’information sont satisfaits et, s’ils ne le sont pas, les lacunes sont comprises ",null,null,null,null,null,null,0,0,0]
[null,null,null,"○","Les données sont utilisées de manière cohérente et appropriée pour éclairer les décisions ",null,null,null,null,null,null,0,0,0]
[null,null,null,"○","Les données ont été dédupliquées entre les partenaires de mise en œuvre et les doublons sont minimes, voire inexistants",null,null,null,null,null,null,0,0,0]
[null,null,null,"○","Les données sont agrégées au niveau central mais peuvent être désagrégées par localité, sexe et âge",null,null,null,null,null,null,0,0,0]
[null,null,null,"○","Le programme fournit des données au groupe de travail technique pour examen",null,null,null,null,null,null,0,0,0]
[null,null,"Utilisation de Codes d’identification uniques pour le suivi des programmes","Le système utilisé pour le suivi du programme est pleinement opérationnel et adéquat pour suivre la performance du programme",null,null,null,null,null,{"$f":"O346","v":"-"},null,null,null,null,{"$f":"IFERROR(ROUND(AVERAGEIF(L347:N350,\"<>0\",L347:N350),0),\"-\")","v":"-"}]
[null,null,null,"○","Plusieurs codes d’identification uniques peuvent être utilisés dans un pays donné, mais ils sont harmonisés",null,null,null,null,null,null,0,0,0]
[null,null,null,"○","Le programme national utilise des données agrégées de code d’identification unique",null,null,null,null,null,null,0,0,0]
[null,null,null,"○","Le code d’identification unique est capable de distinguer le contact et la portée, à des fins de déduplication ",null,null,null,null,null,null,0,0,0]
[null,null,null,"○","Le code d’identification unique est électronique",null,null,null,null,null,null,0,0,0]
[null,null,"Suivi budgétaire","Le suivi des performances financières et non financières du programme HSH est intégré et des rapports de routine sont générés : ",null,null,null,null,null,{"$f":"O351","v":"-"},null,null,null,null,{"$f":"IFERROR(ROUND(AVERAGEIF(L352:N354,\"<>0\",L352:N354),0),\"-\")","v":"-"}]
[null,null,null,"○","Les données sur les dépenses relatives aux interventions en faveur des HSH sont facilement accessibles ",null,null,null,null,null,null,0,0,0]
[null,null,null,"○","Des mécanismes de reddition de comptes sur les dépenses insuffisantes et excédentaires sont en place ",null,null,null,null,null,null,0,0,0]
[null,null,null,"○","Des données financières et non financières sont utilisées pour évaluer le rapport qualité-prix",null,null,null,null,null,null,0,0,0]
[null,null,"Résultats de programme"]
[null,null,"Résultats et indicateurs"]
[null,null,"Élément","Critères",null,"S/O","Non surveillé ","Objectif non atteint ou non conforme aux prévisions ","Objectif atteint ou en passe de l’être ","Moyenne de l’élément","Commentaires (le cas échéant) "]
[null,null,"Estimations de la taille de la population de HSH disponibles",null,null,null,null,null,null,{"$f":"O358","v":"-"},null,0,0,0,{"$f":"IFERROR(ROUND(AVERAGEIF(L358:N358,\"<>0\",L358:N358),0),\"-\")","v":"-"}]
[null,null,"La stratégie de prévention comprend des éléments essentiels du paquet de prévention HSH ",null,null,null,null,null,null,{"$f":"O359","v":"-"},null,0,0,0,{"$f":"IFERROR(ROUND(AVERAGEIF(L359:N359,\"<>0\",L359:N359),0),\"-\")","v":"-"}]
[null,null,"HSH vivant avec le VIH qui connaissent leur statut VIH (cible 90 %)",null,null,null,null,null,null,"-",null,0,0,0,"-"]
[null,null,"HSH vivant avec le VIH sous traitement antirétroviral (cible 90 %)",null,null,null,null,null,null,"-",null,0,0,0,"-"]
[null,null,"HSH ayant reçu au moins 2 interventions de prévention du VIH au cours des 3 derniers mois",null,null,null,null,null,null,"-",null,0,0,0,"-"]
[null,null,"HSH vivant avec le VIH qui ont supprimé leur charge virale (cible 90 %)",null,null,null,null,null,null,"-",null,0,0,0,"-"]
[null,null," Pourcentage de HSH ayant évité les soins de santé pour raison de stigmatisation et de discrimination",null,null,null,null,null,null,"-",null,0,0,0,"-"]
[null,null,"Criminalisation des actes sexuels entre personnes de même sexe",null,null,null,null,null,null,"-",null,0,0,0,"-"]
[null,null,"Utilisation du préservatif lors du dernier rapport anal chez les HSH (cible 80%)",null,null,null,null,null,null,"-",null,0,0,0,"-"]
[null,null,null,null,null,null,null,null,null,null,null,null,{"$f":"COUNTIF(O6:O366,\"-\")","v":67}]
[null,null,null,null,null,null,null,null,null,null,null,null,{"$f":"COUNTIF(O6:O366,\">0\")","v":0}]
[null,null,null,null,null,null,null,null,null,null,null,"Achèvement de la feuille",{"$f":"M368/(M367+M368)","v":0},{"$f":"1-M369","v":1}]

{"sheet":"Personnes transgenres","index":6,"n_rows":371,"n_cols":16,"rows_kept":371,"cut":false,"hidden":false,"merged":[[358,2,358,4],[359,2,359,4],[363,2,363,4],[366,2,366,4],[364,2,364,4],[367,2,367,4],[361,2,361,4],[360,2,360,4],[357,2,357,4],[362,2,362,4],[365,2,365,4],[352,10,354,10],[356,3,356,4],[348,2,351,2],[348,3,348,4],[348,9,351,9],[310,3,310,4],[310,9,317,9],[334,2,342,2],[334,3,334,4],[334,9,342,9],[343,2,347,2],[343,3,343,4],[343,9,347,9],[310,2,317,2],[324,9,328,9],[329,2,333,2],[329,3,329,4],[329,9,333,9],[318,2,323,2],[318,3,318,4],[318,9,323,9],[324,2,328,2],[289,9,299,9],[301,3,301,4],[302,2,309,2],[302,3,302,4],[302,9,309,9],[324,3,324,4],[289,2,299,2],[289,3,289,4],[271,2,278,2],[271,3,271,4],[271,9,278,9],[279,2,288,2],[279,3,279,4],[279,9,288,9],[262,9,266,9],[267,2,270,2],[267,3,267,4],[267,9,270,9],[262,2,266,2],[262,3,262,4],[254,2,257,2],[254,3,254,4],[254,9,257,9],[258,3,258,4],[259,2,261,2],[259,3,259,4],[259,9,261,9],[238,9,245,9],[246,2,253,2],[246,3,246,4],[246,9,253,9],[225,3,225,4],[229,3,229,4],[230,2,235,2],[230,3,230,4],[230,9,235,9],[237,3,237,4],[238,2,245,2],[238,3,238,4],[209,9,215,9],[222,2,224,2],[222,3,222,4],[222,9,224,9],[225,9,227,9],[216,2,221,2],[216,3,216,5],[225,2,227,2],[216,9,221,9],[209,2,215,2],[209,3,209,4],[193,9,198,9],[199,2,208,2],[199,3,199,4],[199,9,208,9],[183,2,188,2],[183,3,183,4],[183,9,188,9],[189,2,192,2],[189,3,189,4],[189,9,192,9],[193,2,198,2],[193,3,193,4],[168,9,171,9],[172,2,182,2],[172,3,172,4],[172,9,182,9],[153,2,158,2],[153,3,153,4],[153,9,158,9],[159,2,165,2],[159,3,159,4],[159,9,165,9],[167,3,167,4],[168,2,171,2],[168,3,168,4],[138,3,138,4],[138,9,142,9],[144,3,144,4],[145,2,152,2],[145,3,145,4],[145,9,152,9],[122,2,128,2],[122,3,122,4],[122,9,128,9],[129,2,137,2],[129,3,129,4],[129,9,137,9],[138,2,142,2],[106,3,106,4],[107,2,111,2],[107,3,107,4],[107,9,111,9],[112,2,121,2],[112,3,112,4],[112,9,121,9],[92,2,95,2],[92,3,92,4],[92,9,95,9],[96,2,104,2],[96,3,96,4],[96,9,104,9],[76,3,76,4],[77,2,84,2],[77,3,77,4],[77,9,84,9],[85,2,91,2],[85,3,85,4],[85,9,91,9],[68,2,69,2],[68,9,69,9],[68,4,69,4],[68,3,69,3],[68,5,69,5],[68,6,69,6],[68,7,69,7],[68,8,69,8],[70,2,73,2],[70,9,73,9],[62,2,65,2],[62,3,62,4],[62,9,65,9],[53,2,57,2],[53,3,53,4],[53,9,57,9],[59,3,59,4],[60,2,61,2],[60,3,60,4],[60,9,61,9],[42,2,46,2],[42,3,42,4],[42,9,46,9],[48,3,48,4],[49,2,52,2],[49,3,49,4],[49,9,52,9],[22,9,27,9],[28,2,34,2],[28,3,28,4],[28,9,34,9],[35,2,41,2],[35,3,35,4],[35,9,41,9],[4,3,4,4],[5,2,15,2],[5,3,5,4],[5,9,15,9],[16,2,21,2],[16,3,16,4],[1,2,1,9],[16,9,21,9],[22,2,27,2],[22,3,22,4],[66,10,67,10],[68,10,69,10],[66,9,67,9],[66,2,67,2],[66,8,67,8],[66,7,67,7],[66,6,67,6],[66,5,67,5],[66,4,67,4],[66,3,67,3]]}
[]
[null,null,"Gestion de programme"]
[]
[null,null,"Leadership et coordination"]
[null,null,"Élément","Critères",null,"S/O","Absent","Présent mais non optimal","Présent et fonctionnel","Moyenne de l’élément","Commentaires (le cas échéant)","Absent","Present","Optimal","Average","Sustainability Single Figure"]
[null,null,"Stratégie nationale pour les populations clés","Les personnes transgenres sont incluses dans la stratégie nationale pour les populations clés et dans la stratégie nationale globale de prévention du VIH :",null,null,null,null,null,{"$f":"O6","v":"-"},null,null,null,null,{"$f":"IFERROR(ROUND(AVERAGEIF(L7:N16,\"<>0\",L7:N16),0),\"-\")","v":"-"}]
[null,null,null,"○","Les personnes transgenres ont été impliquées dans l’élaboration du plan stratégique ",null,null,null,null,null,null,{"$f":"IF(ISBLANK(G7),0,1)","v":0},{"$f":"IF(ISBLANK(H7),0,3)","v":0},{"$f":"IF(ISBLANK(I7),0,5)","v":0}]
[null,null,null,"○","Les buts et les objectifs ont été clairement définis pour le programme des personnes transgenres  ",null,null,null,null,null,null,{"$f":"IF(ISBLANK(G8),0,1)","v":0},0,0]
[null,null,null,"○","La communauté transgenre a été clairement définie selon l’Organisation mondiale de la Santé (OMS)",null,null,null,null,null,null,0,0,0]
[null,null,null,"○","Le plan reconnaît les vulnérabilités spécifiques des personnes transgenres en raison de leur sexe et de leur âge",null,null,null,null,null,null,0,0,0]
[null,null,null,"○","Un modèle logique clair ou une théorie du changement claire a été formulé(e)  ",null,null,null,null,null,null,0,0,0]
[null,null,null,"○","Le plan comprend un ensemble complet d’interventions et d’activités fondées sur des données probantes, alignées sur les outils de mise en œuvre propres aux personnes transgenres, y compris des interventions ne relevant pas du secteur de la santé (ex. : autonomisation de la communauté, lutte contre la violence, réduction de la stigmatisation, etc.) et adaptées aux vulnérabilités spécifiques",null,null,null,null,null,null,0,0,0]
[null,null,null,"○","Des plans clairs de mise à l’échelle ont été définis, avec attribution de responsabilités ",null,null,null,null,null,null,0,0,0]
[null,null,null,"○","Des plans de financement sont en place ",null,null,null,null,null,null,0,0,0]
[null,null,null,"○","Un cadre de suivi et d’évaluation a été défini, avec des indicateurs et des objectifs fondamentaux",null,null,null,null,null,null,0,0,0]
[null,null,null,"○","Mécanisme de mise en œuvre clairement défini",null,null,null,null,null,null,0,0,0]
[null,null,"Obligation de rendre compte","Le département/ministère responsable de la réussite du programme des personnes transgenres et jouissant d’un leadership/autorité fort a été identifié :",null,null,null,null,null,{"$f":"O17","v":"-"},null,null,null,null,{"$f":"IFERROR(ROUND(AVERAGEIF(L18:N22,\"<>0\",L18:N22),0),\"-\")","v":"-"}]
[null,null,null,"○","Tous les projets dans le pays rendent régulièrement compte des indicateurs clés au gouvernement aux niveaux infranational et national avec des indicateurs communs",null,null,null,null,null,null,0,0,0]
[null,null,null,"○","Dans les rapports, les données sont anonymisées et sécurisées afin de protéger les personnes transgenres   ",null,null,null,null,null,null,0,0,0]
[null,null,null,"○","Des examens réguliers des programmes sont effectués à l’aide de données programmatiques",null,null,null,null,null,null,0,0,0]
[null,null,null,"○","Le ministère gouvernemental responsable du programme participe aux réunions de coordination pertinentes",null,null,null,null,null,null,0,0,0]
[null,null,null,"○","Le groupe de travail technique sur les populations clés (GTT), avec une représentation de personnes transgenres, est impliqué dans l’obligation de rendre des comptes ",null,null,null,null,null,null,0,0,0]
[null,null,"Groupe de travail technique pour les personnes transgenres  ","Un GTT (les pays peuvent avoir des GTT pour toutes les populations clés comprenant des personnes transgenres) a été établi aux niveaux national et infranational et :",null,null,null,null,null,{"$f":"O23","v":"-"},null,null,null,null,{"$f":"IFERROR(ROUND(AVERAGEIF(L24:N28,\"<>0\",L24:N28),0),\"-\")","v":"-"}]
[null,null,null,"○","Se réunit régulièrement ",null,null,null,null,null,null,0,0,0]
[null,null,null,"○","Le groupe de travail technique est complet et comprend des organisations de la société civile, des partenaires de mise en œuvre, des membres de la communauté transgenre",null,null,null,null,null,null,0,0,0]
[null,null,null,"○","Il a mis en place des mécanismes de communication pour assurer la coordination",null,null,null,null,null,null,0,0,0]
[null,null,null,"○","Il a un mandat ou un champ d’application défini ",null,null,null,null,null,null,0,0,0]
[null,null,null,"○","Des membres de la communauté transgenre sont inclus",null,null,null,null,null,null,0,0,0]
[null,null,"Coordination des parties prenantes","Des mécanismes sont en place pour garantir une coordination à tous les niveaux et la coordination est fructueuse et cohérente avec : ",null,null,null,null,null,{"$f":"O29","v":"-"},null,null,null,null,{"$f":"IFERROR(ROUND(AVERAGEIF(L30:N35,\"<>0\",L30:N35),0),\"-\")","v":"-"}]
[null,null,null,"○","Partenaires de financement (au niveau national)",null,null,null,null,null,null,{"$f":"IF(ISBLANK(G30),0,1)","v":0},{"$f":"IF(ISBLANK(H30),0,3)","v":0},{"$f":"IF(ISBLANK(I30),0,5)","v":0}]
[null,null,null,"○","Programmes locaux et initiatives nationales plus vastes ",null,null,null,null,null,null,0,0,0]
[null,null,null,"○","Personnes transgenres",null,null,null,null,null,null,0,0,0]
[null,null,null,"○","Partenaires de mise en œuvre ",null,null,null,null,null,null,0,0,0]
[null,null,null,"○","Ministère de la Santé/départements gouvernementaux de la santé (aux niveaux national et infranational)",null,null,null,null,null,null,0,0,0]
[null,null,null,"○","Une coordination multisectorielle avec tous les autres ministères/départements (ex. : finances et application de la loi) a été réalisée",null,null,null,null,null,null,0,0,0]
[null,null,"Plan de renforcement des capacités et d’assistance technique","Un plan d’assistance technique est en place et : ",null,null,null,null,null,{"$f":"O36","v":"-"},null,null,null,null,{"$f":"IFERROR(ROUND(AVERAGEIF(L37:N42,\"<>0\",L37:N42),0),\"-\")","v":"-"}]
[null,null,null,"○","A été élaboré à l’appui d’une évaluation ",null,null,null,null,null,null,{"$f":"IF(ISBLANK(G37),0,1)","v":0},{"$f":"IF(ISBLANK(H37),0,3)","v":0},{"$f":"IF(ISBLANK(I37),0,5)","v":0},null,{"$f":"IF(MAX(L37:N37)=0,\"\",MAX(L37:N37))","v":""}]
[null,null,null,"○","A recours à des experts techniques nationaux et internationaux, notamment pour le développement des capacités et l’assistance technique entre pairs",null,null,null,null,null,null,0,0,0,null,""]
[null,null,null,"○","A priorisé les composantes du programme et les questions politiques ",null,null,null,null,null,null,0,0,0,null,""]
[null,null,null,"○","Facilite l’établissement et le renforcement des réseaux d’exécutants ",null,null,null,null,null,null,0,0,0,null,""]
[null,null,null,"○","Identifie les lacunes et élabore des demandes d’assistance consolidées lorsque l’expertise du pays fait défaut ",null,null,null,null,null,null,0,0,0,null,""]
[null,null,null,"○","Facilite le développement de la capacité de la communauté de HSH à s’approprier les programmes des personnes transgenres  ",null,null,null,null,null,null,0,0,0,null,""]
[null,null,"Plan de durabilité et feuille de route de transition","Un plan complet de durabilité et une feuille de route de transition, décrivant la transition accusée par les pays entre les interventions soutenues par les donateurs et les interventions soutenues au niveau national, sont en place et informés par :  Il prend en compte toutes les ressources, y compris : ",null,null,null,null,null,{"$f":"O43","v":"-"},null,null,null,null,{"$f":"IFERROR(ROUND(AVERAGEIF(L44:N47,\"<>0\",L44:N47),0),\"-\")","v":"-"},""]
[null,null,null,"○","Un exercice de calcul des coûts unitaires de la population clé",null,null,null,null,null,null,{"$f":"IF(ISBLANK(G44),0,1)","v":0},{"$f":"IF(ISBLANK(H44),0,3)","v":0},{"$f":"IF(ISBLANK(I44),0,5)","v":0},null,""]
[null,null,null,"○","Une analyse du paysage du financement de la population clé",null,null,null,null,null,null,0,0,0,null,""]
[null,null,null,"○","Planification de l’intégration des services de PC dans les soins de santé primaires"]
[null,null,null,"○","Prise en compte des besoins financiers, humains et d’infrastructure",null,null,null,null,null,null,0,0,0,null,""]
[null,null,"Lois, politiques et réglementation"]
[null,null,"Élément","Critères",null,"S/O","Absent","Présent mais non optimal","Présent et fonctionnel","Moyenne de l’élément","Commentaires (le cas échéant)"]
[null,null,"Lois et politiques ","Des politiques sont en place qui favorisent activement le bon fonctionnement du programme : ",null,null,null,null,null,{"$f":"O50","v":"-"},null,null,null,null,{"$f":"IFERROR(ROUND(AVERAGEIF(L51:N53,\"<>0\",L51:N53),0),\"-\")","v":"-"}]
[null,null,null,"○","Politiques en place qui favorisent activement l’accès des personnes transgenres aux services, y compris pour les HSH adolescents ",null,null,null,null,null,null,{"$f":"IF(ISBLANK(G51),0,1)","v":0},{"$f":"IF(ISBLANK(H51),0,3)","v":0},{"$f":"IF(ISBLANK(I51),0,5)","v":0}]
[null,null,null,"○","Politiques en place qui aident les personnes transgenres à accéder aux services malgré les lois qui criminalisent la consommation de drogues, le travail du sexe et les activités homosexuelles",null,null,null,null,null,null,0,0,0]
[null,null,null,"○","Des politiques visant à réduire la stigmatisation, la discrimination et la violence à l’égard des personnes transgenres sont en place ",null,null,null,null,null,null,0,0,0]
[null,null,"Lignes directrices","Les lignes directrices suivantes existent et articulent clairement les étapes d’une mise en œuvre réussie du programme :",null,null,null,null,null,{"$f":"O54","v":"-"},null,null,null,null,{"$f":"IFERROR(ROUND(AVERAGEIF(L55:N58,\"<>0\",L55:N58),0),\"-\")","v":"-"}]
[null,null,null,"○","Il existe des lignes directrices nationales pour chacune des interventions et services comportementaux, biomédicaux et structurels, et elles sont alignées sur les orientations mondiales",null,null,null,null,null,null,0,0,0]
[null,null,null,"○","Des lignes directrices ont été élaborées en concertation avec des personnes transgenres ",null,null,null,null,null,null,0,0,0]
[null,null,null,"○","Les directives nationales pour les services de dépistage du VIH, les infections sexuellement transmissibles, la prophylaxie avant exposition et les préservatifs tiennent compte des besoins et priorités des personnes transgenres ",null,null,null,null,null,null,0,0,0]
[null,null,null,"○","Les mesures de prévention et de contrôle de l’infection COVID-19 sont intégrées dans l’ensemble des stratégies, plans et lignes directrices de prévention du VIH/personnes transgenres ",null,null,null,null,null,null,0,0,0]
[null,null,"Financement"]
[null,null,"Élément","Critères",null,"S/O","Absent","Présent mais non optimal","Présent et fonctionnel","Moyenne de l’élément","Commentaires (le cas échéant)"]
[null,null,"Calcul des coûts ","Budget national en place :",null,null,null,null,null,{"$f":"O61","v":"-"},null,null,null,null,{"$f":"IFERROR(ROUND(AVERAGEIF(L62:N62,\"<>0\",L62:N62),0),\"-\")","v":"-"}]
[null,null,null,"○","Un exercice de calcul des coûts a été réalisé et le programme national connaît le coût moyen pour atteindre des personnes transgenres avec un ensemble standard de services conformément aux lignes directrices ",null,null,null,null,null,null,{"$f":"IF(ISBLANK(G62),0,1)","v":0},{"$f":"IF(ISBLANK(H62),0,3)","v":0},{"$f":"IF(ISBLANK(I62),0,5)","v":0}]
[null,null,"Planification budgétaire","Un processus de planification budgétaire bien géré est en place pour le programme de prévention du VIH qui prend en compte les personnes transgenres ",null,null,null,null,null,{"$f":"O63","v":"-"},null,null,null,null,{"$f":"IFERROR(ROUND(AVERAGEIF(L64:N66,\"<>0\",L64:N66),0),\"-\")","v":"-"}]
[null,null,null,"○","Une évaluation des ressources disponibles est en cours afin d’essayer d’identifier les lacunes et d’allouer un budget au programme",null,null,null,null,null,null,0,0,{"$f":"IF(ISBLANK(I64),0,5)","v":0}]
[null,null,null,"○","Une stratégie a été élaborée pour combler les lacunes de financement",null,null,null,null,null,null,0,0,{"$f":"IF(ISBLANK(I65),0,5)","v":0}]
[null,null,null,"○","Les budgets sont corrélés aux besoins en ressources des plans opérationnels pour des cibles nationales et infranationales",null,null,null,null,null,null,0,0,{"$f":"IF(ISBLANK(I66),0,5)","v":0}]
[null,null,"Mobilisation des ressources et financement","○","Le financement est suffisant pour répondre aux besoins de la programmation holistique",null,null,null,null,{"$f":"O67","v":"-"},null,null,null,null,{"$f":"IFERROR(ROUND(AVERAGEIF(L68:N68,\"<>0\",L68:N68),0),\"-\")","v":"-"},{"$f":"IF(MAX(L67:N67)=0,\"\",MAX(L67:N67))","v":""}]
[null,null,null,null,null,null,null,null,null,null,null,{"$f":"IF(ISBLANK(G67),0,1)","v":0},{"$f":"IF(ISBLANK(H67),0,3)","v":0},{"$f":"IF(ISBLANK(I67),0,5)","v":0},null,""]
[null,null,"Ressourcement national ","○","Plus de 50 % des ressources soutenant le programme, humaines et financières, sont nationales",null,null,null,null,{"$f":"O69","v":"-"},null,null,null,null,{"$f":"IFERROR(ROUND(AVERAGEIF(L70:N70,\"<>0\",L70:N70),0),\"-\")","v":"-"},{"$f":"IF(MAX(L69:N69)=0,\"\",MAX(L69:N69))","v":""}]
[null,null,null,null,null,null,null,null,null,null,null,{"$f":"IF(ISBLANK(G69),0,1)","v":0},{"$f":"IF(ISBLANK(H69),0,3)","v":0},{"$f":"IF(ISBLANK(I69),0,5)","v":0},null,""]
[null,null,"Contrats sociaux","○","Des mécanismes de contrats sociaux ont été élaborés et sont en cours de mise en œuvre",null,null,null,null,{"$f":"O71","v":"-"},null,{"$f":"IF(ISBLANK(G71),0,1)","v":0},{"$f":"IF(ISBLANK(H71),0,3)","v":0},{"$f":"IF(ISBLANK(I70),0,5)","v":0},{"$f":"IFERROR(ROUND(AVERAGEIF(L71:N74,\"<>0\",L71:N74),0),\"-\")","v":"-"}]
[null,null,null,"○","Les opportunités sont largement diffusées afin de permettre aux partenaires locaux de mise en œuvre et aux organisations dirigées par des personnes transgenres d’accéder au financement",null,null,null,null,null,null,{"$f":"IF(ISBLANK(G72),0,1)","v":0},{"$f":"IF(ISBLANK(H72),0,3)","v":0},0]
[null,null,null,"○","Un mécanisme a été mis en place pour autoriser le financement d’organisations dirigées par la communauté",null,null,null,null,null,null,{"$f":"IF(ISBLANK(G73),0,1)","v":0},0,0]
[null,null,null,"○","Les fonds sont réservés aux organisations dirigées par la communauté ",null,null,null,null,null,null,0,0,{"$f":"IF(ISBLANK(I74),0,5)","v":0},null,""]
[null,null,"Mise en œuvre de programme"]
[null,null,"Ciblage et planification"]
[null,null,"Élément","Critères",null,"S/O","Absent","Présent mais non optimal","Présent et fonctionnel","Moyenne de l’élément","Commentaires (le cas échéant)"]
[null,null,"Évaluation démographique (estimation de la taille de la population et microplanification)","L’estimation de la taille de la population et la microplanification sont achevées et :",null,null,null,null,null,{"$f":"O78","v":"-"},null,null,null,null,{"$f":"IFERROR(ROUND(AVERAGEIF(L79:N85,\"<>0\",L79:N85),0),\"-\")","v":"-"}]
[null,null,null,"○","Sont établies en fonction du site (niveau local, par opposition au pays ou à la province)",null,null,null,null,null,null,{"$f":"IF(ISBLANK(G79),0,1)","v":0},{"$f":"IF(ISBLANK(H79),0,3)","v":0},{"$f":"IF(ISBLANK(I79),0,5)","v":0}]
[null,null,null,"○","La confidentialité des zones sensibles et l’anonymat des personnes sont garantis et ne sont pas communiqués aux forces de l’ordre",null,null,null,null,null,null,0,0,0]
[null,null,null,"○","Sont mises à jour annuellement ou à l’issue d’une enquête biocomportementale",null,null,null,null,null,null,0,0,0]
[null,null,null,"○","Des membres formés de la communauté transgenre ou de réseaux de personnes transgenres ont été engagés et recrutés pour entreprendre l’estimation de la taille de la population et les exercices de microplanification",null,null,null,null,null,null,0,0,0]
[null,null,null,"○","Les estimations de la taille de la population sont précises et actualisées ",null,null,null,null,null,null,0,0,0]
[null,null,null,"○","Les informations sont utilisées pour déterminer la nécessité d’interventions comportementales, biomédicales et structurelles  ",null,null,null,null,null,null,0,0,0]
[null,null,null,"○","Ces informations sont utilisées pour estimer les besoins de financement et fixer des cibles",null,null,null,null,null,null,0,0,0]
[null,null,"Évaluation épidémiologique (enquête de séroprévalence et déterminants du risque)","Des estimations de séroprévalence sont disponibles et :",null,null,null,null,null,{"$f":"O86","v":"-"},null,null,null,null,{"$f":"IFERROR(ROUND(AVERAGEIF(L87:N92,\"<>0\",L87:N92),0),\"-\")","v":"-"}]
[null,null,null,"○","Sont basées sur une surveillance récente et/ou continue (estimations modélisées mises à jour annuellement ou données d’enquête mises à jour tous les 3-5 ans)",null,null,null,null,null,null,{"$f":"IF(ISBLANK(G87),0,1)","v":0},{"$f":"IF(ISBLANK(H87),0,3)","v":0},{"$f":"IF(ISBLANK(I87),0,5)","v":0}]
[null,null,null,"○","Spécifiques à chaque personne transgenre",null,null,null,null,null,null,0,0,0]
[null,null,null,"○","Les résultats sont précis, la taille de l’échantillon est statistiquement représentative (puissance appropriée) et la méthode d’échantillonnage est appropriée aux personnes transgenres : échantillonnage par localisation temporelle et échantillonnage de commodité",null,null,null,null,null,null,0,0,0]
[null,null,null,"○","Des évaluations des déterminants du risque ont été régulièrement menées pour les personnes transgenres afin d’informer les programmes et :",null,null,null,null,null,null,0,0,0]
[null,null,null,null,"> Elles sont spécifiques aux personnes transgenres et prennent en compte les comportements spécifiques à l’âge et au sexe ",null,null,null,null,null,null,0,0,0]
[null,null,null,null,"> Les études sont de bonne qualité et fournissent de nombreuses informations  ",null,null,null,null,null,null,0,0,0]
[null,null,"Évaluation des besoins","Une évaluation des besoins pour les personnes transgenres été réalisée au niveau de la mise en œuvre et/ou au niveau local :",null,null,null,null,null,{"$f":"O93","v":"-"},null,null,null,null,{"$f":"IFERROR(ROUND(AVERAGEIF(L94:N96,\"<>0\",L94:N96),0),\"-\")","v":"-"}]
[null,null,null,"○","Engagement adéquat avec les personnes transgenres et les organisations ou réseaux dirigé(e)s par des personnes transgenres sur les besoins",null,null,null,null,null,null,{"$f":"IF(ISBLANK(G94),0,1)","v":0},{"$f":"IF(ISBLANK(H94),0,3)","v":0},{"$f":"IF(ISBLANK(I94),0,5)","v":0}]
[null,null,null,"○","Informations suffisantes sur les services dont les personnes transgenres ont besoin, sur la manière dont elles préfèrent accéder aux services et sur les personnes qui devraient fournir ces services ",null,null,null,null,null,null,{"$f":"IF(ISBLANK(G95),0,1)","v":0},{"$f":"IF(ISBLANK(H95),0,3)","v":0},{"$f":"IF(ISBLANK(I95),0,5)","v":0}]
[null,null,null,"○","Informations complètes sur les lacunes en termes de prestation de services et d’obstacles à l’accès",null,null,null,null,null,null,{"$f":"IF(ISBLANK(G96),0,1)","v":0},{"$f":"IF(ISBLANK(H96),0,3)","v":0},{"$f":"IF(ISBLANK(I96),0,5)","v":0}]
[null,null,"Définition de cibles","Des cibles pour les personnes transgenres ont été clairement définies et :",null,null,null,null,null,{"$f":"O97","v":"-"},null,null,null,null,{"$f":"IFERROR(ROUND(AVERAGEIF(L98:N105,\"<>0\",L98:N105),0),\"-\")","v":"-"}]
[null,null,null,"○","Sont basées sur les données relatives à l’estimation de la taille et à l’évaluation du risque",null,null,null,null,null,null,{"$f":"IF(ISBLANK(G98),0,1)","v":0},{"$f":"IF(ISBLANK(H98),0,3)","v":0},{"$f":"IF(ISBLANK(I98),0,5)","v":0}]
[null,null,null,"○","Sont conçues pour les personnes transgenres  ",null,null,null,null,null,null,0,0,0]
[null,null,null,"○","Sont spécifiées aux niveaux national et infranational ",null,null,null,null,null,null,0,0,0]
[null,null,null,"○","Incluent les réalisations déjà atteintes et les réalisations finales prévues ",null,null,null,null,null,null,0,0,0]
[null,null,null,"○","Sont élaborées en concertation avec des exécutants et des réseaux de personnes transgenres afin de s’assurer qu’elles sont réalistes",null,null,null,null,null,null,0,0,0]
[null,null,null,"○","Correspondent aux budgets et aux accords formels avec les exécutants locaux",null,null,null,null,null,null,0,0,0]
[null,null,null,"○","Sont ventilées par âge et par sexe",null,null,null,null,null,null,0,0,0]
[null,null,null,"○","Les cibles du Fonds mondial et du President’s Emergency Plan For AIDS Relief (PEPFAR) font référence aux estimations de taille et aux cibles nationales  ",null,null,null,null,null,null,0,0,0]
[null,null,"Modalités de mise en œuvre "]
[null,null,"Élément","Critères",null,"S/O","Absent","Présent mais non optimal","Présent et fonctionnel","Moyenne de l’élément","Commentaires (le cas échéant)"]
[null,null,"Gestion d’une plateforme d’accès","Une plateforme d’accès favorise les efforts coordonnés de la communauté et des cliniques et :",null,null,null,null,null,{"$f":"O108","v":"-"},null,null,null,null,{"$f":"IFERROR(ROUND(AVERAGEIF(L109:N112,\"<>0\",L109:N112),0),\"-\")","v":"-"}]
[null,null,null,"○","Établit la confiance au sein de la communauté par le biais des pairs-travailleurs de proximité ",null,null,null,null,null,null,{"$f":"IF(ISBLANK(G109),0,1)","v":0},{"$f":"IF(ISBLANK(H109),0,3)","v":0},{"$f":"IF(ISBLANK(I109),0,5)","v":0}]
[null,null,null,"○","Atteint les personnes transgenres en grand nombre et encourage leur adhésion, leur rétention et leur participation active au programme",null,null,null,null,null,null,{"$f":"IF(ISBLANK(G110),0,1)","v":0},{"$f":"IF(ISBLANK(H110),0,3)","v":0},{"$f":"IF(ISBLANK(I110),0,5)","v":0}]
[null,null,null,"○","Encourage l’adhésion et la rétention des personnes transgenres ",null,null,null,null,null,null,{"$f":"IF(ISBLANK(G111),0,1)","v":0},{"$f":"IF(ISBLANK(H111),0,3)","v":0},{"$f":"IF(ISBLANK(I111),0,5)","v":0}]
[null,null,null,"○","Encourage la participation active des personnes transgenres ",null,null,null,null,null,null,{"$f":"IF(ISBLANK(G112),0,1)","v":0},{"$f":"IF(ISBLANK(H112),0,3)","v":0},{"$f":"IF(ISBLANK(I112),0,5)","v":0}]
[null,null,"Structure de gestion","Le processus de la structure de gestion a été défini et :  ",null,null,null,null,null,{"$f":"O113","v":"-"},null,null,null,null,{"$f":"IFERROR(ROUND(AVERAGEIF(L114:N122,\"<>0\",L114:N122),0),\"-\")","v":"-"}]
[null,null,null,"○","Des mandats précis sont en place pour définir les rôles et responsabilités de tous les postes, y compris le personnel au niveau de la communauté et des installations",null,null,null,null,null,null,{"$f":"IF(ISBLANK(G114),0,1)","v":0},{"$f":"IF(ISBLANK(H114),0,3)","v":0},{"$f":"IF(ISBLANK(I114),0,5)","v":0}]
[null,null,null,"○","Ratio adéquat entre les pairs-travailleurs de proximité et les membres de la communauté"]
[null,null,null,"○","Lignes directrices en place pour le recrutement, la rétention, l’évaluation et la promotion des pairs-travailleurs de proximité ",null,null,null,null,null,null,{"$f":"IF(ISBLANK(G116),0,1)","v":0},{"$f":"IF(ISBLANK(H116),0,3)","v":0},{"$f":"IF(ISBLANK(I116),0,5)","v":0}]
[null,null,null,"○","Toutes les personnes travaillant sur le projet sont rémunérées ",null,null,null,null,null,null,0,0,0]
[null,null,null,"○","La supervision adéquate des pairs-travailleurs de proximité (PTP) est assurée par les superviseurs des pairs",null,null,null,null,null,null,0,0,0]
[null,null,null,"○","Définition d’une stratégie de promotion et d’un plan de progression de carrière pour les pairs-travailleurs de proximité et les professionnels de la communication sur le changement social et comportemental ",null,null,null,null,null,null,0,0,0]
[null,null,null,"○","Un mécanisme d’orientation formel est établi ",null,null,null,null,null,null,0,0,0]
[null,null,null,"○","Sites de destination équipés pour recevoir les services (les sites de destination sont les points où les services seront fournis – ex. : cliniques, hôpitaux, communautés)",null,null,null,null,null,null,0,0,0]
[null,null,null,"○","La microplanification est utilisée pour établir des priorités et gérer la mobilisation, notamment pour identifier les bénéficiaires les plus exposés",null,null,null,null,null,null,0,0,0]
[null,null,"Flux de données ","Les flux de données à chaque niveau ont été définis et :",null,null,null,null,null,{"$f":"O123","v":"-"},null,null,null,null,{"$f":"IFERROR(ROUND(AVERAGEIF(L124:N129,\"<>0\",L124:N129),0),\"-\")","v":"-"}]
[null,null,null,"○","Des systèmes de données ont été mis au point et testés ",null,null,null,null,null,null,{"$f":"IF(ISBLANK(G124),0,1)","v":0},{"$f":"IF(ISBLANK(H124),0,3)","v":0},{"$f":"IF(ISBLANK(I124),0,5)","v":0}]
[null,null,null,"○","Les indicateurs standard pour le suivi du programme de PC sont finalisés",null,null,null,null,null,null,{"$f":"IF(ISBLANK(G125),0,1)","v":0},{"$f":"IF(ISBLANK(H125),0,3)","v":0},{"$f":"IF(ISBLANK(I125),0,5)","v":0}]
[null,null,null,"○","Des outils de rapport standard ont été élaborés ",null,null,null,null,null,null,0,0,0]
[null,null,null,"○","Les données programmatiques sont déclarées et examinées mensuellement ",null,null,null,null,null,null,0,0,0]
[null,null,null,"○","Des systèmes sont en place pour préserver la confidentialité des données ",null,null,null,null,null,null,{"$f":"IF(ISBLANK(G128),0,1)","v":0},{"$f":"IF(ISBLANK(H128),0,3)","v":0},0]
[null,null,null,"○","Système de code d’identification unique élaboré ",null,null,null,null,null,null,{"$f":"IF(ISBLANK(G129),0,1)","v":0},{"$f":"IF(ISBLANK(H129),0,3)","v":0},{"$f":"IF(ISBLANK(I129),0,5)","v":0}]
[null,null,"Pairs-travailleurs de proximité (PTP)","Les pairs-travailleurs de proximité sont employés efficacement dans le programme :\n",null,null,null,null,null,{"$f":"O130","v":"-"},null,null,null,null,{"$f":"IFERROR(ROUND(AVERAGEIF(L131:N138,\"<>0\",L131:N138),0),\"-\")","v":"-"}]
[null,null,null,"○","Les PTP sont issus de la communauté transgenre qu’ils représentent ou servent",null,null,null,null,null,null,{"$f":"IF(ISBLANK(G131),0,1)","v":0},{"$f":"IF(ISBLANK(H131),0,3)","v":0},{"$f":"IF(ISBLANK(I131),0,5)","v":0}]
[null,null,null,"○","Le programme de formation est disponible, approprié et comprend des formations cliniques pour mettre à jour les connaissances des PTP transgenres sur les besoins spécifiques de la communauté transgenre",null,null,null,null,null,null,{"$f":"IF(ISBLANK(G132),0,1)","v":0},{"$f":"IF(ISBLANK(H132),0,3)","v":0},{"$f":"IF(ISBLANK(I132),0,5)","v":0}]
[null,null,null,"○","Les PTP sont formés à la microplanification et à la sensibilisation",null,null,null,null,null,null,0,0,0]
[null,null,null,"○","Un plan de formation à plusieurs niveaux est en place pour améliorer les compétences, la confiance et le leadership des PTP ",null,null,null,null,null,null,0,0,0]
[null,null,null,"○","Outils de sensibilisation à disposition pour la mobilisation communautaire afin de promouvoir l’accès aux services",null,null,null,null,null,null,{"$f":"IF(ISBLANK(G135),0,1)","v":0},{"$f":"IF(ISBLANK(H135),0,3)","v":0},0]
[null,null,null,"○","Utilisent des messages et des supports de communication fondés sur des données probantes",null,null,null,null,null,null,{"$f":"IF(ISBLANK(G136),0,1)","v":0},{"$f":"IF(ISBLANK(H136),0,3)","v":0},{"$f":"IF(ISBLANK(I136),0,5)","v":0}]
[null,null,null,"○","Fournissent des informations sur les services disponibles et orientent les bénéficiaires vers ces services ",null,null,null,null,null,null,{"$f":"IF(ISBLANK(G137),0,1)","v":0},{"$f":"IF(ISBLANK(H137),0,3)","v":0},{"$f":"IF(ISBLANK(I137),0,5)","v":0}]
[null,null,null,"○","Prodiguent des conseils et un soutien émotionnel pour maintenir le traitement",null,null,null,null,null,null,{"$f":"IF(ISBLANK(G138),0,1)","v":0},{"$f":"IF(ISBLANK(H138),0,3)","v":0},{"$f":"IF(ISBLANK(I138),0,5)","v":0}]
[null,null,"Engagement significatif des communautés affectées dans le leadership et la coordination","Les personnes transgenres sont représentées dans un organisme de coordination national ou un groupe de travail technique et :\n\n",null,null,null,null,null,{"$f":"O139","v":"-"},null,null,null,null,{"$f":"IFERROR(ROUND(AVERAGEIF(L140:N143,\"<>0\",L140:N143),0),\"-\")","v":"-"}]
[null,null,null,"○","Se réunissent régulièrement",null,null,null,null,null,null,{"$f":"IF(ISBLANK(G140),0,1)","v":0},{"$f":"IF(ISBLANK(H140),0,3)","v":0},{"$f":"IF(ISBLANK(I140),0,5)","v":0}]
[null,null,null,"○","Elles participent activement aux processus décisionnels en tant que partenaires à pied d’égalité ",null,null,null,null,null,null,{"$f":"IF(ISBLANK(G141),0,1)","v":0},{"$f":"IF(ISBLANK(H141),0,3)","v":0},{"$f":"IF(ISBLANK(I141),0,5)","v":0}]
[null,null,null,"○","Elles sont soutenues pour solliciter un retour d’information et rendre compte des décisions clés aux groupes qu’elles représentent",null,null,null,null,null,null,{"$f":"IF(ISBLANK(G142),0,1)","v":0},0,0]
[null,null,null,"○","Il est prouvé que le retour d’information, la contribution et les conseils d’experts fournis par les membres de la communauté transgenre sont pris en compte",null,null,null,null,null,null,{"$f":"IF(ISBLANK(G143),0,1)","v":0},{"$f":"IF(ISBLANK(H143),0,3)","v":0},0]
[null,null,"Prestation de services"]
[null,null,"Élément","Critères",null,"S/O","Absent","Présent mais non optimal","Présent et fonctionnel","Moyenne de l’élément","Commentaires (le cas échéant)"]
[null,null,"Services accessibles","Les services sont accessibles aux personnes transgenres et :",null,null,null,null,null,{"$f":"O146","v":"-"},null,null,null,null,{"$f":"IFERROR(ROUND(AVERAGEIF(L147:N153,\"<>0\",L147:N153),0),\"-\")","v":"-"}]
[null,null,null,"○","Sont conçus à l’appui de la recherche formative menée dans le cadre de l’évaluation des besoins ",null,null,null,null,null,null,{"$f":"IF(ISBLANK(G147),0,1)","v":0},{"$f":"IF(ISBLANK(H147),0,3)","v":0},{"$f":"IF(ISBLANK(I147),0,5)","v":0}]
[null,null,null,"○","Sont idéalement situés à l’intérieur ou à proximité des zones sensibles",null,null,null,null,null,null,0,0,0]
[null,null,null,"○","Incluent des services mobiles si nécessaire ",null,null,null,null,null,null,0,0,0]
[null,null,null,"○","Les horaires d’ouverture sont adaptés aux personnes transgenres ciblées par les services ",null,null,null,null,null,null,0,0,0]
[null,null,null,"○","Sont intégrés au système de santé général et fournissent des paniers de soins complets ",null,null,null,null,null,null,0,0,0]
[null,null,null,"○","Bénéficient d’un approvisionnement régulier en services et en produits",null,null,null,null,null,null,0,0,0]
[null,null,null,"○","Impliquent un transfert de tâches pour accroître la capacité des prestataires de soins de santé",null,null,null,null,null,null,0,0,0]
[null,null,"Services acceptables","Les services sont acceptables par les personnes transgenres et :",null,null,null,null,null,{"$f":"O154","v":"-"},null,null,null,null,{"$f":"IFERROR(ROUND(AVERAGEIF(L155:N159,\"<>0\",L155:N159),0),\"-\")","v":"-"}]
[null,null,null,"○","Ils sont confidentiels et basés sur le volontariat ",null,null,null,null,null,null,{"$f":"IF(ISBLANK(G155),0,1)","v":0},{"$f":"IF(ISBLANK(H155),0,3)","v":0},{"$f":"IF(ISBLANK(I155),0,5)","v":0}]
[null,null,null,"○","Les prestataires sont sensibles aux besoins des personnes transgenres, ne portent pas de jugement et ne stigmatisent pas",null,null,null,null,null,null,{"$f":"IF(ISBLANK(G156),0,1)","v":0},{"$f":"IF(ISBLANK(H156),0,3)","v":0},{"$f":"IF(ISBLANK(I156),0,5)","v":0}]
[null,null,null,"○","Les prestataires sont formés pour être en mesure d’offrir un paquet complet d’interventions spécifiques aux personnes transgenres   ",null,null,null,null,null,null,{"$f":"IF(ISBLANK(G157),0,1)","v":0},{"$f":"IF(ISBLANK(H157),0,3)","v":0},{"$f":"IF(ISBLANK(I157),0,5)","v":0}]
[null,null,null,"○","Ils instaurent un environnement sûr et favorable ",null,null,null,null,null,null,{"$f":"IF(ISBLANK(G158),0,1)","v":0},{"$f":"IF(ISBLANK(H158),0,3)","v":0},{"$f":"IF(ISBLANK(I158),0,5)","v":0}]
[null,null,null,"○","Les interventions en ligne sont menées de manière éthique et respectent la vie privée et la confidentialité des clients",null,null,null,null,null,null,{"$f":"IF(ISBLANK(G159),0,1)","v":0},{"$f":"IF(ISBLANK(H159),0,3)","v":0},{"$f":"IF(ISBLANK(I159),0,5)","v":0}]
[null,null,"Services sur-mesure/appropriés","Paquet de services et méthodes de prestation adaptés aux besoins spécifiques des personnes transgenres dans toute leur diversité :",null,null,null,null,null,{"$f":"O160","v":"-"},null,null,null,null,{"$f":"IFERROR(ROUND(AVERAGEIF(L161:N166,\"<>0\",L161:N166),0),\"-\")","v":"-"}]
[null,null,null,"○","Le paquet de services destiné aux personnes transgenres comprend tous les services de santé sexuelle et reproductive pertinents, conformément aux directives de l’OMS",null,null,null,null,null,null,{"$f":"IF(ISBLANK(G161),0,1)","v":0},{"$f":"IF(ISBLANK(H161),0,3)","v":0},{"$f":"IF(ISBLANK(I161),0,5)","v":0}]
[null,null,null,"○","Large disponibilité de l’initiation communautaire au traitement antirétroviral pour les personnes transgenres vivant avec le VIH",null,null,null,null,null,null,0,0,0]
[null,null,null,"○","Les services sont fournis d’une manière accessible aux jeunes personnes transgenres (ex. : en abordant les questions d’âge de consentement)",null,null,null,null,null,null,0,0,0]
[null,null,null,"○","Services supplémentaires (ou liens vers ces services) mis à disposition en fonction des besoins spécifiques des personnes transgenres (ex. : services sanitaires de changement de sexe pour les personnes transgenres)",null,null,null,null,null,null,0,0,0]
[null,null,null,"○","Les services s’attaquent aux vulnérabilités croisées des adolescents et des jeunes impliqués dans la vente de services sexuels",null,null,null,null,null,null,0,0,0]
[null,null,null,"○","Les services sont fournis d’une manière appropriée et respectent la confidentialité et la vie privée des clients",null,null,null,null,null,null,0,0,0]
[null,null,"Interventions cliniques  "]
[null,null,"Élément","Critères",null,"S/O","Absent","Présent mais non optimal","Présent et fonctionnel","Moyenne de l’élément","Commentaires (le cas échéant)"]
[null,null,"Préservatifs et lubrifiants ","Toutes les personnes transgenres ont accès à des préservatifs, à des lubrifiants, à des démonstrations et à d’autres services de santé reproductive et :\n",null,null,null,null,null,{"$f":"O169","v":"-"},null,null,null,null,{"$f":"IFERROR(ROUND(AVERAGEIF(L170:N172,\"<>0\",L170:N172),0),\"-\")","v":"-"}]
[null,null,null,"○","Ils sont largement distribués en quantité suffisante",null,null,null,null,null,null,{"$f":"IF(ISBLANK(G170),0,1)","v":0},{"$f":"IF(ISBLANK(H170),0,3)","v":0},{"$f":"IF(ISBLANK(I170),0,5)","v":0}]
[null,null,null,"○","Ils sont facilement accessibles dans les zones sensibles",null,null,null,null,null,null,{"$f":"IF(ISBLANK(G171),0,1)","v":0},{"$f":"IF(ISBLANK(H171),0,3)","v":0},{"$f":"IF(ISBLANK(I171),0,5)","v":0}]
[null,null,null,"○","Des démonstrations sont régulièrement organisées par les PTP  ",null,null,null,null,null,null,{"$f":"IF(ISBLANK(G172),0,1)","v":0},{"$f":"IF(ISBLANK(H172),0,3)","v":0},{"$f":"IF(ISBLANK(I172),0,5)","v":0}]
[null,null,"Services de dépistage du VIH","Des services de dépistage du VIH sont à la disposition des personnes transgenres et :\n",null,null,null,null,null,{"$f":"O173","v":"-"},null,null,null,null,{"$f":"IFERROR(ROUND(AVERAGEIF(L174:N183,\"<>0\",L174:N183),0),\"-\")","v":"-"}]
[null,null,null,"○","Les directives consolidées de l’OMS sur les services de dépistage du VIH sont mises en œuvre",null,null,null,null,null,null,{"$f":"IF(ISBLANK(G174),0,1)","v":0},{"$f":"IF(ISBLANK(H174),0,3)","v":0},{"$f":"IF(ISBLANK(I174),0,5)","v":0}]
[null,null,null,"○","Tous les tests sont volontaires et confidentiels (consentement éclairé obtenu)",null,null,null,null,null,null,0,0,0]
[null,null,null,"○","Des conseils sont prodigués avant et après le test de dépistage ",null,null,null,null,null,null,0,0,0]
[null,null,null,"○","Le traitement est proposé quel que soit le taux de CD4",null,null,null,null,null,null,0,0,0]
[null,null,null,"○","Les personnes séropositives sont orientées vers des réseaux de soins et de soutien après le diagnostic ",null,null,null,null,null,null,0,0,0]
[null,null,null,"○","L’accès aux services est distribué de manière équitable dans la communauté transgenre",null,null,null,null,null,null,0,0,0]
[null,null,null,"○","Des interventions visant à garantir l’observance sont en place pour les personnes transgenres vivant avec le VIH",null,null,null,null,null,null,0,0,0]
[null,null,null,"○","Suivi régulier de l’assiduité aux soins chez les personnes transgenres vivant avec le VIH ",null,null,null,null,null,null,0,0,0]
[null,null,null,"○","Liens avec la prévention et le traitement des comorbidités fournis",null,null,null,null,null,null,0,0,0]
[null,null,null,"○","Tests de charge virale et de CD4 disponibles et accessibles pour les personnes transgenres vivant avec le VIH",null,null,null,null,null,null,0,0,0]
[null,null,"Prophylaxie avant exposition","Une prophylaxie orale avant exposition (TDF) est proposée aux personnes transgenres présentant un risque important d’infection par le VIH ",null,null,null,null,null,{"$f":"O184","v":"-"},null,null,null,null,{"$f":"IFERROR(ROUND(AVERAGEIF(L185:N189,\"<>0\",L185:N189),0),\"-\")","v":"-"}]
[null,null,null,"○","L’approvisionnement en prophylaxie avant exposition est ininterrompu ",null,null,null,null,null,null,{"$f":"IF(ISBLANK(G185),0,1)","v":0},{"$f":"IF(ISBLANK(H185),0,3)","v":0},{"$f":"IF(ISBLANK(I185),0,5)","v":0}]
[null,null,null,"○","Des tests VIH sont effectués avant le début de la PaE pour s’assurer que la personne est négative ",null,null,null,null,null,null,{"$f":"IF(ISBLANK(G186),0,1)","v":0},{"$f":"IF(ISBLANK(H186),0,3)","v":0},{"$f":"IF(ISBLANK(I186),0,5)","v":0}]
[null,null,null,"○","Proposée dans le cadre d’une approche globale de prévention combinée ",null,null,null,null,null,null,{"$f":"IF(ISBLANK(G187),0,1)","v":0},{"$f":"IF(ISBLANK(H187),0,3)","v":0},{"$f":"IF(ISBLANK(I187),0,5)","v":0}]
[null,null,null,"○","Les approches combinées comprennent le soutien à l’observance, les nouveaux tests périodiques de dépistage du VIH et le conseil aux usagers de la prophylaxie avant exposition ",null,null,null,null,null,null,{"$f":"IF(ISBLANK(G188),0,1)","v":0},{"$f":"IF(ISBLANK(H188),0,3)","v":0},{"$f":"IF(ISBLANK(I188),0,5)","v":0}]
[null,null,null,"○","La prophylaxie avant exposition est proposée sur la base d’une évaluation individuelle et non d’un groupe à risque afin de favoriser une couverture plus large ",null,null,null,null,null,null,{"$f":"IF(ISBLANK(G189),0,1)","v":0},{"$f":"IF(ISBLANK(H189),0,3)","v":0},{"$f":"IF(ISBLANK(I189),0,5)","v":0}]
[null,null,"Planification familiale et SSR ","Toutes les personnes transgenres ont accès à la planification familiale et à d’autres services de santé sexuelle et reproductive et :",null,null,null,null,null,{"$f":"O190","v":"-"},null,null,null,null,{"$f":"IFERROR(ROUND(AVERAGEIF(L191:N193,\"<>0\",L191:N193),0),\"-\")","v":"-"}]
[null,null,null,"○","Ils sont largement distribués en quantité suffisante",null,null,null,null,null,null,{"$f":"IF(ISBLANK(G191),0,1)","v":0},{"$f":"IF(ISBLANK(H191),0,3)","v":0},{"$f":"IF(ISBLANK(I191),0,5)","v":0}]
[null,null,null,"○","Ils sont facilement accessibles dans les zones sensibles",null,null,null,null,null,null,{"$f":"IF(ISBLANK(G192),0,1)","v":0},{"$f":"IF(ISBLANK(H192),0,3)","v":0},{"$f":"IF(ISBLANK(I192),0,5)","v":0}]
[null,null,null,"○","Des ateliers de démonstration sont régulièrement programmés dans les zones sensibles",null,null,null,null,null,null,{"$f":"IF(ISBLANK(G193),0,1)","v":0},{"$f":"IF(ISBLANK(H193),0,3)","v":0},{"$f":"IF(ISBLANK(I193),0,5)","v":0}]
[null,null,"Soins post-violence ","Toutes les personnes transgenres ont accès à des soins post-violence et ;\n",null,null,null,null,null,{"$f":"O194","v":"-"},null,null,null,null,{"$f":"IFERROR(ROUND(AVERAGEIF(L195:N199,\"<>0\",L195:N199),0),\"-\")","v":"-"}]
[null,null,null,"○","Des services post-violence tels que le soutien et le conseil sont disponibles",null,null,null,null,null,null,{"$f":"IF(ISBLANK(G195),0,1)","v":0},{"$f":"IF(ISBLANK(H195),0,3)","v":0},{"$f":"IF(ISBLANK(I195),0,5)","v":0}]
[null,null,null,"○","Des services post-violence tels que la prophylaxie post-exposition sont disponibles",null,null,null,null,null,null,0,0,0]
[null,null,null,"○","Des tests de dépistage des IST (syphilis, chlamydia, gonorrhée) sont pratiqués systématiquement en cas de violence sexuelle",null,null,null,null,null,null,0,0,0]
[null,null,null,"○","Mécanisme d’orientation vers des services complets de lutte contre la violence sexiste en cas de besoin",null,null,null,null,null,null,0,0,0]
[null,null,null,"○","La prévention, le dépistage et la réparation de la violence sexiste, le soutien en matière de santé mentale et d’autres interventions visant à lever les obstacles liés aux droits humains et à améliorer l’accès à la justice sont pleinement mis en œuvre et disponibles",null,null,null,null,null,null,{"$f":"IF(ISBLANK(G199),0,1)","v":0},{"$f":"IF(ISBLANK(H199),0,3)","v":0},{"$f":"IF(ISBLANK(I199),0,5)","v":0}]
[null,null,"Prévention, dépistage et traitement de la tuberculose","La prévention, le dépistage et le traitement de la tuberculose sont à la disposition des personnes transgenres et :\n",null,null,null,null,null,{"$f":"O200","v":"-"},null,null,null,null,{"$f":"IFERROR(ROUND(AVERAGEIF(L201:N209,\"<>0\",L201:N209),0),\"-\")","v":"-"}]
[null,null,null,"○","Prévention : thérapie préventive à l’isoniazide administrée aux personnes séropositives en conjonction avec un traitement antirétroviral, contrôle de l’infection par la tuberculose et recherche des contacts dans les lieux de rassemblement ",null,null,null,null,null,null,{"$f":"IF(ISBLANK(G201),0,1)","v":0},{"$f":"IF(ISBLANK(H201),0,3)","v":0},{"$f":"IF(ISBLANK(I201),0,5)","v":0}]
[null,null,null,"○","Diagnostic : utilisation de Xpert MTB/RIF pour les premiers tests diagnostiques",null,null,null,null,null,null,0,0,0]
[null,null,null,"○","Tous les tests sont volontaires et confidentiels ",null,null,null,null,null,null,0,0,0]
[null,null,null,"○","Des interventions de soutien à l’observance pour s’assurer que le traitement antibiotique est terminé sont en place",null,null,null,null,null,null,0,0,0]
[null,null,null,"○","Le traitement est administré immédiatement et l’approvisionnement est ininterrompu",null,null,null,null,null,null,0,0,0]
[null,null,null,"○","L’accès aux services est distribué de manière équitable dans la communauté et pour toutes les personnes transgenres  ",null,null,null,null,null,null,0,0,0]
[null,null,null,"○","Bons liens avec le dépistage du VIH et le conseil pour les cas positifs ",null,null,null,null,null,null,0,0,0]
[null,null,null,"○","Des efforts sont faits pour traiter la tuberculose latente chez les personnes transgenres  ",null,null,null,null,null,null,0,0,0]
[null,null,null,"○","Le traitement de la tuberculose n’est pas contre-indiqué par l’alcool, la consommation de drogues et les troubles mentaux",null,null,null,null,null,null,0,0,0]
[null,null,"Prévention, vaccination, dépistage et traitement des hépatites virales","La prévention, la vaccination, le dépistage et les traitements de l’hépatite B et C virale sont disponibles pour répondre aux besoins spécifiques des personnes transgenres et :\n",null,null,null,null,null,{"$f":"O210","v":"-"},null,null,null,null,{"$f":"IFERROR(ROUND(AVERAGEIF(L211:N216,\"<>0\",L211:N216),0),\"-\")","v":"-"}]
[null,null,null,"○","Tous les tests sont volontaires et confidentiels ",null,null,null,null,null,null,{"$f":"IF(ISBLANK(G211),0,1)","v":0},{"$f":"IF(ISBLANK(H211),0,3)","v":0},{"$f":"IF(ISBLANK(I211),0,5)","v":0}]
[null,null,null,"○","Le traitement est administré immédiatement et l’approvisionnement est ininterrompu ",null,null,null,null,null,null,0,0,0]
[null,null,null,"○","L’accès aux services est distribué de manière équitable dans la communauté et pour toutes les personnes transgenres ",null,null,null,null,null,null,0,0,0]
[null,null,null,"○","Des campagnes de vaccination contre l’hépatite B et C sont menées de manière systématique ",null,null,null,null,null,null,0,0,0]
[null,null,null,null,"Des schémas de vaccination rapide et standard contre les hépatites B et C sont disponibles et facilement accessibles ",null,null,null,null,null,null,0,0,0]
[null,null,null,"○","Des ressources ont été allouées à la prévention, à la vaccination, au dépistage et au traitement des hépatites virales",null,null,null,null,null,null,0,0,0]
[null,null,"Dépistage et traitement de la consommation de drogues et d’alcool","Le dépistage et le traitement de la consommation problématique d’alcool et de drogues sont systématiquement effectués dans les établissements de soins de santé, les zones sensibles locales et les cliniques mobiles ",null,null,null,null,null,{"$f":"O217","v":"-"},null,null,null,null,{"$f":"IFERROR(ROUND(AVERAGEIF(L218:N222,\"<>0\",L218:N222),0),\"-\")","v":"-"}]
[null,null,null,"○","Le dépistage et le traitement de la consommation problématique d’alcool et de drogues sont systématiquement effectués dans les établissements de soins de santé, les zones sensibles locales et les cliniques mobiles ",null,null,null,null,null,null,{"$f":"IF(ISBLANK(G218),0,1)","v":0},{"$f":"IF(ISBLANK(H218),0,3)","v":0},{"$f":"IF(ISBLANK(I218),0,5)","v":0}]
[null,null,null,"○","Les pairs-travailleurs de proximité font le lien entre les personnes à risque et les services de dépistage et de traitement ",null,null,null,null,null,null,{"$f":"IF(ISBLANK(G219),0,1)","v":0},{"$f":"IF(ISBLANK(H219),0,3)","v":0},{"$f":"IF(ISBLANK(I219),0,5)","v":0}]
[null,null,null,"○","Les personnes sont mises en relation avec des conseillers, des organisations et des groupes de soutien appropriés",null,null,null,null,null,null,{"$f":"IF(ISBLANK(G220),0,1)","v":0},{"$f":"IF(ISBLANK(H220),0,3)","v":0},{"$f":"IF(ISBLANK(I220),0,5)","v":0}]
[null,null,null,"○","Le traitement est initié immédiatement si la personne y consent volontairement",null,null,null,null,null,null,{"$f":"IF(ISBLANK(G221),0,1)","v":0},{"$f":"IF(ISBLANK(H221),0,3)","v":0},{"$f":"IF(ISBLANK(I221),0,5)","v":0}]
[null,null,null,"○","L’orientation vers d’autres services (santé mentale, soutien psychosocial) est assurée en temps utile",null,null,null,null,null,null,{"$f":"IF(ISBLANK(G222),0,1)","v":0},{"$f":"IF(ISBLANK(H222),0,3)","v":0},{"$f":"IF(ISBLANK(I222),0,5)","v":0}]
[null,null,"Soins de santé mentale","Des soins de santé mentale sont accessibles et prodigués de manière cohérente aux personnes transgenres vivant avec le VIH et comprennent :",null,null,null,null,null,{"$f":"O223","v":"-"},null,null,null,null,{"$f":"IFERROR(ROUND(AVERAGEIF(L224:N225,\"<>0\",L224:N225),0),\"-\")","v":"-"}]
[null,null,null,"○","Dépistage systématique des troubles de la santé mentale (notamment la dépression et le stress psychosocial), conformément au programme d’action sur les lacunes en matière de santé mentale (PALSM)",null,null,null,null,null,null,{"$f":"IF(ISBLANK(G224),0,1)","v":0},{"$f":"IF(ISBLANK(H224),0,3)","v":0},{"$f":"IF(ISBLANK(I224),0,5)","v":0}]
[null,null,null,"○","Conseils post-test VIH après un résultat positif pour dépister les risques de suicide, de dépression et d’autres problèmes de santé mentale ",null,null,null,null,null,null,{"$f":"IF(ISBLANK(G225),0,1)","v":0},{"$f":"IF(ISBLANK(H225),0,3)","v":0},{"$f":"IF(ISBLANK(I225),0,5)","v":0}]
[null,null,"COVID-19 ","Prestation de services différenciés centrés sur les personnes pour les programmes transgenres pendant le COVID-19 \n",null,null,null,null,null,{"$f":"O226","v":"-"},null,null,null,null,{"$f":"IFERROR(ROUND(AVERAGEIF(L227:N228,\"<>0\",L227:N228),0),\"-\")","v":"-"}]
[null,null,null,"○","Des programmes sont en place pour encourager et suivre l’utilisation du vaccin COVID-19 chez les personnes transgenres ",null,null,null,null,null,null,{"$f":"IF(ISBLANK(G227),0,1)","v":0},{"$f":"IF(ISBLANK(H227),0,3)","v":0},{"$f":"IF(ISBLANK(I227),0,5)","v":0}]
[null,null,null,"○","Maintien de la messagerie et de l’accès sécurisé aux modèles de prestation de services hors établissement (ex. : communautaires, à domicile, de télésanté) pendant les pics de COVID-19 afin d’éviter toute interruption de service",null,null,null,null,null,null,{"$f":"IF(ISBLANK(G228),0,1)","v":0},{"$f":"IF(ISBLANK(H228),0,3)","v":0},{"$f":"IF(ISBLANK(I228),0,5)","v":0}]
[null,null,"Interventions comportementales"]
[null,null,"Élément","Critères",null,"S/O","Absent","Présent mais non optimal","Présent et fonctionnel","Moyenne de l’élément","Commentaires (le cas échéant)"]
[null,null,"Communication sur le changement social et comportemental (CCSC)","Les activités de CCSC sont incluses dans le programme sur les populations clés. Elles sont :",null,null,null,null,null,{"$f":"O231","v":"-"},null,null,null,null,{"$f":"IFERROR(ROUND(AVERAGEIF(L232:N236,\"<>0\",L232:N236),0),\"-\")","v":"-"}]
[null,null,null,"○","Bien planifiées et dûment budgétisées",null,null,null,null,null,null,{"$f":"IF(ISBLANK(G232),0,1)","v":0},{"$f":"IF(ISBLANK(H232),0,3)","v":0},{"$f":"IF(ISBLANK(I232),0,5)","v":0}]
[null,null,null,"○","Fondées sur des données probantes ",null,null,null,null,null,null,{"$f":"IF(ISBLANK(G233),0,1)","v":0},{"$f":"IF(ISBLANK(H233),0,3)","v":0},{"$f":"IF(ISBLANK(I233),0,5)","v":0}]
[null,null,null,"○","Les personnes transgenres ont été impliquées dans la conception et l’essai des interventions",null,null,null,null,null,null,{"$f":"IF(ISBLANK(G234),0,1)","v":0},{"$f":"IF(ISBLANK(H234),0,3)","v":0},{"$f":"IF(ISBLANK(I234),0,5)","v":0}]
[null,null,null,"○","Les organisations et les personnes qui mettent en œuvre ces interventions sont expérimentées et formées aux interventions de CCSC",null,null,null,null,null,null,{"$f":"IF(ISBLANK(G235),0,1)","v":0},{"$f":"IF(ISBLANK(H235),0,3)","v":0},{"$f":"IF(ISBLANK(I235),0,5)","v":0}]
[null,null,null,"○","Des interventions de communication sur le changement social et comportemental sont incluses dans les plans et activités de suivi et d’évaluation",null,null,null,null,null,null,{"$f":"IF(ISBLANK(G236),0,1)","v":0},{"$f":"IF(ISBLANK(H236),0,3)","v":0},{"$f":"IF(ISBLANK(I236),0,5)","v":0}]
[null,null,"Interventions structurelles"]
[null,null,"Élément","Critères",null,"S/O","Absent","Présent mais non optimal","Présent et fonctionnel","Moyenne de l’élément","Commentaires (le cas échéant)"]
[null,null,"Prévention et réponse à la violence","Des programmes visant à lutter contre la violence à l’égard des personnes transgenres sont mis en œuvre de manière cohérente et comprennent :",null,null,null,null,null,{"$f":"O239","v":"-"},null,null,null,null,{"$f":"IFERROR(ROUND(AVERAGEIF(L240:N246,\"<>0\",L240:N246),0),\"-\")","v":"-"}]
[null,null,null,"○","Informations sur la sécurité",null,null,null,null,null,null,{"$f":"IF(ISBLANK(G240),0,1)","v":0},{"$f":"IF(ISBLANK(H240),0,3)","v":0},{"$f":"IF(ISBLANK(I240),0,5)","v":0}]
[null,null,null,"○","Espaces sécurisés (Centres d’accueil)",null,null,null,null,null,null,0,0,0]
[null,null,null,"○","Sécurité renforcée sur le lieu de travail",null,null,null,null,null,null,0,0,0]
[null,null,null,"○","Mécanismes standardisés de surveillance et de signalement des expériences de violence qui outrepassent les pouvoirs de la police et peuvent inclure un soutien parajuridique de la part des organisations de personnes transgenres ",null,null,null,null,null,null,0,0,0]
[null,null,null,"○","Formation complète de la police et des travailleurs sociaux pour qu’ils soient sensibles aux besoins des personnes transgenres ",null,null,null,null,null,null,0,0,0]
[null,null,null,"○","Plans de réponse à la violence élaborés par la communauté",null,null,null,null,null,null,0,0,0]
[null,null,null,"○","Liens établis avec l’assistance juridique",null,null,null,null,null,null,0,0,0]
[null,null,"Réduction de la stigmatisation et de la discrimination ","Efforts visant à réduire la stigmatisation et la discrimination à l’égard des personnes transgenres, y compris :  ",null,null,null,null,null,{"$f":"O247","v":"-"},null,null,null,null,{"$f":"IFERROR(ROUND(AVERAGEIF(L248:N254,\"<>0\",L248:N254),0),\"-\")","v":"-"}]
[null,null,null,"○","Promotion de politiques antidiscriminatoires et protectrices pour toutes les personnes transgenres ",null,null,null,null,null,null,{"$f":"IF(ISBLANK(G248),0,1)","v":0},{"$f":"IF(ISBLANK(H248),0,3)","v":0},{"$f":"IF(ISBLANK(I248),0,5)","v":0}]
[null,null,null,"○","Programmes, au sein et hors du secteur de la santé, qui instituent des politiques et des codes de conduite contre la stigmatisation et la discrimination",null,null,null,null,null,null,{"$f":"IF(ISBLANK(G249),0,1)","v":0},{"$f":"IF(ISBLANK(H249),0,3)","v":0},{"$f":"IF(ISBLANK(I249),0,5)","v":0}]
[null,null,null,"○","Le suivi et la surveillance sont effectués régulièrement pour garantir que les normes sont mises en œuvre et maintenues",null,null,null,null,null,null,{"$f":"IF(ISBLANK(G250),0,1)","v":0},{"$f":"IF(ISBLANK(H250),0,3)","v":0},{"$f":"IF(ISBLANK(I250),0,5)","v":0}]
[null,null,null,"○","Des campagnes permanentes de réduction de la stigmatisation sont menées",null,null,null,null,null,null,0,0,0]
[null,null,null,"○","Sensibilisation, éducation et engagement continus des chefs religieux et des anciens, des agents chargés de l’application de la loi et des travailleurs de santé ",null,null,null,null,null,null,0,0,0]
[null,null,null,"○","Des mécanismes efficaces sont mis à disposition pour permettre la dénonciation anonyme d’incidents de stigmatisation et/ou de discrimination lors de l’accès aux soins de santé  ",null,null,null,null,null,null,0,0,0]
[null,null,null,"○","Un soutien et un suivi sont dispensés aux personnes transgenres qui signalent des incidents de stigmatisation et/ou de discrimination",null,null,null,null,null,null,0,{"$f":"IF(ISBLANK(H254),0,3)","v":0},0]
[null,null,"Services juridiques liés au VIH ","Des services juridiques liés au VIH sont en place pour répondre aux besoins des populations de personnes transgenres et :",null,null,null,null,null,{"$f":"O255","v":"-"},null,null,null,null,{"$f":"IFERROR(ROUND(AVERAGEIF(L256:N258,\"<>0\",L256:N258),0),\"-\")","v":"-"}]
[null,null,null,"○","Il existe des formes alternatives de résolution des conflits",null,null,null,null,null,null,{"$f":"IF(ISBLANK(G256),0,1)","v":0},{"$f":"IF(ISBLANK(H256),0,3)","v":0},{"$f":"IF(ISBLANK(I256),0,5)","v":0}]
[null,null,null,"○","L’accès à l’information et à l’orientation juridiques est facilement disponible",null,null,null,null,null,null,{"$f":"IF(ISBLANK(G257),0,1)","v":0},{"$f":"IF(ISBLANK(H257),0,3)","v":0},{"$f":"IF(ISBLANK(I257),0,5)","v":0}]
[null,null,null,"○","L’accès aux conseils et à la représentation juridiques est facilement disponible",null,null,null,null,null,null,{"$f":"IF(ISBLANK(G258),0,1)","v":0},{"$f":"IF(ISBLANK(H258),0,3)","v":0},{"$f":"IF(ISBLANK(I258),0,5)","v":0}]
[null,null,"Contrôle de l’application de la loi ","La mise en œuvre des politiques, des règlements et des lois fait l’objet d’un suivi régulier afin d’évaluer l’impact sur les personnes transgenres",null,null,null,null,null,{"$f":"O259","v":"-"},null,{"$f":"IF(ISBLANK(G259),0,1)","v":0},{"$f":"IF(ISBLANK(H259),0,3)","v":0},{"$f":"IF(ISBLANK(I259),0,5)","v":0},{"$f":"IFERROR(ROUND(AVERAGEIF(L259:N259,\"<>0\",L259:N259),0),\"-\")","v":"-"}]
[null,null,"Connaissances juridiques","Une formation juridique complète est dispensée aux personnes transgenres ",null,null,null,null,null,{"$f":"O260","v":"-"},null,null,null,null,{"$f":"IFERROR(ROUND(AVERAGEIF(L261:N262,\"<>0\",L261:N262),0),\"-\")","v":"-"}]
[null,null,null,"○","Des stratégies efficaces pour s’engager avec la police ont été décrites et communiquées aux personnes transgenres  ",null,null,null,null,null,null,{"$f":"IF(ISBLANK(G261),0,1)","v":0},{"$f":"IF(ISBLANK(H261),0,3)","v":0},{"$f":"IF(ISBLANK(I261),0,5)","v":0}]
[null,null,null,"○","Les personnes transgenres connaissent leurs lois et leurs droits et sont capables de défendre leurs besoins dans le contexte du VIH autour de leurs lois et de leurs droits",null,null,null,null,null,null,{"$f":"IF(ISBLANK(G262),0,1)","v":0},{"$f":"IF(ISBLANK(H262),0,3)","v":0},{"$f":"IF(ISBLANK(I262),0,5)","v":0}]
[null,null,"Sensibilisation des législateurs et des agents chargés de l’application de la loi ","Une formation approfondie des législateurs et des agents chargés de l’application de la loi a lieu régulièrement afin de garantir une sensibilisation appropriée de tous les législateurs et agents chargés de l’application de la loi aux personnes transgenres et comprend : ",null,null,null,null,null,{"$f":"O263","v":"-"},null,null,null,null,{"$f":"IFERROR(ROUND(AVERAGEIF(L264:N267,\"<>0\",L264:N267),0),\"-\")","v":"-"}]
[null,null,null,"○","Programme complet de formation à la sensibilisation, adapté au contexte du pays",null,null,null,null,null,null,{"$f":"IF(ISBLANK(G264),0,1)","v":0},{"$f":"IF(ISBLANK(H264),0,3)","v":0},{"$f":"IF(ISBLANK(I264),0,5)","v":0}]
[null,null,null,"○","Animateurs dûment formés",null,null,null,null,null,null,{"$f":"IF(ISBLANK(G265),0,1)","v":0},{"$f":"IF(ISBLANK(H265),0,3)","v":0},{"$f":"IF(ISBLANK(I265),0,5)","v":0}]
[null,null,null,"○","Participation des personnes transgenres ",null,null,null,null,null,null,{"$f":"IF(ISBLANK(G266),0,1)","v":0},{"$f":"IF(ISBLANK(H266),0,3)","v":0},{"$f":"IF(ISBLANK(I266),0,5)","v":0}]
[null,null,null,"○","Retour d’information des participants",null,null,null,null,null,null,{"$f":"IF(ISBLANK(G267),0,1)","v":0},{"$f":"IF(ISBLANK(H267),0,3)","v":0},{"$f":"IF(ISBLANK(I267),0,5)","v":0}]
[null,null,"Formation pour les prestataires de soins de santé sur les droits humains et l’éthique médicale liés au VIH ","Programme complet de formation à la sensibilisation, adapté au contexte du pays",null,null,null,null,null,{"$f":"O268","v":"-"},null,null,null,null,{"$f":"IFERROR(ROUND(AVERAGEIF(L269:N271,\"<>0\",L269:N271),0),\"-\")","v":"-"}]
[null,null,null,"○","Animateurs dûment formés",null,null,null,null,null,null,{"$f":"IF(ISBLANK(G269),0,1)","v":0},{"$f":"IF(ISBLANK(H269),0,3)","v":0},{"$f":"IF(ISBLANK(I269),0,5)","v":0}]
[null,null,null,"○","Participation des personnes transgenres ",null,null,null,null,null,null,{"$f":"IF(ISBLANK(G270),0,1)","v":0},{"$f":"IF(ISBLANK(H270),0,3)","v":0},{"$f":"IF(ISBLANK(I270),0,5)","v":0}]
[null,null,null,"○","Retour d’information des participants",null,null,null,null,null,null,{"$f":"IF(ISBLANK(G271),0,1)","v":0},{"$f":"IF(ISBLANK(H271),0,3)","v":0},{"$f":"IF(ISBLANK(I271),0,5)","v":0}]
[null,null,"Réduction de la discrimination à l’égard des femmes dans le contexte du VIH ","Des programmes visant à lutter contre l’inégalité entre les sexes, la violence sexiste et le VIH sont mis en œuvre et abordent : ",null,null,null,null,null,{"$f":"O272","v":"-"},null,null,null,null,{"$f":"IFERROR(ROUND(AVERAGEIF(L273:N279,\"<>0\",L273:N279),0),\"-\")","v":"-"}]
[null,null,null,"○","Inégalité des femmes et des filles dans la prise de décision en matière de sexualité et de procréation ",null,null,null,null,null,null,{"$f":"IF(ISBLANK(G273),0,1)","v":0},{"$f":"IF(ISBLANK(H273),0,3)","v":0},{"$f":"IF(ISBLANK(I273),0,5)","v":0}]
[null,null,null,"○","Obstacles liés au genre dans l’accès aux services de santé ",null,null,null,null,null,null,0,0,0]
[null,null,null,"○","Discrimination en matière d’héritage, de propriété, de mariage, de divorce et de garde des enfants ",null,null,null,null,null,null,0,0,0]
[null,null,null,"○","Violences sexuelles et autres ",null,null,null,null,null,null,0,0,0]
[null,null,null,"○","Manque d’égalité d’accès aux opportunités éducatives et économiques ",null,null,null,null,null,null,0,0,0]
[null,null,null,"○","Manque de soutien aux soignants dans les foyers touchés par le VIH ",null,null,null,null,null,null,0,0,0]
[null,null,null,"○","Ils sont complétés par des programmes ciblant les hommes et les garçons et portant sur les normes sexospécifiques néfastes ",null,null,null,null,null,null,0,0,0]
[null,null,"Espaces sécurisés / Centres d’accueil","Des espaces sécurisés/centres d’accueil ont été créés pour les personnes transgenres et :",null,null,null,null,null,{"$f":"O280","v":"-"},null,null,null,null,{"$f":"IFERROR(ROUND(AVERAGEIF(L281:N289,\"<>0\",L281:N289),0),\"-\")","v":"-"}]
[null,null,null,"○","Servent de lieu principal d’interaction entre la communauté et le programme",null,null,null,null,null,null,{"$f":"IF(ISBLANK(G281),0,1)","v":0},{"$f":"IF(ISBLANK(H281),0,3)","v":0},{"$f":"IF(ISBLANK(I281),0,5)","v":0}]
[null,null,null,"○","Fournissent une plateforme pour les initiatives de mobilisation, de formation et d’organisation des communautés",null,null,null,null,null,null,0,0,0]
[null,null,null,"○","Partage d’informations sur les événements, les activités et les services pertinents pour la communauté",null,null,null,null,null,null,0,0,0]
[null,null,null,"○","Des supports d’information, d’éducation et de communication conviviaux sont accessibles",null,null,null,null,null,null,0,0,0]
[null,null,null,"○","Fournissent des services et un soutien psychosociaux ",null,null,null,null,null,null,0,0,0]
[null,null,null,"○","Des préservatifs et des lubrifiants sont à disposition",null,null,null,null,null,null,0,0,0]
[null,null,null,"○","Sont utilisés par les pairs-éducateurs de proximité pour évaluer leur travail et planifier les activités de sensibilisation",null,null,null,null,null,null,0,0,0]
[null,null,null,"○","Sont établis en concertation avec les personnes transgenres pour déterminer l’emplacement, les heures d’ouverture et les services fournis",null,null,null,null,null,null,0,0,0]
[null,null,null,"○","Sont mis à disposition ou fournissent des liens vers des interventions pertinentes hors du secteur de la santé",null,null,null,null,null,null,0,0,0]
[null,null,"Comités communautaires","Des comités communautaires de personnes transgenres ont été constitués et :",null,null,null,null,null,{"$f":"O290","v":"-"},null,null,null,null,{"$f":"IFERROR(ROUND(AVERAGEIF(L291:N300,\"<>0\",L291:N300),0),\"-\")","v":"-"}]
[null,null,null,"○","Peuvent être librement et facilement mis sur pied",null,null,null,null,null,null,{"$f":"IF(ISBLANK(G291),0,1)","v":0},{"$f":"IF(ISBLANK(H291),0,3)","v":0},{"$f":"IF(ISBLANK(I291),0,5)","v":0}]
[null,null,null,"○","Organisent des réunions régulières (au moins mensuelles) et dressent des procès-verbaux pour consigner systématiquement les discussions ",null,null,null,null,null,null,0,0,0]
[null,null,null,"○","Examinent la prestation de services, résolvent les problèmes, suivent les changements, favorisent la compréhension et la responsabilité et traitent des questions générales de la communauté",null,null,null,null,null,null,0,0,0]
[null,null,null,"○","Élisent chaque année des membres de la communauté transgenre",null,null,null,null,null,null,0,0,0]
[null,null,null,"○","Élisent un défenseur de la communauté transgenre pour faire fonction d’intermédiaire du programme ",null,null,null,null,null,null,0,0,0]
[null,null,null,"○","Invitent le personnel concerné de l’organisation chargée de la mise en œuvre à devenir membre du comité ou à assister aux réunions",null,null,null,null,null,null,0,0,0]
[null,null,null,"○","Transmettent un retour d’information régulier au programme afin d’améliorer la qualité des services offerts",null,null,null,null,null,null,0,0,0]
[null,null,null,"○","Respectent la confidentialité ",null,null,null,null,null,null,0,0,0]
[null,null,null,"○","N’autorisent pas le personnel de l’organisme de mise en œuvre à voter lors des réunions",null,null,null,null,null,null,0,0,0]
[null,null,null,"○","Incluent des jeunes PC et renforcent leurs capacités ",null,null,null,null,null,null,0,0,0]
[null,null,"Suivi du programme"]
[null,null,"Élément","Critères",null,"S/O","Absent","Présent mais non optimal","Présent et fonctionnel","Moyenne de l’élément","Commentaires (le cas échéant)"]
[null,null,"Suivi de routine","Des indicateurs de routine du programme sont définis et déclarés :",null,null,null,null,null,{"$f":"O303","v":"-"},null,null,null,null,{"$f":"IFERROR(ROUND(AVERAGEIF(L304:N310,\"<>0\",L304:N310),0),\"-\")","v":"-"}]
[null,null,null,"○","Régulièrement (chaque mois/trimestre)",null,null,null,null,null,null,{"$f":"IF(ISBLANK(G304),0,1)","v":0},{"$f":"IF(ISBLANK(H304),0,3)","v":0},{"$f":"IF(ISBLANK(I304),0,5)","v":0}]
[null,null,null,"○","De façon exhaustive (les données sont cohérentes et il ne manque aucune information)",null,null,null,null,null,null,0,0,0]
[null,null,null,"○","À tous les niveaux (c’est-à-dire État/comté/province)",null,null,null,null,null,null,0,0,0]
[null,null,null,"○"," Par tous les partenaires de mise en œuvre",null,null,null,null,null,null,0,0,0]
[null,null,null,"○","Par le biais de la plateforme LISD/EMR",null,null,null,null,null,null,0,0,0]
[null,null,null,"○","Le suivi des données individuelles est effectué par les partenaires de mise en œuvre ",null,null,null,null,null,null,0,0,0]
[null,null,null,"○","Les données sont régulièrement examinées par toutes les parties prenantes (gouvernement, société civile, communauté transgenre, partenaires de mise en œuvre, donateurs) et utilisées pour améliorer les programmes ",null,null,null,null,null,null,0,0,0]
[null,null,"Suivi communautaire dans le cadre de l’obligation de rendre compte ","Intégration du suivi communautaire dans les plateformes de suivi nationales et :",null,null,null,null,null,{"$f":"O311","v":"-"},null,null,null,null,{"$f":"IFERROR(ROUND(AVERAGEIF(L312:N318,\"<>0\",L312:N318),0),\"-\")","v":"-"}]
[null,null,null,"○","Le suivi communautaire est accepté et intégré aux processus décisionnels et aux négociations avec les autorités locales, les bailleurs de fonds et autres soutiens extérieurs ",null,null,null,null,null,null,{"$f":"IF(ISBLANK(G312),0,1)","v":0},{"$f":"IF(ISBLANK(H312),0,3)","v":0},{"$f":"IF(ISBLANK(I312),0,5)","v":0}]
[null,null,null,"○","Fait fonction de mécanisme communautaire de surveillance et de responsabilisation",null,null,null,null,null,null,0,0,0]
[null,null,null,"○","Des pairs-contrôleurs formés collectent et analysent de manière systématique et régulière des données qualitatives et quantitatives sur la prestation de services liés au VIH",null,null,null,null,null,null,0,0,0]
[null,null,null,"○","Des équipes de suivi dirigées par la communauté sont en place pour répondre aux déficits de prestation de services VIH au sein des communautés",null,null,null,null,null,null,0,0,0]
[null,null,null,"○","Il y a collaboration entre les différents réseaux de personnes vivant avec le VIH (PVVIH) et les organisations communautaires des communautés touchées",null,null,null,null,null,null,0,0,0]
[null,null,null,"○","Les collecteurs de données et les autres membres de la communauté impliqués dans le suivi communautaire sont rémunérés conformément aux pratiques et normes nationales",null,null,null,null,null,null,0,0,0]
[null,null,null,"○"," Les communautés de TS sont formées et soutenues pour évaluer les établissements de santé et organiser des audiences publiques afin de demander des comptes aux responsables ",null,null,null,null,null,null,0,0,0]
[null,null,"Suivi du système d’orientation vers d’autres services","Des systèmes de suivi des orientations sont en place et incluent :",null,null,null,null,null,{"$f":"O319","v":"-"},null,null,null,null,{"$f":"IFERROR(ROUND(AVERAGEIF(L320:N324,\"<>0\",L320:N324),0),\"-\")","v":"-"}]
[null,null,null,"○","Un outil d’orientation largement disponible, comprenant des procédures opérationnelles permanentes claires",null,null,null,null,null,null,{"$f":"IF(ISBLANK(G320),0,1)","v":0},{"$f":"IF(ISBLANK(H320),0,3)","v":0},{"$f":"IF(ISBLANK(I320),0,5)","v":0}]
[null,null,null,"○","Un répertoire d’orientation dans l’établissement et dans les organisations de pairs ",null,null,null,null,null,null,{"$f":"IF(ISBLANK(G321),0,1)","v":0},{"$f":"IF(ISBLANK(H321),0,3)","v":0},{"$f":"IF(ISBLANK(I321),0,5)","v":0}]
[null,null,null,"○","Enregistrement des résultats ",null,null,null,null,null,null,{"$f":"IF(ISBLANK(G322),0,1)","v":0},{"$f":"IF(ISBLANK(H322),0,3)","v":0},{"$f":"IF(ISBLANK(I322),0,5)","v":0}]
[null,null,null,"○","Mécanismes de retour d’information entre les patients et les prestataires (qui orientent) ",null,null,null,null,null,null,{"$f":"IF(ISBLANK(G323),0,1)","v":0},{"$f":"IF(ISBLANK(H323),0,3)","v":0},{"$f":"IF(ISBLANK(I323),0,5)","v":0}]
[null,null,null,"○","Rapport sur les orientations (sur une base mensuelle) pour contrôler l’efficacité du système d’orientation",null,null,null,null,null,null,{"$f":"IF(ISBLANK(G324),0,1)","v":0},{"$f":"IF(ISBLANK(H324),0,3)","v":0},{"$f":"IF(ISBLANK(I324),0,5)","v":0}]
[null,null,"Évaluation de la qualité","Des systèmes de collecte de données sur la qualité des programmes et des indicateurs connexes ont été définis et :\n",null,null,null,null,null,{"$f":"O325","v":"-"},null,null,null,null,{"$f":"IFERROR(ROUND(AVERAGEIF(L326:N329,\"<>0\",L326:N329),0),\"-\")","v":"-"}]
[null,null,null,"○","Des données précises sont collectées",null,null,null,null,null,null,{"$f":"IF(ISBLANK(G326),0,1)","v":0},{"$f":"IF(ISBLANK(H326),0,3)","v":0},{"$f":"IF(ISBLANK(I326),0,5)","v":0}]
[null,null,null,"○","Les données sont exploitées ",null,null,null,null,null,null,{"$f":"IF(ISBLANK(G327),0,1)","v":0},{"$f":"IF(ISBLANK(H327),0,3)","v":0},{"$f":"IF(ISBLANK(I327),0,5)","v":0}]
[null,null,null,"○","Des mécanismes de retour d’information permettent aux personnes transgenres d’évaluer les services qu’elles ont reçus de manière à contrôler la qualité du programme",null,null,null,null,null,null,{"$f":"IF(ISBLANK(G328),0,1)","v":0},{"$f":"IF(ISBLANK(H328),0,3)","v":0},{"$f":"IF(ISBLANK(I328),0,5)","v":0}]
[null,null,null,"○","Les données sont régulièrement vérifiées ",null,null,null,null,null,null,{"$f":"IF(ISBLANK(G329),0,1)","v":0},{"$f":"IF(ISBLANK(H329),0,3)","v":0},{"$f":"IF(ISBLANK(I329),0,5)","v":0}]
[null,null,"Surveillance ","La surveillance autorise une description précise du contexte et des résultats/impacts du programme de la communauté transgenre \n",null,null,null,null,null,{"$f":"O330","v":"-"},null,null,null,null,{"$f":"IFERROR(ROUND(AVERAGEIF(L331:N334,\"<>0\",L331:N334),0),\"-\")","v":"-"}]
[null,null,null,"○","Des résultats d’études sont utilisés pour éclairer la prise de décision et la correction des trajectoires ",null,null,null,null,null,null,{"$f":"IF(ISBLANK(G331),0,1)","v":0},{"$f":"IF(ISBLANK(H331),0,3)","v":0},{"$f":"IF(ISBLANK(I331),0,5)","v":0}]
[null,null,null,"○","Implique l’analyse et l’interprétation des données à intervalles réguliers ",null,null,null,null,null,null,{"$f":"IF(ISBLANK(G332),0,1)","v":0},{"$f":"IF(ISBLANK(H332),0,3)","v":0},{"$f":"IF(ISBLANK(I332),0,5)","v":0}]
[null,null,null,"○","Implique la diffusion régulière d’informations pour répondre aux besoins locaux, provinciaux et nationaux ",null,null,null,null,null,null,{"$f":"IF(ISBLANK(G333),0,1)","v":0},{"$f":"IF(ISBLANK(H333),0,3)","v":0},{"$f":"IF(ISBLANK(I333),0,5)","v":0}]
[null,null,null,"○","Inclut des enquêtes biologiques et comportementales, des enquêtes sentinelles et d’autres études de recherche portant sur des indicateurs afférents aux personnes transgenres  ",null,null,null,null,null,null,{"$f":"IF(ISBLANK(G334),0,1)","v":0},{"$f":"IF(ISBLANK(H334),0,3)","v":0},{"$f":"IF(ISBLANK(I334),0,5)","v":0}]
[null,null,"Données pour la prise de décision","Le Programme national, l’unité de suivi et d’évaluation du ministère de la Santé ou un organisme de coordination similaire supervise/coordonne la collecte et le traitement des données de suivi, d’enquête et de surveillance et :",null,null,null,null,null,{"$f":"O335","v":"-"},null,null,null,null,{"$f":"IFERROR(ROUND(AVERAGEIF(L336:N343,\"<>0\",L336:N343),0),\"-\")","v":"-"}]
[null,null,null,"○","Partage des données avec le groupe de travail technique de la communauté transgenre",null,null,null,null,null,null,{"$f":"IF(ISBLANK(G336),0,1)","v":0},{"$f":"IF(ISBLANK(H336),0,3)","v":0},{"$f":"IF(ISBLANK(I336),0,5)","v":0}]
[null,null,null,"○","Le groupe de travail technique de la communauté transgenre analyse chaque trimestre les données du programme existant et identifie les domaines nécessitant une correction de trajectoire",null,null,null,null,null,null,0,0,0]
[null,null,null,"○","Le groupe de travail technique de la communauté transgenre contribue à l’élaboration de stratégies visant à combler les lacunes ",null,null,null,null,null,null,0,0,0]
[null,null,null,"○","Des données de bonne qualité (valides, fiables, cohérentes, précises, opportunes, pertinentes) sont collectées et la plupart des besoins d’information sont satisfaits et, s’ils ne le sont pas, les lacunes sont comprises ",null,null,null,null,null,null,0,0,0]
[null,null,null,"○","Les données sont utilisées de manière cohérente et appropriée pour éclairer les décisions ",null,null,null,null,null,null,0,0,0]
[null,null,null,"○","Les données ont été dédupliquées entre les partenaires de mise en œuvre et les doublons sont minimes, voire inexistants",null,null,null,null,null,null,0,0,0]
[null,null,null,"○","Les données sont agrégées au niveau central mais peuvent être désagrégées par localité, sexe et âge",null,null,null,null,null,null,0,0,0]
[null,null,null,"○","Le programme fournit des données au groupe de travail technique pour examen",null,null,null,null,null,null,0,0,0]
[null,null,"Utilisation de Codes d’identification uniques pour le suivi des programmes","Le système utilisé pour le suivi du programme est pleinement opérationnel et adéquat pour suivre la performance du programme",null,null,null,null,null,{"$f":"O344","v":"-"},null,null,null,null,{"$f":"IFERROR(ROUND(AVERAGEIF(L345:N348,\"<>0\",L345:N348),0),\"-\")","v":"-"}]
[null,null,null,"○","Plusieurs codes d’identification uniques peuvent être utilisés dans un pays donné, mais ils sont harmonisés",null,null,null,null,null,null,{"$f":"IF(ISBLANK(G345),0,1)","v":0},{"$f":"IF(ISBLANK(H345),0,3)","v":0},{"$f":"IF(ISBLANK(I345),0,5)","v":0}]
[null,null,null,"○","Le programme national utilise des données agrégées de code d’identification unique",null,null,null,null,null,null,{"$f":"IF(ISBLANK(G346),0,1)","v":0},{"$f":"IF(ISBLANK(H346),0,3)","v":0},{"$f":"IF(ISBLANK(I346),0,5)","v":0}]
[null,null,null,"○","Le code d’identification unique est capable de distinguer le contact et la portée, à des fins de déduplication ",null,null,null,null,null,null,{"$f":"IF(ISBLANK(G347),0,1)","v":0},{"$f":"IF(ISBLANK(H347),0,3)","v":0},{"$f":"IF(ISBLANK(I347),0,5)","v":0}]
[null,null,null,"○","Le code d’identification unique est électronique",null,null,null,null,null,null,{"$f":"IF(ISBLANK(G348),0,1)","v":0},{"$f":"IF(ISBLANK(H348),0,3)","v":0},{"$f":"IF(ISBLANK(I348),0,5)","v":0}]
[null,null,"Suivi budgétaire","Le suivi des performances financières et non financières du programme de la communauté transgenre est intégré et des rapports de routine sont générés : ",null,null,null,null,null,{"$f":"O349","v":"-"},null,null,null,null,{"$f":"IFERROR(ROUND(AVERAGEIF(L350:N352,\"<>0\",L350:N352),0),\"-\")","v":"-"}]
[null,null,null,"○","Les données sur les dépenses relatives aux interventions en faveur des personnes transgenres sont facilement accessibles ",null,null,null,null,null,null,{"$f":"IF(ISBLANK(G350),0,1)","v":0},{"$f":"IF(ISBLANK(H350),0,3)","v":0},{"$f":"IF(ISBLANK(I350),0,5)","v":0}]
[null,null,null,"○","Des mécanismes de reddition de comptes sur les dépenses insuffisantes et excédentaires sont en place ",null,null,null,null,null,null,{"$f":"IF(ISBLANK(G351),0,1)","v":0},{"$f":"IF(ISBLANK(H351),0,3)","v":0},{"$f":"IF(ISBLANK(I351),0,5)","v":0}]
[null,null,null,"○","Des données financières et non financières sont utilisées pour évaluer le rapport qualité-prix",null,null,null,null,null,null,{"$f":"IF(ISBLANK(G352),0,1)","v":0},{"$f":"IF(ISBLANK(H352),0,3)","v":0},{"$f":"IF(ISBLANK(I352),0,5)","v":0}]
[]
[null,null,"Résultats de programme"]
[]
[null,null,"Résultats et indicateurs"]
[null,null,"Indicateur",null,null,"S/O","Non surveillé ","Objectif non atteint ou non conforme aux prévisions ","Objectif atteint ou en passe de l’être ","Moyenne de l’élément","Commentaires (le cas échéant)"]
[null,null,"Estimations de la taille de la population de personnes transgenres disponibles",null,null,null,null,null,null,{"$f":"O358","v":"-"},null,{"$f":"IF(ISBLANK(G358),0,1)","v":0},{"$f":"IF(ISBLANK(H358),0,3)","v":0},{"$f":"IF(ISBLANK(I358),0,5)","v":0},{"$f":"IFERROR(ROUND(AVERAGEIF(L358:N358,\"<>0\",L358:N358),0),\"-\")","v":"-"}]
[null,null,"La stratégie de prévention comprend des éléments essentiels du paquet de prévention pour les personnes transgenres ",null,null,null,null,null,null,{"$f":"O359","v":"-"},null,0,0,0,{"$f":"IFERROR(ROUND(AVERAGEIF(L359:N359,\"<>0\",L359:N359),0),\"-\")","v":"-"}]
[null,null,"Prévalence du VIH chez les personnes transgenres",null,null,null,null,null,null,{"$f":"O360","v":"-"},null,0,0,0,"-"]
[null,null,"Personnes transgenres vivant avec le VIH qui connaissent leur statut VIH (cible 90 %)",null,null,null,null,null,null,{"$f":"O361","v":"-"},null,0,0,0,"-"]
[null,null,"Personnes transgenres vivant avec le VIH sous traitement antirétroviral (cible 90 %)",null,null,null,null,null,null,"-",null,0,0,0,"-"]
[null,null,"Personnes transgenres vivant avec le VIH qui ont supprimé leur charge virale (cible 90 %)",null,null,null,null,null,null,"-",null,0,0,0,"-"]
[null,null,"Personnes transgenres ayant reçu au moins 2 interventions de prévention du VIH au cours des 3 derniers mois",null,null,null,null,null,null,"-",null,0,0,0,"-"]
[null,null,"Criminalisation des personnes transgenres",null,null,null,null,null,null,"-",null,0,0,0,"-"]
[null,null,"Pourcentage de personnes transgenres ayant évité les soins de santé pour raison de stigmatisation et de discrimination ",null,null,null,null,null,null,"-",null,0,0,0,"-"]
[null,null,"Soins de santé tenant compte de la dimension de genre dans les centres de soins de santé",null,null,null,null,null,null,"-",null,0,0,0,"-"]
[null,null,"Utilisation du préservatif chez les personnes transgenres (cible 80 %)",null,null,null,null,null,null,"-",null,0,0,0,"-"]
[null,null,null,null,null,null,null,null,null,null,null,null,{"$f":"COUNTIF(O6:O368,\"-\")","v":65}]
[null,null,null,null,null,null,null,null,null,null,null,null,{"$f":"COUNTIF(O6:O368,\">0\")","v":0}]
[null,null,null,null,null,null,null,null,null,null,null,"Achèvement de la feuille",{"$f":"M370/(M369+M370)","v":0},{"$f":"1-M371","v":1}]

{"sheet":"Prisonniers ","index":7,"n_rows":328,"n_cols":16,"rows_kept":328,"cut":false,"hidden":false,"merged":[[316,2,316,8],[317,3,317,4],[320,2,320,4],[321,2,321,4],[322,2,322,4],[311,2,314,2],[311,3,311,4],[311,9,314,9],[318,2,318,4],[319,2,319,4],[297,2,305,2],[297,3,297,4],[297,9,305,9],[306,2,310,2],[306,3,306,4],[306,9,310,9],[287,2,291,2],[287,3,287,4],[287,9,291,9],[292,2,296,2],[292,3,292,4],[292,9,296,9],[281,2,286,2],[281,3,281,4],[281,9,286,9],[256,2,263,2],[256,3,256,4],[256,9,263,9],[264,2,264,8],[265,3,265,4],[266,2,273,2],[266,3,266,4],[266,9,273,9],[274,3,274,4],[274,9,280,9],[274,2,280,2],[247,2,251,2],[247,3,247,4],[247,9,251,9],[252,2,255,2],[252,3,252,4],[252,9,255,9],[240,2,243,2],[240,3,240,4],[240,9,243,9],[244,3,244,4],[245,2,246,2],[245,3,245,4],[245,9,246,9],[232,2,239,2],[232,3,232,4],[232,9,239,9],[218,2,218,8],[219,3,219,4],[220,2,225,2],[220,3,220,4],[220,9,225,9],[226,2,226,8],[212,2,214,2],[212,3,212,4],[212,9,214,9],[215,2,217,2],[215,3,215,4],[215,9,217,9],[227,3,227,4],[228,2,231,2],[228,9,231,9],[204,2,208,2],[204,3,204,4],[204,9,208,9],[209,2,211,2],[209,3,209,4],[209,9,211,9],[186,2,196,2],[186,3,186,4],[186,9,196,9],[197,2,203,2],[197,3,197,4],[197,9,203,9],[177,2,180,2],[177,3,177,4],[177,9,180,9],[181,3,181,4],[182,2,185,2],[182,3,182,4],[182,9,185,9],[158,2,170,2],[158,3,158,4],[158,9,170,9],[171,2,176,2],[171,3,171,4],[171,9,176,9],[146,2,151,2],[146,3,146,4],[146,9,151,9],[152,2,152,8],[153,3,153,4],[154,2,157,2],[154,3,154,4],[154,9,157,9],[130,2,130,8],[131,3,131,4],[132,2,139,2],[132,3,132,4],[132,9,139,9],[140,2,145,2],[140,3,140,4],[140,9,145,9],[118,2,124,2],[118,3,118,4],[118,9,124,9],[125,2,129,2],[125,3,125,4],[125,9,129,9],[107,2,111,2],[107,3,107,4],[107,9,111,9],[112,2,117,2],[112,3,112,4],[112,9,117,9],[91,2,99,2],[91,3,91,4],[91,9,99,9],[100,2,100,8],[101,3,101,4],[102,2,106,2],[102,3,102,4],[102,9,106,9],[80,2,86,2],[80,3,80,4],[80,9,86,9],[87,2,90,2],[87,3,87,4],[87,9,90,9],[61,2,64,2],[61,3,61,4],[61,9,64,9],[73,2,73,8],[74,3,74,4],[75,2,79,2],[75,3,75,4],[75,9,79,9],[52,2,56,2],[52,3,52,4],[52,9,56,9],[57,2,57,8],[58,3,58,4],[59,2,60,2],[59,3,59,4],[59,9,60,9],[67,2,70,2],[67,9,70,9],[42,2,46,2],[42,3,42,4],[42,9,46,9],[47,2,47,8],[48,3,48,4],[49,2,51,2],[49,3,49,4],[49,9,51,9],[21,3,21,4],[21,9,27,9],[28,2,34,2],[28,3,28,4],[28,9,34,9],[35,2,41,2],[35,3,35,4],[35,9,41,9],[21,2,27,2],[3,2,3,8],[4,3,4,4],[5,2,14,2],[5,3,5,4],[5,9,14,9],[15,2,20,2],[15,3,15,4],[1,2,1,9],[15,9,20,9]]}
[]
[null,null,"Gestion de programme"]
[]
[null,null,"Leadership et coordination"]
[null,null,"Élément","Critères",null,"S/O","Absent","Présent mais non optimal","Présent et fonctionnel","Moyenne de l’élément","Commentaires (le cas échéant) ","Absent","Present","Optimal","Average","Sustainability Single Figure"]
[null,null,"Stratégie nationale pour les populations clés","Les prisonniers sont inclus dans la stratégie nationale pour les populations clés et dans la stratégie nationale globale de prévention du VIH :",null,null,null,null,null,{"$f":"O6","v":"-"},null,null,null,null,{"$f":"IFERROR(ROUND(AVERAGEIF(L7:N15,\"<>0\",L7:N15),0),\"-\")","v":"-"}]
[null,null,null,"○","Les prisonniers ont été impliqués dans l’élaboration du plan stratégique ",null,null,null,null,null,null,{"$f":"IF(ISBLANK(G7),0,1)","v":0},{"$f":"IF(ISBLANK(H7),0,3)","v":0},{"$f":"IF(ISBLANK(I7),0,5)","v":0}]
[null,null,null,"○","Les buts et les objectifs ont été clairement définis pour le programme ",null,null,null,null,null,null,0,0,0]
[null,null,null,"○","Les prisonniers ou personnes en milieu fermé ont été clairement définis conformément aux directives de l’Office des Nations unies contre la drogue et le crime (ONUDC) ",null,null,null,null,null,null,0,0,0]
[null,null,null,"○","Un modèle logique clair ou une théorie du changement claire a été formulé(e)  ",null,null,null,null,null,null,0,0,0]
[null,null,null,"○","Le plan comprend un ensemble complet d’interventions et d’activités fondées sur des données probantes, alignées sur les outils de mise en œuvre de l’Organisation mondiale de la Santé, identifiées par prisonnier, y compris des interventions ne relevant pas du secteur de la santé (ex. : autonomisation de la communauté, lutte contre la violence, réduction de la stigmatisation, etc.) et adaptées aux vulnérabilités spécifiques",null,null,null,null,null,null,0,0,0]
[null,null,null,"○","Des plans clairs de mise à l’échelle ont été définis, avec attribution de responsabilités ",null,null,null,null,null,null,0,0,0]
[null,null,null,"○","Des plans de financement sont en place ",null,null,null,null,null,null,0,0,0]
[null,null,null,"○","Un cadre de suivi et d’évaluation a été défini, avec des indicateurs et des objectifs fondamentaux",null,null,null,null,null,null,0,0,0]
[null,null,null,"○","Mécanisme de mise en œuvre clairement défini",null,null,null,null,null,null,0,0,0]
[null,null,"Obligation de rendre compte","Le département/ministère responsable de la réussite du programme et jouissant d’un leadership/autorité fort a été identifié :",null,null,null,null,null,{"$f":"O16","v":"-"},null,null,null,null,{"$f":"IFERROR(ROUND(AVERAGEIF(L17:N21,\"<>0\",L17:N21),0),\"-\")","v":"-"}]
[null,null,null,"○","Tous les projets dans le pays rendent régulièrement compte des indicateurs clés au gouvernement aux niveaux infranational et national avec des indicateurs communs ",null,null,null,null,null,null,{"$f":"IF(ISBLANK(G17),0,1)","v":0},{"$f":"IF(ISBLANK(H17),0,3)","v":0},{"$f":"IF(ISBLANK(I17),0,5)","v":0}]
[null,null,null,"○","Dans les rapports, les données sont anonymisées et sécurisées afin de protéger les prisonniers  ",null,null,null,null,null,null,0,0,0]
[null,null,null,"○","Des examens réguliers des programmes sont effectués à l’aide de données programmatiques",null,null,null,null,null,null,0,0,0]
[null,null,null,"○","Le ministère gouvernemental responsable du programme participe aux réunions de coordination pertinentes",null,null,null,null,null,null,0,0,0]
[null,null,null,"○","Le groupe de travail technique sur les populations clés (GTT), avec une représentation de prisonniers, est impliqué dans l’obligation de rendre des comptes",null,null,null,null,null,null,0,0,0]
[null,null,"Groupe de travail technique pour les prisonniers ","Un groupe de travail technique national pour les prisonniers a été créé :",null,null,null,null,null,{"$f":"O22","v":"-"},null,null,null,null,{"$f":"IFERROR(ROUND(AVERAGEIF(L23:N28,\"<>0\",L23:N28),0),\"-\")","v":"-"}]
[null,null,null,"○","Il se réunit régulièrement ",null,null,null,null,null,null,0,0,0]
[null,null,null,"○","Le groupe de travail technique est complet et comprend des organisations de la société civile (OSC), des partenaires de mise en œuvre, des représentants des populations concernées",null,null,null,null,null,null,0,0,0]
[null,null,null,"○","Le groupe de travail technique a mis en place des mécanismes de communication pour assurer la coordination",null,null,null,null,null,null,0,0,0]
[null,null,null,"○","Il a mis en place des mécanismes de communication interne et externe ",null,null,null,null,null,null,0,0,0]
[null,null,null,"○","Il a un mandat ou un champ d’application défini ",null,null,null,null,null,null,0,0,0]
[null,null,null,"○","Des membres de la communauté des prisonniers sont inclus",null,null,null,null,null,null,0,0,0]
[null,null,"Coordination des parties prenantes","Des mécanismes sont en place pour garantir une coordination à tous les niveaux et la coordination est fructueuse et cohérente avec : ",null,null,null,null,null,{"$f":"O29","v":"-"},null,null,null,null,{"$f":"IFERROR(ROUND(AVERAGEIF(L30:N35,\"<>0\",L30:N35),0),\"-\")","v":"-"}]
[null,null,null,"○","Partenaires de financement (au niveau national)",null,null,null,null,null,null,0,0,0]
[null,null,null,"○","Programmes locaux et initiatives nationales plus vastes ",null,null,null,null,null,null,0,0,0]
[null,null,null,"○","Communautés touchées",null,null,null,null,null,null,0,0,0]
[null,null,null,"○","Partenaires de mise en œuvre ",null,null,null,null,null,null,0,0,0]
[null,null,null,"○","Ministère de la Santé/départements gouvernementaux de la santé (aux niveaux national et infranational)",null,null,null,null,null,null,0,0,0]
[null,null,null,"○","Une coordination multisectorielle avec tous les autres ministères/départements (ex. : finances et application de la loi) a été réalisée",null,null,null,null,null,null,0,0,0]
[null,null,"Plan de renforcement des capacités et d’assistance technique","Un plan d’assistance technique est en place et : ",null,null,null,null,null,{"$f":"O36","v":"-"},null,null,null,null,{"$f":"IFERROR(ROUND(AVERAGEIF(L37:N42,\"<>0\",L37:N42),0),\"-\")","v":"-"}]
[null,null,null,"○","A été élaboré à l’appui d’une évaluation ",null,null,null,null,null,null,0,0,0,null,{"$f":"IF(MAX(L37:N37)=0,\"\",MAX(L37:N37))","v":""}]
[null,null,null,"○","A recours à des experts techniques nationaux et internationaux, notamment pour le développement des capacités et l’assistance technique entre pairs",null,null,null,null,null,null,0,0,0,null,""]
[null,null,null,"○","A priorisé les composantes du programme et les questions politiques ",null,null,null,null,null,null,0,0,0,null,""]
[null,null,null,"○","Facilite l’établissement et le renforcement des réseaux d’exécutants ",null,null,null,null,null,null,0,0,0,null,""]
[null,null,null,"○","Identifie les lacunes et élabore des demandes d’assistance consolidées lorsque l’expertise du pays fait défaut ",null,null,null,null,null,null,0,0,0,null,""]
[null,null,null,"○","Facilite le développement de la capacité de la communauté de prisonniers à s’approprier les programmes pour prisonniers ",null,null,null,null,null,null,0,0,0,null,""]
[null,null,"Plan de durabilité et feuille de route de transition","Un plan complet de durabilité et une feuille de route de transition, décrivant la transition accusée par les pays entre les interventions soutenues par les donateurs et les interventions soutenues au niveau national, sont en place et informés par : ",null,null,null,null,null,{"$f":"O43","v":"-"},null,null,null,null,{"$f":"IFERROR(ROUND(AVERAGEIF(L44:N47,\"<>0\",L44:N47),0),\"-\")","v":"-"},""]
[null,null,null,"○","Un exercice de calcul des coûts unitaires de la population clé",null,null,null,null,null,null,0,0,0,null,""]
[null,null,null,"○","Une analyse du paysage du financement de la population clé",null,null,null,null,null,null,0,0,0,null,""]
[null,null,null,"○","Planification de l’intégration des services de PC dans les soins de santé primaires",null,null,null,null,null,null,0,0,0]
[null,null,null,"○","Prise en compte des besoins financiers, humains et d’infrastructure",null,null,null,null,null,null,0,0,0,null,""]
[null,null,"Lois, politiques et réglementation"]
[null,null,"Élément","Critères",null,"S/O","Absent","Présent mais non optimal","Présent et fonctionnel","Moyenne de l’élément","Commentaires (le cas échéant) "]
[null,null,"Lois et politiques ","Des politiques promeuvent activement le bon fonctionnement du programme de prévention du VIH chez les prisonniers : ",null,null,null,null,null,{"$f":"O50","v":"-"},null,null,null,null,{"$f":"IFERROR(ROUND(AVERAGEIF(L51:N52,\"<>0\",L51:N52),0),\"-\")","v":"-"}]
[null,null,null,"○","Politiques qui favorisent activement l’accès des prisonniers aux services, y compris pour les prisonniers mineurs",null,null,null,null,null,null,{"$f":"IF(ISBLANK(G51),0,1)","v":0},{"$f":"IF(ISBLANK(H51),0,3)","v":0},{"$f":"IF(ISBLANK(I51),0,5)","v":0}]
[null,null,null,"○","Politiques en place qui aident les prisonniers à accéder aux services malgré les lois qui criminalisent la consommation de drogues, le travail du sexe et les activités homosexuelles",null,null,null,null,null,null,{"$f":"IF(ISBLANK(G52),0,1)","v":0},{"$f":"IF(ISBLANK(H52),0,3)","v":0},{"$f":"IF(ISBLANK(I52),0,5)","v":0}]
[null,null,"Lignes directrices","Les lignes directrices suivantes existent et articulent clairement les étapes d’une mise en œuvre réussie du programme :",null,null,null,null,null,{"$f":"O53","v":"-"},null,null,null,null,{"$f":"IFERROR(ROUND(AVERAGEIF(L54:N57,\"<>0\",L54:N57),0),\"-\")","v":"-"}]
[null,null,null,"○","Il existe des lignes directrices nationales pour chacune des interventions et services comportementaux, biomédicaux et structurels, et elles sont alignées sur les orientations mondiales ",null,null,null,null,null,null,{"$f":"IF(ISBLANK(G54),0,1)","v":0},{"$f":"IF(ISBLANK(H54),0,3)","v":0},{"$f":"IF(ISBLANK(I54),0,5)","v":0}]
[null,null,null,"○","Des lignes directrices ont été élaborées en concertation avec les populations concernées",null,null,null,null,null,null,0,0,0]
[null,null,null,"○","Les directives nationales pour les services de dépistage du VIH, les infections sexuellement transmissibles, la prophylaxie avant exposition et les préservatifs tiennent compte des besoins et priorités des prisonniers ",null,null,null,null,null,null,0,0,0]
[null,null,null,"○","Les mesures de prévention et de contrôle de l’infection COVID-19 sont intégrées dans l’ensemble des stratégies, plans et lignes directrices de prévention du VIH/prisonniers ",null,null,null,null,null,null,0,0,0]
[null,null,"Financement"]
[null,null,"Élément","Critères",null,"S/O","Absent","Présent mais non optimal","Présent et fonctionnel","Moyenne de l’élément","Commentaires (le cas échéant) "]
[null,null,"Calcul des coûts ","Budget national en place :",null,null,null,null,null,{"$f":"O60","v":"-"},null,null,null,null,{"$f":"IFERROR(ROUND(AVERAGEIF(L61:N61,\"<>0\",L61:N61),0),\"-\")","v":"-"}]
[null,null,null,"○","Un exercice de calcul des coûts a été réalisé et le programme national connaît le coût moyen pour atteindre un prisonnier avec un ensemble standard de services conformément aux lignes directrices ",null,null,null,null,null,null,{"$f":"IF(ISBLANK(G61),0,1)","v":0},{"$f":"IF(ISBLANK(H61),0,3)","v":0},{"$f":"IF(ISBLANK(I61),0,5)","v":0}]
[null,null,"Planification budgétaire","Un processus de planification budgétaire bien géré est en place pour le programme de prévention du VIH qui prend en compte les prisonniers ",null,null,null,null,null,{"$f":"O62","v":"-"},null,null,null,null,{"$f":"IFERROR(ROUND(AVERAGEIF(L63:N65,\"<>0\",L63:N65),0),\"-\")","v":"-"}]
[null,null,null,"○","Une évaluation des ressources disponibles est en cours afin d’essayer d’identifier les lacunes et d’allouer un budget au programme",null,null,null,null,null,null,0,0,0]
[null,null,null,"○","Une stratégie a été élaborée pour combler les lacunes de financement",null,null,null,null,null,null,0,0,0]
[null,null,null,"○","Les budgets sont corrélés aux besoins en ressources des plans opérationnels pour des cibles nationales et infranationales",null,null,null,null,null,null,0,0,0]
[null,null,"Mobilisation des ressources et financement","○","Le financement est suffisant pour répondre aux besoins de la programmation holistique ",null,null,null,null,{"$f":"O66","v":"-"},null,{"$f":"IF(ISBLANK(G66),0,1)","v":0},{"$f":"IF(ISBLANK(H66),0,3)","v":0},{"$f":"IF(ISBLANK(I66),0,5)","v":0},{"$f":"IFERROR(ROUND(AVERAGEIF(L66:N66,\"<>0\",L66:N66),0),\"-\")","v":"-"},{"$f":"IF(MAX(L66:N66)=0,\"\",MAX(L66:N66))","v":""}]
[null,null,"Ressourcement national","○","Plus de 50 % des ressources soutenant le programme, humaines et financières, sont nationales",null,null,null,null,{"$f":"O67","v":"-"},null,{"$f":"IF(ISBLANK(G67),0,1)","v":0},{"$f":"IF(ISBLANK(H67),0,3)","v":0},{"$f":"IF(ISBLANK(I67),0,5)","v":0},{"$f":"IFERROR(ROUND(AVERAGEIF(L67:N67,\"<>0\",L67:N67),0),\"-\")","v":"-"},{"$f":"IF(MAX(L67:N67)=0,\"\",MAX(L67:N67))","v":""}]
[null,null,"Contrats sociaux","○","Des mécanismes de contrats sociaux ont été élaborés et sont en cours de mise en œuvre",null,null,null,null,{"$f":"O68","v":"-"},null,{"$f":"IF(ISBLANK(G68),0,1)","v":0},{"$f":"IF(ISBLANK(H68),0,3)","v":0},{"$f":"IF(ISBLANK(I68),0,5)","v":0},{"$f":"IFERROR(ROUND(AVERAGEIF(L68:N71,\"<>0\",L68:N71),0),\"-\")","v":"-"},{"$f":"IF(MAX(L68:N68)=0,\"\",MAX(L68:N68))","v":""}]
[null,null,null,"○","Les opportunités sont largement diffusées afin de permettre aux partenaires locaux de mise en œuvre et aux organisations dirigées par des prisonniers d’accéder au financement",null,null,null,null,null,null,{"$f":"IF(ISBLANK(G69),0,1)","v":0},{"$f":"IF(ISBLANK(H69),0,3)","v":0},{"$f":"IF(ISBLANK(I69),0,5)","v":0}]
[null,null,null,"○","Un mécanisme a été mis en place pour autoriser le financement d’organisations dirigées par la communauté",null,null,null,null,null,null,0,0,0]
[null,null,null,"○","Les fonds sont réservés aux organisations dirigées par la communauté ",null,null,null,null,null,null,0,0,0]
[null,null,"Mise en œuvre de programme"]
[]
[null,null,"Ciblage et planification"]
[null,null,"Élément","Critères",null,"S/O","Absent","Présent mais non optimal","Présent et fonctionnel","Moyenne de l’élément","Commentaires (le cas échéant) "]
[null,null,"Évaluation démographique (estimation de la taille de la population et microplanification)","L’estimation de la taille de la population et la microplanification sont achevées et :",null,null,null,null,null,{"$f":"O76","v":"-"},null,null,null,null,{"$f":"IFERROR(ROUND(AVERAGEIF(L77:N80,\"<>0\",L77:N80),0),\"-\")","v":"-"}]
[null,null,null,"○","Sont établies en fonction du site (niveau local, par opposition au pays ou à la province)",null,null,null,null,null,null,0,0,0]
[null,null,null,"○","Sont mises à jour annuellement ou à l’issue d’une enquête biocomportementale",null,null,null,null,null,null,0,0,0]
[null,null,null,"○","Les informations sont utilisées pour déterminer la nécessité d’interventions comportementales, biomédicales et structurelles   ",null,null,null,null,null,null,0,0,0]
[null,null,null,"○","Ces informations sont utilisées pour estimer les besoins de financement et fixer des cibles",null,null,null,null,null,null,0,0,0]
[null,null,"Évaluation épidémiologique (enquête de séroprévalence et déterminants du risque)","Des estimations de séroprévalence sont disponibles et :",null,null,null,null,null,{"$f":"O81","v":"-"},null,null,null,null,{"$f":"IFERROR(ROUND(AVERAGEIF(L82:N87,\"<>0\",L82:N87),0),\"-\")","v":"-"}]
[null,null,null,"○","Sont basées sur une surveillance récente et/ou continue (estimations modélisées mises à jour annuellement ou données d’enquête mises à jour tous les 3-5 ans)",null,null,null,null,null,null,0,0,0]
[null,null,null,"○","Spécifiques aux prisonniers ",null,null,null,null,null,null,0,0,0]
[null,null,null,"○","Les résultats sont précis, la taille de l’échantillon est statistiquement représentative (puissance appropriée) et la méthode d’échantillonnage est appropriée pour les prisonniers ",null,null,null,null,null,null,0,0,0]
[null,null,null,"○","Des évaluations des déterminants du risque ont été régulièrement menées pour les prisonniers afin d’informer les programmes et :",null,null,null,null,null,null,0,0,0]
[null,null,null,null,"> Elles sont spécifiques aux prisonniers et prennent en compte les comportements spécifiques à l’âge et au sexe ",null,null,null,null,null,null,0,0,0]
[null,null,null,null,"> Les études sont de bonne qualité et fournissent de nombreuses informations  ",null,null,null,null,null,null,0,0,0]
[null,null,"Évaluation des besoins","Une évaluation des besoins pour les prisonniers été réalisée au niveau de la mise en œuvre et/ou au niveau local :",null,null,null,null,null,{"$f":"O88","v":"-"},null,null,null,null,{"$f":"IFERROR(ROUND(AVERAGEIF(L89:N91,\"<>0\",L89:N91),0),\"-\")","v":"-"}]
[null,null,null,"○","Engagement adéquat avec les prisonniers et les organisations ou réseaux dirigé(e)s par des prisonniers sur les besoins",null,null,null,null,null,null,0,0,0]
[null,null,null,"○","Informations suffisantes sur les services dont les prisonniers ont besoin, sur la manière dont ils préfèrent accéder aux services et sur les personnes qui devraient fournir ces services ",null,null,null,null,null,null,0,0,0]
[null,null,null,"○","Informations complètes sur les lacunes en termes de prestation de services et d’obstacles à l’accès",null,null,null,null,null,null,0,0,0]
[null,null,"Définition de cibles","Des cibles pour les prisonniers ont été clairement définies et :",null,null,null,null,null,{"$f":"O92","v":"-"},null,null,null,null,{"$f":"IFERROR(ROUND(AVERAGEIF(L93:N100,\"<>0\",L93:N100),0),\"-\")","v":"-"}]
[null,null,null,"○","Sont basées sur les données relatives à l’estimation de la taille et à l’évaluation du risque",null,null,null,null,null,null,0,0,0]
[null,null,null,"○","Sont conçues pour les prisonniers ",null,null,null,null,null,null,0,0,0]
[null,null,null,"○","Sont spécifiées aux niveaux national et infranational ",null,null,null,null,null,null,0,0,0]
[null,null,null,"○","Incluent les réalisations déjà atteintes et les réalisations finales prévues ",null,null,null,null,null,null,0,0,0]
[null,null,null,"○","Sont élaborées en concertation avec des exécutants et des réseaux de prisonniers afin de s’assurer qu’elles sont réalistes",null,null,null,null,null,null,0,0,0]
[null,null,null,"○","Correspondent aux budgets et aux accords formels avec les exécutants locaux",null,null,null,null,null,null,0,0,0]
[null,null,null,"○","Sont ventilées par âge et par sexe",null,null,null,null,null,null,0,0,0]
[null,null,null,"○","Les cibles du Fonds mondial et du President’s Emergency Plan For AIDS Relief (PEPFAR) font référence aux estimations de taille et aux cibles nationales ",null,null,null,null,null,null,0,0,0]
[null,null,"Modalités de mise en œuvre "]
[null,null,"Élément","Critères",null,"S/O","Absent","Présent mais non optimal","Présent et fonctionnel","Moyenne de l’élément","Commentaires (le cas échéant) "]
[null,null,"Gestion d’une plateforme d’accès","Une plateforme d’accès favorise les efforts coordonnés de la communauté et des cliniques et : ",null,null,null,null,null,{"$f":"O103","v":"-"},null,null,null,null,{"$f":"IFERROR(ROUND(AVERAGEIF(L104:N107,\"<>0\",L104:N107),0),\"-\")","v":"-"}]
[null,null,null,"○","Établit la confiance au sein de la communauté par le biais des pairs-travailleurs de proximité ",null,null,null,null,null,null,0,0,0]
[null,null,null,"○","Atteint les prisonniers en grand nombre et encourage leur adhésion, leur rétention et leur participation active au programme",null,null,null,null,null,null,0,0,0]
[null,null,null,"○","Encourage l’adhésion et la rétention des prisonniers  ",null,null,null,null,null,null,0,0,0]
[null,null,null,"○","Encourage la participation active des prisonniers  ",null,null,null,null,null,null,0,0,0]
[null,null,"Structure de gestion","Le processus de la structure de gestion a été défini et : ",null,null,null,null,null,{"$f":"O108","v":"-"},null,null,null,null,{"$f":"IFERROR(ROUND(AVERAGEIF(L109:N112,\"<>0\",L109:N112),0),\"-\")","v":"-"}]
[null,null,null,"○","Ratio adéquat entre les pairs-travailleurs de proximité et les populations concernées ",null,null,null,null,null,null,0,0,0]
[null,null,null,"○","Lignes directrices en place pour le recrutement, la rétention, l’évaluation et la promotion des pairs-travailleurs de proximité",null,null,null,null,null,null,0,0,0]
[null,null,null,"○","La supervision adéquate des pairs-travailleurs de proximité est assurée par les superviseurs des pairs ",null,null,null,null,null,null,0,0,0]
[null,null,null,"○","Un mécanisme d’orientation formel est établi ",null,null,null,null,null,null,0,0,0]
[null,null,"Flux de données ","Les flux de données à chaque niveau ont été définis et :",null,null,null,null,null,{"$f":"O113","v":"-"},null,null,null,null,{"$f":"IFERROR(ROUND(AVERAGEIF(L114:N118,\"<>0\",L114:N118),0),\"-\")","v":"-"}]
[null,null,null,"○","Des systèmes de données ont été mis au point et testés ",null,null,null,null,null,null,0,0,0]
[null,null,null,"○","Les indicateurs standard pour le suivi du programme de PC sont finalisés",null,null,null,null,null,null,0,0,0]
[null,null,null,"○","Des outils de rapport standard ont été élaborés ",null,null,null,null,null,null,0,0,0]
[null,null,null,"○","Les données programmatiques sont déclarées et examinées mensuellement ",null,null,null,null,null,null,0,0,0]
[null,null,null,"○","Des systèmes sont en place pour préserver la confidentialité des données ",null,null,null,null,null,null,0,0,0]
[null,null,"Pairs-travailleurs de proximité (PTP) ","Les pairs-travailleurs de proximité sont employés efficacement dans le programme :\n",null,null,null,null,null,{"$f":"O119","v":"-"},null,null,null,null,{"$f":"IFERROR(ROUND(AVERAGEIF(L120:N125,\"<>0\",L120:N125),0),\"-\")","v":"-"}]
[null,null,null,"○","Les PTP sont issus de la communauté de prisonniers qu’ils représentent ou servent",null,null,null,null,null,null,0,0,0]
[null,null,null,"○","Le programme de formation est disponible, approprié et comprend des formations cliniques pour mettre à jour les connaissances des PTP prisonniers sur les besoins spécifiques des prisonniers ",null,null,null,null,null,null,0,0,0]
[null,null,null,"○","Les PTP sont formés à la microplanification et à la sensibilisation",null,null,null,null,null,null,0,0,0]
[null,null,null,"○","Utilisent des messages et des supports de communication fondés sur des données probantes",null,null,null,null,null,null,0,0,0]
[null,null,null,"○","Fournissent des informations sur les services disponibles et orientent les bénéficiaires vers ces services ",null,null,null,null,null,null,0,0,0]
[null,null,null,"○","Prodiguent des conseils et un soutien émotionnel pour maintenir le traitement",null,null,null,null,null,null,0,0,0]
[null,null,"Engagement significatif des communautés affectées dans le leadership et la coordination","Les membres des populations concernées sont représentés dans un organisme de coordination national ou un groupe de travail technique et :\n\n",null,null,null,null,null,{"$f":"O126","v":"-"},null,null,null,null,{"$f":"IFERROR(ROUND(AVERAGEIF(L127:N130,\"<>0\",L127:N130),0),\"-\")","v":"-"}]
[null,null,null,"○","Ils se réunissent régulièrement",null,null,null,null,null,null,{"$f":"IF(ISBLANK(G127),0,1)","v":0},{"$f":"IF(ISBLANK(H127),0,3)","v":0},{"$f":"IF(ISBLANK(I127),0,5)","v":0}]
[null,null,null,"○","Ils participent activement aux processus décisionnels en tant que partenaires à pied d’égalité ",null,null,null,null,null,null,0,0,0]
[null,null,null,"○","Ils sont soutenus pour solliciter un retour d’information et rendre compte des décisions clés aux groupes qu’ils représentent",null,null,null,null,null,null,0,0,0]
[null,null,null,"○","Il est prouvé que le retour d’information, la contribution et les conseils d’experts fournis par l’organisation/réseau dirigé par les prisonniers sont pris en compte",null,null,null,null,null,null,0,0,0]
[null,null,"Prestation de services"]
[null,null,"Élément","Critères",null,"S/O","Absent","Présent mais non optimal","Présent et fonctionnel","Moyenne de l’élément","Commentaires (le cas échéant) "]
[null,null,"Services accessibles","Les services sont accessibles aux prisonniers et :",null,null,null,null,null,{"$f":"O133","v":"-"},null,null,null,null,{"$f":"IFERROR(ROUND(AVERAGEIF(L134:N140,\"<>0\",L134:N140),0),\"-\")","v":"-"}]
[null,null,null,"○","Sont conçus à l’appui de la recherche formative menée dans le cadre de l’évaluation des besoins ",null,null,null,null,null,null,0,0,0]
[null,null,null,"○","Sont idéalement situés à l’intérieur ou à proximité des zones sensibles",null,null,null,null,null,null,0,0,0]
[null,null,null,"○","Incluent des services mobiles si nécessaire ",null,null,null,null,null,null,0,0,0]
[null,null,null,"○","Les horaires d’ouverture sont adaptés aux prisonniers ciblés par les services ",null,null,null,null,null,null,0,0,0]
[null,null,null,"○","Sont intégrés au système de santé général et fournissent des paniers de soins complets ",null,null,null,null,null,null,0,0,0]
[null,null,null,"○","Bénéficient d’un approvisionnement régulier en services et en produits",null,null,null,null,null,null,0,0,0]
[null,null,null,"○","Impliquent un transfert de tâches pour accroître la capacité des prestataires de soins de santé",null,null,null,null,null,null,0,0,0]
[null,null,"Services acceptables","Les services sont acceptables par les prisonniers et :",null,null,null,null,null,{"$f":"O141","v":"-"},null,null,null,null,{"$f":"IFERROR(ROUND(AVERAGEIF(L142:N146,\"<>0\",L142:N146),0),\"-\")","v":"-"}]
[null,null,null,"○","Ils sont confidentiels et basés sur le volontariat ",null,null,null,null,null,null,0,0,0]
[null,null,null,"○","Les prestataires sont sensibles aux besoins des prisonniers, ne portent pas de jugement et ne stigmatisent pas",null,null,null,null,null,null,0,0,0]
[null,null,null,"○","Les prestataires sont formés pour être en mesure d’offrir un paquet complet d’interventions spécifiques aux prisonniers  ",null,null,null,null,null,null,0,0,0]
[null,null,null,"○","Ils instaurent un environnement sûr et favorable ",null,null,null,null,null,null,0,0,0]
[null,null,null,"○","Les interventions en ligne sont menées de manière éthique et respectent la vie privée et la confidentialité des clients",null,null,null,null,null,null,0,0,0]
[null,null,"Services sur-mesure/appropriés","Paquet de services et méthodes de prestation adaptés aux besoins spécifiques des prisonniers dans toute leur diversité :",null,null,null,null,null,{"$f":"O147","v":"-"},null,null,null,null,{"$f":"IFERROR(ROUND(AVERAGEIF(L148:N152,\"<>0\",L148:N152),0),\"-\")","v":"-"}]
[null,null,null,"○","Le paquet de services destiné aux prisonniers comprend tous les services de santé sexuelle et reproductive pertinents, conformément aux directives de l’OMS ",null,null,null,null,null,null,0,0,0]
[null,null,null,"○","Large disponibilité de l’initiation communautaire au traitement antirétroviral pour les prisonniers vivant avec le VIH",null,null,null,null,null,null,0,0,0]
[null,null,null,"○","Les services sont fournis d’une manière accessible aux prisonniers mineurs (ex. : en abordant les questions d’âge de consentement)",null,null,null,null,null,null,0,0,0]
[null,null,null,"○","Services supplémentaires (ou liens vers ces services) mis à disposition en fonction des besoins spécifiques des prisonniers (ex. : services sanitaires de changement de sexe pour les personnes transgenres)",null,null,null,null,null,null,0,0,0]
[null,null,null,"○","Les services sont fournis d’une manière appropriée et respectent la confidentialité/vie privée des clients (ex. : pour les HSH non identifiés comme gays, ils sont fournis dans le cadre de la santé des hommes)",null,null,null,null,null,null,0,0,0]
[null,null,"Interventions cliniques "]
[null,null,"Élément","Critères",null,"S/O","Absent","Présent mais non optimal","Présent et fonctionnel","Moyenne de l’élément","Commentaires (le cas échéant) "]
[null,null,"Préservatifs et lubrifiants ","Tous les prisonniers ont accès à des préservatifs, à des lubrifiants, à des démonstrations et à d’autres services de santé reproductive et :\nTous les prisonniers ont accès à des préservatifs, à des lubrifiants, à des démonstrations et à d’autres services de santé reproductive et :\n",null,null,null,null,null,{"$f":"O155","v":"-"},null,null,null,null,{"$f":"IFERROR(ROUND(AVERAGEIF(L156:N158,\"<>0\",L156:N158),0),\"-\")","v":"-"}]
[null,null,null,"○","Ils sont largement distribués en quantité suffisante",null,null,null,null,null,null,0,0,0]
[null,null,null,"○","Ils sont facilement accessibles",null,null,null,null,null,null,0,0,0]
[null,null,null,"○","Des démonstrations sont régulièrement organisées par les PTP dans des prisons ",null,null,null,null,null,null,0,0,0]
[null,null,"Services de dépistage du VIH","Des services de dépistage du VIH sont à la disposition des prisonniers et :\n",null,null,null,null,null,{"$f":"O159","v":"-"},null,null,null,null,{"$f":"IFERROR(ROUND(AVERAGEIF(L160:N171,\"<>0\",L160:N171),0),\"-\")","v":"-"}]
[null,null,null,"○","Les directives consolidées de l’OMS sur les services de dépistage du VIH sont mises en œuvre ",null,null,null,null,null,null,0,0,0]
[null,null,null,"○","Tous les tests sont volontaires et confidentiels (consentement éclairé obtenu)",null,null,null,null,null,null,0,0,0]
[null,null,null,"○","Des conseils sont prodigués avant et après le test de dépistage ",null,null,null,null,null,null,0,0,0]
[null,null,null,"○","Le traitement est proposé quel que soit le taux de CD4 ",null,null,null,null,null,null,0,0,0]
[null,null,null,"○","Les personnes séropositives sont orientées vers des réseaux de soins et de soutien après le diagnostic ",null,null,null,null,null,null,0,0,0]
[null,null,null,"○","L’accès aux services est distribué de manière équitable dans la communauté ",null,null,null,null,null,null,0,0,0]
[null,null,null,"○","Des interventions visant à garantir l’observance sont en place pour les prisonniers vivant avec le VIH",null,null,null,null,null,null,0,0,0]
[null,null,null,"○","Suivi régulier de l’assiduité aux soins chez les prisonniers vivant avec le VIH ",null,null,null,null,null,null,0,0,0]
[null,null,null,"○","Liens avec la prévention des comorbidités fournis",null,null,null,null,null,null,0,0,0]
[null,null,null,"○","Liens avec le traitement des comorbidités fournis",null,null,null,null,null,null,0,0,0]
[null,null,null,"○","Tests de charge virale disponibles et accessibles pour les prisonniers vivant avec le VIH",null,null,null,null,null,null,0,0,0]
[null,null,null,"○","Tests de CD4 disponibles et accessibles pour les prisonniers vivant avec le VIH",null,null,null,null,null,null,0,0,0]
[null,null,"Prophylaxie avant exposition","La PaE orale (TDF) est disponible pour les prisonniers présentant un risque important d’infection par le VIH ",null,null,null,null,null,{"$f":"O172","v":"-"},null,null,null,null,{"$f":"IFERROR(ROUND(AVERAGEIF(L173:N177,\"<>0\",L173:N177),0),\"-\")","v":"-"}]
[null,null,null,"○","L’approvisionnement en prophylaxie avant exposition est ininterrompu ",null,null,null,null,null,null,0,0,0]
[null,null,null,"○","Des tests VIH sont effectués avant le début de la PaE pour s’assurer que la personne est négative ",null,null,null,null,null,null,0,0,0]
[null,null,null,"○","Proposée dans le cadre d’une approche globale de prévention combinée ",null,null,null,null,null,null,0,0,0]
[null,null,null,"○","Les approches combinées comprennent le soutien à l’observance, les nouveaux tests périodiques de dépistage du VIH et le conseil aux usagers de la prophylaxie avant exposition ",null,null,null,null,null,null,0,0,0]
[null,null,null,"○","La prophylaxie avant exposition est proposée sur la base d’une évaluation individuelle et non d’un groupe à risque afin de favoriser une couverture plus large ",null,null,null,null,null,null,0,0,0]
[null,null,"Planification familiale et SSR ","Tous les prisonniers ont accès à la planification familiale et à d’autres services de santé sexuelle et reproductive et :",null,null,null,null,null,{"$f":"O178","v":"-"},null,0,0,0,{"$f":"IFERROR(ROUND(AVERAGEIF(L179:N181,\"<>0\",L179:N181),0),\"-\")","v":"-"}]
[null,null,null,"○","Ils comprennent le dépistage du cancer du col de l’utérus",null,null,null,null,null,null,0,0,0]
[null,null,null,"○","Ils sont largement distribués en quantité suffisante",null,null,null,null,null,null,0,0,0]
[null,null,null,"○","Ils sont facilement accessibles dans les zones sensibles",null,null,null,null,null,null,0,0,0]
[null,null,"PTME","Toutes les prisonnières ont accès à des informations, des traitements et des soins appropriés pour prévenir la transmission du VIH de la mère à l’enfant",null,null,null,null,null,{"$f":"O182","v":"-"},null,0,0,0,{"$f":"IFERROR(ROUND(AVERAGEIF(L182:N182,\"<>0\",L182:N182),0),\"-\")","v":"-"}]
[null,null,"Soins post-violence ","Tous les prisonniers ont accès à des soins post-violence et :\n",null,null,null,null,null,{"$f":"O183","v":"-"},null,null,null,null,{"$f":"IFERROR(ROUND(AVERAGEIF(L184:N186,\"<>0\",L184:N186),0),\"-\")","v":"-"}]
[null,null,null,"○","Des services post-violence tels que le soutien et le conseil sont disponibles",null,null,null,null,null,null,0,0,0]
[null,null,null,"○","Des services post-violence tels que la prophylaxie post-exposition sont disponibles",null,null,null,null,null,null,0,0,0]
[null,null,null,"○","Dépistage systématique des infections sexuellement transmissibles (syphilis, chlamydia, gonorrhée)",null,null,null,null,null,null,0,0,0]
[null,null,"Prévention, dépistage et traitement de la tuberculose","La prévention, le dépistage et le traitement de la tuberculose sont à la disposition des prisonniers et :\n",null,null,null,null,null,{"$f":"O187","v":"-"},null,null,null,null,{"$f":"IFERROR(ROUND(AVERAGEIF(L188:N197,\"<>0\",L188:N197),0),\"-\")","v":"-"}]
[null,null,null,"○","Prévention : thérapie préventive à l’isoniazide administrée aux personnes séropositives en conjonction avec un traitement antirétroviral, contrôle de l’infection par la tuberculose et recherche des contacts dans les lieux de rassemblement ",null,null,null,null,null,null,0,0,0]
[null,null,null,"○","Les efforts de dépistage de la tuberculose sont intensifiés dans les prisons en raison de la surpopulation et d’autres facteurs de risque ",null,null,null,null,null,null,0,0,0]
[null,null,null,"○","Diagnostic : utilisation de Xpert MTB/RIF pour les premiers tests diagnostiques",null,null,null,null,null,null,{"$f":"IF(ISBLANK(G190),0,1)","v":0},{"$f":"IF(ISBLANK(H190),0,3)","v":0},{"$f":"IF(ISBLANK(I190),0,5)","v":0}]
[null,null,null,"○","Tous les tests sont volontaires et confidentiels ",null,null,null,null,null,null,0,0,0]
[null,null,null,"○","Des interventions de soutien à l’observance pour s’assurer que le traitement antibiotique est terminé sont en place",null,null,null,null,null,null,0,0,0]
[null,null,null,"○","Le traitement est administré immédiatement et l’approvisionnement est ininterrompu",null,null,null,null,null,null,0,0,0]
[null,null,null,"○","L’accès aux services est distribué de manière équitable dans la communauté et pour tous les prisonniers ",null,null,null,null,null,null,0,0,0]
[null,null,null,"○","Bons liens avec le dépistage du VIH et le conseil pour les cas positifs ",null,null,null,null,null,null,0,0,0]
[null,null,null,"○","Des efforts sont faits pour traiter la tuberculose latente chez les prisonniers ",null,null,null,null,null,null,0,0,0]
[null,null,null,"○","Le traitement de la tuberculose n’est pas contre-indiqué par l’alcool, la consommation de drogues et les troubles mentaux",null,null,null,null,null,null,0,0,0]
[null,null,"Prévention, vaccination, dépistage et traitement des hépatites virales","La prévention, la vaccination, le dépistage et les traitements de l’hépatite B et C virale sont disponibles pour répondre aux besoins spécifiques des prisonniers et :\n",null,null,null,null,null,{"$f":"O198","v":"-"},null,null,null,null,{"$f":"IFERROR(ROUND(AVERAGEIF(L199:N204,\"<>0\",L199:N204),0),\"-\")","v":"-"}]
[null,null,null,"○","Tous les tests sont volontaires et confidentiels ",null,null,null,null,null,null,0,0,0]
[null,null,null,"○","Le traitement est administré immédiatement et l’approvisionnement est ininterrompu ",null,null,null,null,null,null,0,0,0]
[null,null,null,"○","L’accès aux services est distribué de manière équitable dans la communauté et pour tous les prisonniers",null,null,null,null,null,null,0,0,0]
[null,null,null,"○","Des campagnes de vaccination contre l’hépatite B et C sont menées de manière systématique ",null,null,null,null,null,null,0,0,0]
[null,null,null,"○","Des schémas de vaccination rapide et standard contre les hépatites B et C sont disponibles et facilement accessibles ",null,null,null,null,null,null,0,0,0]
[null,null,null,"○","Des ressources ont été allouées à la prévention, à la vaccination, au dépistage et au traitement des hépatites virales",null,null,null,null,null,null,0,0,0]
[null,null,"Dépistage et traitement de la consommation de drogues et d’alcool","Le dépistage et le traitement de la consommation problématique d’alcool et de drogues sont effectués de manière systématique :",null,null,null,null,null,{"$f":"O205","v":"-"},null,null,null,null,{"$f":"IFERROR(ROUND(AVERAGEIF(L206:N209,\"<>0\",L206:N209),0),\"-\")","v":"-"}]
[null,null,null,"○","Les pairs-travailleurs de proximité font le lien entre les personnes à risque et les services de dépistage et de traitement ",null,null,null,null,null,null,0,0,0]
[null,null,null,"○","Les personnes sont mises en relation avec des conseillers, des organisations et des groupes de soutien appropriés",null,null,null,null,null,null,0,0,0]
[null,null,null,"○","Le traitement est initié immédiatement si la personne y consent volontairement",null,null,null,null,null,null,0,0,0]
[null,null,null,"○","L’orientation vers d’autres services (santé mentale, soutien psychosocial) est assurée en temps utile",null,null,null,null,null,null,0,0,0]
[null,null,"Soins de santé mentale","Des soins de santé mentale sont accessibles et prodigués de manière cohérente aux prisonniers vivant avec le VIH et comprennent :",null,null,null,null,null,{"$f":"O210","v":"-"},null,null,null,null,{"$f":"IFERROR(ROUND(AVERAGEIF(L211:N212,\"<>0\",L211:N212),0),\"-\")","v":"-"}]
[null,null,null,"○","Dépistage systématique des troubles de la santé mentale (notamment la dépression et le stress psychosocial), conformément au programme d’action sur les lacunes en matière de santé mentale (PALSM)",null,null,null,null,null,null,0,0,0]
[null,null,null,"○","Conseils post-test VIH après un résultat positif pour dépister les risques de suicide, de dépression et d’autres problèmes de santé mentale ",null,null,null,null,null,null,0,0,0]
[null,null,"CMMV","La CMMV est à disposition des prisonniers masculins hétérosexuels (qui sont sur le point d’être libérés dans les pays d’Afrique orientale et australe qui pratiquent la VMMC) et :",null,null,null,null,null,{"$f":"O213","v":"-"},null,null,null,null,{"$f":"IFERROR(ROUND(AVERAGEIF(L214:N215,\"<>0\",L214:N215),0),\"-\")","v":"-"}]
[null,null,null,"○","La procédure est volontaire (un consentement éclairé a été obtenu) et confidentielle",null,null,null,null,null,null,0,0,0]
[null,null,null,"○","La procédure est menée par des professionnels de santé bien formés dans des locaux correctement équipés",null,null,null,null,null,null,0,0,0]
[null,null,"COVID-19 ","Prestation de services différenciés centrés sur les personnes pour les programmes de prisonniers pendant le COVID-19 \n",null,null,null,null,null,{"$f":"O216","v":"-"},null,null,null,null,{"$f":"IFERROR(ROUND(AVERAGEIF(L217:N218,\"<>0\",L217:N218),0),\"-\")","v":"-"}]
[null,null,null,"○","Des programmes sont en place pour encourager et suivre l’utilisation du vaccin COVID-19 chez les prisonniers  ",null,null,null,null,null,null,0,0,0]
[null,null,null,"○","Maintien de la messagerie et de l’accès sécurisé aux modèles de prestation de services hors établissement (ex. : communautaires, à domicile, de télésanté) pendant les pics de COVID-19 afin d’éviter toute interruption de service",null,null,null,null,null,null,0,0,0]
[null,null,"Interventions comportementales"]
[null,null,"Élément","Critères",null,"S/O","Absent","Présent mais non optimal","Présent et fonctionnel","Moyenne de l’élément","Commentaires (le cas échéant) "]
[null,null,"Communication sur le changement social et comportemental (CCSC)","Les activités de communication sur le changement social et comportemental sont incluses dans le programme. Elles sont :",null,null,null,null,null,{"$f":"O221","v":"-"},null,null,null,null,{"$f":"IFERROR(ROUND(AVERAGEIF(L222:N226,\"<>0\",L222:N226),0),\"-\")","v":"-"}]
[null,null,null,"○","Bien planifiées et dûment budgétisées",null,null,null,null,null,null,0,0,0]
[null,null,null,"○","Fondées sur des données probantes ",null,null,null,null,null,null,0,0,0]
[null,null,null,"○","Les membres des communautés concernées ont été impliquées dans la conception et l’essai des interventions",null,null,null,null,null,null,0,0,0]
[null,null,null,"○","Les organisations et les personnes qui mettent en œuvre ces interventions sont expérimentées et formées aux interventions de CCSC",null,null,null,null,null,null,0,0,0]
[null,null,null,"○","Des interventions de communication sur le changement social et comportemental sont incluses dans les plans et activités de suivi et d’évaluation",null,null,null,null,null,null,0,0,0]
[null,null,"Interventions structurelles"]
[null,null,"Élément","Critères",null,"S/O","Absent","Présent mais non optimal","Présent et fonctionnel","Moyenne de l’élément","Commentaires (le cas échéant) "]
[null,null,"Prévention et réponse à la violence","Des programmes visant à lutter contre la violence à l’égard des prisonniers et entre prisonniers sont mis en œuvre de manière cohérente et comprennent :",null,null,null,null,null,{"$f":"O229","v":"-"},null,null,null,null,{"$f":"IFERROR(ROUND(AVERAGEIF(L230:N232,\"<>0\",L230:N232),0),\"-\")","v":"-"}]
[null,null,null,"○","Informations sur la sécurité",null,null,null,null,null,null,0,0,0]
[null,null,null,"○","Mécanismes standardisés de surveillance et de signalement des expériences de violence qui outrepassent les pouvoirs de la police et peuvent inclure un soutien parajuridique ",null,null,null,null,null,null,{"$f":"IF(ISBLANK(G231),0,1)","v":0},{"$f":"IF(ISBLANK(H231),0,3)","v":0},{"$f":"IF(ISBLANK(I231),0,5)","v":0}]
[null,null,null,"○","Liens établis avec l’assistance juridique",null,null,null,null,null,null,0,0,0]
[null,null,"Réduction de la stigmatisation et de la discrimination ","Efforts visant à réduire la stigmatisation et la discrimination à l’égard des prisonniers, y compris :  ",null,null,null,null,null,{"$f":"O233","v":"-"},null,null,null,null,{"$f":"IFERROR(ROUND(AVERAGEIF(L234:N240,\"<>0\",L234:N240),0),\"-\")","v":"-"}]
[null,null,null,"○","Promotion de politiques antidiscriminatoires et protectrices pour tous les prisonniers  ",null,null,null,null,null,null,0,0,0]
[null,null,null,"○","Programmes, au sein et hors du secteur de la santé, qui instituent des politiques et des codes de conduite contre la stigmatisation et la discrimination",null,null,null,null,null,null,0,0,0]
[null,null,null,"○","Le suivi et la surveillance sont effectués régulièrement pour garantir que les normes sont mises en œuvre et maintenues",null,null,null,null,null,null,0,0,0]
[null,null,null,"○","Des campagnes permanentes de réduction de la stigmatisation sont menées",null,null,null,null,null,null,0,0,0]
[null,null,null,"○","Sensibilisation, éducation et engagement continus des chefs religieux et des anciens, des agents chargés de l’application de la loi et des travailleurs de santé ",null,null,null,null,null,null,0,0,0]
[null,null,null,"○","Des mécanismes efficaces sont mis à disposition pour permettre la dénonciation anonyme d’incidents de stigmatisation et/ou de discrimination lors de l’accès aux soins de santé  ",null,null,null,null,null,null,0,0,0]
[null,null,null,"○","Un soutien et un suivi sont dispensés aux prisonniers qui signalent des incidents de stigmatisation et/ou de discrimination",null,null,null,null,null,null,0,0,0]
[null,null,"Services juridiques liés au VIH ","Des services juridiques liés au VIH sont en place pour répondre aux besoins des populations de prisonniers et  ",null,null,null,null,null,{"$f":"O241","v":"-"},null,null,null,null,{"$f":"IFERROR(ROUND(AVERAGEIF(L242:N244,\"<>0\",L242:N244),0),\"-\")","v":"-"}]
[null,null,null,"○","Il existe des formes alternatives de résolution des conflits",null,null,null,null,null,null,0,0,0]
[null,null,null,"○","L’accès à l’information et à l’orientation juridiques est facilement disponible",null,null,null,null,null,null,0,0,0]
[null,null,null,"○","L’accès aux conseils et à la représentation juridiques est facilement disponible",null,null,null,null,null,null,0,0,0]
[null,null,"Contrôle de l’application de la loi ","La mise en œuvre des politiques, des règlements et des lois fait l’objet d’un suivi régulier afin d’évaluer l’impact sur les prisonniers  ",null,null,null,null,null,{"$f":"O245","v":"-"},null,0,0,0,{"$f":"IFERROR(ROUND(AVERAGEIF(L245:N245,\"<>0\",L245:N245),0),\"-\")","v":"-"}]
[null,null,"Connaissances juridiques","Une formation juridique complète sur le VIH est proposée aux prisonniers  ",null,null,null,null,null,{"$f":"O246","v":"-"},null,null,null,null,{"$f":"IFERROR(ROUND(AVERAGEIF(L247:N247,\"<>0\",L247:N247),0),\"-\")","v":"-"}]
[null,null,null,"○","Les prisonniers connaissent leurs lois et leurs droits et sont capables de défendre leurs besoins dans le contexte du VIH autour de leurs lois et de leurs droits",null,null,null,null,null,null,0,0,0]
[null,null,"Sensibilisation des législateurs et des agents chargés de l’application de la loi ","Une formation approfondie des législateurs et des agents chargés de l’application de la loi a lieu régulièrement afin de garantir une sensibilisation appropriée de tous les législateurs et agents chargés de l’application de la loi à l’ensemble des prisonniers et comprend : \n",null,null,null,null,null,{"$f":"O248","v":"-"},null,null,null,null,{"$f":"IFERROR(ROUND(AVERAGEIF(L249:N252,\"<>0\",L249:N252),0),\"-\")","v":"-"}]
[null,null,null,"○","Programme complet de formation à la sensibilisation, adapté au contexte du pays",null,null,null,null,null,null,0,0,0]
[null,null,null,"○","Animateurs dûment formés",null,null,null,null,null,null,0,0,0]
[null,null,null,"○","Participation des prisonniers ",null,null,null,null,null,null,0,0,0]
[null,null,null,"○","Retour d’information des participants",null,null,null,null,null,null,0,0,0]
[null,null,"Formation pour les prestataires de soins de santé sur les droits humains et l’éthique médicale liés au VIH ","Programme complet de formation à la sensibilisation, adapté au contexte du pays",null,null,null,null,null,{"$f":"O253","v":"-"},null,null,null,null,{"$f":"IFERROR(ROUND(AVERAGEIF(L254:N256,\"<>0\",L254:N256),0),\"-\")","v":"-"}]
[null,null,null,"○","Animateurs dûment formés",null,null,null,null,null,null,0,0,0]
[null,null,null,"○","Participation des prisonniers",null,null,null,null,null,null,0,0,0]
[null,null,null,"○","Retour d’information des participants",null,null,null,null,null,null,0,0,0]
[null,null,"Réduction de la discrimination à l’égard des femmes dans le contexte du VIH ","Des programmes visant à lutter contre l’inégalité entre les sexes, la violence sexiste et le VIH sont mis en œuvre et abordent : ",null,null,null,null,null,{"$f":"O257","v":"-"},null,null,null,null,{"$f":"IFERROR(ROUND(AVERAGEIF(L258:N264,\"<>0\",L258:N264),0),\"-\")","v":"-"}]
[null,null,null,"○","Inégalité des femmes et des filles dans la prise de décision en matière de sexualité et de procréation ",null,null,null,null,null,null,0,0,0]
[null,null,null,"○","Obstacles liés au genre dans l’accès aux services de santé ",null,null,null,null,null,null,0,0,0]
[null,null,null,"○","Discrimination en matière d’héritage, de propriété, de mariage, de divorce et de garde des enfants ",null,null,null,null,null,null,0,0,0]
[null,null,null,"○","Violences sexuelles et autres ",null,null,null,null,null,null,0,0,0]
[null,null,null,"○","Manque d’égalité d’accès aux opportunités éducatives et économiques ",null,null,null,null,null,null,0,0,0]
[null,null,null,"○","Manque de soutien aux soignants dans les foyers touchés par le VIH ",null,null,null,null,null,null,0,0,0]
[null,null,null,"○","Ils sont complétés par des programmes ciblant les hommes et les garçons et portant sur les normes sexospécifiques néfastes ",null,null,null,null,null,null,0,0,0]
[null,null,"Suivi du programme"]
[null,null,"Élément","Critères",null,"S/O","Absent","Présent mais non optimal","Présent et fonctionnel","Moyenne de l’élément","Commentaires (le cas échéant) "]
[null,null,"Suivi de routine","Des indicateurs programmatiques de routine sont définis par le gouvernement et les partenaires de mise en œuvre rendent compte de ces indicateurs :",null,null,null,null,null,{"$f":"O267","v":"-"},null,null,null,null,{"$f":"IFERROR(ROUND(AVERAGEIF(L268:N274,\"<>0\",L268:N274),0),\"-\")","v":"-"}]
[null,null,null,"○"," Régulièrement (chaque mois/trimestre)",null,null,null,null,null,null,0,0,0]
[null,null,null,"○","De façon exhaustive (les données sont cohérentes et il ne manque aucune information)",null,null,null,null,null,null,0,0,0]
[null,null,null,"○","À tous les niveaux (c’est-à-dire État/comté/province)",null,null,null,null,null,null,0,0,0]
[null,null,null,"○","Par tous les partenaires de mise en œuvre",null,null,null,null,null,null,0,0,0]
[null,null,null,"○","Par le biais de la plateforme LISD/EMR",null,null,null,null,null,null,0,0,0]
[null,null,null,"○","Le suivi des données individuelles est effectué par les partenaires de mise en œuvre ",null,null,null,null,null,null,0,0,0]
[null,null,null,"○","Les données sont régulièrement examinées par toutes les parties prenantes (gouvernement, société civile, communauté des prisonniers, partenaires de mise en œuvre, donateurs) et utilisées pour améliorer les programmes ",null,null,null,null,null,null,0,0,0]
[null,null,"Suivi communautaire dans le cadre de l’obligation de rendre compte ","Intégration du suivi communautaire dans les plateformes de suivi nationales et :",null,null,null,null,null,{"$f":"O275","v":"-"},null,null,null,null,{"$f":"IFERROR(ROUND(AVERAGEIF(L276:N281,\"<>0\",L276:N281),0),\"-\")","v":"-"}]
[null,null,null,"○","Le suivi communautaire est accepté et intégré aux processus décisionnels et aux négociations avec les autorités locales, les bailleurs de fonds et autres soutiens extérieurs ",null,null,null,null,null,null,{"$f":"IF(ISBLANK(G276),0,1)","v":0},{"$f":"IF(ISBLANK(H276),0,3)","v":0},{"$f":"IF(ISBLANK(I276),0,5)","v":0}]
[null,null,null,"○","Fait fonction de mécanisme communautaire de surveillance et de responsabilisation",null,null,null,null,null,null,0,0,0]
[null,null,null,"○","Des pairs-contrôleurs formés collectent et analysent de manière systématique et régulière des données qualitatives et quantitatives sur la prestation de services liés au VIH",null,null,null,null,null,null,0,0,0]
[null,null,null,"○","Des équipes de suivi dirigées par la communauté sont en place pour répondre aux déficits de prestation de services VIH au sein des communautés",null,null,null,null,null,null,0,0,0]
[null,null,null,"○","Il y a collaboration entre les différents réseaux de personnes vivant avec le VIH (PVVIH) et les organisations communautaires des communautés touchées",null,null,null,null,null,null,0,0,0]
[null,null,null,"○","Les collecteurs de données et les autres membres de la communauté impliqués dans le suivi communautaire sont rémunérés conformément aux pratiques et normes nationales",null,null,null,null,null,null,0,0,0]
[null,null,"Suivi du système d’orientation vers d’autres services","Des systèmes de suivi des orientations sont en place et incluent :",null,null,null,null,null,{"$f":"O282","v":"-"},null,null,null,null,{"$f":"IFERROR(ROUND(AVERAGEIF(L283:N287,\"<>0\",L283:N287),0),\"-\")","v":"-"}]
[null,null,null,"○","Un outil d’orientation largement disponible, comprenant des procédures opérationnelles permanentes claires",null,null,null,null,null,null,0,0,0]
[null,null,null,"○","Un répertoire d’orientation dans l’établissement et dans les organisations de pairs ",null,null,null,null,null,null,0,0,0]
[null,null,null,"○","Enregistrement des résultats ",null,null,null,null,null,null,0,0,0]
[null,null,null,"○","Mécanismes de retour d’information entre les patients et les prestataires (qui orientent) ",null,null,null,null,null,null,0,0,0]
[null,null,null,"○","Rapport sur les orientations (sur une base mensuelle) pour contrôler l’efficacité du système d’orientation",null,null,null,null,null,null,0,0,0]
[null,null,"Évaluation de la qualité","Des systèmes de collecte de données sur la qualité des programmes et des indicateurs connexes ont été définis et :\n",null,null,null,null,null,{"$f":"O288","v":"-"},null,null,null,null,{"$f":"IFERROR(ROUND(AVERAGEIF(L289:N292,\"<>0\",L289:N292),0),\"-\")","v":"-"}]
[null,null,null,"○","Des données précises sont collectées",null,null,null,null,null,null,0,0,0]
[null,null,null,"○","Les données sont exploitées ",null,null,null,null,null,null,0,0,0]
[null,null,null,"○","Des mécanismes de retour d’information permettent aux prisonniers d’évaluer les services qu’ils ont reçus de manière à contrôler la qualité du programme",null,null,null,null,null,null,0,0,0]
[null,null,null,"○","Les données sont régulièrement vérifiées ",null,null,null,null,null,null,0,0,0]
[null,null,"Surveillance ","La surveillance autorise une description précise du contexte et des résultats/impacts du programme des prisonniers Surveillance : \n",null,null,null,null,null,{"$f":"O293","v":"-"},null,null,null,null,{"$f":"IFERROR(ROUND(AVERAGEIF(L294:N297,\"<>0\",L294:N297),0),\"-\")","v":"-"}]
[null,null,null,"○","Des résultats d’études sont utilisés pour éclairer la prise de décision et la correction des trajectoires ",null,null,null,null,null,null,0,0,0]
[null,null,null,"○","Implique l’analyse et l’interprétation des données à intervalles réguliers ",null,null,null,null,null,null,0,0,0]
[null,null,null,"○","Implique la diffusion régulière d’informations pour répondre aux besoins locaux, provinciaux et nationaux ",null,null,null,null,null,null,0,0,0]
[null,null,null,"○","Inclut des enquêtes biologiques et comportementales, des enquêtes sentinelles et d’autres études de recherche portant sur des indicateurs afférents aux prisonniers ",null,null,null,null,null,null,0,0,0]
[null,null,"Données pour la prise de décision","Le Programme national, l’unité de suivi et d’évaluation du ministère de la Santé ou un organisme de coordination similaire supervise/coordonne la collecte et le traitement des données de suivi, d’enquête et de surveillance et :",null,null,null,null,null,{"$f":"O298","v":"-"},null,null,null,null,{"$f":"IFERROR(ROUND(AVERAGEIF(L299:N306,\"<>0\",L299:N306),0),\"-\")","v":"-"}]
[null,null,null,"○","Partage des données avec le groupe de travail technique des prisonniers ",null,null,null,null,null,null,0,0,0]
[null,null,null,"○","Le groupe de travail technique des prisonniers analyse chaque trimestre les données du programme existant et identifie les domaines nécessitant une correction de trajectoire",null,null,null,null,null,null,0,0,0]
[null,null,null,"○","Le groupe de travail technique des prisonniers contribue à l’élaboration de stratégies visant à combler les lacunes ",null,null,null,null,null,null,0,0,0]
[null,null,null,"○","Des données de bonne qualité (valides, fiables, cohérentes, précises, opportunes, pertinentes) sont collectées et la plupart des besoins d’information sont satisfaits et, s’ils ne le sont pas, les lacunes sont comprises ",null,null,null,null,null,null,0,0,0]
[null,null,null,"○","Les données sont utilisées de manière cohérente et appropriée pour éclairer les décisions ",null,null,null,null,null,null,0,0,0]
[null,null,null,"○","Les données ont été dédupliquées entre les partenaires de mise en œuvre et les doublons sont minimes, voire inexistants",null,null,null,null,null,null,0,0,0]
[null,null,null,"○","Les données sont agrégées au niveau central mais peuvent être désagrégées par localité, sexe et âge",null,null,null,null,null,null,{"$f":"IF(ISBLANK(G305),0,1)","v":0},{"$f":"IF(ISBLANK(H305),0,3)","v":0},{"$f":"IF(ISBLANK(I305),0,5)","v":0}]
[null,null,null,"○","Le programme fournit des données au groupe de travail technique pour examen",null,null,null,null,null,null,0,0,0]
[null,null,"Utilisation de Codes d’identification uniques pour le suivi des programmes","Le système utilisé pour le suivi du programme est pleinement opérationnel et adéquat pour suivre la performance du programme",null,null,null,null,null,{"$f":"O307","v":"-"},null,null,null,null,{"$f":"IFERROR(ROUND(AVERAGEIF(L308:N311,\"<>0\",L308:N311),0),\"-\")","v":"-"}]
[null,null,null,"○","Plusieurs codes d’identification uniques peuvent être utilisés dans un pays donné, mais ils sont harmonisés",null,null,null,null,null,null,0,0,0]
[null,null,null,"○","Le programme national utilise des données agrégées de code d’identification unique",null,null,null,null,null,null,0,0,0]
[null,null,null,"○","Le code d’identification unique est capable de distinguer le contact et la portée, à des fins de déduplication ",null,null,null,null,null,null,0,0,0]
[null,null,null,"○","Le code d’identification unique est électronique",null,null,null,null,null,null,0,0,0]
[null,null,"Suivi budgétaire","Le suivi des performances financières et non financières du programme des prisonniers est intégré et des rapports de routine sont générés : ",null,null,null,null,null,{"$f":"O312","v":"-"},null,null,null,null,{"$f":"IFERROR(ROUND(AVERAGEIF(L313:N315,\"<>0\",L313:N315),0),\"-\")","v":"-"}]
[null,null,null,"○","Les données sur les dépenses relatives aux interventions en faveur des prisonniers sont facilement accessibles ",null,null,null,null,null,null,0,0,0]
[null,null,null,"○","Des mécanismes de reddition de comptes sur les dépenses insuffisantes et excédentaires sont en place ",null,null,null,null,null,null,0,0,0]
[null,null,null,"○","Des données financières et non financières sont utilisées pour évaluer le rapport qualité-prix",null,null,null,null,null,null,0,0,0]
[null,null,"Résultats de programme"]
[null,null,"Résultats et indicateurs"]
[null,null,"Élément","Critères",null,"S/O","Non surveillé ","Objectif non atteint ou non conforme aux prévisions ","Objectif atteint ou en passe de l’être ","Moyenne de l’élément","Commentaires (le cas échéant) "]
[null,null,"Estimations de la taille de la population de prisonniers disponibles",null,null,null,null,null,null,{"$f":"O319","v":"-"},null,0,0,0,{"$f":"IFERROR(ROUND(AVERAGEIF(L319:N319,\"<>0\",L319:N319),0),\"-\")","v":"-"}]
[null,null,"La stratégie de prévention comprend des éléments essentiels du paquet de prévention pour les prisonniers ",null,null,null,null,null,null,"-",null,0,0,0,"-"]
[null,null,"Prisonniers vivant avec le VIH qui connaissent leur statut VIH (cible 90 %)",null,null,null,null,null,null,{"$f":"O321","v":"-"},null,0,0,0,{"$f":"IFERROR(ROUND(AVERAGEIF(L321:N321,\"<>0\",L321:N321),0),\"-\")","v":"-"}]
[null,null,"Prisonniers vivant avec le VIH sous traitement antirétroviral (cible 90 %)",null,null,null,null,null,null,{"$f":"O322","v":"-"},null,0,0,0,{"$f":"IFERROR(ROUND(AVERAGEIF(L322:N322,\"<>0\",L322:N322),0),\"-\")","v":"-"}]
[null,null,"Prisonniers vivant avec le VIH qui ont supprimé leur charge virale (cible 90 %)",null,null,null,null,null,null,"-",null,0,0,0,"-"]
[]
[]
[null,null,null,null,null,null,null,null,null,null,null,null,{"$f":"COUNTIF(O6:O323,\"-\")","v":59}]
[null,null,null,null,null,null,null,null,null,null,null,null,{"$f":"COUNTIF(O6:O323,\">0\")","v":0}]
[null,null,null,null,null,null,null,null,null,null,null,"Achèvement de la feuille",{"$f":"M327/(M326+M327)","v":0},{"$f":"1-M328","v":1}]

{"sheet":"PQID ","index":8,"n_rows":391,"n_cols":16,"rows_kept":391,"cut":false,"hidden":false,"merged":[[166,2,178,2],[166,3,166,4],[166,9,178,9],[167,3,168,3],[167,4,168,4],[167,6,168,6],[167,7,168,7],[167,8,168,8],[179,2,187,2],[179,3,179,4],[179,9,187,9],[385,2,385,4],[386,2,386,4],[67,9,70,9],[238,3,238,4],[231,9,237,9],[331,3,331,4],[331,9,338,9],[364,3,364,4],[374,2,374,8],[375,3,375,4],[376,2,376,4],[377,2,377,4],[378,2,378,4],[379,2,379,4],[383,2,383,4],[384,2,384,4],[364,2,368,2],[364,9,368,9],[369,2,372,2],[369,3,369,4],[369,9,372,9],[355,2,363,2],[355,3,355,4],[355,9,363,9],[339,2,344,2],[339,3,339,4],[339,9,344,9],[345,2,349,2],[345,3,345,4],[345,9,349,9],[350,2,354,2],[350,3,350,4],[350,9,354,9],[231,3,231,4],[279,3,279,4],[253,3,253,4],[243,3,243,4],[238,2,242,2],[238,9,242,9],[243,2,245,2],[243,9,245,9],[246,2,248,2],[246,3,246,4],[246,9,248,9],[249,3,249,4],[249,9,251,9],[252,2,252,8],[260,2,260,8],[261,3,261,4],[262,2,269,2],[262,9,269,9],[270,2,274,2],[270,3,270,4],[270,9,274,9],[275,2,278,2],[275,3,275,4],[164,2,164,8],[165,3,165,4],[143,3,143,4],[151,3,151,4],[93,2,101,2],[216,2,220,2],[216,3,216,4],[216,9,220,9],[221,2,230,2],[221,3,221,4],[221,9,230,9],[211,2,215,2],[192,9,204,9],[188,2,191,2],[188,3,188,4],[188,9,191,9],[211,3,211,4],[211,9,215,9],[151,9,156,9],[157,2,163,2],[157,3,157,4],[157,9,163,9],[93,3,93,4],[93,9,101,9],[52,9,56,9],[57,2,57,8],[59,2,60,2],[59,3,59,4],[59,9,60,9],[61,2,64,2],[61,3,61,4],[61,9,64,9],[16,9,21,9],[22,2,27,2],[22,3,22,4],[22,9,27,9],[49,2,51,2],[49,9,51,9],[58,3,58,4],[52,2,56,2],[52,3,52,4],[42,2,46,2],[42,3,42,4],[42,9,46,9],[47,2,47,8],[48,3,48,4],[49,3,49,4],[28,2,34,2],[323,2,330,2],[323,9,330,9],[323,3,323,4],[254,2,259,2],[254,3,254,4],[254,9,259,9],[300,2,309,2],[300,3,300,4],[300,9,309,9],[310,2,320,2],[292,2,299,2],[292,9,299,9],[292,3,292,4],[288,2,291,2],[288,3,288,4],[288,9,291,9],[310,3,310,4],[310,9,320,9],[275,9,278,9],[280,2,282,2],[280,9,282,9],[283,2,287,2],[283,3,283,4],[283,9,287,9],[136,2,140,2],[136,3,136,4],[136,9,140,9],[141,2,141,8],[89,9,92,9],[231,2,237,2],[249,2,251,2],[89,2,92,2],[89,3,89,4],[142,3,142,4],[143,2,150,2],[143,9,150,9],[151,2,156,2],[102,2,102,8],[103,3,103,4],[126,3,126,4],[119,2,125,2],[119,3,119,4],[109,2,118,2],[109,3,109,4],[109,9,118,9],[119,9,125,9],[104,3,104,4],[104,2,108,2],[72,2,72,8],[73,3,73,4],[74,2,81,2],[74,3,74,4],[74,9,81,9],[82,2,88,2],[82,3,82,4],[82,9,88,9],[126,2,135,2],[126,9,135,9],[104,9,108,9],[331,2,338,2],[382,2,382,4],[387,2,387,4],[1,2,1,9],[3,2,3,8],[4,3,4,4],[5,3,5,4],[28,3,28,4],[28,9,34,9],[35,2,41,2],[35,3,35,4],[35,9,41,9],[5,2,15,2],[5,9,15,9],[16,2,21,2],[16,3,16,4],[205,2,210,2],[205,3,205,4],[205,9,210,9],[192,2,204,2],[192,3,192,4],[67,2,70,2],[321,2,321,8],[322,3,322,4]]}
[]
[null,null,"Gestion de programme"]
[]
[null,null,"Leadership et coordination"]
[null,null,"Élément","Critères",null,"S/O","Absent","Présent mais non optimal","Présent et fonctionnel","Moyenne de l’élément","Commentaires (le cas échéant)","Absent","Present","Optimal","Average","Sustainability Single Figure"]
[null,null,"Stratégie nationale pour les populations clés","Un plan stratégique a été mis en place pour la prévention du VIH parmi les personnes qui s’injectent des drogues (PQID) ou les personnes qui s’injectent des drogues ont été incluses dans une stratégie globale de prévention du VIH :",null,null,null,null,null,{"$f":"O6","v":"-"},null,null,null,null,{"$f":"IFERROR(ROUND(AVERAGEIF(L7:N16,\"<>0\",L7:N16),0),\"-\")","v":"-"}]
[null,null,null,"○","Les personnes qui s’injectent des drogues ont été impliquées dans l’élaboration du plan stratégique ",null,null,null,null,null,null,{"$f":"IF(ISBLANK(G7),0,1)","v":0},{"$f":"IF(ISBLANK(H7),0,3)","v":0},{"$f":"IF(ISBLANK(I7),0,5)","v":0}]
[null,null,null,"○","Les buts et les objectifs ont été clairement définis pour le programme PQID ",null,null,null,null,null,null,0,0,0]
[null,null,null,"○","Le concept de PQID a été clairement défini selon l’Organisation mondiale de la Santé ",null,null,null,null,null,null,0,0,0]
[null,null,null,"○","Le plan reconnaît les vulnérabilités spécifiques des PQID en raison de leur sexe et de leur âge",null,null,null,null,null,null,0,0,0]
[null,null,null,"○","Un modèle logique clair ou une théorie du changement claire a été formulé(e)  ",null,null,null,null,null,null,0,0,0]
[null,null,null,"○","Le plan comprend un ensemble complet d’interventions et d’activités fondées sur des données probantes, alignées sur les outils de mise en œuvre propres aux PQID, identifiées par PQID, y compris des interventions ne relevant pas du secteur de la santé (ex. : autonomisation de la communauté, lutte contre la violence, réduction de la stigmatisation, etc.) et adaptées aux vulnérabilités spécifiques",null,null,null,null,null,null,0,0,0]
[null,null,null,"○","Des plans clairs de mise à l’échelle ont été définis, avec attribution de responsabilités ",null,null,null,null,null,null,0,0,0]
[null,null,null,"○","Des plans de financement sont en place ",null,null,null,null,null,null,0,0,0]
[null,null,null,"○","Un cadre de suivi et d’évaluation a été défini, avec des indicateurs et des objectifs fondamentaux",null,null,null,null,null,null,0,0,0]
[null,null,null,"○","Mécanisme de mise en œuvre clairement défini",null,null,null,null,null,null,{"$f":"IF(ISBLANK(G16),0,1)","v":0},{"$f":"IF(ISBLANK(H16),0,3)","v":0},{"$f":"IF(ISBLANK(I16),0,5)","v":0}]
[null,null,"Obligation de rendre compte","Le département/ministère responsable de la réussite du programme PQID et jouissant d’un leadership/autorité fort a été identifié :",null,null,null,null,null,{"$f":"O17","v":"-"},null,null,null,null,{"$f":"IFERROR(ROUND(AVERAGEIF(L18:N22,\"<>0\",L18:N22),0),\"-\")","v":"-"}]
[null,null,null,"○","Tous les projets PQID dans le pays rendent régulièrement compte des indicateurs clés au gouvernement aux niveaux infranational et national avec des indicateurs communs ",null,null,null,null,null,null,0,0,0]
[null,null,null,"○","Dans les rapports, les données sont anonymisées et sécurisées afin de protéger les PQID  ",null,null,null,null,null,null,0,0,0]
[null,null,null,"○","Des examens réguliers des programmes sont effectués à l’aide de données programmatiques",null,null,null,null,null,null,0,0,0]
[null,null,null,"○","Le ministère gouvernemental responsable du programme participe aux réunions de coordination pertinentes",null,null,null,null,null,null,0,0,0]
[null,null,null,"○","Le groupe de travail technique sur les populations clés (GTT), avec une représentation de PQID, est impliqué dans l’obligation de rendre des comptes ",null,null,null,null,null,null,0,0,0]
[null,null,"Groupe de travail technique pour les PQID ","Un groupe de travail technique (les pays peuvent avoir des GTT pour toutes les populations clés comprenant des PQID) a été établi aux niveaux national et infranational et :",null,null,null,null,null,{"$f":"O23","v":"-"},null,null,null,null,{"$f":"IFERROR(ROUND(AVERAGEIF(L24:N28,\"<>0\",L24:N28),0),\"-\")","v":"-"}]
[null,null,null,"○","Il se réunit régulièrement ",null,null,null,null,null,null,0,0,0]
[null,null,null,"○","Le groupe de travail technique est complet et comprend des organisations de la société civile, des partenaires de mise en œuvre, des PQID ",null,null,null,null,null,null,0,0,0]
[null,null,null,"○","Il a mis en place des mécanismes de communication pour assurer la coordination",null,null,null,null,null,null,0,0,0]
[null,null,null,"○","Il a un mandat ou un champ d’application défini ",null,null,null,null,null,null,0,0,0]
[null,null,null,"○","Des membres de la communauté PQID sont inclus",null,null,null,null,null,null,0,0,0]
[null,null,"Coordination des parties prenantes","Des mécanismes sont en place pour garantir une coordination à tous les niveaux et la coordination est fructueuse et cohérente avec : ",null,null,null,null,null,{"$f":"O29","v":"-"},null,null,null,null,{"$f":"IFERROR(ROUND(AVERAGEIF(L30:N35,\"<>0\",L30:N35),0),\"-\")","v":"-"}]
[null,null,null,"○","Partenaires de financement (au niveau national)",null,null,null,null,null,null,0,0,0]
[null,null,null,"○","Programmes locaux et initiatives nationales plus vastes ",null,null,null,null,null,null,0,0,0]
[null,null,null,"○","Communautés PQID ",null,null,null,null,null,null,0,0,0]
[null,null,null,"○","Partenaires de mise en œuvre ",null,null,null,null,null,null,0,0,0]
[null,null,null,"○","Ministère de la Santé/départements gouvernementaux de la santé (aux niveaux national et infranational)",null,null,null,null,null,null,0,0,0]
[null,null,null,"○","Une coordination multisectorielle avec tous les autres ministères/départements (ex. : finances et application de la loi) a été réalisée",null,null,null,null,null,null,0,0,0]
[null,null,"Plan de renforcement des capacités et d’assistance technique","Un plan d’assistance technique est en place et : ",null,null,null,null,null,{"$f":"O36","v":"-"},null,null,null,null,{"$f":"IFERROR(ROUND(AVERAGEIF(L37:N42,\"<>0\",L37:N42),0),\"-\")","v":"-"}]
[null,null,null,"○","A été élaboré à l’appui d’une évaluation ",null,null,null,null,null,null,0,0,0,null,{"$f":"IF(MAX(L37:N37)=0,\"\",MAX(L37:N37))","v":""}]
[null,null,null,"○","A recours à des experts techniques nationaux et internationaux, notamment pour le développement des capacités et l’assistance technique entre pairs",null,null,null,null,null,null,0,0,0,null,""]
[null,null,null,"○","A priorisé les composantes du programme et les questions politiques ",null,null,null,null,null,null,0,0,0,null,""]
[null,null,null,"○","Facilite l’établissement et le renforcement des réseaux d’exécutants ",null,null,null,null,null,null,0,0,0,null,""]
[null,null,null,"○","Identifie les lacunes et élabore des demandes d’assistance consolidées lorsque l’expertise du pays fait défaut ",null,null,null,null,null,null,0,0,0,null,""]
[null,null,null,"○","Facilite le développement de la capacité de la communauté de PQID à s’approprier les programmes PQID ",null,null,null,null,null,null,0,0,0,null,""]
[null,null,"Plan de durabilité et feuille de route de transition","Un plan complet de durabilité et une feuille de route de transition, décrivant la transition accusée par les pays entre les interventions soutenues par les donateurs et les interventions soutenues au niveau national, sont en place et informés par : ",null,null,null,null,null,{"$f":"O43","v":"-"},null,null,null,null,{"$f":"IFERROR(ROUND(AVERAGEIF(L44:N47,\"<>0\",L44:N47),0),\"-\")","v":"-"},""]
[null,null,null,"○","Un exercice de calcul des coûts unitaires de la population clé",null,null,null,null,null,null,0,0,0,null,""]
[null,null,null,"○","Une analyse du paysage du financement de la population clé",null,null,null,null,null,null,0,0,0,null,""]
[null,null,null,"○"," Planification de l’intégration des services de PC dans les soins de santé primaires",null,null,null,null,null,null,0,0,0]
[null,null,null,"○","Prise en compte des besoins financiers, humains et d’infrastructure",null,null,null,null,null,null,0,0,0,null,""]
[null,null,"Lois, politiques et réglementation"]
[null,null,"Élément","Critères",null,"S/O","Absent","Présent mais non optimal","Présent et fonctionnel","Moyenne de l’élément","Commentaires (le cas échéant)"]
[null,null,"Lois et politiques ","Des politiques sont en place qui favorisent activement le bon fonctionnement du programme PQID : ",null,null,null,null,null,{"$f":"O50","v":"-"},null,null,null,null,{"$f":"IFERROR(ROUND(AVERAGEIF(L51:N52,\"<>0\",L51:N52),0),\"-\")","v":"-"}]
[null,null,null,"○","Il existe des lignes directrices nationales pour chacune des interventions et services comportementaux, biomédicaux et structurels, et elles sont alignées sur les orientations mondiales",null,null,null,null,null,null,{"$f":"IF(ISBLANK(G51),0,1)","v":0},{"$f":"IF(ISBLANK(H51),0,3)","v":0},{"$f":"IF(ISBLANK(I51),0,5)","v":0}]
[null,null,null,"○","Politiques en place qui aident les PQID à accéder aux services malgré les lois qui criminalisent la consommation de drogues, le travail du sexe et les activités homosexuelles",null,null,null,null,null,null,{"$f":"IF(ISBLANK(G52),0,1)","v":0},{"$f":"IF(ISBLANK(H52),0,3)","v":0},{"$f":"IF(ISBLANK(I52),0,5)","v":0}]
[null,null,"Lignes directrices","Les lignes directrices suivantes existent et articulent clairement les étapes d’une mise en œuvre réussie du programme PQID :",null,null,null,null,null,{"$f":"O53","v":"-"},null,null,null,null,{"$f":"IFERROR(ROUND(AVERAGEIF(L54:N57,\"<>0\",L54:N57),0),\"-\")","v":"-"}]
[null,null,null,"○","Il existe des lignes directrices nationales pour chacune des interventions et services comportementaux, biomédicaux et structurels, et elles sont alignées sur les orientations mondiales ",null,null,null,null,null,null,0,0,0]
[null,null,null,"○","Des lignes directrices ont été élaborées en concertation avec des PQID ",null,null,null,null,null,null,0,0,0]
[null,null,null,"○","Les directives nationales pour les services de dépistage du VIH, les infections sexuellement transmissibles, la prophylaxie avant exposition et les préservatifs tiennent compte des besoins et priorités des PQID  ",null,null,null,null,null,null,0,0,0]
[null,null,null,"○","Les mesures de prévention et de contrôle de l’infection COVID-19 sont intégrées dans l’ensemble des stratégies, plans et lignes directrices de prévention du VIH/PQID ",null,null,null,null,null,null,0,0,0]
[null,null,"Financement"]
[null,null,"Élément","Critères",null,"S/O","Absent","Présent mais non optimal","Présent et fonctionnel","Moyenne de l’élément","Commentaires (le cas échéant)"]
[null,null,"Calcul des coûts ","Budget national en place :",null,null,null,null,null,{"$f":"O60","v":"-"},null,null,null,null,{"$f":"IFERROR(ROUND(AVERAGEIF(L61:N61,\"<>0\",L61:N61),0),\"-\")","v":"-"}]
[null,null,null,"○","Un exercice de calcul des coûts a été réalisé et le programme national connaît le coût moyen pour atteindre des PQID avec un ensemble standard de services conformément aux lignes directrices ",null,null,null,null,null,null,{"$f":"IF(ISBLANK(G61),0,1)","v":0},{"$f":"IF(ISBLANK(H61),0,3)","v":0},{"$f":"IF(ISBLANK(I61),0,5)","v":0}]
[null,null,"Planification budgétaire","Un processus de planification budgétaire bien géré est en place pour le programme de prévention du VIH qui prend en compte les PQID ",null,null,null,null,null,{"$f":"O62","v":"-"},null,null,null,null,{"$f":"IFERROR(ROUND(AVERAGEIF(L63:N65,\"<>0\",L63:N65),0),\"-\")","v":"-"}]
[null,null,null,"○","Une évaluation des ressources disponibles est en cours afin d’essayer d’identifier les lacunes et d’allouer un budget au programme",null,null,null,null,null,null,0,0,0,{"$f":"IFERROR(ROUND(AVERAGEIF(L64:N66,\"<>0\",L64:N66),0),\"-\")","v":"-"}]
[null,null,null,"○","Une stratégie a été élaborée pour combler les lacunes de financement",null,null,null,null,null,null,0,0,0,{"$f":"IFERROR(ROUND(AVERAGEIF(L65:N67,\"<>0\",L65:N67),0),\"-\")","v":"-"}]
[null,null,null,"○","Les budgets sont corrélés aux besoins en ressources des plans opérationnels pour des cibles nationales et infranationales",null,null,null,null,null,null,0,0,0,{"$f":"IFERROR(ROUND(AVERAGEIF(L66:N71,\"<>0\",L66:N71),0),\"-\")","v":"-"}]
[null,null,"Mobilisation des ressources et financement","○","Le financement est suffisant pour répondre aux besoins de la programmation holistique",null,null,null,null,{"$f":"O66","v":"-"},null,0,0,0,{"$f":"IFERROR(ROUND(AVERAGEIF(L66:N66,\"<>0\",L66:N66),0),\"-\")","v":"-"}]
[null,null,"Ressourcement national","○","Plus de 50 % des ressources soutenant le programme, humaines et financières, sont nationales",null,null,null,null,{"$f":"O67","v":"-"},null,0,0,0,{"$f":"IFERROR(ROUND(AVERAGEIF(L67:N67,\"<>0\",L67:N67),0),\"-\")","v":"-"},{"$f":"IF(MAX(L67:N67)=0,\"\",MAX(L67:N67))","v":""}]
[null,null,"Contrats sociaux","○","Des mécanismes de contrats sociaux ont été élaborés et sont en cours de mise en œuvre",null,null,null,null,{"$f":"O68","v":"-"},null,0,0,0,{"$f":"IFERROR(ROUND(AVERAGEIF(L68:N71,\"<>0\",L68:N71),0),\"-\")","v":"-"}]
[null,null,null,"○","Les opportunités sont largement diffusées afin de permettre aux partenaires locaux de mise en œuvre et aux organisations dirigées par des PQID d’accéder au financement",null,null,null,null,null,null,0,0,0]
[null,null,null,"○","Un mécanisme a été mis en place pour autoriser le financement d’organisations dirigées par la communauté",null,null,null,null,null,null,0,0,0]
[null,null,null,"○","Les fonds sont réservés aux organisations dirigées par la communauté ",null,null,null,null,null,null,0,0,0,null,{"$f":"IF(MAX(L71:N71)=0,\"\",MAX(L71:N71))","v":""}]
[null,null,"Mise en œuvre de programme"]
[null,null,"Ciblage et planification"]
[null,null,"Élément","Critères",null,"S/O","Absent","Présent mais non optimal","Présent et fonctionnel","Moyenne de l’élément","Commentaires (le cas échéant)"]
[null,null,"Évaluation démographique (estimation de la taille de la population et microplanification)","L’estimation de la taille de la population et la microplanification sont achevées et :",null,null,null,null,null,{"$f":"O75","v":"-"},null,null,null,null,{"$f":"IFERROR(ROUND(AVERAGEIF(L76:N82,\"<>0\",L76:N82),0),\"-\")","v":"-"}]
[null,null,null,"○","Sont établies en fonction du site (niveau local, par opposition au pays ou à la province)",null,null,null,null,null,null,{"$f":"IF(ISBLANK(G76),0,1)","v":0},{"$f":"IF(ISBLANK(H76),0,3)","v":0},{"$f":"IF(ISBLANK(I76),0,5)","v":0}]
[null,null,null,"○","La confidentialité des zones sensibles et l’anonymat des personnes sont garantis et ne sont pas communiqués aux forces de l’ordre",null,null,null,null,null,null,{"$f":"IF(ISBLANK(G77),0,1)","v":0},{"$f":"IF(ISBLANK(H77),0,3)","v":0},{"$f":"IF(ISBLANK(I77),0,5)","v":0}]
[null,null,null,"○","Sont mises à jour annuellement ou à l’issue d’une enquête biocomportementale",null,null,null,null,null,null,0,0,0]
[null,null,null,"○","Des membres formés de PQID ou de réseaux de TS ont été engagés et recrutés pour entreprendre l’estimation de la taille de la population et les exercices de microplanification",null,null,null,null,null,null,0,0,0]
[null,null,null,"○","Les estimations de la taille de la population sont précises et actualisées",null,null,null,null,null,null,0,0,0]
[null,null,null,"○","Les informations sont utilisées pour déterminer la nécessité d’interventions comportementales, biomédicales et structurelles  ",null,null,null,null,null,null,0,0,0]
[null,null,null,"○","Ces informations sont utilisées pour estimer les besoins de financement et fixer des cibles",null,null,null,null,null,null,0,0,0]
[null,null,"Évaluation épidémiologique (enquête de séroprévalence et déterminants du risque)","Des estimations de séroprévalence sont disponibles et :",null,null,null,null,null,{"$f":"O83","v":"-"},null,null,null,null,{"$f":"IFERROR(ROUND(AVERAGEIF(L84:N89,\"<>0\",L84:N89),0),\"-\")","v":"-"}]
[null,null,null,"○","Sont basées sur une surveillance récente et/ou continue (estimations modélisées mises à jour annuellement ou données d’enquête mises à jour tous les 3-5 ans)",null,null,null,null,null,null,0,0,0]
[null,null,null,"○","Spécifiques aux PQID ",null,null,null,null,null,null,0,0,0]
[null,null,null,"○","Les résultats sont précis, la taille de l’échantillon est statistiquement représentative (puissance appropriée) et la méthode d’échantillonnage est appropriée pour les PQID. PQID : échantillonnage par localisation temporelle et échantillonnage pratique",null,null,null,null,null,null,0,0,0]
[null,null,null,"○","Des évaluations des déterminants du risque ont été régulièrement menées pour les PQID afin d’informer les programmes et :",null,null,null,null,null,null,0,0,0]
[null,null,null,null,"> Elles sont spécifiques aux PQID et prennent en compte les comportements spécifiques à l’âge et au sexe ",null,null,null,null,null,null,0,0,0]
[null,null,null,null,"> Les études sont de bonne qualité et fournissent de nombreuses informations  ",null,null,null,null,null,null,0,0,0]
[null,null,"Évaluation des besoins","Une évaluation des besoins pour les PQID été réalisée au niveau de la mise en œuvre et/ou au niveau local :",null,null,null,null,null,{"$f":"O90","v":"-"},null,null,null,null,{"$f":"IFERROR(ROUND(AVERAGEIF(L91:N93,\"<>0\",L91:N93),0),\"-\")","v":"-"}]
[null,null,null,"○","Engagement adéquat avec les PQID et les organisations ou réseaux dirigé(e)s par des PQID sur les besoins",null,null,null,null,null,null,0,0,0]
[null,null,null,"○","Informations suffisantes sur les services dont les PQID ont besoin, sur la manière dont elles préfèrent accéder aux services et sur les personnes qui devraient fournir ces services ",null,null,null,null,null,null,0,0,0]
[null,null,null,"○","Informations complètes sur les lacunes en termes de prestation de services et d’obstacles à l’accès",null,null,null,null,null,null,0,0,0]
[null,null,"Définition de cibles","Des cibles pour les PQID ont été clairement définies et :",null,null,null,null,null,{"$f":"O94","v":"-"},null,null,null,null,{"$f":"IFERROR(ROUND(AVERAGEIF(L95:N102,\"<>0\",L95:N102),0),\"-\")","v":"-"}]
[null,null,null,"○","Sont basées sur les données relatives à l’estimation de la taille et à l’évaluation du risque",null,null,null,null,null,null,0,0,0]
[null,null,null,"○","Sont conçues pour les PQID dans toute leur diversité ",null,null,null,null,null,null,0,0,0]
[null,null,null,"○","Sont spécifiées aux niveaux national et infranational ",null,null,null,null,null,null,0,0,0]
[null,null,null,"○","Incluent les réalisations déjà atteintes et les réalisations finales prévues ",null,null,null,null,null,null,0,0,0]
[null,null,null,"○","Sont élaborées en concertation avec des exécutants et des réseaux de PQID afin de s’assurer qu’elles sont réalistes",null,null,null,null,null,null,0,0,0]
[null,null,null,"○","Correspondent aux budgets et aux accords formels avec les exécutants locaux",null,null,null,null,null,null,0,0,0]
[null,null,null,"○","Sont ventilées par âge et par sexe",null,null,null,null,null,null,0,0,0]
[null,null,null,"○","Les cibles du Fonds mondial et du President’s Emergency Plan For AIDS Relief (PEPFAR) font référence aux estimations de taille et aux cibles nationales",null,null,null,null,null,null,0,0,0]
[null,null,"Modalités de mise en œuvre "]
[null,null,"Élément","Critères",null,"S/O","Absent","Présent mais non optimal","Présent et fonctionnel","Moyenne de l’élément","Commentaires (le cas échéant)"]
[null,null,"Gestion d’une plateforme d’accès","Une plateforme d’accès favorise les efforts coordonnés de la communauté et des cliniques et :",null,null,null,null,null,{"$f":"O105","v":"-"},null,null,null,null,{"$f":"IFERROR(ROUND(AVERAGEIF(L106:N109,\"<>0\",L106:N109),0),\"-\")","v":"-"}]
[null,null,null,"○","Établit la confiance au sein de la communauté par le biais des pairs-travailleurs de proximité ",null,null,null,null,null,null,0,0,0]
[null,null,null,"○","Atteint les PQID en grand nombre et encourage leur adhésion, leur rétention et leur participation active au programme",null,null,null,null,null,null,0,0,0]
[null,null,null,"○","Encourage l’adhésion et la rétention des PQID ",null,null,null,null,null,null,0,0,0]
[null,null,null,"○","Encourage la participation active des PQID  ",null,null,null,null,null,null,0,0,0]
[null,null,"Structure de gestion","Le processus de la structure de gestion a été défini et :  ",null,null,null,null,null,{"$f":"O110","v":"-"},null,null,null,null,{"$f":"IFERROR(ROUND(AVERAGEIF(L111:N119,\"<>0\",L111:N119),0),\"-\")","v":"-"}]
[null,null,null,"○","Des mandats précis sont en place pour définir les rôles et responsabilités de tous les postes, y compris le personnel au niveau de la communauté et des installations",null,null,null,null,null,null,0,0,0]
[null,null,null,"○","Ratio adéquat entre les pairs-travailleurs de proximité (PTP) et les membres de la communauté",null,null,null,null,null,null,0,0,0]
[null,null,null,"○","Lignes directrices en place pour le recrutement, la rétention, l’évaluation et la promotion des PTP",null,null,null,null,null,null,0,0,0]
[null,null,null,"○","Toutes les personnes travaillant sur le projet sont rémunérées ",null,null,null,null,null,null,0,0,0]
[null,null,null,"○","La supervision adéquate des PTP est assurée par les superviseurs des pairs",null,null,null,null,null,null,0,0,0]
[null,null,null,"○","Définition d’une stratégie de promotion et d’un plan de progression de carrière pour les PTP et les professionnels de la communication sur le changement social et comportemental (CCSC) ",null,null,null,null,null,null,0,0,0]
[null,null,null,"○","Un mécanisme d’orientation formel est établi ",null,null,null,null,null,null,0,0,0]
[null,null,null,"○","Sites de destination équipés pour recevoir les services (les sites de destination sont les points où les services seront fournis – ex. : cliniques, hôpitaux, communautés)",null,null,null,null,null,null,0,0,0]
[null,null,null,"○","La microplanification est utilisée pour établir des priorités et gérer la mobilisation, notamment pour identifier les bénéficiaires les plus exposés",null,null,null,null,null,null,0,0,0]
[null,null,"Flux de données ","Les flux de données à chaque niveau ont été définis et :",null,null,null,null,null,{"$f":"O120","v":"-"},null,null,null,null,{"$f":"IFERROR(ROUND(AVERAGEIF(L121:N126,\"<>0\",L121:N126),0),\"-\")","v":"-"}]
[null,null,null,"○","Des systèmes de données ont été mis au point et testés ",null,null,null,null,null,null,0,0,0]
[null,null,null,"○","Les indicateurs standard pour le suivi du programme de PC sont finalisés",null,null,null,null,null,null,0,0,0]
[null,null,null,"○","Des outils de rapport standard ont été élaborés ",null,null,null,null,null,null,0,0,0]
[null,null,null,"○","Les données programmatiques sont déclarées et examinées mensuellement ",null,null,null,null,null,null,0,0,0]
[null,null,null,"○","Des systèmes sont en place pour préserver la confidentialité des données ",null,null,null,null,null,null,0,0,0]
[null,null,null,"○","Développement du système CIU ",null,null,null,null,null,null,0,0,0]
[null,null,"Pairs-travailleurs de proximité (PTP)  "," Les pairs-travailleurs de proximité sont employés efficacement dans le programme :\n",null,null,null,null,null,{"$f":"O127","v":"-"},null,null,null,null,{"$f":"IFERROR(ROUND(AVERAGEIF(L128:N136,\"<>0\",L128:N136),0),\"-\")","v":"-"}]
[null,null,null,"○","Les PTP sont issus de la communauté PQID qu’ils représentent ou servent",null,null,null,null,null,null,0,0,0]
[null,null,null,"○","Le programme de formation est disponible, approprié et comprend des formations cliniques pour mettre à jour les connaissances des PTP PQID sur les besoins spécifiques des PQID ",null,null,null,null,null,null,0,0,0]
[null,null,null,"○","Les PTP sont formés à la microplanification et à la sensibilisation",null,null,null,null,null,null,0,0,0]
[null,null,null,"○","Un plan de formation à plusieurs niveaux est en place pour améliorer les compétences, la confiance et le leadership des pairs-travailleurs de proximité ",null,null,null,null,null,null,0,0,0]
[null,null,null,"○","Outils de sensibilisation à disposition pour la mobilisation communautaire afin de promouvoir l’accès aux services",null,null,null,null,null,null,0,0,0]
[null,null,null,"○","Les outils de microplanification sont utilisés pour informer la prestation de services en fonction des besoins de l’individu/site ",null,null,null,null,null,null,0,0,0]
[null,null,null,"○","Utilisent des messages et des supports de communication fondés sur des données probantes",null,null,null,null,null,null,0,0,0]
[null,null,null,"○","Fournissent des informations sur les services disponibles et orientent les bénéficiaires vers ces services ",null,null,null,null,null,null,0,0,0]
[null,null,null,"○","Prodiguent des conseils et un soutien émotionnel pour maintenir le traitement",null,null,null,null,null,null,0,0,0]
[null,null,"Engagement significatif des communautés affectées dans le leadership et la coordination","Organisation/Réseau dirigé par des PQID représentées dans un organisme de coordination national ou un groupe de travail technique pour les PQID et :\n\n",null,null,null,null,null,{"$f":"O137","v":"-"},null,null,null,null,{"$f":"IFERROR(ROUND(AVERAGEIF(L138:N141,\"<>0\",L138:N141),0),\"-\")","v":"-"}]
[null,null,null,"○","Elles se réunissent régulièrement",null,null,null,null,null,null,0,0,0]
[null,null,null,"○","Elles participent activement aux processus décisionnels en tant que partenaires à pied d’égalité ",null,null,null,null,null,null,0,0,0]
[null,null,null,"○","Elles sont soutenues pour solliciter un retour d’information et rendre compte des décisions clés aux groupes qu’elles représentent",null,null,null,null,null,null,0,0,0]
[null,null,null,"○","Il est prouvé que le retour d’information, la contribution et les conseils d’experts fournis par l’organisation/réseau dirigé par les PQID sont pris en compte",null,null,null,null,null,null,0,0,0]
[null,null,"Prestation de services"]
[null,null,"Élément","Critères",null,"S/O","Absent","Présent mais non optimal","Présent et fonctionnel","Moyenne de l’élément","Commentaires (le cas échéant)"]
[null,null,"Services accessibles","Les services sont accessibles aux communautés de PQID et :",null,null,null,null,null,{"$f":"O144","v":"-"},null,null,null,null,{"$f":"IFERROR(ROUND(AVERAGEIF(L145:N151,\"<>0\",L145:N151),0),\"-\")","v":"-"}]
[null,null,null,"○","Sont conçus à l’appui de la recherche formative menée dans le cadre de l’évaluation des besoins ",null,null,null,null,null,null,{"$f":"IF(ISBLANK(G145),0,1)","v":0},{"$f":"IF(ISBLANK(H145),0,3)","v":0},{"$f":"IF(ISBLANK(I145),0,5)","v":0}]
[null,null,null,"○","Sont idéalement situés à l’intérieur ou à proximité des zones sensibles",null,null,null,null,null,null,0,0,0]
[null,null,null,"○","Incluent des services mobiles si nécessaire ",null,null,null,null,null,null,0,0,0]
[null,null,null,"○","Les horaires d’ouverture sont adaptés aux PQID ciblées par les services ",null,null,null,null,null,null,0,0,0]
[null,null,null,"○","Sont intégrés au système de santé général et fournissent des paniers de soins complets ",null,null,null,null,null,null,0,0,0]
[null,null,null,"○","Bénéficient d’un approvisionnement régulier en services et en produits",null,null,null,null,null,null,0,0,0]
[null,null,null,"○","Impliquent un transfert de tâches pour accroître la capacité des prestataires de soins de santé",null,null,null,null,null,null,0,0,0]
[null,null,"Services acceptables","Les services sont acceptables par la communauté des PQID et :",null,null,null,null,null,{"$f":"O152","v":"-"},null,null,null,null,{"$f":"IFERROR(ROUND(AVERAGEIF(L153:N157,\"<>0\",L153:N157),0),\"-\")","v":"-"}]
[null,null,null,"○","Ils sont confidentiels et basés sur le volontariat ",null,null,null,null,null,null,0,0,0]
[null,null,null,"○","Les prestataires sont sensibles aux besoins des PQID, ne portent pas de jugement et ne stigmatisent pas",null,null,null,null,null,null,0,0,0]
[null,null,null,"○","Les prestataires sont formés pour être en mesure d’offrir un paquet complet d’interventions spécifiques aux PQID  ",null,null,null,null,null,null,0,0,0]
[null,null,null,"○","Ils instaurent un environnement sûr et favorable ",null,null,null,null,null,null,0,0,0]
[null,null,null,"○","Les interventions en ligne sont menées de manière éthique et respectent la vie privée et la confidentialité des clients",null,null,null,null,null,null,0,0,0]
[null,null,"Services sur-mesure/appropriés","Paquet de services et méthodes de prestation adaptés aux besoins spécifiques des PQID dans toute leur diversité :",null,null,null,null,null,{"$f":"O158","v":"-"},null,null,null,null,{"$f":"IFERROR(ROUND(AVERAGEIF(L159:N164,\"<>0\",L159:N164),0),\"-\")","v":"-"}]
[null,null,null,"○","Le paquet de services pour les femmes PQID comprend tous les services de SSR pertinents selon les directives de l’OMS ",null,null,null,null,null,null,0,0,0]
[null,null,null,"○","Large disponibilité de l’initiation communautaire au traitement antirétroviral pour les PQID vivant avec le VIH",null,null,null,null,null,null,0,0,0]
[null,null,null,"○","Les services sont fournis d’une manière accessible aux PQID adolescents dans toute leur diversité ",null,null,null,null,null,null,0,0,0]
[null,null,null,"○","Services supplémentaires (ou liens vers ces services) mis à disposition en fonction des besoins spécifiques des PQID (ex. : services sanitaires de changement de sexe pour les personnes transgenres)",null,null,null,null,null,null,0,0,0]
[null,null,null,"○","Les services sont fournis d’une manière appropriée et respectent la confidentialité/vie privée des clients (ex. : pour les hommes ayant des rapports sexuels avec des hommes mais non identifiés comme gays, ils sont fournis dans le cadre de la santé des hommes)",null,null,null,null,null,null,0,0,0]
[null,null,null,"○","Les services s’attaquent aux vulnérabilités croisées des adolescents et des jeunes impliqués dans la vente de services sexuels",null,null,null,null,null,null,0,0,0]
[null,null,"Interventions cliniques",null,null,null,null,null,null,null,null,null,0,0]
[null,null,"Élément","Critères",null,"S/O","Absent","Présent mais non optimal","Présent et fonctionnel","Moyenne de l’élément","Commentaires (le cas échéant)"]
[null,null,"Programme de distribution d'aiguilles et de seringues (PAS)","Les PAS ont été établis et :",null,null,null,null,null,{"$f":"O167","v":"-"},null,null,null,null,{"$f":"IFERROR(ROUND(AVERAGEIF(L168:N179,\"<>0\",L168:N179),0),\"-\")","v":"-"}]
[null,null,null,"○","Les aiguilles stériles, seringues et autres ressources de base sont librement et facilement disponibles pour les CDI sans restriction de quantité ou de distribution secondaire, notamment: Préservatifs et lubrifiants, filtres, eau stérile, tampons imbibés d'alcool, cotons-tiges, cuillères, contenants indéformables, acidifiants, garrots.",null,null,null,null,null,null,0,0,0]
[null,null,null,null,null,null,null,null,null,null,null,0,0,0]
[null,null,null,"○","Intégré à l'accès à d'autres services de soutien et de soins liés à la gestion de la santé des CDI y compris la gestion des surdoses (rétablissement d'une surdose et naloxone)",null,null,null,null,null,null,0,0,0]
[null,null,null,"○","Idéalement situé dans des distributeurs automatiques, des centres d'accueil, des pharmacies, des cliniques et d'autres lieux accessibles de manière routinière ",null,null,null,null,null,null,0,0,0]
[null,null,null,"○","Aucune ingérence des autorités ",null,null,null,null,null,null,0,0,0]
[null,null,null,"○","Des mécanisme établis pour le retour / l'élimination en toute sécurité des aiguilles et des seringues usagées sont en place",null,null,null,null,null,null,0,0,0]
[null,null,null,"○","Les membres de la communauté participent à la sélection et à la distribution des produits ",null,null,null,null,null,null,0,0,0]
[null,null,null,"○","Aucun échange n'est requis ",null,null,null,null,null,null,0,0,0]
[null,null,null,"○","Les approches pour la fourniture de PAS prennent en compte les considérations liées à l'âge et au genre (par exemple, le conditionnement simultané des services de PAS et de SSR / la disponibilité des femmes qui utilisent des agents de sensibilisation aux drogues)",null,null,null,null,null,null,0,0,0]
[null,null,null,"○","Quantité suffisante d'aiguilles distribuées par personne et par an en fonction des besoins et en conformité avec la quantité recommandée par l'OMS",null,null,null,null,null,null,0,0,0]
[null,null,null,"○","Large accès à des méthodes d'élimination sûres",null,null,null,null,null,null,0,0,0]
[null,null,null,"○","Des aiguilles appropriées et des seringues à faible espace mort sont fournies",null,null,null,null,null,null,0,0,0]
[null,null,"Traitement de substitution aux opiacés","Le Traitement de substitution aux opiacés est offert gratuitement aux CDI et :",null,null,null,null,null,{"$f":"O180","v":"-"},null,null,null,null,{"$f":"IFERROR(ROUND(AVERAGEIF(L181:N188,\"<>0\",L181:N188),0),\"-\")","v":"-"}]
[null,null,null,"○","Est accessible et facilement disponible ",null,null,null,null,null,null,0,0,0]
[null,null,null,"○","La sécurité des clients est assurée ",null,null,null,null,null,null,0,0,0]
[null,null,null,"○","Traitement le jour même sur inscription ",null,null,null,null,null,null,0,0,0]
[null,null,null,"○","Soins de qualité, non discriminatoires ",null,null,null,null,null,null,0,0,0]
[null,null,null,"○","Les prisonniers sont autorisés à continuer leur traitement TSO après leur arrestation ou leur libération",null,null,null,null,null,null,0,0,0]
[null,null,null,"○","Une politique de dosage flexible est en place conformément aux directives de l'OMS",null,null,null,null,null,null,0,0,0]
[null,null,null,"○","Le dosage net est possible",null,null,null,null,null,null,0,0,0]
[null,null,null,"○","Des programmes de distribution communautaires sont en place",null,null,null,null,null,null,0,0,0]
[null,null,"Préservatifs et lubrifiants ","Toutes les PQID ont accès à des préservatifs, à des lubrifiants, à des démonstrations et à d’autres services de santé reproductive et :\n\n",null,null,null,null,null,{"$f":"O189","v":"-"},null,null,null,null,{"$f":"IFERROR(ROUND(AVERAGEIF(L190:N192,\"<>0\",L190:N192),0),\"-\")","v":"-"}]
[null,null,null,"○","Ils sont largement distribués en quantité suffisante",null,null,null,null,null,null,0,0,0]
[null,null,null,"○","Ils sont facilement accessibles dans les zones sensibles",null,null,null,null,null,null,0,0,0]
[null,null,null,"○","Des démonstrations sont régulièrement organisées par les PTP ",null,null,null,null,null,null,0,0,0]
[null,null,"Services de dépistage du VIH","Des services de dépistage, de traitement, de conseil et de soutien sont à la disposition des PQID et :\n",null,null,null,null,null,{"$f":"O193","v":"-"},null,null,null,null,{"$f":"IFERROR(ROUND(AVERAGEIF(L194:N205,\"<>0\",L194:N205),0),\"-\")","v":"-"}]
[null,null,null,"○","Les directives consolidées de l’OMS sur les services de dépistage du VIH sont mises en œuvre",null,null,null,null,null,null,0,0,0]
[null,null,null,"○","Tous les tests sont volontaires et confidentiels (consentement éclairé obtenu)",null,null,null,null,null,null,0,0,0]
[null,null,null,"○","Des conseils sont prodigués avant et après le test de dépistage ",null,null,null,null,null,null,0,0,0]
[null,null,null,"○","Le traitement est proposé quel que soit le taux de CD4",null,null,null,null,null,null,0,0,0]
[null,null,null,"○","Les personnes séropositives sont orientées vers des réseaux de soins et de soutien après le diagnostic ",null,null,null,null,null,null,0,0,0]
[null,null,null,"○","L’accès aux services est distribué de manière équitable dans la communauté et pour toutes les PQID ",null,null,null,null,null,null,0,0,0]
[null,null,null,"○","Des interventions visant à garantir l’observance sont en place pour les PQID vivant avec le VIH",null,null,null,null,null,null,0,0,0]
[null,null,null,"○","Suivi régulier de l’assiduité aux soins chez les PQID vivant avec le VIH ",null,null,null,null,null,null,0,0,0]
[null,null,null,"○","Liens avec la prévention des comorbidités fournis",null,null,null,null,null,null,0,0,0]
[null,null,null,"○","Liens avec la prévention et le traitement des comorbidités fournis",null,null,null,null,null,null,0,0,0]
[null,null,null,"○","Tests de charge virale disponibles et accessibles pour les PQID vivant avec le VIH",null,null,null,null,null,null,0,0,0]
[null,null,null,"○","Tests de CD4 disponibles et accessibles pour les PQID vivant avec le VIH",null,null,null,null,null,null,0,0,0]
[null,null,"Prophylaxie avant exposition","La PaE orale (TDF) est disponible pour les PQID présentant un risque important d’infection par le VIH ",null,null,null,null,null,{"$f":"O206","v":"-"},null,null,null,null,{"$f":"IFERROR(ROUND(AVERAGEIF(L207:N211,\"<>0\",L207:N211),0),\"-\")","v":"-"}]
[null,null,null,"○","L’approvisionnement en prophylaxie avant exposition est ininterrompu ",null,null,null,null,null,null,{"$f":"IF(ISBLANK(G207),0,1)","v":0},{"$f":"IF(ISBLANK(H207),0,3)","v":0},{"$f":"IF(ISBLANK(I207),0,5)","v":0}]
[null,null,null,"○","Des tests VIH sont effectués avant le début de la PaE pour s’assurer que la personne est négative ",null,null,null,null,null,null,0,0,0]
[null,null,null,"○","Proposée dans le cadre d’une approche globale de prévention combinée ",null,null,null,null,null,null,0,0,0]
[null,null,null,"○","Les approches combinées comprennent le soutien à l’observance, les nouveaux tests périodiques de dépistage du VIH et le conseil aux usagers de la prophylaxie avant exposition ",null,null,null,null,null,null,0,0,0]
[null,null,null,"○","La prophylaxie avant exposition est proposée sur la base d’une évaluation individuelle et non d’un groupe à risque afin de favoriser une couverture plus large ",null,null,null,null,null,null,0,0,0]
[null,null,"Planification familiale et SSR","Toutes les PQID ont accès à la planification familiale et à d’autres services de santé sexuelle et reproductive et :",null,null,null,null,null,{"$f":"O212","v":"-"},null,null,null,null,{"$f":"IFERROR(ROUND(AVERAGEIF(L213:N216,\"<>0\",L213:N216),0),\"-\")","v":"-"}]
[null,null,null,"○","Ils comprennent le dépistage du cancer du col de l’utérus",null,null,null,null,null,null,0,0,0]
[null,null,null,"○","Ils sont largement distribués en quantité suffisante",null,null,null,null,null,null,0,0,0]
[null,null,null,"○","Ils sont facilement accessibles dans les zones sensibles",null,null,null,null,null,null,0,0,0]
[null,null,null,"○","Des ateliers de démonstration sont régulièrement programmés dans les zones sensibles",null,null,null,null,null,null,0,0,0]
[null,null,"Soins post-violence ","Toutes les PQID ont accès à des soins post-violence et :\n",null,null,null,null,null,{"$f":"O217","v":"-"},null,null,null,null,{"$f":"IFERROR(ROUND(AVERAGEIF(L217:N221,\"<>0\",L217:N221),0),\"-\")","v":"-"}]
[null,null,null,"○","Des services post-violence tels que le soutien et le conseil sont disponibles",null,null,null,null,null,null,0,0,0]
[null,null,null,"○","Des services post-violence tels que la prophylaxie post-exposition sont disponibles",null,null,null,null,null,null,0,0,0]
[null,null,null,"○","Des tests de dépistage des IST (syphilis, chlamydia, gonorrhée) sont pratiqués systématiquement en cas de violence sexuelle",null,null,null,null,null,null,0,0,0]
[null,null,null,"○","Mécanisme d’orientation vers des services complets de lutte contre la violence sexiste en cas de besoin",null,null,null,null,null,null,0,0,0]
[null,null,"Prévention, dépistage et traitement de la tuberculose","La prévention, le dépistage et le traitement de la tuberculose sont à la disposition des PQID et :\n",null,null,null,null,null,{"$f":"O222","v":"-"},null,null,null,null,{"$f":"IFERROR(ROUND(AVERAGEIF(L223:N231,\"<>0\",L223:N231),0),\"-\")","v":"-"}]
[null,null,null,"○","Prévention : thérapie préventive à l’isoniazide administrée aux personnes séropositives en conjonction avec un traitement antirétroviral, contrôle de l’infection par la tuberculose et recherche des contacts dans les lieux de rassemblement ",null,null,null,null,null,null,0,0,0]
[null,null,null,"○","Diagnostic : utilisation de Xpert MTB/RIF pour les premiers tests diagnostiques",null,null,null,null,null,null,0,0,0]
[null,null,null,"○","Tous les tests sont volontaires et confidentiels ",null,null,null,null,null,null,0,0,0]
[null,null,null,"○","Des interventions de soutien à l’observance pour s’assurer que le traitement antibiotique est terminé sont en place",null,null,null,null,null,null,0,0,0]
[null,null,null,"○","Le traitement est administré immédiatement et l’approvisionnement est ininterrompu",null,null,null,null,null,null,0,0,0]
[null,null,null,"○","L’accès aux services est distribué de manière équitable dans la communauté et pour les PQID ",null,null,null,null,null,null,0,0,0]
[null,null,null,"○","Bons liens avec le dépistage du VIH et le conseil pour les cas positifs ",null,null,null,null,null,null,0,0,0]
[null,null,null,"○","Des efforts sont faits pour traiter la tuberculose latente chez les PQID ",null,null,null,null,null,null,0,0,0]
[null,null,null,"○","Le traitement de la tuberculose n’est pas contre-indiqué par l’alcool, la consommation de drogues et les troubles mentaux",null,null,null,null,null,null,0,0,0]
[null,null,"Prévention, vaccination, dépistage et traitement des hépatites virales","La prévention, la vaccination, le dépistage et les traitements de l’hépatite B et C virale sont disponibles pour répondre aux besoins spécifiques des PQID et :\n",null,null,null,null,null,{"$f":"O232","v":"-"},null,null,null,null,{"$f":"IFERROR(ROUND(AVERAGEIF(L233:N238,\"<>0\",L233:N238),0),\"-\")","v":"-"}]
[null,null,null,"○","Tous les tests sont volontaires et confidentiels ",null,null,null,null,null,null,0,0,0]
[null,null,null,"○","Le traitement est administré immédiatement et l’approvisionnement est ininterrompu ",null,null,null,null,null,null,0,0,0]
[null,null,null,"○","L’accès aux services est distribué de manière équitable dans la communauté et pour toutes les PQID",null,null,null,null,null,null,0,0,0]
[null,null,null,"○","Des campagnes de vaccination contre l’hépatite B et C sont menées de manière systématique ",null,null,null,null,null,null,0,0,0]
[null,null,null,"○","Des schémas de vaccination rapide et standard contre les hépatites B et C sont disponibles et facilement accessibles ",null,null,null,null,null,null,0,0,0]
[null,null,null,"○","Des ressources ont été allouées à la prévention, à la vaccination, au dépistage et au traitement des hépatites virales",null,null,null,null,null,null,0,0,0]
[null,null,"Dépistage et traitement de la consommation de drogues et d’alcool","Le dépistage et le traitement de la consommation problématique d’alcool et de drogues sont systématiquement effectués dans les établissements de soins de santé, les zones sensibles locales et les cliniques mobiles ",null,null,null,null,null,{"$f":"O239","v":"-"},null,null,null,null,{"$f":"IFERROR(ROUND(AVERAGEIF(L240:N243,\"<>0\",L240:N243),0),\"-\")","v":"-"}]
[null,null,null,"○","Les pairs-travailleurs de proximité font le lien entre les personnes à risque et les services de dépistage et de traitement ",null,null,null,null,null,null,0,0,0]
[null,null,null,"○","Les personnes sont mises en relation avec des conseillers, des organisations et des groupes de soutien appropriés",null,null,null,null,null,null,0,0,0]
[null,null,null,"○","Le traitement est initié immédiatement si la personne y consent volontairement",null,null,null,null,null,null,0,0,0]
[null,null,null,"○","L’orientation vers d’autres services (santé mentale, soutien psychosocial) est assurée en temps utile",null,null,null,null,null,null,0,0,0]
[null,null,"Soins de santé mentale","Des soins de santé mentale sont accessibles et prodigués de manière cohérente aux PQID vivant avec le VIH et comprennent :",null,null,null,null,null,{"$f":"O244","v":"-"},null,null,null,null,{"$f":"IFERROR(ROUND(AVERAGEIF(L245:N246,\"<>0\",L245:N246),0),\"-\")","v":"-"}]
[null,null,null,"○","Dépistage systématique des troubles de la santé mentale (notamment la dépression et le stress psychosocial), conformément au programme d’action sur les lacunes en matière de santé mentale (PALSM)",null,null,null,null,null,null,0,0,0]
[null,null,null,"○","Conseils post-test VIH après un résultat positif pour dépister les risques de suicide, de dépression et d’autres problèmes de santé mentale ",null,null,null,null,null,null,0,0,0]
[null,null,"CMMV","La CMMV est à disposition des prisonniers masculins hétérosexuels (qui sont sur le point d’être libérés dans les pays d’Afrique orientale et australe qui pratiquent la VMMC) et :",null,null,null,null,null,{"$f":"O247","v":"-"},null,null,null,null,{"$f":"IFERROR(ROUND(AVERAGEIF(L248:N249,\"<>0\",L248:N249),0),\"-\")","v":"-"}]
[null,null,null,"○","La procédure est volontaire (un consentement éclairé a été obtenu) et confidentielle",null,null,null,null,null,null,0,0,0]
[null,null,null,"○","La procédure est menée par des professionnels de santé bien formés dans des locaux correctement équipés",null,null,null,null,null,null,0,0,0]
[null,null,"COVID-19 ","Prestation de services différenciés centrés sur les personnes pour les programmes PQID pendant le COVID-19 \n",null,null,null,null,null,{"$f":"O250","v":"-"},null,null,null,null,{"$f":"IFERROR(ROUND(AVERAGEIF(L251:N252,\"<>0\",L251:N252),0),\"-\")","v":"-"}]
[null,null,null,"○","Des programmes sont en place pour encourager et suivre l’utilisation du vaccin COVID-19 chez les PQID ",null,null,null,null,null,null,0,0,0]
[null,null,null,"○","Maintien de la messagerie et de l’accès sécurisé aux modèles de prestation de services hors établissement (ex. : communautaires, à domicile, de télésanté) pendant les pics de COVID-19 afin d’éviter toute interruption de service",null,null,null,null,null,null,0,0,0]
[null,null,"Interventions comportementales"]
[null,null,"Élément","Critères",null,"S/O","Absent","Présent mais non optimal","Présent et fonctionnel","Moyenne de l’élément","Commentaires (le cas échéant)"]
[null,null,"Communication sur le changement social et comportemental (CCSC)","Les activités de CCSC sont incluses dans le programme sur les populations clés. Elles sont :",null,null,null,null,null,{"$f":"O255","v":"-"},null,null,null,null,{"$f":"IFERROR(ROUND(AVERAGEIF(L256:N260,\"<>0\",L256:N260),0),\"-\")","v":"-"}]
[null,null,null,"○","Bien planifiées et dûment budgétisées",null,null,null,null,null,null,{"$f":"IF(ISBLANK(G256),0,1)","v":0},{"$f":"IF(ISBLANK(H256),0,3)","v":0},{"$f":"IF(ISBLANK(I256),0,5)","v":0},{"$f":"IF(ISBLANK(J256),0,5)","v":0}]
[null,null,null,"○","Fondées sur des données probantes ",null,null,null,null,null,null,{"$f":"IF(ISBLANK(G257),0,1)","v":0},{"$f":"IF(ISBLANK(H257),0,3)","v":0},{"$f":"IF(ISBLANK(I257),0,5)","v":0}]
[null,null,null,"○","Les membres de la population clé ont été impliqués dans la conception et l’essai des interventions",null,null,null,null,null,null,0,0,0]
[null,null,null,"○","Les organisations et les personnes qui mettent en œuvre ces interventions sont expérimentées et formées aux interventions de CCSC",null,null,null,null,null,null,0,0,0]
[null,null,null,"○","Les interventions de la CCSC sont incluses dans les plans et activités de S&E",null,null,null,null,null,null,0,0,0]
[null,null,"Interventions structurelles"]
[null,null,"Élément","Critères",null,"S/O","Absent","Présent mais non optimal","Présent et fonctionnel","Moyenne de l’élément","Commentaires (le cas échéant)"]
[null,null,"Prévention et réponse à la violence","Des programmes visant à lutter contre la violence à l’égard des PQID sont mis en œuvre de manière cohérente et comprennent :",null,null,null,null,null,{"$f":"O263","v":"-"},null,null,null,null,{"$f":"IFERROR(ROUND(AVERAGEIF(L264:N270,\"<>0\",L264:N270),0),\"-\")","v":"-"}]
[null,null,null,"○","Informations sur la sécurité",null,null,null,null,null,null,0,0,0]
[null,null,null,"○","Espaces sécurisés",null,null,null,null,null,null,{"$f":"IF(ISBLANK(G265),0,1)","v":0},{"$f":"IF(ISBLANK(H265),0,3)","v":0},{"$f":"IF(ISBLANK(I265),0,5)","v":0}]
[null,null,null,"○","Sécurité renforcée sur le lieu de travail",null,null,null,null,null,null,0,0,0]
[null,null,null,"○","Mécanismes standardisés de surveillance et de signalement des expériences de violence qui outrepassent les pouvoirs de la police et peuvent inclure un soutien parajuridique de la part des organisations de PQID ",null,null,null,null,null,null,0,0,0]
[null,null,null,"○","Formation complète de la police et des travailleurs sociaux pour qu’ils soient sensibles aux besoins des PQID ",null,null,null,null,null,null,0,0,0]
[null,null,null,"○","Plans de réponse à la violence élaborés par la communauté",null,null,null,null,null,null,0,0,0]
[null,null,null,"○","Liens établis avec l’assistance juridique",null,null,null,null,null,null,0,0,0]
[null,null,"Réduction de la stigmatisation et de la discrimination ","Approche cohérente de la réduction de la stigmatisation en place dans les établissements de santé et lors de la recherche d’une assistance juridique ",null,null,null,null,null,{"$f":"O271","v":"-"},null,null,null,null,{"$f":"IFERROR(ROUND(AVERAGEIF(L272:N275,\"<>0\",L272:N275),0),\"-\")","v":"-"}]
[null,null,null,"○","Des campagnes permanentes de réduction de la stigmatisation sont menées ",null,null,null,null,null,null,0,0,0]
[null,null,null,"○","Sensibilisation, éducation et engagement continus des chefs religieux et des anciens, des agents chargés de l’application de la loi et des travailleurs de santé",null,null,null,null,null,null,0,0,0]
[null,null,null,"○","Des mécanismes efficaces autorisent la dénonciation anonyme d’incidents de discrimination lors de l’accès aux soins de santé  ",null,null,null,null,null,null,0,0,0]
[null,null,null,"○","Un soutien et un suivi sont dispensés aux PQID qui signalent des incidents de discrimination",null,null,null,null,null,null,0,0,0]
[null,null,"Services juridiques liés au VIH ","Des services juridiques liés au VIH sont en place pour répondre aux besoins des populations de PQID et  ",null,null,null,null,null,{"$f":"O276","v":"-"},null,null,null,null,{"$f":"IFERROR(ROUND(AVERAGEIF(L277:N279,\"<>0\",L277:N279),0),\"-\")","v":"-"}]
[null,null,null,"○","Il existe des formes alternatives de résolution des conflits",null,null,null,null,null,null,0,0,0]
[null,null,null,"○","L’accès à l’information et à l’orientation juridiques est facilement disponible",null,null,null,null,null,null,0,0,0]
[null,null,null,"○","L’accès aux conseils et à la représentation juridiques est facilement disponible",null,null,null,null,null,null,0,0,0]
[null,null,"Contrôle de l’application de la loi ","La mise en œuvre des politiques, des règlements et des lois fait l’objet d’un suivi régulier afin d’évaluer l’impact sur les PQID",null,null,null,null,null,{"$f":"O280","v":"-"},null,0,0,0,{"$f":"IFERROR(ROUND(AVERAGEIF(L280:N280,\"<>0\",L280:N280),0),\"-\")","v":"-"}]
[null,null,"Connaissances juridiques","○","Une formation juridique complète est dispensée aux PQID  ",null,null,null,null,{"$f":"O281","v":"-"},null,null,null,null,{"$f":"IFERROR(ROUND(AVERAGEIF(L282:N283,\"<>0\",L282:N283),0),\"-\")","v":"-"}]
[null,null,null,"○","Des stratégies efficaces pour s’engager avec la police ont été décrites et communiquées aux PQID ",null,null,null,null,null,null,0,0,0]
[null,null,null,"○","Les PQID connaissent leurs lois et leurs droits et sont capables de défendre leurs besoins dans le contexte du VIH autour de leurs lois et de leurs droits",null,null,null,null,null,null,0,0,0]
[null,null,"Sensibilisation des législateurs et des agents chargés de l’application de la loi ","Une formation approfondie des législateurs et des agents chargés de l’application de la loi a lieu régulièrement afin de garantir une sensibilisation appropriée de tous les législateurs et agents chargés de l’application de la loi à l’ensemble du programme PQID et comprend : \n",null,null,null,null,null,{"$f":"O284","v":"-"},null,null,null,null,{"$f":"IFERROR(ROUND(AVERAGEIF(L285:N288,\"<>0\",L285:N288),0),\"-\")","v":"-"}]
[null,null,null,"○","Programme complet de formation à la sensibilisation, adapté au contexte du pays",null,null,null,null,null,null,0,0,0]
[null,null,null,"○","Animateurs dûment formés",null,null,null,null,null,null,0,0,0]
[null,null,null,"○","Participation des PQID ",null,null,null,null,null,null,0,0,0]
[null,null,null,"○","Retour d’information des participants",null,null,null,null,null,null,0,0,0]
[null,null,"Formation pour les prestataires de soins de santé sur les droits humains et l’éthique médicale liés au VIH ","Programme complet de formation à la sensibilisation, adapté au contexte du pays",null,null,null,null,null,{"$f":"O289","v":"-"},null,null,null,null,{"$f":"IFERROR(ROUND(AVERAGEIF(L290:N292,\"<>0\",L290:N292),0),\"-\")","v":"-"}]
[null,null,null,"○","Animateurs dûment formés",null,null,null,null,null,null,0,0,0]
[null,null,null,"○","Participation des PQID",null,null,null,null,null,null,0,0,0]
[null,null,null,"○","Retour d’information des participants",null,null,null,null,null,null,0,0,0]
[null,null,"Réduction de la discrimination à l’égard des femmes dans le contexte du VIH ","Des programmes visant à lutter contre l’inégalité entre les sexes, la violence sexiste et le VIH sont mis en œuvre et abordent : ",null,null,null,null,null,{"$f":"O293","v":"-"},null,null,null,null,{"$f":"IFERROR(ROUND(AVERAGEIF(L294:N300,\"<>0\",L294:N300),0),\"-\")","v":"-"}]
[null,null,null,"○","Inégalité des femmes et des filles dans la prise de décision en matière de sexualité et de procréation ",null,null,null,null,null,null,0,0,0]
[null,null,null,"○","Obstacles liés au genre dans l’accès aux services de santé ",null,null,null,null,null,null,0,0,0]
[null,null,null,"○","Discrimination en matière d’héritage, de propriété, de mariage, de divorce et de garde des enfants ",null,null,null,null,null,null,0,0,0]
[null,null,null,"○","Violences sexuelles et autres ",null,null,null,null,null,null,0,0,0]
[null,null,null,"○","Manque d’égalité d’accès aux opportunités éducatives et économiques ",null,null,null,null,null,null,0,0,0]
[null,null,null,"○","Manque de soutien aux soignants dans les foyers touchés par le VIH ",null,null,null,null,null,null,0,0,0]
[null,null,null,"○","Ils sont complétés par des programmes ciblant les hommes et les garçons et portant sur les normes sexospécifiques néfastes ",null,null,null,null,null,null,0,0,0]
[null,null,"Espaces sécurisés / Centres d’accueil","Des espaces sécurisés/centres d’accueil ont été créés pour la communauté PQID et :",null,null,null,null,null,{"$f":"O301","v":"-"},null,null,null,null,{"$f":"IFERROR(ROUND(AVERAGEIF(L302:N310,\"<>0\",L302:N310),0),\"-\")","v":"-"}]
[null,null,null,"○","Servent de lieu principal d’interaction entre la communauté et le programme",null,null,null,null,null,null,0,0,0]
[null,null,null,"○","Fournissent une plateforme pour les initiatives de mobilisation, de formation et d’organisation des communautés",null,null,null,null,null,null,0,0,0]
[null,null,null,"○","Partage d’informations sur les événements, les activités et les services pertinents pour la communauté",null,null,null,null,null,null,0,0,0]
[null,null,null,"○","Des supports d’information, d’éducation et de communication conviviaux sont accessibles",null,null,null,null,null,null,0,0,0]
[null,null,null,"○","Fournissent des services et un soutien psychosociaux ",null,null,null,null,null,null,0,0,0]
[null,null,null,"○","Des préservatifs et des lubrifiants sont à disposition",null,null,null,null,null,null,0,0,0]
[null,null,null,"○","Sont utilisés par les PTP pour évaluer leur travail et planifier les activités de sensibilisation",null,null,null,null,null,null,0,0,0]
[null,null,null,"○","Sont établis en concertation avec les PQID pour déterminer l’emplacement, les heures d’ouverture et les services fournis",null,null,null,null,null,null,0,0,0]
[null,null,null,"○","Sont mis à disposition ou fournissent des liens vers des interventions pertinentes hors du secteur de la santé",null,null,null,null,null,null,0,0,0]
[null,null,"Comités communautaires","Des comités communautaires de PQID ont été constitués et :",null,null,null,null,null,{"$f":"O311","v":"-"},null,null,null,null,{"$f":"IFERROR(ROUND(AVERAGEIF(L312:N321,\"<>0\",L312:N321),0),\"-\")","v":"-"}]
[null,null,null,"○","Peuvent être librement et facilement mis sur pied",null,null,null,null,null,null,0,0,0]
[null,null,null,"○","Organisent des réunions régulières (au moins mensuelles) et dressent des procès-verbaux pour consigner systématiquement les discussions ",null,null,null,null,null,null,0,0,0]
[null,null,null,"○","Examinent la prestation de services, résolvent les problèmes, suivent les changements, favorisent la compréhension et la responsabilité et traitent des questions générales de la communauté",null,null,null,null,null,null,0,0,0]
[null,null,null,"○","Élisent chaque année des membres de la communauté PQID ",null,null,null,null,null,null,0,0,0]
[null,null,null,"○","Élisent un défenseur de la communauté PQID pour faire fonction d’intermédiaire du programme ",null,null,null,null,null,null,0,0,0]
[null,null,null,"○","Invitent le personnel concerné de l’organisation chargée de la mise en œuvre à devenir membre du comité ou à assister aux réunions",null,null,null,null,null,null,0,0,0]
[null,null,null,"○","Transmettent un retour d’information régulier au programme afin d’améliorer la qualité des services offerts",null,null,null,null,null,null,0,0,0]
[null,null,null,"○","Respectent la confidentialité ",null,null,null,null,null,null,0,0,0]
[null,null,null,null,"N’autorisent pas le personnel de l’organisme de mise en œuvre à voter lors des réunions",null,null,null,null,null,null,0,0,0]
[null,null,null,"○","Incluent des jeunes PC et renforcent leurs capacités ",null,null,null,null,null,null,0,0,0]
[null,null,"Suivi du programme"]
[null,null,"Élément","Critères",null,"S/O","Absent","Présent mais non optimal","Présent et fonctionnel","Moyenne de l’élément","Commentaires (le cas échéant)"]
[null,null,"Suivi de routine","Des indicateurs de routine du programme sont définis et déclarés : ",null,null,null,null,null,{"$f":"O324","v":"-"},null,null,null,null,{"$f":"IFERROR(ROUND(AVERAGEIF(L325:N331,\"<>0\",L325:N331),0),\"-\")","v":"-"}]
[null,null,null,"○","Régulièrement (chaque mois/trimestre)",null,null,null,null,null,null,0,0,0]
[null,null,null,"○","De façon exhaustive (les données sont cohérentes et il ne manque aucune information)",null,null,null,null,null,null,0,0,0]
[null,null,null,"○","À tous les niveaux (c’est-à-dire État/comté/province)",null,null,null,null,null,null,0,0,0]
[null,null,null,"○","Par tous les partenaires de mise en œuvre",null,null,null,null,null,null,0,0,0]
[null,null,null,"○","Par le biais de la plateforme LISD/EMR",null,null,null,null,null,null,0,0,0]
[null,null,null,"○","Le suivi des données individuelles est effectué par les partenaires de mise en œuvre ",null,null,null,null,null,null,0,0,0]
[null,null,null,"○","Les données sont régulièrement examinées par toutes les parties prenantes (gouvernement, société civile, communauté PQID, partenaires de mise en œuvre, donateurs) et utilisées pour améliorer les programmes ",null,null,null,null,null,null,0,0,0]
[null,null,"Suivi communautaire dans le cadre de l’obligation de rendre compte ","Intégration du suivi communautaire dans les plateformes de suivi nationales et :",null,null,null,null,null,{"$f":"O332","v":"-"},null,null,null,null,{"$f":"IFERROR(ROUND(AVERAGEIF(L333:N339,\"<>0\",L333:N339),0),\"-\")","v":"-"}]
[null,null,null,"○","Le suivi communautaire est accepté et intégré aux processus décisionnels et aux négociations avec les autorités locales, les bailleurs de fonds et autres soutiens extérieurs ",null,null,null,null,null,null,{"$f":"IF(ISBLANK(G333),0,1)","v":0},{"$f":"IF(ISBLANK(H333),0,3)","v":0},{"$f":"IF(ISBLANK(I333),0,5)","v":0}]
[null,null,null,"○","Fait fonction de mécanisme communautaire de surveillance et de responsabilisation",null,null,null,null,null,null,0,0,0]
[null,null,null,"○","Des pairs-contrôleurs formés collectent et analysent de manière systématique et régulière des données qualitatives et quantitatives sur la prestation de services liés au VIH",null,null,null,null,null,null,0,0,0]
[null,null,null,"○","Des équipes de suivi dirigées par la communauté sont en place pour répondre aux déficits de prestation de services VIH au sein des communautés",null,null,null,null,null,null,0,0,0]
[null,null,null,"○","Il y a collaboration entre les différents réseaux de personnes vivant avec le VIH (PVVIH) et les organisations communautaires des communautés touchées",null,null,null,null,null,null,0,0,0]
[null,null,null,"○","Les collecteurs de données et les autres membres de la communauté impliqués dans le suivi communautaire sont rémunérés conformément aux pratiques et normes nationales",null,null,null,null,null,null,0,0,0]
[null,null,null,"○","Les communautés de PQID sont formées et soutenues pour évaluer les établissements de santé et organiser des audiences publiques afin de demander des comptes aux responsables ",null,null,null,null,null,null,0,0,0]
[null,null,"Suivi du système d’orientation vers d’autres services","Des systèmes de suivi des orientations sont en place et incluent :",null,null,null,null,null,{"$f":"O340","v":"-"},null,null,null,null,{"$f":"IFERROR(ROUND(AVERAGEIF(L341:N345,\"<>0\",L341:N345),0),\"-\")","v":"-"}]
[null,null,null,"○","Un outil d’orientation largement disponible, comprenant des procédures opérationnelles permanentes claires",null,null,null,null,null,null,{"$f":"IF(ISBLANK(G341),0,1)","v":0},{"$f":"IF(ISBLANK(H341),0,3)","v":0},{"$f":"IF(ISBLANK(I341),0,5)","v":0}]
[null,null,null,"○","Un répertoire d’orientation dans l’établissement et dans les organisations de pairs ",null,null,null,null,null,null,0,0,0]
[null,null,null,"○","Enregistrement des résultats ",null,null,null,null,null,null,0,0,0]
[null,null,null,"○","Mécanismes de retour d’information entre les patients et les prestataires (qui orientent) ",null,null,null,null,null,null,0,0,0]
[null,null,null,"○","Rapport sur les orientations (sur une base mensuelle) pour contrôler l’efficacité du système d’orientation",null,null,null,null,null,null,0,0,0]
[null,null,"Évaluation de la qualité","Des systèmes de collecte de données sur la qualité des programmes et des indicateurs connexes ont été définis et :\n",null,null,null,null,null,{"$f":"O346","v":"-"},null,null,null,null,{"$f":"IFERROR(ROUND(AVERAGEIF(L347:N350,\"<>0\",L347:N350),0),\"-\")","v":"-"}]
[null,null,null,"○","Des données précises sont collectées",null,null,null,null,null,null,0,0,0]
[null,null,null,"○","Les données sont exploitées ",null,null,null,null,null,null,0,0,0]
[null,null,null,"○","Des mécanismes de retour d’information permettent aux PQID d’évaluer les services qu’ils ont reçus de manière à contrôler la qualité du programme",null,null,null,null,null,null,0,0,0]
[null,null,null,"○","Les données sont régulièrement vérifiées ",null,null,null,null,null,null,0,0,0]
[null,null,"Surveillance ","La surveillance autorise une description précise du contexte et des résultats/impacts du programme PQID. Surveillance : \n",null,null,null,null,null,{"$f":"O351","v":"-"},null,null,null,null,{"$f":"IFERROR(ROUND(AVERAGEIF(L352:N355,\"<>0\",L352:N355),0),\"-\")","v":"-"}]
[null,null,null,"○","Des résultats d’études sont utilisés pour éclairer la prise de décision et la correction des trajectoires ",null,null,null,null,null,null,0,0,0]
[null,null,null,"○","Implique l’analyse et l’interprétation des données à intervalles réguliers ",null,null,null,null,null,null,0,0,0]
[null,null,null,"○","Implique la diffusion régulière d’informations pour répondre aux besoins locaux, provinciaux et nationaux ",null,null,null,null,null,null,0,0,0]
[null,null,null,"○","Inclut des enquêtes biologiques et comportementales, des enquêtes sentinelles et d’autres études de recherche portant sur des indicateurs afférents aux PQID  ",null,null,null,null,null,null,0,0,0]
[null,null,"Données pour la prise de décision","Le Programme national, l’unité de suivi et d’évaluation du ministère de la Santé ou un organisme de coordination similaire supervise/coordonne la collecte et le traitement des données de suivi, d’enquête et de surveillance et :",null,null,null,null,null,{"$f":"O356","v":"-"},null,null,null,null,{"$f":"IFERROR(ROUND(AVERAGEIF(L357:N364,\"<>0\",L357:N364),0),\"-\")","v":"-"}]
[null,null,null,"○","Partage des données avec le groupe de travail technique PQID ",null,null,null,null,null,null,0,0,0]
[null,null,null,"○","Le groupe de travail technique PQID analyse chaque trimestre les données du programme existant et identifie les domaines nécessitant une correction de trajectoire",null,null,null,null,null,null,0,0,0]
[null,null,null,"○","Le groupe de travail technique PQID contribue à l’élaboration de stratégies visant à combler les lacunes ",null,null,null,null,null,null,0,0,0]
[null,null,null,"○","Des données de bonne qualité (valides, fiables, cohérentes, précises, opportunes, pertinentes) sont collectées et la plupart des besoins d’information sont satisfaits et, s’ils ne le sont pas, les lacunes sont comprises ",null,null,null,null,null,null,0,0,0]
[null,null,null,"○","Les données sont utilisées de manière cohérente et appropriée pour éclairer les décisions ",null,null,null,null,null,null,0,0,0]
[null,null,null,"○","Les données ont été dédupliquées entre les partenaires de mise en œuvre et les doublons sont minimes, voire inexistants",null,null,null,null,null,null,0,0,0]
[null,null,null,"○","Les données sont agrégées au niveau central mais peuvent être désagrégées par localité, sexe et âge",null,null,null,null,null,null,0,0,0]
[null,null,null,"○","Le programme fournit des données au groupe de travail technique pour examen",null,null,null,null,null,null,0,0,0]
[null,null,"Utilisation de Codes d’identification uniques pour le suivi des programmes","Le système utilisé pour le suivi du programme est pleinement opérationnel et adéquat pour suivre la performance du programme",null,null,null,null,null,{"$f":"O365","v":"-"},null,null,null,null,{"$f":"IFERROR(ROUND(AVERAGEIF(L366:N369,\"<>0\",L366:N369),0),\"-\")","v":"-"}]
[null,null,null,"○","Plusieurs codes d’identification uniques peuvent être utilisés dans un pays donné, mais ils sont harmonisés",null,null,null,null,null,null,0,0,0]
[null,null,null,"○","Le programme national utilise des données agrégées de code d’identification unique",null,null,null,null,null,null,0,0,0]
[null,null,null,"○","Le code d’identification unique est capable de distinguer le contact et la portée, à des fins de déduplication ",null,null,null,null,null,null,0,0,0]
[null,null,null,"○","Le code d’identification unique est électronique",null,null,null,null,null,null,0,0,0]
[null,null,"Suivi budgétaire","Le suivi des performances financières et non financières du programme des PQID est intégré et des rapports de routine sont générés : ",null,null,null,null,null,{"$f":"O370","v":"-"},null,null,null,null,{"$f":"IFERROR(ROUND(AVERAGEIF(L371:N373,\"<>0\",L371:N373),0),\"-\")","v":"-"}]
[null,null,null,"○","Les données sur les dépenses relatives aux interventions en faveur des PQID sont facilement accessibles ",null,null,null,null,null,null,0,0,0]
[null,null,null,"○","Des mécanismes de reddition de comptes sur les dépenses insuffisantes et excédentaires sont en place ",null,null,null,null,null,null,0,0,0]
[null,null,null,"○","Des données financières et non financières sont utilisées pour évaluer le rapport qualité-prix",null,null,null,null,null,null,0,0,0]
[null,null,"Résultats de programme"]
[null,null,"Résultats et indicateurs"]
[null,null,"Élément","Critères",null,"S/O","Non surveillé ","Objectif non atteint ou non conforme aux prévisions ","Objectif atteint ou en passe de l’être ","Moyenne de l’élément","Commentaires (le cas échéant)"]
[null,null,"Estimations de la taille de la population pour les personnes qui s’injectent des drogues disponibles",null,null,null,null,null,null,{"$f":"O377","v":"-"},null,0,0,0,{"$f":"IFERROR(ROUND(AVERAGEIF(L377:N377,\"<>0\",L377:N377),0),\"-\")","v":"-"}]
[null,null,"PQID vivant avec le VIH qui connaissent leur statut VIH (cible 90 %)",null,null,null,null,null,null,{"$f":"O378","v":"-"},null,0,0,0,"-"]
[null,null,"PQID vivant avec le VIH sous traitement antirétroviral (cible 90 %)",null,null,null,null,null,null,"-",null,0,0,0,"-"]
[null,null,"PQID vivant avec le VIH qui ont supprimé leur charge virale (cible 90 %)",null,null,null,null,null,null,"-",null,0,0,0,"-"]
[null,null,"La stratégie de prévention comprend des éléments essentiels du paquet de réduction des préjudices causés aux PQID",null,null,null,null,null,null,"-",null,0,0,0,"-"]
[null,null,"PQID ayant reçu au moins 2 interventions de prévention du VIH au cours des 3 derniers mois",null,null,null,null,null,null,"-",null,0,0,0,"-"]
[null,null,"Nombre d’aiguilles/seringues par personne qui s’injecte des drogues",null,null,null,null,null,null,"-",null,0,0,0,"-"]
[null,null,"Pourcentage de PQID ayant évité les soins de santé pour raison de stigmatisation et de discrimination",null,null,null,null,null,null,"-",null,0,0,0,"-"]
[null,null,"Expérience de la discrimination liée au VIH à l’encontre des PWID dans les établissements de soins de santé ",null,null,null,null,null,null,"-",null,0,0,0,"-"]
[null,null,"Pratiques d’injection sûres (PQID) (cible 90 %)",null,null,null,null,null,null,"-",null,{"$f":"IF(ISBLANK(G386),0,1)","v":0},{"$f":"IF(ISBLANK(H386),0,3)","v":0},{"$f":"IF(ISBLANK(I386),0,5)","v":0},"-"]
[null,null,"Pourcentage de consommateurs d’opioïdes qui bénéficient d’un traitement médicalement assisté (PQID) (cible 25 %)",null,null,null,null,null,null,"-",null,0,0,0,"-"]
[null,null,"Criminalisation de l’usage/consommation ou de la possession de drogues pour usage personnel",null,null,null,null,null,null,"-",null,0,0,0,"-"]
[null,null,null,null,null,null,null,null,null,null,null,null,{"$f":"COUNTIF(O6:O387,\"-\")","v":71}]
[null,null,null,null,null,null,null,null,null,null,null,null,{"$f":"COUNTIF(O6:O387,\">0\")","v":0}]
[null,null,null,null,null,null,null,null,null,null,null,"Achèvement de la feuille",{"$f":"M390/(M389+M390)","v":0},{"$f":"1-M391","v":1}]

{"sheet":"Résumé des notes ","index":9,"n_rows":84,"n_cols":14,"rows_kept":84,"cut":false,"hidden":false,"merged":[[64,2,79,2],[2,2,2,4],[3,2,15,2],[3,3,8,3],[9,3,10,3],[16,2,61,2],[16,3,19,3],[20,3,24,3],[25,3,27,3],[28,3,42,3],[44,3,53,3],[54,3,61,3],[64,3,77,3],[11,3,15,3]]}
[]
[]
[null,null,"Résumé des notes",null,null,"Travailleurs du sexe (TS)","Hommes ayant rapports sexuels avec des hommes (HSH)","Personnes transgenres","Prisonniers et personnes en milieu fermé","Personnes qui s’injectent des drogues (PQID)"]
[null,null,"Gestion de programme","Leadership et coordination","Stratégie nationale de prévention du VIH",{"$f":"'TS '!O6","v":"-"},{"$f":"'HSH '!O6","v":"-"},{"$f":"'Personnes transgenres'!O6","v":"-"},{"$f":"'Prisonniers '!O6","v":"-"},{"$f":"'PQID '!O6","v":"-"}]
[null,null,null,null,"Obligation de rendre compte",{"$f":"'TS '!O17","v":"-"},{"$f":"'HSH '!O17","v":"-"},{"$f":"'Personnes transgenres'!O17","v":"-"},{"$f":"'Prisonniers '!O16","v":"-"},{"$f":"'PQID '!O17","v":"-"}]
[null,null,null,null,"Groupe de travail technique pour les PC",{"$f":"'TS '!O23","v":"-"},{"$f":"'HSH '!O23","v":"-"},{"$f":"'Personnes transgenres'!O23","v":"-"},{"$f":"'Prisonniers '!O22","v":"-"},{"$f":"'PQID '!O23","v":"-"}]
[null,null,null,null,"Coordination des parties prenantes",{"$f":"'TS '!O29","v":"-"},{"$f":"'HSH '!O30","v":"-"},{"$f":"'Personnes transgenres'!O29","v":"-"},{"$f":"'Prisonniers '!O29","v":"-"},{"$f":"'PQID '!O29","v":"-"}]
[null,null,null,null,"Plan de renforcement des capacités et d’assistance technique",{"$f":"'TS '!O36","v":"-"},{"$f":"'HSH '!O37","v":"-"},{"$f":"'Personnes transgenres'!O36","v":"-"},{"$f":"'Prisonniers '!O36","v":"-"},{"$f":"'PQID '!O36","v":"-"}]
[null,null,null,null,"Plan de durabilité et feuille de route de transition",{"$f":"'TS '!O43","v":"-"},{"$f":"'HSH '!O44","v":"-"},{"$f":"'Personnes transgenres'!O43","v":"-"},{"$f":"'Prisonniers '!O43","v":"-"},{"$f":"'PQID '!O43","v":"-"}]
[null,null,null,"Lois, politiques et réglementation","Lois et politiques ",{"$f":"'TS '!O50","v":"-"},{"$f":"'HSH '!O51","v":"-"},{"$f":"'Personnes transgenres'!O50","v":"-"},{"$f":"'Prisonniers '!O50","v":"-"},{"$f":"'PQID '!O50","v":"-"}]
[null,null,null,null,"Lignes directrices",{"$f":"'TS '!O54","v":"-"},{"$f":"'HSH '!O55","v":"-"},{"$f":"'Personnes transgenres'!O54","v":"-"},{"$f":"'Prisonniers '!O53","v":"-"},{"$f":"'PQID '!O53","v":"-"}]
[null,null,null,"Financement","Calcul des coûts",{"$f":"'TS '!O61","v":"-"},{"$f":"'HSH '!O62","v":"-"},{"$f":"'Personnes transgenres'!O61","v":"-"},{"$f":"'Prisonniers '!O60","v":"-"},{"$f":"'PQID '!O60","v":"-"}]
[null,null,null,null,"Planification budgétaire",{"$f":"'TS '!O63","v":"-"},{"$f":"'HSH '!O64","v":"-"},{"$f":"'Personnes transgenres'!O63","v":"-"},{"$f":"'Prisonniers '!O62","v":"-"},{"$f":"'PQID '!O62","v":"-"}]
[null,null,null,null,"Mobilisation des ressources et financement",{"$f":"'TS '!O67","v":"-"},{"$f":"'HSH '!O68","v":"-"},{"$f":"'Personnes transgenres'!O67","v":"-"},{"$f":"'Prisonniers '!O66","v":"-"},{"$f":"'PQID '!O66","v":"-"}]
[null,null,null,null,"Ressourcement national",{"$f":"'TS '!O68","v":"-"},{"$f":"'HSH '!O69","v":"-"},{"$f":"'Personnes transgenres'!O69","v":"-"},{"$f":"'Prisonniers '!O67","v":"-"},{"$f":"'PQID '!O67","v":"-"}]
[null,null,null,null,"Contrats sociaux",{"$f":"'TS '!O69","v":"-"},{"$f":"'HSH '!O70","v":"-"},{"$f":"'Personnes transgenres'!O71","v":"-"},{"$f":"'Prisonniers '!O68","v":"-"},{"$f":"'PQID '!O68","v":"-"}]
[null,null,"Mise en œuvre de programme","Ciblage et planification","Évaluation démographique (estimation de la taille de la population et microplanification)",{"$f":"'TS '!O76","v":"-"},{"$f":"'HSH '!O77","v":"-"},{"$f":"'Personnes transgenres'!O78","v":"-"},{"$f":"'Prisonniers '!O76","v":"-"},{"$f":"'PQID '!O75","v":"-"}]
[null,null,null,null,"Évaluation épidémiologique (enquête de séroprévalence et déterminants du risque)",{"$f":"'TS '!O84","v":"-"},{"$f":"'HSH '!O85","v":"-"},{"$f":"'Personnes transgenres'!O86","v":"-"},{"$f":"'Prisonniers '!O81","v":"-"},{"$f":"'PQID '!O83","v":"-"}]
[null,null,null,null,"Évaluation des besoins",{"$f":"'TS '!O91","v":"-"},{"$f":"'HSH '!O92","v":"-"},{"$f":"'Personnes transgenres'!O93","v":"-"},{"$f":"'Prisonniers '!O88","v":"-"},{"$f":"'PQID '!O90","v":"-"}]
[null,null,null,null,"Définition de cibles",{"$f":"'TS '!O95","v":"-"},{"$f":"'HSH '!O96","v":"-"},{"$f":"'Personnes transgenres'!O97","v":"-"},{"$f":"'Prisonniers '!O92","v":"-"},{"$f":"'PQID '!O94","v":"-"}]
[null,null,null,"Modalités de mise en œuvre ","Gestion d’une plateforme d’accès",{"$f":"'TS '!O106","v":"-"},{"$f":"'HSH '!O107","v":"-"},{"$f":"'Personnes transgenres'!O108","v":"-"},{"$f":"'Prisonniers '!O103","v":"-"},{"$f":"'PQID '!O105","v":"-"}]
[null,null,null,null,"Structure de gestion",{"$f":"'TS '!O111","v":"-"},{"$f":"'HSH '!O112","v":"-"},{"$f":"'Personnes transgenres'!O113","v":"-"},{"$f":"'Prisonniers '!O108","v":"-"},{"$f":"'PQID '!O110","v":"-"}]
[null,null,null,null,"Flux de données ",{"$f":"'TS '!O121","v":"-"},{"$f":"'HSH '!O122","v":"-"},{"$f":"'Personnes transgenres'!O123","v":"-"},{"$f":"'Prisonniers '!O113","v":"-"},{"$f":"'PQID '!O120","v":"-"}]
[null,null,null,null,"Pairs-travailleurs de proximité ",{"$f":"'TS '!O128","v":"-"},{"$f":"'HSH '!O129","v":"-"},{"$f":"'Personnes transgenres'!O130","v":"-"},{"$f":"'Prisonniers '!O119","v":"-"},{"$f":"'PQID '!O120","v":"-"}]
[null,null,null,null,"Engagement significatif des communautés affectées dans le leadership et la coordination",{"$f":"'TS '!O139","v":"-"},{"$f":"'HSH '!O138","v":"-"},{"$f":"'Personnes transgenres'!O139","v":"-"},{"$f":"'Prisonniers '!O126","v":"-"},{"$f":"'PQID '!O127","v":"-"}]
[null,null,null,"Prestation de services différenciés","Services accessibles",{"$f":"'TS '!O146","v":"-"},{"$f":"'HSH '!O145","v":"-"},{"$f":"'Personnes transgenres'!O146","v":"-"},{"$f":"'Prisonniers '!O133","v":"-"},{"$f":"'PQID '!O144","v":"-"}]
[null,null,null,null,"Services acceptables",{"$f":"'TS '!O155","v":"-"},{"$f":"'HSH '!O153","v":"-"},{"$f":"'Personnes transgenres'!O154","v":"-"},{"$f":"'Prisonniers '!O141","v":"-"},{"$f":"'PQID '!O152","v":"-"}]
[null,null,null,null,"Services sur-mesure/appropriés",{"$f":"'TS '!O162","v":"-"},{"$f":"'HSH '!O159","v":"-"},{"$f":"'Personnes transgenres'!O160","v":"-"},{"$f":"'Prisonniers '!O147","v":"-"},{"$f":"'PQID '!O158","v":"-"}]
[null,null,null,"Interventions cliniques ","Préservatifs et lubrifiants ",{"$f":"'TS '!O171","v":"-"},{"$f":"'HSH '!O168","v":"-"},{"$f":"'Personnes transgenres'!O169","v":"-"},{"$f":"'Prisonniers '!O155","v":"-"},{"$f":"'PQID '!O189","v":"-"}]
[null,null,null,null,"Services de dépistage du VIH",{"$f":"'TS '!O175","v":"-"},{"$f":"'HSH '!O172","v":"-"},{"$f":"'Personnes transgenres'!O173","v":"-"},{"$f":"'Prisonniers '!O159","v":"-"},{"$f":"'PQID '!O193","v":"-"}]
[null,null,null,null,"Prophylaxie avant exposition",{"$f":"'TS '!O188","v":"-"},{"$f":"'HSH '!O172","v":"-"},{"$f":"'Personnes transgenres'!O184","v":"-"},{"$f":"'Prisonniers '!O172","v":"-"},{"$f":"'PQID '!O206","v":"-"}]
[null,null,null,null,"Prévention, dépistage et traitement des IST",{"$f":"'TS '!O194","v":"-"},{"$f":"'HSH '!O191","v":"-"}]
[null,null,null,null,"Planification familiale et SSR",{"$f":"'TS '!O201","v":"-"},{"$f":"'HSH '!O198","v":"-"},{"$f":"'Personnes transgenres'!O190","v":"-"},{"$f":"'Prisonniers '!O178","v":"-"}]
[null,null,null,null,"Soins post-violence ",{"$f":"'TS '!O206","v":"-"},{"$f":"'HSH '!O203","v":"-"},{"$f":"'Personnes transgenres'!O194","v":"-"},{"$f":"'Prisonniers '!O183","v":"-"},{"$f":"'PQID '!O212","v":"-"}]
[null,null,null,null,"Prévention, dépistage et traitement de la tuberculose",{"$f":"'TS '!O211","v":"-"},{"$f":"'HSH '!O208","v":"-"},{"$f":"'Personnes transgenres'!O200","v":"-"},{"$f":"'Prisonniers '!O187","v":"-"},{"$f":"'PQID '!O217","v":"-"}]
[null,null,null,null,"PTME",{"$f":"'TS '!O221","v":"-"},null,null,{"$f":"'Prisonniers '!O182","v":"-"},{"$f":"'PQID '!O222","v":"-"}]
[null,null,null,null,"Prévention, vaccination, dépistage et traitement des hépatites virales",{"$f":"'TS '!O223","v":"-"},{"$f":"'HSH '!O218","v":"-"},{"$f":"'Personnes transgenres'!O210","v":"-"},{"$f":"'Prisonniers '!O198","v":"-"}]
[null,null,null,null,"Dépistage et traitement de la consommation de drogues et d’alcool",{"$f":"'TS '!O230","v":"-"},{"$f":"'HSH '!O225","v":"-"},{"$f":"'Personnes transgenres'!O217","v":"-"},{"$f":"'Prisonniers '!O205","v":"-"},{"$f":"'PQID '!O232","v":"-"}]
[null,null,null,null,"Soins de santé mentale",{"$f":"'TS '!O235","v":"-"},{"$f":"'HSH '!O230","v":"-"},{"$f":"'Personnes transgenres'!O223","v":"-"},{"$f":"'Prisonniers '!O210","v":"-"},{"$f":"'PQID '!O239","v":"-"}]
[null,null,null,null,"Programme de distribution d'aiguilles et de seringues (PAS)",null,null,null,null,{"$f":"'PQID '!O167","v":"-"}]
[null,null,null,null,"Traitement de substitution aux opiacés",null,null,null,null,{"$f":"'PQID '!O180","v":"-"}]
[null,null,null,null,"CMMV",null,{"$f":"'HSH '!O233","v":"-"},null,{"$f":"'Prisonniers '!O213","v":"-"},{"$f":"'PQID '!O247","v":"-"}]
[null,null,null,null,"COVID-19",{"$f":"'TS '!O238","v":"-"},{"$f":"'HSH '!O236","v":"-"},{"$f":"'Personnes transgenres'!O226","v":"-"},{"$f":"'Prisonniers '!O216","v":"-"},{"$f":"'PQID '!O250","v":"-"}]
[null,null,null,"Interventions comportementales","Communication sur le changement de comportement social ",{"$f":"'TS '!O243","v":"-"},{"$f":"'HSH '!O241","v":"-"},{"$f":"'Personnes transgenres'!O231","v":"-"},{"$f":"'Prisonniers '!O221","v":"-"},{"$f":"'PQID '!O255","v":"-"}]
[null,null,null,"Paquet d’interventions structurelles","Prévention et réponse à la violence",{"$f":"'TS '!O251","v":"-"},{"$f":"'HSH '!O249","v":"-"},{"$f":"'Personnes transgenres'!O239","v":"-"},{"$f":"'Prisonniers '!O229","v":"-"},{"$f":"'PQID '!O263","v":"-"}]
[null,null,null,null,"Réduction de la stigmatisation et de la discrimination ",{"$f":"'TS '!O259","v":"-"},{"$f":"'HSH '!O257","v":"-"},{"$f":"'Personnes transgenres'!O247","v":"-"},{"$f":"'Prisonniers '!O233","v":"-"},{"$f":"'PQID '!O271","v":"-"}]
[null,null,null,null,"Services juridiques liés au VIH ",{"$f":"'TS '!O267","v":"-"},{"$f":"'HSH '!O265","v":"-"},{"$f":"'Personnes transgenres'!O255","v":"-"},{"$f":"'Prisonniers '!O241","v":"-"},{"$f":"'PQID '!O276","v":"-"}]
[null,null,null,null,"Contrôle de l’application de la loi",{"$f":"'TS '!O271","v":"-"},{"$f":"'HSH '!O269","v":"-"},{"$f":"'Personnes transgenres'!O259","v":"-"},{"$f":"'Prisonniers '!O245","v":"-"},{"$f":"'PQID '!O280","v":"-"}]
[null,null,null,null,"Connaissances juridiques",{"$f":"'TS '!O272","v":"-"},{"$f":"'HSH '!O270","v":"-"},{"$f":"'Personnes transgenres'!O260","v":"-"},{"$f":"'Prisonniers '!O246","v":"-"},{"$f":"'PQID '!O281","v":"-"}]
[null,null,null,null,"Sensibilisation des législateurs et des agents chargés de l’application de la loi ",{"$f":"'TS '!O275","v":"-"},{"$f":"'HSH '!O273","v":"-"},{"$f":"'Personnes transgenres'!O263","v":"-"},{"$f":"'Prisonniers '!O248","v":"-"},{"$f":"'PQID '!O284","v":"-"}]
[null,null,null,null,"Formation pour les prestataires de soins de santé sur les droits humains et l’éthique médicale liés au VIH ",{"$f":"'TS '!O280","v":"-"},{"$f":"'HSH '!O278","v":"-"},{"$f":"'Personnes transgenres'!O268","v":"-"},{"$f":"'Prisonniers '!O253","v":"-"},{"$f":"'PQID '!O289","v":"-"}]
[null,null,null,null,"Réduction de la discrimination à l’égard des femmes dans le contexte du VIH ",{"$f":"'TS '!O284","v":"-"},null,{"$f":"'Personnes transgenres'!O272","v":"-"},{"$f":"'Prisonniers '!O257","v":"-"},{"$f":"'PQID '!O293","v":"-"}]
[null,null,null,null,"Espaces sécurisés / Centres d’accueil",{"$f":"'TS '!O292","v":"-"},{"$f":"'HSH '!O282","v":"-"},{"$f":"'Personnes transgenres'!O280","v":"-"},null,{"$f":"'PQID '!O301","v":"-"}]
[null,null,null,null,"Comités communautaires",{"$f":"'TS '!O302","v":"-"},{"$f":"'HSH '!O292","v":"-"},{"$f":"'Personnes transgenres'!O290","v":"-"},null,{"$f":"'PQID '!O311","v":"-"}]
[null,null,null,"Suivi et évaluation de programme","Suivi de routine",{"$f":"'TS '!O315","v":"-"},{"$f":"'HSH '!O305","v":"-"},{"$f":"'Personnes transgenres'!O303","v":"-"},{"$f":"'Prisonniers '!O267","v":"-"},{"$f":"'PQID '!O324","v":"-"}]
[null,null,null,null,"Suivi communautaire dans le cadre de l’obligation de rendre compte ",{"$f":"'TS '!O323","v":"-"},{"$f":"'HSH '!O313","v":"-"},{"$f":"'Personnes transgenres'!O311","v":"-"},{"$f":"'Prisonniers '!O275","v":"-"},{"$f":"'PQID '!O332","v":"-"}]
[null,null,null,null,"Suivi du système d’orientation vers d’autres services",{"$f":"'TS '!O331","v":"-"},{"$f":"'HSH '!O321","v":"-"},{"$f":"'Personnes transgenres'!O319","v":"-"},{"$f":"'Prisonniers '!O282","v":"-"},{"$f":"'PQID '!O340","v":"-"}]
[null,null,null,null,"Évaluation de la qualité",{"$f":"'TS '!O337","v":"-"},{"$f":"'HSH '!O327","v":"-"},{"$f":"'Personnes transgenres'!O325","v":"-"},{"$f":"'Prisonniers '!O288","v":"-"},{"$f":"'PQID '!O340","v":"-"}]
[null,null,null,null,"Surveillance ",{"$f":"'TS '!O342","v":"-"},{"$f":"'HSH '!O332","v":"-"},{"$f":"'Personnes transgenres'!O330","v":"-"},{"$f":"'Prisonniers '!O293","v":"-"},{"$f":"'PQID '!O351","v":"-"}]
[null,null,null,null,"Données pour la prise de décision",{"$f":"'TS '!O347","v":"-"},{"$f":"'HSH '!O337","v":"-"},{"$f":"'Personnes transgenres'!O335","v":"-"},{"$f":"'Prisonniers '!O298","v":"-"},{"$f":"'PQID '!O356","v":"-"}]
[null,null,null,null,"Utilisation de Codes d’identification uniques pour le suivi des programmes",{"$f":"'TS '!O356","v":"-"},{"$f":"'HSH '!O346","v":"-"},{"$f":"'Personnes transgenres'!O344","v":"-"},{"$f":"'Prisonniers '!O307","v":"-"},{"$f":"'PQID '!O365","v":"-"}]
[null,null,null,null,"Suivi budgétaire",{"$f":"'TS '!O361","v":"-"},{"$f":"'HSH '!O351","v":"-"},{"$f":"'Personnes transgenres'!O349","v":"-"},{"$f":"'Prisonniers '!O312","v":"-"},{"$f":"'PQID '!O370","v":"-"}]
[null,null,null,null,"Estimations de la taille de la population clé disponibles",{"$f":"'TS '!O369","v":"-"},{"$f":"'HSH '!O358","v":"-"},{"$f":"'Personnes transgenres'!O358","v":"-"},{"$f":"'Prisonniers '!O319","v":"-"},{"$f":"'PQID '!O377","v":"-"}]
[null,null,null,null,"La stratégie de prévention comprend des éléments essentiels du paquet de prévention PC",{"$f":"'TS '!O370","v":"-"},{"$f":"'HSH '!O359","v":"-"},{"$f":"'Personnes transgenres'!O359","v":"-"},{"$f":"'Prisonniers '!O320","v":"-"},{"$f":"'PQID '!O381","v":"-"}]
[null,null,"Résultats de programme","Résultats parmi les PC","PVVIH qui connaissent leur statut VIH (cible 90 %)",{"$f":"'TS '!O370","v":"-"},{"$f":"'HSH '!O360","v":"-"},{"$f":"'Personnes transgenres'!O361","v":"-"},{"$f":"'Prisonniers '!O321","v":"-"},{"$f":"'PQID '!O378","v":"-"}]
[null,null,null,null,"PVVIH sous traitement antirétroviral (cible 90 %)",{"$f":"'TS '!O371","v":"-"},{"$f":"'HSH '!O361","v":"-"},{"$f":"'Personnes transgenres'!O362","v":"-"},{"$f":"'Prisonniers '!O322","v":"-"},{"$f":"'PQID '!O379","v":"-"}]
[null,null,null,null,"PVVIH ayant supprimé la charge (cible 90 %)",{"$f":"'TS '!O373","v":"-"},{"$f":"'HSH '!O363","v":"-"},{"$f":"'Personnes transgenres'!O363","v":"-"},{"$f":"'Prisonniers '!O323","v":"-"},{"$f":"'PQID '!O380","v":"-"}]
[null,null,null,null,"Utilisation du préservatif par les TS avec le client le plus récent (cible 80 %)",{"$f":"'TS '!O374","v":"-"}]
[null,null,null,null,"PC ayant reçu au moins 2 interventions de prévention du VIH au cours des 3 derniers mois",{"$f":"'TS '!O375","v":"-"},{"$f":"'HSH '!O362","v":"-"},{"$f":"'Personnes transgenres'!O364","v":"-"},null,{"$f":"'PQID '!O382","v":"-"}]
[null,null,null,null,"Pourcentage ayant évité les soins de santé pour raison de stigmatisation et de discrimination",{"$f":"'TS '!O376","v":"-"},{"$f":"'HSH '!O364","v":"-"},{"$f":"'Personnes transgenres'!O366","v":"-"},null,{"$f":"'PQID '!O384","v":"-"}]
[null,null,null,null,"Criminalisation de la PC",{"$f":"'TS '!O377","v":"-"},{"$f":"'HSH '!O365","v":"-"},{"$f":"'Personnes transgenres'!O365","v":"-"},null,{"$f":"'PQID '!O388","v":"-"}]
[null,null,null,null,"Utilisation du préservatif lors du dernier rapport anal chez les HSH ",null,{"$f":"'HSH '!O366","v":"-"}]
[null,null,null,null,"Soins de santé tenant compte de la dimension de genre dans les centres de soins de santé",null,null,{"$f":"'Personnes transgenres'!O367","v":"-"}]
[null,null,null,null,"Utilisation du préservatif chez les personnes transgenres (cible 80 %)",null,null,{"$f":"'Personnes transgenres'!O368","v":"-"}]
[null,null,null,null,"Prévalence du VIH chez les personnes transgenres",null,null,{"$f":"'Personnes transgenres'!O360","v":"-"}]
[null,null,null,null,"Nombre d’aiguilles/seringues par personne qui s’injecte des drogues",null,null,null,null,{"$f":"'PQID '!O383","v":"-"}]
[null,null,null,null,"Pratiques d’injection sûres (PQID) (cible 90 %)",null,null,null,null,{"$f":"'PQID '!O386","v":"-"}]
[null,null,null,null,"Pourcentage de consommateurs d’opioïdes qui bénéficient d’un traitement médicalement assisté (PQID) (cible 25 %)",null,null,null,null,{"$f":"'PQID '!O387","v":"-"}]
[null,null,null,"Durabilité",null,{"$f":"IFERROR(ROUND(AVERAGE('TS '!P6:P377),0),\"-\")","v":"-"},{"$f":"IFERROR(ROUND(AVERAGE('HSH '!P6:P377),0),\"-\")","v":"-"},{"$f":"IFERROR(ROUND(AVERAGE('Personnes transgenres'!P6:P378),0),\"-\")","v":"-"},{"$f":"IFERROR(ROUND(AVERAGE('Prisonniers '!P6:P354),0),\"-\")","v":"-"},{"$f":"IFERROR(ROUND(AVERAGE('PQID '!P6:P382),0),\"-\")","v":"-"}]
[null,null,null,"Indicateurs COVID-19 (et autres pandémies)",null,{"$f":"IF((SUM('TS '!L58:N58)+SUM('TS '!L239:N239)+SUM('TS '!L240:N240))/3=0,\"-\",ROUND((SUM('TS '!L58:N58)+SUM('TS '!L239:N239)+SUM('TS '!L240:N240))/3,0))","v":"-"},{"$f":"IF((SUM('HSH '!L59:N59)+SUM('HSH '!L237:N237)+SUM('HSH '!L238:N238))/3=0,\"-\",ROUND((SUM('HSH '!L59:N59)+SUM('HSH '!L237:N237)+SUM('HSH '!L238:N238))/3,0))","v":"-"},{"$f":"IF((SUM('Personnes transgenres'!L58:N58)+SUM('Personnes transgenres'!L237:N237)+SUM('Personnes transgenres'!L238:N238))/3=0,\"-\",ROUND((SUM('Personnes transgenres'!L58:N58)+SUM('Personnes transgenres'!L237:N237)+SUM('Personnes transgenres'!L238:N238))/3,0))","v":"-"},{"$f":"IF((SUM('Prisonniers '!L57:N57)+SUM('Prisonniers '!L217:N217)+SUM('Prisonniers '!L218:N218))/3=0,\"-\",ROUND((SUM('Prisonniers '!L57:N57)+SUM('Prisonniers '!L217:N217)+SUM('Prisonniers '!L218:N218))/3,0))","v":"-"},{"$f":"IF((SUM('PQID '!L57:N57)+SUM('PQID '!L251:N251)+SUM('PQID '!L252:N252))/3=0,\"-\",ROUND((SUM('PQID '!L57:N57)+SUM('PQID '!L251:N251)+SUM('PQID '!L252:N252))/3,0))","v":"-"}]
[]
[null,null,null,null,null,null,null,null,null,null,null,null,{"$f":"COUNTIF(F4:J80,\"-\")","v":330}]
[null,null,null,null,null,null,null,null,null,null,null,null,{"$f":"COUNTIF(F4:J80,\">0\")","v":0}]
[null,null,null,null,null,null,null,null,null,null,null,"Achèvement de l'OEAP",{"$f":"M83/(M82+M83)","v":0},{"$f":"1-M84","v":1}]

{"sheet":"Étapes suivantes","index":10,"n_rows":92,"n_cols":8,"rows_kept":92,"cut":false,"hidden":false,"merged":[[58,2,58,8],[60,4,60,5],[76,2,76,8],[78,4,78,5],[4,2,4,8],[6,4,6,5],[22,2,22,8],[24,4,24,5],[40,2,40,8],[42,4,42,5]]}
[]
[]
[]
[]
[null,null,"Étapes suivantes - Travailleurs du sexe"]
[]
[null,null,null,null,"Élément à traiter/améliorer",null,"Raison de la mauvaise performance","Actions proposées (ex. : soutien requis ou actions correctives)"]
[null,null,null,null,1]
[null,null,null,null,2]
[null,null,null,null,3]
[null,null,null,null,4]
[null,null,null,null,5]
[null,null,null,null,6]
[null,null,null,null,7]
[null,null,null,null,8]
[null,null,null,null,9]
[null,null,null,null,10]
[null,null,null,null,11]
[null,null,null,null,12]
[null,null,null,null,13]
[]
[]
[null,null,"Étapes suivantes - Hommes ayant rapports sexuels avec des hommes"]
[]
[null,null,null,null,"Élément à traiter/améliorer",null,"Raison de la mauvaise performance","Actions proposées (ex. : soutien requis ou actions correctives)"]
[null,null,null,null,1]
[null,null,null,null,2]
[null,null,null,null,3]
[null,null,null,null,4]
[null,null,null,null,5]
[null,null,null,null,6]
[null,null,null,null,7]
[null,null,null,null,8]
[null,null,null,null,9]
[null,null,null,null,10]
[null,null,null,null,11]
[null,null,null,null,12]
[null,null,null,null,13]
[]
[]
[null,null,"Étapes suivantes - Personnes transgenres"]
[]
[null,null,null,null,"Élément à traiter/améliorer",null,"Raison de la mauvaise performance","Actions proposées (ex. : soutien requis ou actions correctives)"]
[null,null,null,null,1]
[null,null,null,null,2]
[null,null,null,null,3]
[null,null,null,null,4]
[null,null,null,null,5]
[null,null,null,null,6]
[null,null,null,null,7]
[null,null,null,null,8]
[null,null,null,null,9]
[null,null,null,null,10]
[null,null,null,null,11]
[null,null,null,null,12]
[null,null,null,null,13]
[]
[]
[null,null,"Étapes suivantes - Prisonniers et personnes en milieu fermé"]
[]
[null,null,null,null,"Élément à traiter/améliorer",null,"Raison de la mauvaise performance","Actions proposées (ex. : soutien requis ou actions correctives)"]
[null,null,null,null,1]
[null,null,null,null,2]
[null,null,null,null,3]
[null,null,null,null,4]
[null,null,null,null,5]
[null,null,null,null,6]
[null,null,null,null,7]
[null,null,null,null,8]
[null,null,null,null,9]
[null,null,null,null,10]
[null,null,null,null,11]
[null,null,null,null,12]
[null,null,null,null,13]
[]
[]
[null,null,"Étapes suivantes - Personnes qui s’injectent des drogues"]
[]
[null,null,null,null,"Élément à traiter/améliorer",null,"Raison de la mauvaise performance","Actions proposées (ex. : soutien requis ou actions correctives)"]
[null,null,null,null,1]
[null,null,null,null,2]
[null,null,null,null,3]
[null,null,null,null,4]
[null,null,null,null,5]
[null,null,null,null,6]
[null,null,null,null,7]
[null,null,null,null,8]
[null,null,null,null,9]
[null,null,null,null,10]
[null,null,null,null,11]
[null,null,null,null,12]
[null,null,null,null,13]

{"sheet":"Bibliographie","index":11,"n_rows":39,"n_cols":4,"rows_kept":39,"cut":false,"hidden":false,"merged":[[1,2,1,3]]}
[]
[null,null,"Bibliographie"]
[null,null,1,"Bridging the Gaps. (2015). Reaching Key Populations and Improving Their Access to HIV Services in Kenya."]
[null,null,2,"Joint United Nations Programme on HIV/AIDS. (2008). A framework for monitoring and evaluating HIV prevention programmes for most-at-risk populations."]
[null,null,3,"Joint United Nations Programme on HIV/AIDS. (2012). Key programmes to reduce stigma and discrimination and increase access to justice in national HIV responses. Guidance Note"]
[null,null,4,"Joint United Nations Programme on HIV/AIDS. (2017). HIV prevention 2020 road map—accelerating HIV prevention to reduce new infections by 75%. Geneva: UNAIDS."]
[null,null,5,"Joint United Nations Programme on HIV/AIDS. (2018). Global AIDS Monitoring 2019: Indicators for Monitoring the 2016 Political Declaration on Ending AIDS. Geneva: UNAIDS."]
[null,null,6,"Joint United Nations Programme on HIV/AIDS. (2018). HIV Prevention Scorecard for Key Populations. Geneva: UNAIDS."]
[null,null,7,"Joint United Nations Programme on HIV/AIDS. (2018). Implementation of the HIV Prevention 2020 Road Map - First progress report, March 2018. Geneva: UNAIDS."]
[null,null,8,"Joint United Nations Programme on HIV/AIDS. (2020). Maintaining and prioritizing HIV prevention services in the time of COVID-19."]
[null,null,9,"Joint United Nations Programme on HIV/AIDS. (2020). Condoms and lubricants in the time of COVID-19. Sustaining supplies and people-centred approaches to meet the need in low- and middle-income countries."]
[null,null,10,"Joint United Nations Programme on HIV/AIDS. (2020). UNAIDS highlights six critical actions to put gender equality at the centre of COVID-19 responses. "]
[null,null,11,"Joint United Nations Programme on HIV/AIDS. (2020). Strategic Considerations for Mitigating the Impact of COVID-19 on Key-Population-Focused HIV Programs."]
[null,null,12,"Joint United Nations Programme on HIV/AIDS. (2020). Preventing HIV and other STIs among women and girls using contraceptive services in contexts with high HIV incidence. "]
[null,null,13,"Joint United Nations Programme on HIV/AIDS. (2021). Going Online: A Budgeting and Programming Aid for Virtual HIV Interventions. "]
[null,null,14,"Kenya Ministry of Health. (2018). National implementation guidelines for HIV and STI programme among young key populations. "]
[null,null,15,"LINKAGES. (2015). HIV cascade framework for Key Populations. "]
[null,null,16,"LINKAGES. (2016). Annex 2: Acceleration Technical Assistance Checklist of Accelerating the Implementation and Scale-up of Comprehensive Programs for HIV Prevention, Diagnosis, Treatment and Care for Key Populations."]
[null,null,17,"LINKAGES. (2017). Key Population Programme Implementation Guide. "]
[null,null,18,"NASCOP. (2014). Ministry of Health National Guidelines of HIV and STI Programming with Key Populations. Kenya"]
[null,null,19,"Kageni, A., Mwangi, L., Mugyenyi, C., & Macintyre, K. (2015). Representation and participation of key populations on country coordinating mechanisms (CCMs) in sex countries in Southern Africa. Final report."]
[null,null,20,"SANAC. (2016). South African National Strategic Plan 2017-2020."]
[null,null,21,"United Nations Office on Drugs and Crime, International Network of People Who Use Drugs, Joint United Nations Programme on HIV/AIDS, United Nations Development Programme, United Nations Population Fund, World Health Organization, United States Agency for International Development. (2017). Implementing comprehensive HIV and HCV programmes with people who inject drugs: practical guidance for collaborative interventions. Vienna: United Nations Office on Drugs and Crime."]
[null,null,22,"International AIDS Society. (2018). Differentiated service delivery: A decision framework for differentiated antiretroviral therapy for key populations. "]
[null,null,23,"International AIDS Society. (2018). Differentiated service delivery for HIV: A decision framework for HIV testing services. "]
[null,null,24,"World Health Organization. (2007). Guide to starting and managing needle and syringe programmes."]
[null,null,25,"World Health Organization. (2009). Toolkit for Monitoring and Evaluation of interventions for sex workers. "]
[null,null,26,"World Health Organization. (2010). Delivering HIV test results and messages for re-testing and counselling in adults. "]
[null,null,27,"World Health Organization. (2011). Guidelines on surveillance among populations most at risk for HIV."]
[null,null,28,"World Health Organization. (2011). Preventing HIV in Sex Work in Sub-Saharan Africa."]
[null,null,29,"World Health Organization. (2012). Guidance on Pre-Exposure Prophylaxis (PrEP) for serodiscordant couples, men and transgender women who have sex with men at high risk of HIV."]
[null,null,30,"World Health Organization. (2012). Prevention and treatment of HIV and other sexually transmitted infections for sex workers in low-and middle-income countries: recommendations for a public health approach. World Health Organization."]
[null,null,31,"World Health Organization. (2012). Responding to intimate partner violence and sexual violence against women. "]
[null,null,32,"World Health Organization. (2012). Service delivery approaches to HIV testing and counselling (HTC): A strategic HTC programme framework."]
[null,null,33,"World Health Organization. (2015). Tool to set and monitor targets for HIV prevention, diagnosis, treatment and care for key populations: supplement to the 2014 consolidated guidelines for HIV prevention, diagnosis, treatment and care for key populations. World Health Organization."]
[null,null,34,"World Health Organization. (2016). Consolidated guideline on HIV prevention diagnosis, treatment and care for Key Populations - 2016 update. "]
[null,null,35,"World Health Organization. (2017). Consolidated guidelines on person-centred HIV patient monitoring and case surveillance."]
[null,null,36,"World Health Organization. (2018). mhGAP operations manual."]
[null,null,37," United Nations Office on Drugs and Crime. (2020). International Standards for the treatment of drug use disorders"]

{"sheet":"Acronymes","index":12,"n_rows":37,"n_cols":4,"rows_kept":37,"cut":false,"hidden":false,"merged":[[1,2,1,3]]}
[]
[null,null,"Acronymes"]
[null,null,"AT","Plan d’assistance technique"]
[null,null,"CCCS","Communication sur le changement de comportement social"]
[null,null,"CIU","Code d’identification unique"]
[null,null,"ELT","Échantillonnage par localisation temporelle "]
[null,null,"ETP","Estimation de la taille de la population"]
[null,null,"GTT","Groupe de travail technique "]
[null,null,"HSH","Hommes ayant rapports sexuels avec des hommes "]
[null,null,"ICP","Information et communication pédagogique"]
[null,null,"LINKAGES","Projet « Continuum de services VIH pour les populations clés affectées par le VIH »"]
[null,null,"NCG","Non-conformité de genre"]
[null,null,"OAEP","Outil d’auto-évaluation de la prévention"]
[null,null,"OC","Organisation communautaire"]
[null,null,"OMS","Organisation mondiale de la Santé "]
[null,null,"ONG","Organisation non-gouvernementale"]
[null,null,"ONUSIDA","Programme commun des Nations unies sur le VIH/sida "]
[null,null,"OSC","Organisations de la société civile "]
[null,null,"PaE","Prophylaxie avant exposition"]
[null,null,"PAS","Programme d’échange d’aiguilles et de seringues "]
[null,null,"PC","Populations clés "]
[null,null,"PF","Planification familiale"]
[null,null,"PO","Plan opérationnel"]
[null,null,"PQID","Personnes qui s’injectent des drogues"]
[null,null,"PTME","Prévention de la transmission mère-enfant"]
[null,null,"PTP","Pairs-travailleurs de proximité"]
[null,null,"PVVIH","Personnes vivant avec le VIH"]
[null,null,"S&E","Suivi et évaluation"]
[null,null,"SDV","Services de dépistage du VIH "]
[null,null,"SSR","Santé sexuelle reproductive "]
[null,null,"TAR","Traitement antirétroviral"]
[null,null,"TB","Tuberculose"]
[null,null,"TC","Théorie du changement"]
[null,null,"TS","Travailleur(se) du sexe"]
[null,null,"TSO","Traitement de substitution aux opiacés"]
[null,null,"USAID","United States Agency for International Development (Agence des États-Unis pour le développement international)"]
[null,null,"VHB","Virus de l’hépatite B "]